{"text_format":"1","workbook":"xlsx","n_sheets":7,"sheets":["Instruktion och Projektinfo","Input - Mängder A1-A3, A4, A5","Kommentarer","Resultat - enskilt scenario","Stödtabeller","Emissionsfaktorer","Hjalpflik"],"not_rendered":{"charts":4,"images":4,"macros":1,"external_links":0,"defined_names":9,"comments":2,"pivot_tables":0},"unopened":[],"bounds":{"document_bytes":16777216,"sheet_cells":100000,"rows_first":2000,"rows_last":500,"rows_between":2000,"halvings":0,"cell_chars":16384,"cell_head_chars":4096},"cells_cut":0,"cells_raw":0,"read":"whole","date_system":"1900"}

{"sheet":"Instruktion och Projektinfo","index":0,"n_rows":47,"n_cols":16,"rows_kept":47,"cut":false,"hidden":false,"merged":[[43,0,43,10],[44,0,44,10],[45,0,45,10],[46,0,46,10],[17,0,17,10],[34,0,34,10],[40,0,40,10],[36,0,36,10],[37,0,37,10],[38,0,38,10],[39,0,39,10],[42,0,42,10],[27,0,27,10],[28,0,28,10],[29,0,29,10],[33,0,33,10],[19,0,19,10],[20,0,20,10],[22,0,22,10],[25,0,25,10],[26,0,26,10],[6,0,6,10],[14,0,14,10],[15,0,15,10],[16,0,16,10],[18,0,18,10],[7,0,7,10],[8,0,8,10],[9,0,9,10],[10,0,10,10],[11,0,11,10],[1,0,1,10],[2,0,2,10],[3,0,3,10],[4,0,4,10],[5,0,5,10],[0,11,0,16],[1,11,1,16],[5,15,6,15],[5,16,6,16],[10,11,10,16],[20,11,20,16],[22,11,22,16],[23,11,23,16],[24,11,24,16],[11,11,11,16],[12,11,12,16],[13,11,13,16],[14,11,14,16],[15,11,15,16],[16,11,16,16],[17,11,17,16],[21,11,21,16],[35,0,35,10],[41,0,41,10],[31,11,31,16],[32,11,32,16],[13,0,13,10],[24,0,24,10],[31,0,31,10],[32,0,32,10],[25,11,25,16],[26,11,26,16],[27,11,27,16],[28,11,28,16],[29,11,29,16],[30,11,30,16],[18,11,18,16],[19,11,19,16]]}
[]
["Så här gör du för att fylla i excelverktyget och beräkna utsläppen av växthusgaser för ditt projekt",null,null,null,null,null,null,null,null,null,null,"Här anger du information om ditt projekt. Fetmarkerad information bör alltid fyllas, övrig information är frivilligt."]
[null,null,null,null,null,null,null,null,null,null,null,"Projektnamn:",null,"Organisation:",null,"Kontaktperson:"]
["OBS - läs nedan punkter noga då de är viktiga för att verktyget ska fungera optimalt"]
["Alla rader som läggs till i flik \"Input - Mängder A1-A3, A4, A5\" förs automatiskt över till flikarna \"Kommentarer\" och \"Resultat - enskilt scenario\".",null,null,null,null,null,null,null,null,null,null,"Datum:","202X-XX-XX","Typ av projekt:"]
["Använd inte filterfunktionen på tabellerna i kommande flikar, det kan skapa problem med beräkningarna i verktyget.",null,null,null,null,null,null,null,null,null,null,null,null,null,null,"Ingår återställning av håtdjorda ytor i projektet (JA/NEJ)?:"]
["Lägg inte till rader ovanför tabellerna i denna eller kommande flikar. Använd istället knappen \"lägg till 10 rader till tabell(erna)\", i fliken Input.",null,null,null,null,null,null,null,null,null,null,"Projektskede:",null,"Placering:"]
["Skapa inte nya kolumner i tabellerna i denna eller kommande flikar. Använd istället fliken \"Kommentarer\" för mer utförlig information."]
["Börja med att fylla i data i  fliken \"Input - Mängder A1-A3, A4 och A5\" överst, rad för rad.",null,null,null,null,null,null,null,null,null,null,"Storlek (m ledning): ",null,"Storlek (MSEK): ",null,"Storlek (arbetsområde, m²): "]
["Ta inte bort rader om något blir fel, eller behöver ändras. Ta istället bort siffror/text/data och ersätt med rätt information."]
["Lämna inga tomma rader mellan anläggningsdelarna i fliken \"Input - Mängder A1-A3, A4, A5\", då kan resultat och diagram visa fel.",null,null,null,null,null,null,null,null,null,null,"Kommentar avseende omfattning och avgränsning (ange vad som ingår och inte ingår i beräkningen)"]
["Byt inte namn på flikar, tabellernas kolumnnamn eller dylikt - det kan förstöra koppling mellan tabellerna och göra så att resultatet blir fel."]
[]
["Instruktion flik \"Input - Mängder A1-A3, A4 och A5"]
["- Klicka på knappen \"Skapa nytt scenario\"."]
["- Vid behov av fler rader, klicka på knappen \"Lägg till 10 rader till tabellen\"."]
["- Varje post/anläggningsdel registreras som en rad i tabellen."]
["- För en rad är det öjligt att ange klimatpåverkan för alla moduler (A1-A3, A4 och A5) eller för endast någon/några av dem. "]
["- Fyll i kolumnerna \"Anläggningsdel\", \"Kategori\" och \"Kommentar\". Informationen i dessa kolumner överförs automatiskt till övriga flikar."]
["- Under Anläggningsdel fyller du i ett lämpligt namn på aktuell post som ska klimatberäknas."]
["- Under Kategori fyller du i önskad kategori för posten och resultatet redovisas sedan uppdelat efter valda kategorieri."]
["-  Val av kategori är frivilligt och kan väljas helt fritt. Lämnas cellent tom kommer posten att kategoriseras som \"kategori saknas\"."]
["- Under Kommentar kan du skriva kort beskrivning eller förtydligande (Tex. AMA-kod). Mer plats att skriva finns i fliken ”Kommentarer”."]
[]
["A1-A3 (Produktskedet)"]
["- Indata för A1-A3 skriv in i kolumnerna F-L"]
["- Ange mängd och enhet för varje post/anläggningsdel som ska beräknas."]
["- Ange emissionsfaktor och FU/DU för posten."]
["- Om enheten för mängd och FU/DU för emissionsfaktorns inte är samma, kommer kollum K att rödmarkeras."]
["- Ange eventuell omräkningsfaktor som ett värde (ej formel) i kolumn K (rödmarkerad cell)."]
[]
["För modul A4 (Transporter) finns 2 alternativ för indata. För varje rad väljs endast ett av alternativen, för att beräkningen ska bli korrekt."]
["A4 - Alt 1 - Med alternativ 1 anges emissionsfaktor för A4 från en EPD, och beräkningen baseras på mängd som angivits för A1-A3."]
["- Skriv in emissionsfaktor för A4 från aktuell EPD som nyttjats för A1-A3. DU/FU fylls i automatiskt (det är samma som för A1-A3)."]
[]
["A4 - Alt 2 - Med alternativ 2 anges projektspecifik data för transporter, som drivmedel, körsträcka, bränsleförbrukning etc."]
["- Välj typ drivmedel för transporterna från listan, emissionsfaktor och DU/FU anges automatiskt."]
["- Ange total sträcka (km) för Transporterna (avser alla transporter som behövs för den aktuella posten, och ska räknas med tur/retur)."]
["- Ange bränsleförbrukning per km och enhet för förbrukningen."]
["- Om enheten inte är samma som för emissionsfaktorn, fyll i omräkningsfaktorn i rödmarkerad cell i kolumn X."]
[]
["A5.2 (Transporter och arbeten inom arbetsplatsen)"]
["- Välj typ av fordon/maskin från listan eller välj fritt. Observera att detta val inte påverkar kommande beräkningar"]
["- Välj typ av drivmedel från listan, emissionsfaktor och DU/FU anges automatiskt."]
["- Ange förbrukad mängd och enhet."]
["- Om enheten inte är samma som för emissionsfaktorn, fyll i omräkningsfaktorn i rödmarkerad cell i kolumn AH."]
["- I kolumn AI kan du t.ex. ange om A5 avser annat inom Modul A5 än A5.2 (arbetsplatsens fordon och maskiner)."]

{"sheet":"Input - Mängder A1-A3, A4, A5","index":1,"n_rows":56,"n_cols":89,"rows_kept":56,"cut":false,"hidden":false,"merged":[[5,13,5,15],[5,26,5,34],[5,5,5,11],[5,17,5,24],[1,1,1,3]]}
[]
[null,"I denna flik anger du all indata till ditt VA-projekt."]
[]
[null,"Varning - lägg inte till rader ovan för tabellen, varken in denna flik eller följande flikar, gäller även kolumner varken i flikarna eller tabellerna."]
[null,null,null,null,null,null,null,null,null,null,null,null,null,null,null,null,null,null,null,null,null,null,null,null,null,null,null,null,null,null,null,null,null,null,null,null,null,null,null,null,null,null,null,null,null,null,null,null,null,null,null,null,null,null,null,null,null,null,null,null,null,null,null,null,null,null,null,null,null,null,null,null,null,null,null,null,"Gör förklaringar vad varje kolumn vad som händer"]
[null,{"$f":"'Instruktion och Projektinfo'!M3","v":0},null,null,null,"A1 - A3 (Produktskede)",null,null,null,null,null,null,null,"A4 Alternativ 1- Transporter till (och från) Byggarbetsplats\nAnvänd endast ett av alternativen 1 eller 2\n(Alternativ 1 - Använd emissionsfaktor för A4 från EPD.)",null,null,null,"A4 Alternativ 2 (A4)- Transporter till (och från) Byggarbetsplats\nAnvänd endast ett av alternativen 1 eller 2.\nAlternativ 2 - För alternativ 2 används schablon för emissionsfaktor.",null,null,null,null,null,null,null,null,"A5.2 - Arbetsplatsens fordon, maskiner (transporter inom arbetsplatsen och arbetsmoment)"]
[null,"Anläggningsdel\n","Kategori\n(egen kategorisering)","Kommentar","A1A3","Mängd A1A3","Enhet Mängd (A1A3)","EF A1A3 [kg CO₂-ekv.]","FU/DU (EF A1A3)","*Omräkningsfaktorn (A1A3) behöver vara denna enhet (fylls i automatisk):","Omräkning till FU/DU (Skriv in värde, ej formel)","Kommentar till omräkning A1A3\n(Endast text)","A4 - alternativ 1","EPD - EF A4","*DU/FU (EPD - ED A4) [kg CO₂-ekv.] (Fylls i automatiskt)","Kommentar till A4 alternativ 1","A4 - Alternativ 2","Drivmedel (A4) (endast förval ur lista)","*DU/FU (EF A4) för valt drivmedel (schablon)","Sträcka - totalt [km], (tur och retur, alla transporter)","(Bränsle-) Förbrukning per km","Enhet (bränsleförbrukning per km)","*Omräkningsfaktorn behöver vara av denna enhet (fylls i automatiskt);","Omräkningsfaktor (A4), (vid behov, värde eller formel)","Kommentar till A4.2 Alternativ 2"," A5.2","A5.2 Typ av fordon/maskin (behöver ej anges).","Drivmedel (A5.2)","Mängd (A5.2)","Enhet för mängd (A5.2)","*EF (A5.2)\n[kg CO₂-ekv.]","*DU/FU (EF A5.2)","*Omräkningsfaktorn (A5.5) behöver vara av denna enhet;","Omräkningsfaktor (A5.2) (ange värde), (vid behov)","Kommentar tiil A5",null,null,null,null,null,null,null,null,null,null,null,null,null,null,null,null,null,null,null,null,null,null,null,null,null,null,null,null,null,null,null,null,null,null,null,null,null,null,"Finns anläggningsdel-namn.","True/False A1A3 Enhet","True/False A1A3 om A1A3 kan beräknas","Utsläpp A1A3 [kg]","TRUE/FALSE - om Al1 är ifyllt","True/False A4 - Alt 2","True/False A4 Enhet - Alt2","A4 - Resultat alt 1 [kg]","A4 - Alt 2 - beräkning utsläpp","Utsläpp A2 [kg] (alt1 och alt2)","A4 - Alt 2 TRUE/FALSE auto","Utsläpp A5[kg]","True/False A5","True/False A5 Enhet","TRUE/FALSE om kategori saknas.","Kategorier"]
[null,"tewwst","Kat1","test",null,8000,"[m]",65,"[m]",{"$f":"IF(ISBLANK(InputA1A3[[#This Row],[Anläggningsdel\n]]),\"\",IF(KontrollTabell[[#This Row],[True/False A1A3 Enhet]]=TRUE, \"\", InputA1A3[[#This Row],[FU/DU (EF A1A3)]] & \"/\" & InputA1A3[[#This Row],[Enhet Mängd (A1A3)]]))","v":""},null,null,null,456,{"$f":"IF(ISBLANK(InputA1A3[[#This Row],[EPD - EF A4]]),\"\",InputA1A3[[#This Row],[FU/DU (EF A1A3)]])","v":"[m]"},null,null,null,{"$f":"IFERROR(INDEX(TabellEFDrivmedel[],MATCH(InputA1A3[[#This Row],[Drivmedel (A4) (endast förval ur lista)]],TabellEFDrivmedel[Drivmedel],0),4),\"\")","v":""},null,null,null,{"$f":"IF(InputA1A3[[#This Row],[*DU/FU (EF A4) för valt drivmedel (schablon)]]=\"\",\"\",IF(KontrollTabell[[#This Row],[True/False A4 Enhet - Alt2]]=TRUE,\"\",IF(ISBLANK(InputA1A3[[#This Row],[*DU/FU (EF A4) för valt drivmedel (schablon)]]),,InputA1A3[[#This Row],[Enhet (bränsleförbrukning per km)]]& \"/\" & InputA1A3[[#This Row],[*DU/FU (EF A4) för valt drivmedel (schablon)]])))","v":""},null,null,null,null,null,null,null,{"$f":"IFERROR(INDEX(TabellEFDrivmedel[],MATCH(InputA1A3[[#This Row],[Drivmedel (A5.2)]],TabellEFDrivmedel[Drivmedel],0),2),\"\")","v":""},{"$f":"IFERROR(INDEX(TabellEFDrivmedel[],MATCH(InputA1A3[[#This Row],[Drivmedel (A5.2)]],TabellEFDrivmedel[Drivmedel],0),4),\"\")","v":""},{"$f":"IF(KontrollTabell[[#This Row],[True/False A5 Enhet]]=TRUE, \"\", InputA1A3[[#This Row],[*DU/FU (EF A5.2)]] & \"/\" & InputA1A3[[#This Row],[Enhet för mängd (A5.2)]])","v":""},null,null,null,null,null,null,null,null,null,null,null,null,null,null,null,null,null,null,null,null,null,null,null,null,null,null,null,null,null,null,null,null,null,null,null,null,null,null,null,null,{"$f":"IF(ISBLANK(InputA1A3[[#This Row],[Anläggningsdel\n]]),FALSE,TRUE)","v":true},{"$f":"IF(ISBLANK(InputA1A3[[#This Row],[Anläggningsdel\n]]),\"\",IF(InputA1A3[[#This Row],[Enhet Mängd (A1A3)]] = InputA1A3[[#This Row],[FU/DU (EF A1A3)]], TRUE, FALSE))","v":true},{"$f":"IF(KontrollTabell[[#This Row],[Finns anläggningsdel-namn.]]=FALSE,\"\",IF(KontrollTabell[[#This Row],[True/False A1A3 Enhet]]=TRUE,TRUE,IF(ISBLANK(InputA1A3[[#This Row],[Omräkning till FU/DU (Skriv in värde, ej formel)]]),FALSE,TRUE)))","v":true},{"$f":"IF(KontrollTabell[[#This Row],[Finns anläggningsdel-namn.]]=FALSE,,IF(KontrollTabell[[#This Row],[True/False A1A3 Enhet]]=TRUE,InputA1A3[[#This Row],[Mängd A1A3]]*InputA1A3[[#This Row],[EF A1A3 '[kg CO₂-ekv.']]],IF(KontrollTabell[[#This Row],[True/False A1A3 om A1A3 kan beräknas]]=TRUE,InputA1A3[[#This Row],[Mängd A1A3]]*InputA1A3[[#This Row],[EF A1A3 '[kg CO₂-ekv.']]]*InputA1A3[[#This Row],[Omräkning till FU/DU (Skriv in värde, ej formel)]],\"Värde Behövs\")))","v":520000},{"$f":"IF(ISBLANK(InputA1A3[[#This Row],[Anläggningsdel\n]]),\"\",IF(ISBLANK(InputA1A3[[#This Row],[EPD - EF A4]]),FALSE,TRUE))","v":true},{"$f":"IF(OR(ISBLANK(InputA1A3[[#This Row],[Enhet (bränsleförbrukning per km)]]),ISBLANK(InputA1A3[[#This Row],[*DU/FU (EF A4) för valt drivmedel (schablon)]])),\"\",IF(OR(InputA1A3[[#This Row],[Enhet (bränsleförbrukning per km)]]=InputA1A3[[#This Row],[*DU/FU (EF A4) för valt drivmedel (schablon)]],AND(InputA1A3[[#This Row],[Enhet (bränsleförbrukning per km)]]<>InputA1A3[[#This Row],[*DU/FU (EF A4) för valt drivmedel (schablon)]],ISNUMBER(InputA1A3[[#This Row],[Omräkningsfaktor (A4), (vid behov, värde eller formel)]]))),TRUE(),FALSE()))","v":""},{"$f":"IF(InputA1A3[[#This Row],[Enhet (bränsleförbrukning per km)]] =InputA1A3[[#This Row],[*DU/FU (EF A4) för valt drivmedel (schablon)]],TRUE,IF(ISBLANK(InputA1A3[[#This Row],[Omräkningsfaktor (A4), (vid behov, värde eller formel)]]),FALSE,TRUE))","v":true},{"$f":"IF(ISBLANK(InputA1A3[[#This Row],[EPD - EF A4]]),\"\",IF(ISBLANK(InputA1A3[[#This Row],[Omräkning till FU/DU (Skriv in värde, ej formel)]]),InputA1A3[[#This Row],[EPD - EF A4]]*InputA1A3[[#This Row],[Mängd A1A3]],InputA1A3[[#This Row],[Mängd A1A3]]*InputA1A3[[#This Row],[Omräkning till FU/DU (Skriv in värde, ej formel)]]*InputA1A3[[#This Row],[EPD - EF A4]]))","v":3648000},{"$f":"IF(ISBLANK(KontrollTabell[[#This Row],[True/False A4 - Alt 2]]),\"\",IF(KontrollTabell[[#This Row],[True/False A4 Enhet - Alt2]]=TRUE,InputA1A3[[#This Row],[Sträcka - totalt '[km'], (tur och retur, alla transporter)]]*InputA1A3[[#This Row],[(Bränsle-) Förbrukning per km]],\"Sen då\"))","v":0},{"$f":"SUM(KontrollTabell[[#This Row],[A4 - Resultat alt 1 '[kg']]:[A4 - Alt 2 - beräkning utsläpp]])","v":3648000},{"$f":"IF(ISBLANK(InputA1A3[[#This Row],[EPD - EF A4]]),FALSE,TRUE)","v":true},{"$f":"IFERROR(IF(KontrollTabell[[#This Row],[True/False A5]]=FALSE(),\"Enheter\",IF(ISBLANK(InputA1A3[[#This Row],[Omräkningsfaktor (A5.2) (ange värde), (vid behov)]]),InputA1A3[[#This Row],[Mängd (A5.2)]]*InputA1A3[[#This Row],[*EF (A5.2)\n'[kg CO₂-ekv.']]],InputA1A3[[#This Row],[Mängd (A5.2)]]*InputA1A3[[#This Row],[*EF (A5.2)\n'[kg CO₂-ekv.']]]*InputA1A3[[#This Row],[Omräkningsfaktor (A5.2) (ange värde), (vid behov)]])),0)","v":0},{"$f":"IF(OR(ISBLANK(InputA1A3[[#This Row],[Enhet för mängd (A5.2)]]),ISBLANK(InputA1A3[[#This Row],[*DU/FU (EF A5.2)]])),\"\",IF(OR(InputA1A3[[#This Row],[Enhet för mängd (A5.2)]]=InputA1A3[[#This Row],[*DU/FU (EF A5.2)]],AND(InputA1A3[[#This Row],[Enhet för mängd (A5.2)]]<>InputA1A3[[#This Row],[*DU/FU (EF A5.2)]],ISNUMBER(InputA1A3[[#This Row],[Omräkningsfaktor (A5.2) (ange värde), (vid behov)]]))),TRUE,FALSE))","v":""},{"$f":"IF(InputA1A3[[#This Row],[Enhet för mängd (A5.2)]] = InputA1A3[[#This Row],[*DU/FU (EF A5.2)]], TRUE, FALSE)","v":true},{"$f":"IF(OR(ISBLANK(InputA1A3[[#This Row],[Kategori\n(egen kategorisering)]])=FALSE,ISBLANK(InputA1A3[[#This Row],[Anläggningsdel\n]]))=FALSE,TRUE,FALSE)","v":false},{"$f":"IF(ISBLANK(InputA1A3[[#This Row],[Anläggningsdel\n]]),\"\",IF(KontrollTabell[[#This Row],[TRUE/FALSE om kategori saknas.]] =FALSE,InputA1A3[[#This Row],[Kategori\n(egen kategorisering)]],\"Kategori saknas\"))","v":"Kat1"}]
[null,"agrae","kat2","test",null,258,"[MJ]",456,"[ton]",{"$f":"IF(ISBLANK(InputA1A3[[#This Row],[Anläggningsdel\n]]),\"\",IF(KontrollTabell[[#This Row],[True/False A1A3 Enhet]]=TRUE, \"\", InputA1A3[[#This Row],[FU/DU (EF A1A3)]] & \"/\" & InputA1A3[[#This Row],[Enhet Mängd (A1A3)]]))","v":"[ton]/[MJ]"},484,null,null,null,{"$f":"IF(ISBLANK(InputA1A3[[#This Row],[EPD - EF A4]]),\"\",InputA1A3[[#This Row],[FU/DU (EF A1A3)]])","v":""},null,null,null,{"$f":"IFERROR(INDEX(TabellEFDrivmedel[],MATCH(InputA1A3[[#This Row],[Drivmedel (A4) (endast förval ur lista)]],TabellEFDrivmedel[Drivmedel],0),4),\"\")","v":""},null,null,null,{"$f":"IF(InputA1A3[[#This Row],[*DU/FU (EF A4) för valt drivmedel (schablon)]]=\"\",\"\",IF(KontrollTabell[[#This Row],[True/False A4 Enhet - Alt2]]=TRUE,\"\",IF(ISBLANK(InputA1A3[[#This Row],[*DU/FU (EF A4) för valt drivmedel (schablon)]]),,InputA1A3[[#This Row],[Enhet (bränsleförbrukning per km)]]& \"/\" & InputA1A3[[#This Row],[*DU/FU (EF A4) för valt drivmedel (schablon)]])))","v":""},null,null,null,null,"Diesel MK1",34,"[Liter (l)]",{"$f":"IFERROR(INDEX(TabellEFDrivmedel[],MATCH(InputA1A3[[#This Row],[Drivmedel (A5.2)]],TabellEFDrivmedel[Drivmedel],0),2),\"\")","v":2.5768999999999997},{"$f":"IFERROR(INDEX(TabellEFDrivmedel[],MATCH(InputA1A3[[#This Row],[Drivmedel (A5.2)]],TabellEFDrivmedel[Drivmedel],0),4),\"\")","v":"[Liter (l)]"},{"$f":"IF(KontrollTabell[[#This Row],[True/False A5 Enhet]]=TRUE, \"\", InputA1A3[[#This Row],[*DU/FU (EF A5.2)]] & \"/\" & InputA1A3[[#This Row],[Enhet för mängd (A5.2)]])","v":""},null,null,null,null,null,null,null,null,null,null,null,null,null,null,null,null,null,null,null,null,null,null,null,null,null,null,null,null,null,null,null,null,null,null,null,null,null,null,null,null,{"$f":"IF(ISBLANK(InputA1A3[[#This Row],[Anläggningsdel\n]]),FALSE,TRUE)","v":true},{"$f":"IF(ISBLANK(InputA1A3[[#This Row],[Anläggningsdel\n]]),\"\",IF(InputA1A3[[#This Row],[Enhet Mängd (A1A3)]] = InputA1A3[[#This Row],[FU/DU (EF A1A3)]], TRUE, FALSE))","v":false},{"$f":"IF(KontrollTabell[[#This Row],[Finns anläggningsdel-namn.]]=FALSE,\"\",IF(KontrollTabell[[#This Row],[True/False A1A3 Enhet]]=TRUE,TRUE,IF(ISBLANK(InputA1A3[[#This Row],[Omräkning till FU/DU (Skriv in värde, ej formel)]]),FALSE,TRUE)))","v":true},{"$f":"IF(KontrollTabell[[#This Row],[Finns anläggningsdel-namn.]]=FALSE,,IF(KontrollTabell[[#This Row],[True/False A1A3 Enhet]]=TRUE,InputA1A3[[#This Row],[Mängd A1A3]]*InputA1A3[[#This Row],[EF A1A3 '[kg CO₂-ekv.']]],IF(KontrollTabell[[#This Row],[True/False A1A3 om A1A3 kan beräknas]]=TRUE,InputA1A3[[#This Row],[Mängd A1A3]]*InputA1A3[[#This Row],[EF A1A3 '[kg CO₂-ekv.']]]*InputA1A3[[#This Row],[Omräkning till FU/DU (Skriv in värde, ej formel)]],\"Värde Behövs\")))","v":56941632},{"$f":"IF(ISBLANK(InputA1A3[[#This Row],[Anläggningsdel\n]]),\"\",IF(ISBLANK(InputA1A3[[#This Row],[EPD - EF A4]]),FALSE,TRUE))","v":false},{"$f":"IF(OR(ISBLANK(InputA1A3[[#This Row],[Enhet (bränsleförbrukning per km)]]),ISBLANK(InputA1A3[[#This Row],[*DU/FU (EF A4) för valt drivmedel (schablon)]])),\"\",IF(OR(InputA1A3[[#This Row],[Enhet (bränsleförbrukning per km)]]=InputA1A3[[#This Row],[*DU/FU (EF A4) för valt drivmedel (schablon)]],AND(InputA1A3[[#This Row],[Enhet (bränsleförbrukning per km)]]<>InputA1A3[[#This Row],[*DU/FU (EF A4) för valt drivmedel (schablon)]],ISNUMBER(InputA1A3[[#This Row],[Omräkningsfaktor (A4), (vid behov, värde eller formel)]]))),TRUE(),FALSE()))","v":""},{"$f":"IF(InputA1A3[[#This Row],[Enhet (bränsleförbrukning per km)]] =InputA1A3[[#This Row],[*DU/FU (EF A4) för valt drivmedel (schablon)]],TRUE,IF(ISBLANK(InputA1A3[[#This Row],[Omräkningsfaktor (A4), (vid behov, värde eller formel)]]),FALSE,TRUE))","v":true},{"$f":"IF(ISBLANK(InputA1A3[[#This Row],[EPD - EF A4]]),\"\",IF(ISBLANK(InputA1A3[[#This Row],[Omräkning till FU/DU (Skriv in värde, ej formel)]]),InputA1A3[[#This Row],[EPD - EF A4]]*InputA1A3[[#This Row],[Mängd A1A3]],InputA1A3[[#This Row],[Mängd A1A3]]*InputA1A3[[#This Row],[Omräkning till FU/DU (Skriv in värde, ej formel)]]*InputA1A3[[#This Row],[EPD - EF A4]]))","v":""},{"$f":"IF(ISBLANK(KontrollTabell[[#This Row],[True/False A4 - Alt 2]]),\"\",IF(KontrollTabell[[#This Row],[True/False A4 Enhet - Alt2]]=TRUE,InputA1A3[[#This Row],[Sträcka - totalt '[km'], (tur och retur, alla transporter)]]*InputA1A3[[#This Row],[(Bränsle-) Förbrukning per km]],\"Sen då\"))","v":0},{"$f":"SUM(KontrollTabell[[#This Row],[A4 - Resultat alt 1 '[kg']]:[A4 - Alt 2 - beräkning utsläpp]])","v":0},{"$f":"IF(ISBLANK(InputA1A3[[#This Row],[EPD - EF A4]]),FALSE,TRUE)","v":false},{"$f":"IFERROR(IF(KontrollTabell[[#This Row],[True/False A5]]=FALSE(),\"Enheter\",IF(ISBLANK(InputA1A3[[#This Row],[Omräkningsfaktor (A5.2) (ange värde), (vid behov)]]),InputA1A3[[#This Row],[Mängd (A5.2)]]*InputA1A3[[#This Row],[*EF (A5.2)\n'[kg CO₂-ekv.']]],InputA1A3[[#This Row],[Mängd (A5.2)]]*InputA1A3[[#This Row],[*EF (A5.2)\n'[kg CO₂-ekv.']]]*InputA1A3[[#This Row],[Omräkningsfaktor (A5.2) (ange värde), (vid behov)]])),0)","v":87.614599999999996},{"$f":"IF(OR(ISBLANK(InputA1A3[[#This Row],[Enhet för mängd (A5.2)]]),ISBLANK(InputA1A3[[#This Row],[*DU/FU (EF A5.2)]])),\"\",IF(OR(InputA1A3[[#This Row],[Enhet för mängd (A5.2)]]=InputA1A3[[#This Row],[*DU/FU (EF A5.2)]],AND(InputA1A3[[#This Row],[Enhet för mängd (A5.2)]]<>InputA1A3[[#This Row],[*DU/FU (EF A5.2)]],ISNUMBER(InputA1A3[[#This Row],[Omräkningsfaktor (A5.2) (ange värde), (vid behov)]]))),TRUE,FALSE))","v":true},{"$f":"IF(InputA1A3[[#This Row],[Enhet för mängd (A5.2)]] = InputA1A3[[#This Row],[*DU/FU (EF A5.2)]], TRUE, FALSE)","v":true},{"$f":"IF(OR(ISBLANK(InputA1A3[[#This Row],[Kategori\n(egen kategorisering)]])=FALSE,ISBLANK(InputA1A3[[#This Row],[Anläggningsdel\n]]))=FALSE,TRUE,FALSE)","v":false},{"$f":"IF(ISBLANK(InputA1A3[[#This Row],[Anläggningsdel\n]]),\"\",IF(KontrollTabell[[#This Row],[TRUE/FALSE om kategori saknas.]] =FALSE,InputA1A3[[#This Row],[Kategori\n(egen kategorisering)]],\"Kategori saknas\"))","v":"kat2"}]
[null,"agreg","kat1","test",null,1110,"[m]",35,"[ton]",{"$f":"IF(ISBLANK(InputA1A3[[#This Row],[Anläggningsdel\n]]),\"\",IF(KontrollTabell[[#This Row],[True/False A1A3 Enhet]]=TRUE, \"\", InputA1A3[[#This Row],[FU/DU (EF A1A3)]] & \"/\" & InputA1A3[[#This Row],[Enhet Mängd (A1A3)]]))","v":"[ton]/[m]"},34,null,null,null,{"$f":"IF(ISBLANK(InputA1A3[[#This Row],[EPD - EF A4]]),\"\",InputA1A3[[#This Row],[FU/DU (EF A1A3)]])","v":""},null,null,"ED95",{"$f":"IFERROR(INDEX(TabellEFDrivmedel[],MATCH(InputA1A3[[#This Row],[Drivmedel (A4) (endast förval ur lista)]],TabellEFDrivmedel[Drivmedel],0),4),\"\")","v":"[Liter (l)]"},12300,1.2,"[Liter (l)]",{"$f":"IF(InputA1A3[[#This Row],[*DU/FU (EF A4) för valt drivmedel (schablon)]]=\"\",\"\",IF(KontrollTabell[[#This Row],[True/False A4 Enhet - Alt2]]=TRUE,\"\",IF(ISBLANK(InputA1A3[[#This Row],[*DU/FU (EF A4) för valt drivmedel (schablon)]]),,InputA1A3[[#This Row],[Enhet (bränsleförbrukning per km)]]& \"/\" & InputA1A3[[#This Row],[*DU/FU (EF A4) för valt drivmedel (schablon)]])))","v":""},null,null,null,null,"Diesel MK1",678,"[Liter (l)]",{"$f":"IFERROR(INDEX(TabellEFDrivmedel[],MATCH(InputA1A3[[#This Row],[Drivmedel (A5.2)]],TabellEFDrivmedel[Drivmedel],0),2),\"\")","v":2.5768999999999997},{"$f":"IFERROR(INDEX(TabellEFDrivmedel[],MATCH(InputA1A3[[#This Row],[Drivmedel (A5.2)]],TabellEFDrivmedel[Drivmedel],0),4),\"\")","v":"[Liter (l)]"},{"$f":"IF(KontrollTabell[[#This Row],[True/False A5 Enhet]]=TRUE, \"\", InputA1A3[[#This Row],[*DU/FU (EF A5.2)]] & \"/\" & InputA1A3[[#This Row],[Enhet för mängd (A5.2)]])","v":""},null,null,null,null,null,null,null,null,null,null,null,null,null,null,null,null,null,null,null,null,null,null,null,null,null,null,null,null,null,null,null,null,null,null,null,null,null,null,null,null,{"$f":"IF(ISBLANK(InputA1A3[[#This Row],[Anläggningsdel\n]]),FALSE,TRUE)","v":true},{"$f":"IF(ISBLANK(InputA1A3[[#This Row],[Anläggningsdel\n]]),\"\",IF(InputA1A3[[#This Row],[Enhet Mängd (A1A3)]] = InputA1A3[[#This Row],[FU/DU (EF A1A3)]], TRUE, FALSE))","v":false},{"$f":"IF(KontrollTabell[[#This Row],[Finns anläggningsdel-namn.]]=FALSE,\"\",IF(KontrollTabell[[#This Row],[True/False A1A3 Enhet]]=TRUE,TRUE,IF(ISBLANK(InputA1A3[[#This Row],[Omräkning till FU/DU (Skriv in värde, ej formel)]]),FALSE,TRUE)))","v":true},{"$f":"IF(KontrollTabell[[#This Row],[Finns anläggningsdel-namn.]]=FALSE,,IF(KontrollTabell[[#This Row],[True/False A1A3 Enhet]]=TRUE,InputA1A3[[#This Row],[Mängd A1A3]]*InputA1A3[[#This Row],[EF A1A3 '[kg CO₂-ekv.']]],IF(KontrollTabell[[#This Row],[True/False A1A3 om A1A3 kan beräknas]]=TRUE,InputA1A3[[#This Row],[Mängd A1A3]]*InputA1A3[[#This Row],[EF A1A3 '[kg CO₂-ekv.']]]*InputA1A3[[#This Row],[Omräkning till FU/DU (Skriv in värde, ej formel)]],\"Värde Behövs\")))","v":1320900},{"$f":"IF(ISBLANK(InputA1A3[[#This Row],[Anläggningsdel\n]]),\"\",IF(ISBLANK(InputA1A3[[#This Row],[EPD - EF A4]]),FALSE,TRUE))","v":false},{"$f":"IF(OR(ISBLANK(InputA1A3[[#This Row],[Enhet (bränsleförbrukning per km)]]),ISBLANK(InputA1A3[[#This Row],[*DU/FU (EF A4) för valt drivmedel (schablon)]])),\"\",IF(OR(InputA1A3[[#This Row],[Enhet (bränsleförbrukning per km)]]=InputA1A3[[#This Row],[*DU/FU (EF A4) för valt drivmedel (schablon)]],AND(InputA1A3[[#This Row],[Enhet (bränsleförbrukning per km)]]<>InputA1A3[[#This Row],[*DU/FU (EF A4) för valt drivmedel (schablon)]],ISNUMBER(InputA1A3[[#This Row],[Omräkningsfaktor (A4), (vid behov, värde eller formel)]]))),TRUE(),FALSE()))","v":true},{"$f":"IF(InputA1A3[[#This Row],[Enhet (bränsleförbrukning per km)]] =InputA1A3[[#This Row],[*DU/FU (EF A4) för valt drivmedel (schablon)]],TRUE,IF(ISBLANK(InputA1A3[[#This Row],[Omräkningsfaktor (A4), (vid behov, värde eller formel)]]),FALSE,TRUE))","v":true},{"$f":"IF(ISBLANK(InputA1A3[[#This Row],[EPD - EF A4]]),\"\",IF(ISBLANK(InputA1A3[[#This Row],[Omräkning till FU/DU (Skriv in värde, ej formel)]]),InputA1A3[[#This Row],[EPD - EF A4]]*InputA1A3[[#This Row],[Mängd A1A3]],InputA1A3[[#This Row],[Mängd A1A3]]*InputA1A3[[#This Row],[Omräkning till FU/DU (Skriv in värde, ej formel)]]*InputA1A3[[#This Row],[EPD - EF A4]]))","v":""},{"$f":"IF(ISBLANK(KontrollTabell[[#This Row],[True/False A4 - Alt 2]]),\"\",IF(KontrollTabell[[#This Row],[True/False A4 Enhet - Alt2]]=TRUE,InputA1A3[[#This Row],[Sträcka - totalt '[km'], (tur och retur, alla transporter)]]*InputA1A3[[#This Row],[(Bränsle-) Förbrukning per km]],\"Sen då\"))","v":14760},{"$f":"SUM(KontrollTabell[[#This Row],[A4 - Resultat alt 1 '[kg']]:[A4 - Alt 2 - beräkning utsläpp]])","v":14760},{"$f":"IF(ISBLANK(InputA1A3[[#This Row],[EPD - EF A4]]),FALSE,TRUE)","v":false},{"$f":"IFERROR(IF(KontrollTabell[[#This Row],[True/False A5]]=FALSE(),\"Enheter\",IF(ISBLANK(InputA1A3[[#This Row],[Omräkningsfaktor (A5.2) (ange värde), (vid behov)]]),InputA1A3[[#This Row],[Mängd (A5.2)]]*InputA1A3[[#This Row],[*EF (A5.2)\n'[kg CO₂-ekv.']]],InputA1A3[[#This Row],[Mängd (A5.2)]]*InputA1A3[[#This Row],[*EF (A5.2)\n'[kg CO₂-ekv.']]]*InputA1A3[[#This Row],[Omräkningsfaktor (A5.2) (ange värde), (vid behov)]])),0)","v":1747.1381999999999},{"$f":"IF(OR(ISBLANK(InputA1A3[[#This Row],[Enhet för mängd (A5.2)]]),ISBLANK(InputA1A3[[#This Row],[*DU/FU (EF A5.2)]])),\"\",IF(OR(InputA1A3[[#This Row],[Enhet för mängd (A5.2)]]=InputA1A3[[#This Row],[*DU/FU (EF A5.2)]],AND(InputA1A3[[#This Row],[Enhet för mängd (A5.2)]]<>InputA1A3[[#This Row],[*DU/FU (EF A5.2)]],ISNUMBER(InputA1A3[[#This Row],[Omräkningsfaktor (A5.2) (ange värde), (vid behov)]]))),TRUE,FALSE))","v":true},{"$f":"IF(InputA1A3[[#This Row],[Enhet för mängd (A5.2)]] = InputA1A3[[#This Row],[*DU/FU (EF A5.2)]], TRUE, FALSE)","v":true},{"$f":"IF(OR(ISBLANK(InputA1A3[[#This Row],[Kategori\n(egen kategorisering)]])=FALSE,ISBLANK(InputA1A3[[#This Row],[Anläggningsdel\n]]))=FALSE,TRUE,FALSE)","v":false},{"$f":"IF(ISBLANK(InputA1A3[[#This Row],[Anläggningsdel\n]]),\"\",IF(KontrollTabell[[#This Row],[TRUE/FALSE om kategori saknas.]] =FALSE,InputA1A3[[#This Row],[Kategori\n(egen kategorisering)]],\"Kategori saknas\"))","v":"kat1"}]
[null,"f","kat3",null,null,508,"[m]",467,"[m³]",{"$f":"IF(ISBLANK(InputA1A3[[#This Row],[Anläggningsdel\n]]),\"\",IF(KontrollTabell[[#This Row],[True/False A1A3 Enhet]]=TRUE, \"\", InputA1A3[[#This Row],[FU/DU (EF A1A3)]] & \"/\" & InputA1A3[[#This Row],[Enhet Mängd (A1A3)]]))","v":"[m³]/[m]"},102,null,null,null,{"$f":"IF(ISBLANK(InputA1A3[[#This Row],[EPD - EF A4]]),\"\",InputA1A3[[#This Row],[FU/DU (EF A1A3)]])","v":""},null,null,"Diesel MK1",{"$f":"IFERROR(INDEX(TabellEFDrivmedel[],MATCH(InputA1A3[[#This Row],[Drivmedel (A4) (endast förval ur lista)]],TabellEFDrivmedel[Drivmedel],0),4),\"\")","v":"[Liter (l)]"},678,47,"[Liter (l)]",{"$f":"IF(InputA1A3[[#This Row],[*DU/FU (EF A4) för valt drivmedel (schablon)]]=\"\",\"\",IF(KontrollTabell[[#This Row],[True/False A4 Enhet - Alt2]]=TRUE,\"\",IF(ISBLANK(InputA1A3[[#This Row],[*DU/FU (EF A4) för valt drivmedel (schablon)]]),,InputA1A3[[#This Row],[Enhet (bränsleförbrukning per km)]]& \"/\" & InputA1A3[[#This Row],[*DU/FU (EF A4) för valt drivmedel (schablon)]])))","v":""},null,null,null,null,"Diesel MK1",8700,"[m]",{"$f":"IFERROR(INDEX(TabellEFDrivmedel[],MATCH(InputA1A3[[#This Row],[Drivmedel (A5.2)]],TabellEFDrivmedel[Drivmedel],0),2),\"\")","v":2.5768999999999997},{"$f":"IFERROR(INDEX(TabellEFDrivmedel[],MATCH(InputA1A3[[#This Row],[Drivmedel (A5.2)]],TabellEFDrivmedel[Drivmedel],0),4),\"\")","v":"[Liter (l)]"},{"$f":"IF(KontrollTabell[[#This Row],[True/False A5 Enhet]]=TRUE, \"\", InputA1A3[[#This Row],[*DU/FU (EF A5.2)]] & \"/\" & InputA1A3[[#This Row],[Enhet för mängd (A5.2)]])","v":"[Liter (l)]/[m]"},302,null,null,null,null,null,null,null,null,null,null,null,null,null,null,null,null,null,null,null,null,null,null,null,null,null,null,null,null,null,null,null,null,null,null,null,null,null,null,null,{"$f":"IF(ISBLANK(InputA1A3[[#This Row],[Anläggningsdel\n]]),FALSE,TRUE)","v":true},{"$f":"IF(ISBLANK(InputA1A3[[#This Row],[Anläggningsdel\n]]),\"\",IF(InputA1A3[[#This Row],[Enhet Mängd (A1A3)]] = InputA1A3[[#This Row],[FU/DU (EF A1A3)]], TRUE, FALSE))","v":false},{"$f":"IF(KontrollTabell[[#This Row],[Finns anläggningsdel-namn.]]=FALSE,\"\",IF(KontrollTabell[[#This Row],[True/False A1A3 Enhet]]=TRUE,TRUE,IF(ISBLANK(InputA1A3[[#This Row],[Omräkning till FU/DU (Skriv in värde, ej formel)]]),FALSE,TRUE)))","v":true},{"$f":"IF(KontrollTabell[[#This Row],[Finns anläggningsdel-namn.]]=FALSE,,IF(KontrollTabell[[#This Row],[True/False A1A3 Enhet]]=TRUE,InputA1A3[[#This Row],[Mängd A1A3]]*InputA1A3[[#This Row],[EF A1A3 '[kg CO₂-ekv.']]],IF(KontrollTabell[[#This Row],[True/False A1A3 om A1A3 kan beräknas]]=TRUE,InputA1A3[[#This Row],[Mängd A1A3]]*InputA1A3[[#This Row],[EF A1A3 '[kg CO₂-ekv.']]]*InputA1A3[[#This Row],[Omräkning till FU/DU (Skriv in värde, ej formel)]],\"Värde Behövs\")))","v":24198072},{"$f":"IF(ISBLANK(InputA1A3[[#This Row],[Anläggningsdel\n]]),\"\",IF(ISBLANK(InputA1A3[[#This Row],[EPD - EF A4]]),FALSE,TRUE))","v":false},{"$f":"IF(OR(ISBLANK(InputA1A3[[#This Row],[Enhet (bränsleförbrukning per km)]]),ISBLANK(InputA1A3[[#This Row],[*DU/FU (EF A4) för valt drivmedel (schablon)]])),\"\",IF(OR(InputA1A3[[#This Row],[Enhet (bränsleförbrukning per km)]]=InputA1A3[[#This Row],[*DU/FU (EF A4) för valt drivmedel (schablon)]],AND(InputA1A3[[#This Row],[Enhet (bränsleförbrukning per km)]]<>InputA1A3[[#This Row],[*DU/FU (EF A4) för valt drivmedel (schablon)]],ISNUMBER(InputA1A3[[#This Row],[Omräkningsfaktor (A4), (vid behov, värde eller formel)]]))),TRUE(),FALSE()))","v":true},{"$f":"IF(InputA1A3[[#This Row],[Enhet (bränsleförbrukning per km)]] =InputA1A3[[#This Row],[*DU/FU (EF A4) för valt drivmedel (schablon)]],TRUE,IF(ISBLANK(InputA1A3[[#This Row],[Omräkningsfaktor (A4), (vid behov, värde eller formel)]]),FALSE,TRUE))","v":true},{"$f":"IF(ISBLANK(InputA1A3[[#This Row],[EPD - EF A4]]),\"\",IF(ISBLANK(InputA1A3[[#This Row],[Omräkning till FU/DU (Skriv in värde, ej formel)]]),InputA1A3[[#This Row],[EPD - EF A4]]*InputA1A3[[#This Row],[Mängd A1A3]],InputA1A3[[#This Row],[Mängd A1A3]]*InputA1A3[[#This Row],[Omräkning till FU/DU (Skriv in värde, ej formel)]]*InputA1A3[[#This Row],[EPD - EF A4]]))","v":""},{"$f":"IF(ISBLANK(KontrollTabell[[#This Row],[True/False A4 - Alt 2]]),\"\",IF(KontrollTabell[[#This Row],[True/False A4 Enhet - Alt2]]=TRUE,InputA1A3[[#This Row],[Sträcka - totalt '[km'], (tur och retur, alla transporter)]]*InputA1A3[[#This Row],[(Bränsle-) Förbrukning per km]],\"Sen då\"))","v":31866},{"$f":"SUM(KontrollTabell[[#This Row],[A4 - Resultat alt 1 '[kg']]:[A4 - Alt 2 - beräkning utsläpp]])","v":31866},{"$f":"IF(ISBLANK(InputA1A3[[#This Row],[EPD - EF A4]]),FALSE,TRUE)","v":false},{"$f":"IFERROR(IF(KontrollTabell[[#This Row],[True/False A5]]=FALSE(),\"Enheter\",IF(ISBLANK(InputA1A3[[#This Row],[Omräkningsfaktor (A5.2) (ange värde), (vid behov)]]),InputA1A3[[#This Row],[Mängd (A5.2)]]*InputA1A3[[#This Row],[*EF (A5.2)\n'[kg CO₂-ekv.']]],InputA1A3[[#This Row],[Mängd (A5.2)]]*InputA1A3[[#This Row],[*EF (A5.2)\n'[kg CO₂-ekv.']]]*InputA1A3[[#This Row],[Omräkningsfaktor (A5.2) (ange värde), (vid behov)]])),0)","v":6770547.0599999996},{"$f":"IF(OR(ISBLANK(InputA1A3[[#This Row],[Enhet för mängd (A5.2)]]),ISBLANK(InputA1A3[[#This Row],[*DU/FU (EF A5.2)]])),\"\",IF(OR(InputA1A3[[#This Row],[Enhet för mängd (A5.2)]]=InputA1A3[[#This Row],[*DU/FU (EF A5.2)]],AND(InputA1A3[[#This Row],[Enhet för mängd (A5.2)]]<>InputA1A3[[#This Row],[*DU/FU (EF A5.2)]],ISNUMBER(InputA1A3[[#This Row],[Omräkningsfaktor (A5.2) (ange värde), (vid behov)]]))),TRUE,FALSE))","v":true},{"$f":"IF(InputA1A3[[#This Row],[Enhet för mängd (A5.2)]] = InputA1A3[[#This Row],[*DU/FU (EF A5.2)]], TRUE, FALSE)","v":false},{"$f":"IF(OR(ISBLANK(InputA1A3[[#This Row],[Kategori\n(egen kategorisering)]])=FALSE,ISBLANK(InputA1A3[[#This Row],[Anläggningsdel\n]]))=FALSE,TRUE,FALSE)","v":false},{"$f":"IF(ISBLANK(InputA1A3[[#This Row],[Anläggningsdel\n]]),\"\",IF(KontrollTabell[[#This Row],[TRUE/FALSE om kategori saknas.]] =FALSE,InputA1A3[[#This Row],[Kategori\n(egen kategorisering)]],\"Kategori saknas\"))","v":"kat3"}]
[null,"fg","kat2",null,null,970,"[ton]",2400,"[ton]",{"$f":"IF(ISBLANK(InputA1A3[[#This Row],[Anläggningsdel\n]]),\"\",IF(KontrollTabell[[#This Row],[True/False A1A3 Enhet]]=TRUE, \"\", InputA1A3[[#This Row],[FU/DU (EF A1A3)]] & \"/\" & InputA1A3[[#This Row],[Enhet Mängd (A1A3)]]))","v":""},null,null,null,null,{"$f":"IF(ISBLANK(InputA1A3[[#This Row],[EPD - EF A4]]),\"\",InputA1A3[[#This Row],[FU/DU (EF A1A3)]])","v":""},null,null,"El - svensk elmix",{"$f":"IFERROR(INDEX(TabellEFDrivmedel[],MATCH(InputA1A3[[#This Row],[Drivmedel (A4) (endast förval ur lista)]],TabellEFDrivmedel[Drivmedel],0),4),\"\")","v":"[kWh]"},235,0.8,"[kWh]",{"$f":"IF(InputA1A3[[#This Row],[*DU/FU (EF A4) för valt drivmedel (schablon)]]=\"\",\"\",IF(KontrollTabell[[#This Row],[True/False A4 Enhet - Alt2]]=TRUE,\"\",IF(ISBLANK(InputA1A3[[#This Row],[*DU/FU (EF A4) för valt drivmedel (schablon)]]),,InputA1A3[[#This Row],[Enhet (bränsleförbrukning per km)]]& \"/\" & InputA1A3[[#This Row],[*DU/FU (EF A4) för valt drivmedel (schablon)]])))","v":""},null,null,null,null,"El - grön el",685,"[m²]",{"$f":"IFERROR(INDEX(TabellEFDrivmedel[],MATCH(InputA1A3[[#This Row],[Drivmedel (A5.2)]],TabellEFDrivmedel[Drivmedel],0),2),\"\")","v":1.1999999999999999E-3},{"$f":"IFERROR(INDEX(TabellEFDrivmedel[],MATCH(InputA1A3[[#This Row],[Drivmedel (A5.2)]],TabellEFDrivmedel[Drivmedel],0),4),\"\")","v":"[kWh]"},{"$f":"IF(KontrollTabell[[#This Row],[True/False A5 Enhet]]=TRUE, \"\", InputA1A3[[#This Row],[*DU/FU (EF A5.2)]] & \"/\" & InputA1A3[[#This Row],[Enhet för mängd (A5.2)]])","v":"[kWh]/[m²]"},0.3,null,null,null,null,null,null,null,null,null,null,null,null,null,null,null,null,null,null,null,null,null,null,null,null,null,null,null,null,null,null,null,null,null,null,null,null,null,null,null,{"$f":"IF(ISBLANK(InputA1A3[[#This Row],[Anläggningsdel\n]]),FALSE,TRUE)","v":true},{"$f":"IF(ISBLANK(InputA1A3[[#This Row],[Anläggningsdel\n]]),\"\",IF(InputA1A3[[#This Row],[Enhet Mängd (A1A3)]] = InputA1A3[[#This Row],[FU/DU (EF A1A3)]], TRUE, FALSE))","v":true},{"$f":"IF(KontrollTabell[[#This Row],[Finns anläggningsdel-namn.]]=FALSE,\"\",IF(KontrollTabell[[#This Row],[True/False A1A3 Enhet]]=TRUE,TRUE,IF(ISBLANK(InputA1A3[[#This Row],[Omräkning till FU/DU (Skriv in värde, ej formel)]]),FALSE,TRUE)))","v":true},{"$f":"IF(KontrollTabell[[#This Row],[Finns anläggningsdel-namn.]]=FALSE,,IF(KontrollTabell[[#This Row],[True/False A1A3 Enhet]]=TRUE,InputA1A3[[#This Row],[Mängd A1A3]]*InputA1A3[[#This Row],[EF A1A3 '[kg CO₂-ekv.']]],IF(KontrollTabell[[#This Row],[True/False A1A3 om A1A3 kan beräknas]]=TRUE,InputA1A3[[#This Row],[Mängd A1A3]]*InputA1A3[[#This Row],[EF A1A3 '[kg CO₂-ekv.']]]*InputA1A3[[#This Row],[Omräkning till FU/DU (Skriv in värde, ej formel)]],\"Värde Behövs\")))","v":2328000},{"$f":"IF(ISBLANK(InputA1A3[[#This Row],[Anläggningsdel\n]]),\"\",IF(ISBLANK(InputA1A3[[#This Row],[EPD - EF A4]]),FALSE,TRUE))","v":false},{"$f":"IF(OR(ISBLANK(InputA1A3[[#This Row],[Enhet (bränsleförbrukning per km)]]),ISBLANK(InputA1A3[[#This Row],[*DU/FU (EF A4) för valt drivmedel (schablon)]])),\"\",IF(OR(InputA1A3[[#This Row],[Enhet (bränsleförbrukning per km)]]=InputA1A3[[#This Row],[*DU/FU (EF A4) för valt drivmedel (schablon)]],AND(InputA1A3[[#This Row],[Enhet (bränsleförbrukning per km)]]<>InputA1A3[[#This Row],[*DU/FU (EF A4) för valt drivmedel (schablon)]],ISNUMBER(InputA1A3[[#This Row],[Omräkningsfaktor (A4), (vid behov, värde eller formel)]]))),TRUE(),FALSE()))","v":true},{"$f":"IF(InputA1A3[[#This Row],[Enhet (bränsleförbrukning per km)]] =InputA1A3[[#This Row],[*DU/FU (EF A4) för valt drivmedel (schablon)]],TRUE,IF(ISBLANK(InputA1A3[[#This Row],[Omräkningsfaktor (A4), (vid behov, värde eller formel)]]),FALSE,TRUE))","v":true},{"$f":"IF(ISBLANK(InputA1A3[[#This Row],[EPD - EF A4]]),\"\",IF(ISBLANK(InputA1A3[[#This Row],[Omräkning till FU/DU (Skriv in värde, ej formel)]]),InputA1A3[[#This Row],[EPD - EF A4]]*InputA1A3[[#This Row],[Mängd A1A3]],InputA1A3[[#This Row],[Mängd A1A3]]*InputA1A3[[#This Row],[Omräkning till FU/DU (Skriv in värde, ej formel)]]*InputA1A3[[#This Row],[EPD - EF A4]]))","v":""},{"$f":"IF(ISBLANK(KontrollTabell[[#This Row],[True/False A4 - Alt 2]]),\"\",IF(KontrollTabell[[#This Row],[True/False A4 Enhet - Alt2]]=TRUE,InputA1A3[[#This Row],[Sträcka - totalt '[km'], (tur och retur, alla transporter)]]*InputA1A3[[#This Row],[(Bränsle-) Förbrukning per km]],\"Sen då\"))","v":188},{"$f":"SUM(KontrollTabell[[#This Row],[A4 - Resultat alt 1 '[kg']]:[A4 - Alt 2 - beräkning utsläpp]])","v":188},{"$f":"IF(ISBLANK(InputA1A3[[#This Row],[EPD - EF A4]]),FALSE,TRUE)","v":false},{"$f":"IFERROR(IF(KontrollTabell[[#This Row],[True/False A5]]=FALSE(),\"Enheter\",IF(ISBLANK(InputA1A3[[#This Row],[Omräkningsfaktor (A5.2) (ange värde), (vid behov)]]),InputA1A3[[#This Row],[Mängd (A5.2)]]*InputA1A3[[#This Row],[*EF (A5.2)\n'[kg CO₂-ekv.']]],InputA1A3[[#This Row],[Mängd (A5.2)]]*InputA1A3[[#This Row],[*EF (A5.2)\n'[kg CO₂-ekv.']]]*InputA1A3[[#This Row],[Omräkningsfaktor (A5.2) (ange värde), (vid behov)]])),0)","v":0.24659999999999999},{"$f":"IF(OR(ISBLANK(InputA1A3[[#This Row],[Enhet för mängd (A5.2)]]),ISBLANK(InputA1A3[[#This Row],[*DU/FU (EF A5.2)]])),\"\",IF(OR(InputA1A3[[#This Row],[Enhet för mängd (A5.2)]]=InputA1A3[[#This Row],[*DU/FU (EF A5.2)]],AND(InputA1A3[[#This Row],[Enhet för mängd (A5.2)]]<>InputA1A3[[#This Row],[*DU/FU (EF A5.2)]],ISNUMBER(InputA1A3[[#This Row],[Omräkningsfaktor (A5.2) (ange värde), (vid behov)]]))),TRUE,FALSE))","v":true},{"$f":"IF(InputA1A3[[#This Row],[Enhet för mängd (A5.2)]] = InputA1A3[[#This Row],[*DU/FU (EF A5.2)]], TRUE, FALSE)","v":false},{"$f":"IF(OR(ISBLANK(InputA1A3[[#This Row],[Kategori\n(egen kategorisering)]])=FALSE,ISBLANK(InputA1A3[[#This Row],[Anläggningsdel\n]]))=FALSE,TRUE,FALSE)","v":false},{"$f":"IF(ISBLANK(InputA1A3[[#This Row],[Anläggningsdel\n]]),\"\",IF(KontrollTabell[[#This Row],[TRUE/FALSE om kategori saknas.]] =FALSE,InputA1A3[[#This Row],[Kategori\n(egen kategorisering)]],\"Kategori saknas\"))","v":"kat2"}]
[null,"agh","övrigt",null,null,8645,"[st]",803,"[st]",{"$f":"IF(ISBLANK(InputA1A3[[#This Row],[Anläggningsdel\n]]),\"\",IF(KontrollTabell[[#This Row],[True/False A1A3 Enhet]]=TRUE, \"\", InputA1A3[[#This Row],[FU/DU (EF A1A3)]] & \"/\" & InputA1A3[[#This Row],[Enhet Mängd (A1A3)]]))","v":""},null,null,null,null,{"$f":"IF(ISBLANK(InputA1A3[[#This Row],[EPD - EF A4]]),\"\",InputA1A3[[#This Row],[FU/DU (EF A1A3)]])","v":""},null,null,"HVO100",{"$f":"IFERROR(INDEX(TabellEFDrivmedel[],MATCH(InputA1A3[[#This Row],[Drivmedel (A4) (endast förval ur lista)]],TabellEFDrivmedel[Drivmedel],0),4),\"\")","v":"[Liter (l)]"},1000,72,"[m³]",{"$f":"IF(InputA1A3[[#This Row],[*DU/FU (EF A4) för valt drivmedel (schablon)]]=\"\",\"\",IF(KontrollTabell[[#This Row],[True/False A4 Enhet - Alt2]]=TRUE,\"\",IF(ISBLANK(InputA1A3[[#This Row],[*DU/FU (EF A4) för valt drivmedel (schablon)]]),,InputA1A3[[#This Row],[Enhet (bränsleförbrukning per km)]]& \"/\" & InputA1A3[[#This Row],[*DU/FU (EF A4) för valt drivmedel (schablon)]])))","v":""},34,null,null,null,null,null,null,{"$f":"IFERROR(INDEX(TabellEFDrivmedel[],MATCH(InputA1A3[[#This Row],[Drivmedel (A5.2)]],TabellEFDrivmedel[Drivmedel],0),2),\"\")","v":""},{"$f":"IFERROR(INDEX(TabellEFDrivmedel[],MATCH(InputA1A3[[#This Row],[Drivmedel (A5.2)]],TabellEFDrivmedel[Drivmedel],0),4),\"\")","v":""},{"$f":"IF(KontrollTabell[[#This Row],[True/False A5 Enhet]]=TRUE, \"\", InputA1A3[[#This Row],[*DU/FU (EF A5.2)]] & \"/\" & InputA1A3[[#This Row],[Enhet för mängd (A5.2)]])","v":""},null,null,null,null,null,null,null,null,null,null,null,null,null,null,null,null,null,null,null,null,null,null,null,null,null,null,null,null,null,null,null,null,null,null,null,null,null,null,null,null,{"$f":"IF(ISBLANK(InputA1A3[[#This Row],[Anläggningsdel\n]]),FALSE,TRUE)","v":true},{"$f":"IF(ISBLANK(InputA1A3[[#This Row],[Anläggningsdel\n]]),\"\",IF(InputA1A3[[#This Row],[Enhet Mängd (A1A3)]] = InputA1A3[[#This Row],[FU/DU (EF A1A3)]], TRUE, FALSE))","v":true},{"$f":"IF(KontrollTabell[[#This Row],[Finns anläggningsdel-namn.]]=FALSE,\"\",IF(KontrollTabell[[#This Row],[True/False A1A3 Enhet]]=TRUE,TRUE,IF(ISBLANK(InputA1A3[[#This Row],[Omräkning till FU/DU (Skriv in värde, ej formel)]]),FALSE,TRUE)))","v":true},{"$f":"IF(KontrollTabell[[#This Row],[Finns anläggningsdel-namn.]]=FALSE,,IF(KontrollTabell[[#This Row],[True/False A1A3 Enhet]]=TRUE,InputA1A3[[#This Row],[Mängd A1A3]]*InputA1A3[[#This Row],[EF A1A3 '[kg CO₂-ekv.']]],IF(KontrollTabell[[#This Row],[True/False A1A3 om A1A3 kan beräknas]]=TRUE,InputA1A3[[#This Row],[Mängd A1A3]]*InputA1A3[[#This Row],[EF A1A3 '[kg CO₂-ekv.']]]*InputA1A3[[#This Row],[Omräkning till FU/DU (Skriv in värde, ej formel)]],\"Värde Behövs\")))","v":6941935},{"$f":"IF(ISBLANK(InputA1A3[[#This Row],[Anläggningsdel\n]]),\"\",IF(ISBLANK(InputA1A3[[#This Row],[EPD - EF A4]]),FALSE,TRUE))","v":false},{"$f":"IF(OR(ISBLANK(InputA1A3[[#This Row],[Enhet (bränsleförbrukning per km)]]),ISBLANK(InputA1A3[[#This Row],[*DU/FU (EF A4) för valt drivmedel (schablon)]])),\"\",IF(OR(InputA1A3[[#This Row],[Enhet (bränsleförbrukning per km)]]=InputA1A3[[#This Row],[*DU/FU (EF A4) för valt drivmedel (schablon)]],AND(InputA1A3[[#This Row],[Enhet (bränsleförbrukning per km)]]<>InputA1A3[[#This Row],[*DU/FU (EF A4) för valt drivmedel (schablon)]],ISNUMBER(InputA1A3[[#This Row],[Omräkningsfaktor (A4), (vid behov, värde eller formel)]]))),TRUE(),FALSE()))","v":true},{"$f":"IF(InputA1A3[[#This Row],[Enhet (bränsleförbrukning per km)]] =InputA1A3[[#This Row],[*DU/FU (EF A4) för valt drivmedel (schablon)]],TRUE,IF(ISBLANK(InputA1A3[[#This Row],[Omräkningsfaktor (A4), (vid behov, värde eller formel)]]),FALSE,TRUE))","v":true},{"$f":"IF(ISBLANK(InputA1A3[[#This Row],[EPD - EF A4]]),\"\",IF(ISBLANK(InputA1A3[[#This Row],[Omräkning till FU/DU (Skriv in värde, ej formel)]]),InputA1A3[[#This Row],[EPD - EF A4]]*InputA1A3[[#This Row],[Mängd A1A3]],InputA1A3[[#This Row],[Mängd A1A3]]*InputA1A3[[#This Row],[Omräkning till FU/DU (Skriv in värde, ej formel)]]*InputA1A3[[#This Row],[EPD - EF A4]]))","v":""},{"$f":"IF(ISBLANK(KontrollTabell[[#This Row],[True/False A4 - Alt 2]]),\"\",IF(KontrollTabell[[#This Row],[True/False A4 Enhet - Alt2]]=TRUE,InputA1A3[[#This Row],[Sträcka - totalt '[km'], (tur och retur, alla transporter)]]*InputA1A3[[#This Row],[(Bränsle-) Förbrukning per km]],\"Sen då\"))","v":72000},{"$f":"SUM(KontrollTabell[[#This Row],[A4 - Resultat alt 1 '[kg']]:[A4 - Alt 2 - beräkning utsläpp]])","v":72000},{"$f":"IF(ISBLANK(InputA1A3[[#This Row],[EPD - EF A4]]),FALSE,TRUE)","v":false},{"$f":"IFERROR(IF(KontrollTabell[[#This Row],[True/False A5]]=FALSE(),\"Enheter\",IF(ISBLANK(InputA1A3[[#This Row],[Omräkningsfaktor (A5.2) (ange värde), (vid behov)]]),InputA1A3[[#This Row],[Mängd (A5.2)]]*InputA1A3[[#This Row],[*EF (A5.2)\n'[kg CO₂-ekv.']]],InputA1A3[[#This Row],[Mängd (A5.2)]]*InputA1A3[[#This Row],[*EF (A5.2)\n'[kg CO₂-ekv.']]]*InputA1A3[[#This Row],[Omräkningsfaktor (A5.2) (ange värde), (vid behov)]])),0)","v":0},{"$f":"IF(OR(ISBLANK(InputA1A3[[#This Row],[Enhet för mängd (A5.2)]]),ISBLANK(InputA1A3[[#This Row],[*DU/FU (EF A5.2)]])),\"\",IF(OR(InputA1A3[[#This Row],[Enhet för mängd (A5.2)]]=InputA1A3[[#This Row],[*DU/FU (EF A5.2)]],AND(InputA1A3[[#This Row],[Enhet för mängd (A5.2)]]<>InputA1A3[[#This Row],[*DU/FU (EF A5.2)]],ISNUMBER(InputA1A3[[#This Row],[Omräkningsfaktor (A5.2) (ange värde), (vid behov)]]))),TRUE,FALSE))","v":""},{"$f":"IF(InputA1A3[[#This Row],[Enhet för mängd (A5.2)]] = InputA1A3[[#This Row],[*DU/FU (EF A5.2)]], TRUE, FALSE)","v":true},{"$f":"IF(OR(ISBLANK(InputA1A3[[#This Row],[Kategori\n(egen kategorisering)]])=FALSE,ISBLANK(InputA1A3[[#This Row],[Anläggningsdel\n]]))=FALSE,TRUE,FALSE)","v":false},{"$f":"IF(ISBLANK(InputA1A3[[#This Row],[Anläggningsdel\n]]),\"\",IF(KontrollTabell[[#This Row],[TRUE/FALSE om kategori saknas.]] =FALSE,InputA1A3[[#This Row],[Kategori\n(egen kategorisering)]],\"Kategori saknas\"))","v":"övrigt"}]
[null,"ggq",null,null,null,650,"[Liter (l)]",1.2,"[m³]",{"$f":"IF(ISBLANK(InputA1A3[[#This Row],[Anläggningsdel\n]]),\"\",IF(KontrollTabell[[#This Row],[True/False A1A3 Enhet]]=TRUE, \"\", InputA1A3[[#This Row],[FU/DU (EF A1A3)]] & \"/\" & InputA1A3[[#This Row],[Enhet Mängd (A1A3)]]))","v":"[m³]/[Liter (l)]"},45,null,null,8.42,{"$f":"IF(ISBLANK(InputA1A3[[#This Row],[EPD - EF A4]]),\"\",InputA1A3[[#This Row],[FU/DU (EF A1A3)]])","v":"[m³]"},null,null,null,{"$f":"IFERROR(INDEX(TabellEFDrivmedel[],MATCH(InputA1A3[[#This Row],[Drivmedel (A4) (endast förval ur lista)]],TabellEFDrivmedel[Drivmedel],0),4),\"\")","v":""},null,null,null,{"$f":"IF(InputA1A3[[#This Row],[*DU/FU (EF A4) för valt drivmedel (schablon)]]=\"\",\"\",IF(KontrollTabell[[#This Row],[True/False A4 Enhet - Alt2]]=TRUE,\"\",IF(ISBLANK(InputA1A3[[#This Row],[*DU/FU (EF A4) för valt drivmedel (schablon)]]),,InputA1A3[[#This Row],[Enhet (bränsleförbrukning per km)]]& \"/\" & InputA1A3[[#This Row],[*DU/FU (EF A4) för valt drivmedel (schablon)]])))","v":""},null,null,null,null,null,null,null,{"$f":"IFERROR(INDEX(TabellEFDrivmedel[],MATCH(InputA1A3[[#This Row],[Drivmedel (A5.2)]],TabellEFDrivmedel[Drivmedel],0),2),\"\")","v":""},{"$f":"IFERROR(INDEX(TabellEFDrivmedel[],MATCH(InputA1A3[[#This Row],[Drivmedel (A5.2)]],TabellEFDrivmedel[Drivmedel],0),4),\"\")","v":""},{"$f":"IF(KontrollTabell[[#This Row],[True/False A5 Enhet]]=TRUE, \"\", InputA1A3[[#This Row],[*DU/FU (EF A5.2)]] & \"/\" & InputA1A3[[#This Row],[Enhet för mängd (A5.2)]])","v":""},null,null,null,null,null,null,null,null,null,null,null,null,null,null,null,null,null,null,null,null,null,null,null,null,null,null,null,null,null,null,null,null,null,null,null,null,null,null,null,null,{"$f":"IF(ISBLANK(InputA1A3[[#This Row],[Anläggningsdel\n]]),FALSE,TRUE)","v":true},{"$f":"IF(ISBLANK(InputA1A3[[#This Row],[Anläggningsdel\n]]),\"\",IF(InputA1A3[[#This Row],[Enhet Mängd (A1A3)]] = InputA1A3[[#This Row],[FU/DU (EF A1A3)]], TRUE, FALSE))","v":false},{"$f":"IF(KontrollTabell[[#This Row],[Finns anläggningsdel-namn.]]=FALSE,\"\",IF(KontrollTabell[[#This Row],[True/False A1A3 Enhet]]=TRUE,TRUE,IF(ISBLANK(InputA1A3[[#This Row],[Omräkning till FU/DU (Skriv in värde, ej formel)]]),FALSE,TRUE)))","v":true},{"$f":"IF(KontrollTabell[[#This Row],[Finns anläggningsdel-namn.]]=FALSE,,IF(KontrollTabell[[#This Row],[True/False A1A3 Enhet]]=TRUE,InputA1A3[[#This Row],[Mängd A1A3]]*InputA1A3[[#This Row],[EF A1A3 '[kg CO₂-ekv.']]],IF(KontrollTabell[[#This Row],[True/False A1A3 om A1A3 kan beräknas]]=TRUE,InputA1A3[[#This Row],[Mängd A1A3]]*InputA1A3[[#This Row],[EF A1A3 '[kg CO₂-ekv.']]]*InputA1A3[[#This Row],[Omräkning till FU/DU (Skriv in värde, ej formel)]],\"Värde Behövs\")))","v":35100},{"$f":"IF(ISBLANK(InputA1A3[[#This Row],[Anläggningsdel\n]]),\"\",IF(ISBLANK(InputA1A3[[#This Row],[EPD - EF A4]]),FALSE,TRUE))","v":true},{"$f":"IF(OR(ISBLANK(InputA1A3[[#This Row],[Enhet (bränsleförbrukning per km)]]),ISBLANK(InputA1A3[[#This Row],[*DU/FU (EF A4) för valt drivmedel (schablon)]])),\"\",IF(OR(InputA1A3[[#This Row],[Enhet (bränsleförbrukning per km)]]=InputA1A3[[#This Row],[*DU/FU (EF A4) för valt drivmedel (schablon)]],AND(InputA1A3[[#This Row],[Enhet (bränsleförbrukning per km)]]<>InputA1A3[[#This Row],[*DU/FU (EF A4) för valt drivmedel (schablon)]],ISNUMBER(InputA1A3[[#This Row],[Omräkningsfaktor (A4), (vid behov, värde eller formel)]]))),TRUE(),FALSE()))","v":""},{"$f":"IF(InputA1A3[[#This Row],[Enhet (bränsleförbrukning per km)]] =InputA1A3[[#This Row],[*DU/FU (EF A4) för valt drivmedel (schablon)]],TRUE,IF(ISBLANK(InputA1A3[[#This Row],[Omräkningsfaktor (A4), (vid behov, värde eller formel)]]),FALSE,TRUE))","v":true},{"$f":"IF(ISBLANK(InputA1A3[[#This Row],[EPD - EF A4]]),\"\",IF(ISBLANK(InputA1A3[[#This Row],[Omräkning till FU/DU (Skriv in värde, ej formel)]]),InputA1A3[[#This Row],[EPD - EF A4]]*InputA1A3[[#This Row],[Mängd A1A3]],InputA1A3[[#This Row],[Mängd A1A3]]*InputA1A3[[#This Row],[Omräkning till FU/DU (Skriv in värde, ej formel)]]*InputA1A3[[#This Row],[EPD - EF A4]]))","v":246285},{"$f":"IF(ISBLANK(KontrollTabell[[#This Row],[True/False A4 - Alt 2]]),\"\",IF(KontrollTabell[[#This Row],[True/False A4 Enhet - Alt2]]=TRUE,InputA1A3[[#This Row],[Sträcka - totalt '[km'], (tur och retur, alla transporter)]]*InputA1A3[[#This Row],[(Bränsle-) Förbrukning per km]],\"Sen då\"))","v":0},{"$f":"SUM(KontrollTabell[[#This Row],[A4 - Resultat alt 1 '[kg']]:[A4 - Alt 2 - beräkning utsläpp]])","v":246285},{"$f":"IF(ISBLANK(InputA1A3[[#This Row],[EPD - EF A4]]),FALSE,TRUE)","v":true},{"$f":"IFERROR(IF(KontrollTabell[[#This Row],[True/False A5]]=FALSE(),\"Enheter\",IF(ISBLANK(InputA1A3[[#This Row],[Omräkningsfaktor (A5.2) (ange värde), (vid behov)]]),InputA1A3[[#This Row],[Mängd (A5.2)]]*InputA1A3[[#This Row],[*EF (A5.2)\n'[kg CO₂-ekv.']]],InputA1A3[[#This Row],[Mängd (A5.2)]]*InputA1A3[[#This Row],[*EF (A5.2)\n'[kg CO₂-ekv.']]]*InputA1A3[[#This Row],[Omräkningsfaktor (A5.2) (ange värde), (vid behov)]])),0)","v":0},{"$f":"IF(OR(ISBLANK(InputA1A3[[#This Row],[Enhet för mängd (A5.2)]]),ISBLANK(InputA1A3[[#This Row],[*DU/FU (EF A5.2)]])),\"\",IF(OR(InputA1A3[[#This Row],[Enhet för mängd (A5.2)]]=InputA1A3[[#This Row],[*DU/FU (EF A5.2)]],AND(InputA1A3[[#This Row],[Enhet för mängd (A5.2)]]<>InputA1A3[[#This Row],[*DU/FU (EF A5.2)]],ISNUMBER(InputA1A3[[#This Row],[Omräkningsfaktor (A5.2) (ange värde), (vid behov)]]))),TRUE,FALSE))","v":""},{"$f":"IF(InputA1A3[[#This Row],[Enhet för mängd (A5.2)]] = InputA1A3[[#This Row],[*DU/FU (EF A5.2)]], TRUE, FALSE)","v":true},{"$f":"IF(OR(ISBLANK(InputA1A3[[#This Row],[Kategori\n(egen kategorisering)]])=FALSE,ISBLANK(InputA1A3[[#This Row],[Anläggningsdel\n]]))=FALSE,TRUE,FALSE)","v":true},{"$f":"IF(ISBLANK(InputA1A3[[#This Row],[Anläggningsdel\n]]),\"\",IF(KontrollTabell[[#This Row],[TRUE/FALSE om kategori saknas.]] =FALSE,InputA1A3[[#This Row],[Kategori\n(egen kategorisering)]],\"Kategori saknas\"))","v":"Kategori saknas"}]
[null,"Test A4_1","kat 3",null,null,500,"[st]",0.65,"[kg]",{"$f":"IF(ISBLANK(InputA1A3[[#This Row],[Anläggningsdel\n]]),\"\",IF(KontrollTabell[[#This Row],[True/False A1A3 Enhet]]=TRUE, \"\", InputA1A3[[#This Row],[FU/DU (EF A1A3)]] & \"/\" & InputA1A3[[#This Row],[Enhet Mängd (A1A3)]]))","v":"[kg]/[st]"},2,null,null,0.5,{"$f":"IF(ISBLANK(InputA1A3[[#This Row],[EPD - EF A4]]),\"\",InputA1A3[[#This Row],[FU/DU (EF A1A3)]])","v":"[kg]"},"test",null,null,{"$f":"IFERROR(INDEX(TabellEFDrivmedel[],MATCH(InputA1A3[[#This Row],[Drivmedel (A4) (endast förval ur lista)]],TabellEFDrivmedel[Drivmedel],0),4),\"\")","v":""},null,null,null,{"$f":"IF(InputA1A3[[#This Row],[*DU/FU (EF A4) för valt drivmedel (schablon)]]=\"\",\"\",IF(KontrollTabell[[#This Row],[True/False A4 Enhet - Alt2]]=TRUE,\"\",IF(ISBLANK(InputA1A3[[#This Row],[*DU/FU (EF A4) för valt drivmedel (schablon)]]),,InputA1A3[[#This Row],[Enhet (bränsleförbrukning per km)]]& \"/\" & InputA1A3[[#This Row],[*DU/FU (EF A4) för valt drivmedel (schablon)]])))","v":""},null,null,null,null,null,null,null,{"$f":"IFERROR(INDEX(TabellEFDrivmedel[],MATCH(InputA1A3[[#This Row],[Drivmedel (A5.2)]],TabellEFDrivmedel[Drivmedel],0),2),\"\")","v":""},{"$f":"IFERROR(INDEX(TabellEFDrivmedel[],MATCH(InputA1A3[[#This Row],[Drivmedel (A5.2)]],TabellEFDrivmedel[Drivmedel],0),4),\"\")","v":""},{"$f":"IF(KontrollTabell[[#This Row],[True/False A5 Enhet]]=TRUE, \"\", InputA1A3[[#This Row],[*DU/FU (EF A5.2)]] & \"/\" & InputA1A3[[#This Row],[Enhet för mängd (A5.2)]])","v":""},null,null,null,null,null,null,null,null,null,null,null,null,null,null,null,null,null,null,null,null,null,null,null,null,null,null,null,null,null,null,null,null,null,null,null,null,null,null,null,null,{"$f":"IF(ISBLANK(InputA1A3[[#This Row],[Anläggningsdel\n]]),FALSE,TRUE)","v":true},{"$f":"IF(ISBLANK(InputA1A3[[#This Row],[Anläggningsdel\n]]),\"\",IF(InputA1A3[[#This Row],[Enhet Mängd (A1A3)]] = InputA1A3[[#This Row],[FU/DU (EF A1A3)]], TRUE, FALSE))","v":false},{"$f":"IF(KontrollTabell[[#This Row],[Finns anläggningsdel-namn.]]=FALSE,\"\",IF(KontrollTabell[[#This Row],[True/False A1A3 Enhet]]=TRUE,TRUE,IF(ISBLANK(InputA1A3[[#This Row],[Omräkning till FU/DU (Skriv in värde, ej formel)]]),FALSE,TRUE)))","v":true},{"$f":"IF(KontrollTabell[[#This Row],[Finns anläggningsdel-namn.]]=FALSE,,IF(KontrollTabell[[#This Row],[True/False A1A3 Enhet]]=TRUE,InputA1A3[[#This Row],[Mängd A1A3]]*InputA1A3[[#This Row],[EF A1A3 '[kg CO₂-ekv.']]],IF(KontrollTabell[[#This Row],[True/False A1A3 om A1A3 kan beräknas]]=TRUE,InputA1A3[[#This Row],[Mängd A1A3]]*InputA1A3[[#This Row],[EF A1A3 '[kg CO₂-ekv.']]]*InputA1A3[[#This Row],[Omräkning till FU/DU (Skriv in värde, ej formel)]],\"Värde Behövs\")))","v":650},{"$f":"IF(ISBLANK(InputA1A3[[#This Row],[Anläggningsdel\n]]),\"\",IF(ISBLANK(InputA1A3[[#This Row],[EPD - EF A4]]),FALSE,TRUE))","v":true},{"$f":"IF(OR(ISBLANK(InputA1A3[[#This Row],[Enhet (bränsleförbrukning per km)]]),ISBLANK(InputA1A3[[#This Row],[*DU/FU (EF A4) för valt drivmedel (schablon)]])),\"\",IF(OR(InputA1A3[[#This Row],[Enhet (bränsleförbrukning per km)]]=InputA1A3[[#This Row],[*DU/FU (EF A4) för valt drivmedel (schablon)]],AND(InputA1A3[[#This Row],[Enhet (bränsleförbrukning per km)]]<>InputA1A3[[#This Row],[*DU/FU (EF A4) för valt drivmedel (schablon)]],ISNUMBER(InputA1A3[[#This Row],[Omräkningsfaktor (A4), (vid behov, värde eller formel)]]))),TRUE(),FALSE()))","v":""},{"$f":"IF(InputA1A3[[#This Row],[Enhet (bränsleförbrukning per km)]] =InputA1A3[[#This Row],[*DU/FU (EF A4) för valt drivmedel (schablon)]],TRUE,IF(ISBLANK(InputA1A3[[#This Row],[Omräkningsfaktor (A4), (vid behov, värde eller formel)]]),FALSE,TRUE))","v":true},{"$f":"IF(ISBLANK(InputA1A3[[#This Row],[EPD - EF A4]]),\"\",IF(ISBLANK(InputA1A3[[#This Row],[Omräkning till FU/DU (Skriv in värde, ej formel)]]),InputA1A3[[#This Row],[EPD - EF A4]]*InputA1A3[[#This Row],[Mängd A1A3]],InputA1A3[[#This Row],[Mängd A1A3]]*InputA1A3[[#This Row],[Omräkning till FU/DU (Skriv in värde, ej formel)]]*InputA1A3[[#This Row],[EPD - EF A4]]))","v":500},{"$f":"IF(ISBLANK(KontrollTabell[[#This Row],[True/False A4 - Alt 2]]),\"\",IF(KontrollTabell[[#This Row],[True/False A4 Enhet - Alt2]]=TRUE,InputA1A3[[#This Row],[Sträcka - totalt '[km'], (tur och retur, alla transporter)]]*InputA1A3[[#This Row],[(Bränsle-) Förbrukning per km]],\"Sen då\"))","v":0},{"$f":"SUM(KontrollTabell[[#This Row],[A4 - Resultat alt 1 '[kg']]:[A4 - Alt 2 - beräkning utsläpp]])","v":500},{"$f":"IF(ISBLANK(InputA1A3[[#This Row],[EPD - EF A4]]),FALSE,TRUE)","v":true},{"$f":"IFERROR(IF(KontrollTabell[[#This Row],[True/False A5]]=FALSE(),\"Enheter\",IF(ISBLANK(InputA1A3[[#This Row],[Omräkningsfaktor (A5.2) (ange värde), (vid behov)]]),InputA1A3[[#This Row],[Mängd (A5.2)]]*InputA1A3[[#This Row],[*EF (A5.2)\n'[kg CO₂-ekv.']]],InputA1A3[[#This Row],[Mängd (A5.2)]]*InputA1A3[[#This Row],[*EF (A5.2)\n'[kg CO₂-ekv.']]]*InputA1A3[[#This Row],[Omräkningsfaktor (A5.2) (ange värde), (vid behov)]])),0)","v":0},{"$f":"IF(OR(ISBLANK(InputA1A3[[#This Row],[Enhet för mängd (A5.2)]]),ISBLANK(InputA1A3[[#This Row],[*DU/FU (EF A5.2)]])),\"\",IF(OR(InputA1A3[[#This Row],[Enhet för mängd (A5.2)]]=InputA1A3[[#This Row],[*DU/FU (EF A5.2)]],AND(InputA1A3[[#This Row],[Enhet för mängd (A5.2)]]<>InputA1A3[[#This Row],[*DU/FU (EF A5.2)]],ISNUMBER(InputA1A3[[#This Row],[Omräkningsfaktor (A5.2) (ange värde), (vid behov)]]))),TRUE,FALSE))","v":""},{"$f":"IF(InputA1A3[[#This Row],[Enhet för mängd (A5.2)]] = InputA1A3[[#This Row],[*DU/FU (EF A5.2)]], TRUE, FALSE)","v":true},{"$f":"IF(OR(ISBLANK(InputA1A3[[#This Row],[Kategori\n(egen kategorisering)]])=FALSE,ISBLANK(InputA1A3[[#This Row],[Anläggningsdel\n]]))=FALSE,TRUE,FALSE)","v":false},{"$f":"IF(ISBLANK(InputA1A3[[#This Row],[Anläggningsdel\n]]),\"\",IF(KontrollTabell[[#This Row],[TRUE/FALSE om kategori saknas.]] =FALSE,InputA1A3[[#This Row],[Kategori\n(egen kategorisering)]],\"Kategori saknas\"))","v":"kat 3"}]
[null,null,null,null,null,null,null,null,null,{"$f":"IF(ISBLANK(InputA1A3[[#This Row],[Anläggningsdel\n]]),\"\",IF(KontrollTabell[[#This Row],[True/False A1A3 Enhet]]=TRUE, \"\", InputA1A3[[#This Row],[FU/DU (EF A1A3)]] & \"/\" & InputA1A3[[#This Row],[Enhet Mängd (A1A3)]]))","v":""},null,null,null,null,{"$f":"IF(ISBLANK(InputA1A3[[#This Row],[EPD - EF A4]]),\"\",InputA1A3[[#This Row],[FU/DU (EF A1A3)]])","v":""},null,null,null,{"$f":"IFERROR(INDEX(TabellEFDrivmedel[],MATCH(InputA1A3[[#This Row],[Drivmedel (A4) (endast förval ur lista)]],TabellEFDrivmedel[Drivmedel],0),4),\"\")","v":""},null,null,null,{"$f":"IF(InputA1A3[[#This Row],[*DU/FU (EF A4) för valt drivmedel (schablon)]]=\"\",\"\",IF(KontrollTabell[[#This Row],[True/False A4 Enhet - Alt2]]=TRUE,\"\",IF(ISBLANK(InputA1A3[[#This Row],[*DU/FU (EF A4) för valt drivmedel (schablon)]]),,InputA1A3[[#This Row],[Enhet (bränsleförbrukning per km)]]& \"/\" & InputA1A3[[#This Row],[*DU/FU (EF A4) för valt drivmedel (schablon)]])))","v":""},null,null,null,null,null,null,null,{"$f":"IFERROR(INDEX(TabellEFDrivmedel[],MATCH(InputA1A3[[#This Row],[Drivmedel (A5.2)]],TabellEFDrivmedel[Drivmedel],0),2),\"\")","v":""},{"$f":"IFERROR(INDEX(TabellEFDrivmedel[],MATCH(InputA1A3[[#This Row],[Drivmedel (A5.2)]],TabellEFDrivmedel[Drivmedel],0),4),\"\")","v":""},{"$f":"IF(KontrollTabell[[#This Row],[True/False A5 Enhet]]=TRUE, \"\", InputA1A3[[#This Row],[*DU/FU (EF A5.2)]] & \"/\" & InputA1A3[[#This Row],[Enhet för mängd (A5.2)]])","v":""},null,null,null,null,null,null,null,null,null,null,null,null,null,null,null,null,null,null,null,null,null,null,null,null,null,null,null,null,null,null,null,null,null,null,null,null,null,null,null,null,{"$f":"IF(ISBLANK(InputA1A3[[#This Row],[Anläggningsdel\n]]),FALSE,TRUE)","v":false},{"$f":"IF(ISBLANK(InputA1A3[[#This Row],[Anläggningsdel\n]]),\"\",IF(InputA1A3[[#This Row],[Enhet Mängd (A1A3)]] = InputA1A3[[#This Row],[FU/DU (EF A1A3)]], TRUE, FALSE))","v":""},{"$f":"IF(KontrollTabell[[#This Row],[Finns anläggningsdel-namn.]]=FALSE,\"\",IF(KontrollTabell[[#This Row],[True/False A1A3 Enhet]]=TRUE,TRUE,IF(ISBLANK(InputA1A3[[#This Row],[Omräkning till FU/DU (Skriv in värde, ej formel)]]),FALSE,TRUE)))","v":""},{"$f":"IF(KontrollTabell[[#This Row],[Finns anläggningsdel-namn.]]=FALSE,,IF(KontrollTabell[[#This Row],[True/False A1A3 Enhet]]=TRUE,InputA1A3[[#This Row],[Mängd A1A3]]*InputA1A3[[#This Row],[EF A1A3 '[kg CO₂-ekv.']]],IF(KontrollTabell[[#This Row],[True/False A1A3 om A1A3 kan beräknas]]=TRUE,InputA1A3[[#This Row],[Mängd A1A3]]*InputA1A3[[#This Row],[EF A1A3 '[kg CO₂-ekv.']]]*InputA1A3[[#This Row],[Omräkning till FU/DU (Skriv in värde, ej formel)]],\"Värde Behövs\")))","v":0},{"$f":"IF(ISBLANK(InputA1A3[[#This Row],[Anläggningsdel\n]]),\"\",IF(ISBLANK(InputA1A3[[#This Row],[EPD - EF A4]]),FALSE,TRUE))","v":""},{"$f":"IF(OR(ISBLANK(InputA1A3[[#This Row],[Enhet (bränsleförbrukning per km)]]),ISBLANK(InputA1A3[[#This Row],[*DU/FU (EF A4) för valt drivmedel (schablon)]])),\"\",IF(OR(InputA1A3[[#This Row],[Enhet (bränsleförbrukning per km)]]=InputA1A3[[#This Row],[*DU/FU (EF A4) för valt drivmedel (schablon)]],AND(InputA1A3[[#This Row],[Enhet (bränsleförbrukning per km)]]<>InputA1A3[[#This Row],[*DU/FU (EF A4) för valt drivmedel (schablon)]],ISNUMBER(InputA1A3[[#This Row],[Omräkningsfaktor (A4), (vid behov, värde eller formel)]]))),TRUE(),FALSE()))","v":""},{"$f":"IF(InputA1A3[[#This Row],[Enhet (bränsleförbrukning per km)]] =InputA1A3[[#This Row],[*DU/FU (EF A4) för valt drivmedel (schablon)]],TRUE,IF(ISBLANK(InputA1A3[[#This Row],[Omräkningsfaktor (A4), (vid behov, värde eller formel)]]),FALSE,TRUE))","v":true},{"$f":"IF(ISBLANK(InputA1A3[[#This Row],[EPD - EF A4]]),\"\",IF(ISBLANK(InputA1A3[[#This Row],[Omräkning till FU/DU (Skriv in värde, ej formel)]]),InputA1A3[[#This Row],[EPD - EF A4]]*InputA1A3[[#This Row],[Mängd A1A3]],InputA1A3[[#This Row],[Mängd A1A3]]*InputA1A3[[#This Row],[Omräkning till FU/DU (Skriv in värde, ej formel)]]*InputA1A3[[#This Row],[EPD - EF A4]]))","v":""},{"$f":"IF(ISBLANK(KontrollTabell[[#This Row],[True/False A4 - Alt 2]]),\"\",IF(KontrollTabell[[#This Row],[True/False A4 Enhet - Alt2]]=TRUE,InputA1A3[[#This Row],[Sträcka - totalt '[km'], (tur och retur, alla transporter)]]*InputA1A3[[#This Row],[(Bränsle-) Förbrukning per km]],\"Sen då\"))","v":0},{"$f":"SUM(KontrollTabell[[#This Row],[A4 - Resultat alt 1 '[kg']]:[A4 - Alt 2 - beräkning utsläpp]])","v":0},{"$f":"IF(ISBLANK(InputA1A3[[#This Row],[EPD - EF A4]]),FALSE,TRUE)","v":false},{"$f":"IFERROR(IF(KontrollTabell[[#This Row],[True/False A5]]=FALSE(),\"Enheter\",IF(ISBLANK(InputA1A3[[#This Row],[Omräkningsfaktor (A5.2) (ange värde), (vid behov)]]),InputA1A3[[#This Row],[Mängd (A5.2)]]*InputA1A3[[#This Row],[*EF (A5.2)\n'[kg CO₂-ekv.']]],InputA1A3[[#This Row],[Mängd (A5.2)]]*InputA1A3[[#This Row],[*EF (A5.2)\n'[kg CO₂-ekv.']]]*InputA1A3[[#This Row],[Omräkningsfaktor (A5.2) (ange värde), (vid behov)]])),0)","v":0},{"$f":"IF(OR(ISBLANK(InputA1A3[[#This Row],[Enhet för mängd (A5.2)]]),ISBLANK(InputA1A3[[#This Row],[*DU/FU (EF A5.2)]])),\"\",IF(OR(InputA1A3[[#This Row],[Enhet för mängd (A5.2)]]=InputA1A3[[#This Row],[*DU/FU (EF A5.2)]],AND(InputA1A3[[#This Row],[Enhet för mängd (A5.2)]]<>InputA1A3[[#This Row],[*DU/FU (EF A5.2)]],ISNUMBER(InputA1A3[[#This Row],[Omräkningsfaktor (A5.2) (ange värde), (vid behov)]]))),TRUE,FALSE))","v":""},{"$f":"IF(InputA1A3[[#This Row],[Enhet för mängd (A5.2)]] = InputA1A3[[#This Row],[*DU/FU (EF A5.2)]], TRUE, FALSE)","v":true},{"$f":"IF(OR(ISBLANK(InputA1A3[[#This Row],[Kategori\n(egen kategorisering)]])=FALSE,ISBLANK(InputA1A3[[#This Row],[Anläggningsdel\n]]))=FALSE,TRUE,FALSE)","v":false},{"$f":"IF(ISBLANK(InputA1A3[[#This Row],[Anläggningsdel\n]]),\"\",IF(KontrollTabell[[#This Row],[TRUE/FALSE om kategori saknas.]] =FALSE,InputA1A3[[#This Row],[Kategori\n(egen kategorisering)]],\"Kategori saknas\"))","v":""}]
[null,null,null,null,null,null,null,null,null,{"$f":"IF(ISBLANK(InputA1A3[[#This Row],[Anläggningsdel\n]]),\"\",IF(KontrollTabell[[#This Row],[True/False A1A3 Enhet]]=TRUE, \"\", InputA1A3[[#This Row],[FU/DU (EF A1A3)]] & \"/\" & InputA1A3[[#This Row],[Enhet Mängd (A1A3)]]))","v":""},null,null,null,null,{"$f":"IF(ISBLANK(InputA1A3[[#This Row],[EPD - EF A4]]),\"\",InputA1A3[[#This Row],[FU/DU (EF A1A3)]])","v":""},null,null,null,{"$f":"IFERROR(INDEX(TabellEFDrivmedel[],MATCH(InputA1A3[[#This Row],[Drivmedel (A4) (endast förval ur lista)]],TabellEFDrivmedel[Drivmedel],0),4),\"\")","v":""},null,null,null,{"$f":"IF(InputA1A3[[#This Row],[*DU/FU (EF A4) för valt drivmedel (schablon)]]=\"\",\"\",IF(KontrollTabell[[#This Row],[True/False A4 Enhet - Alt2]]=TRUE,\"\",IF(ISBLANK(InputA1A3[[#This Row],[*DU/FU (EF A4) för valt drivmedel (schablon)]]),,InputA1A3[[#This Row],[Enhet (bränsleförbrukning per km)]]& \"/\" & InputA1A3[[#This Row],[*DU/FU (EF A4) för valt drivmedel (schablon)]])))","v":""},null,null,null,null,null,null,null,{"$f":"IFERROR(INDEX(TabellEFDrivmedel[],MATCH(InputA1A3[[#This Row],[Drivmedel (A5.2)]],TabellEFDrivmedel[Drivmedel],0),2),\"\")","v":""},{"$f":"IFERROR(INDEX(TabellEFDrivmedel[],MATCH(InputA1A3[[#This Row],[Drivmedel (A5.2)]],TabellEFDrivmedel[Drivmedel],0),4),\"\")","v":""},{"$f":"IF(KontrollTabell[[#This Row],[True/False A5 Enhet]]=TRUE, \"\", InputA1A3[[#This Row],[*DU/FU (EF A5.2)]] & \"/\" & InputA1A3[[#This Row],[Enhet för mängd (A5.2)]])","v":""},null,null,null,null,null,null,null,null,null,null,null,null,null,null,null,null,null,null,null,null,null,null,null,null,null,null,null,null,null,null,null,null,null,null,null,null,null,null,null,null,{"$f":"IF(ISBLANK(InputA1A3[[#This Row],[Anläggningsdel\n]]),FALSE,TRUE)","v":false},{"$f":"IF(ISBLANK(InputA1A3[[#This Row],[Anläggningsdel\n]]),\"\",IF(InputA1A3[[#This Row],[Enhet Mängd (A1A3)]] = InputA1A3[[#This Row],[FU/DU (EF A1A3)]], TRUE, FALSE))","v":""},{"$f":"IF(KontrollTabell[[#This Row],[Finns anläggningsdel-namn.]]=FALSE,\"\",IF(KontrollTabell[[#This Row],[True/False A1A3 Enhet]]=TRUE,TRUE,IF(ISBLANK(InputA1A3[[#This Row],[Omräkning till FU/DU (Skriv in värde, ej formel)]]),FALSE,TRUE)))","v":""},{"$f":"IF(KontrollTabell[[#This Row],[Finns anläggningsdel-namn.]]=FALSE,,IF(KontrollTabell[[#This Row],[True/False A1A3 Enhet]]=TRUE,InputA1A3[[#This Row],[Mängd A1A3]]*InputA1A3[[#This Row],[EF A1A3 '[kg CO₂-ekv.']]],IF(KontrollTabell[[#This Row],[True/False A1A3 om A1A3 kan beräknas]]=TRUE,InputA1A3[[#This Row],[Mängd A1A3]]*InputA1A3[[#This Row],[EF A1A3 '[kg CO₂-ekv.']]]*InputA1A3[[#This Row],[Omräkning till FU/DU (Skriv in värde, ej formel)]],\"Värde Behövs\")))","v":0},{"$f":"IF(ISBLANK(InputA1A3[[#This Row],[Anläggningsdel\n]]),\"\",IF(ISBLANK(InputA1A3[[#This Row],[EPD - EF A4]]),FALSE,TRUE))","v":""},{"$f":"IF(OR(ISBLANK(InputA1A3[[#This Row],[Enhet (bränsleförbrukning per km)]]),ISBLANK(InputA1A3[[#This Row],[*DU/FU (EF A4) för valt drivmedel (schablon)]])),\"\",IF(OR(InputA1A3[[#This Row],[Enhet (bränsleförbrukning per km)]]=InputA1A3[[#This Row],[*DU/FU (EF A4) för valt drivmedel (schablon)]],AND(InputA1A3[[#This Row],[Enhet (bränsleförbrukning per km)]]<>InputA1A3[[#This Row],[*DU/FU (EF A4) för valt drivmedel (schablon)]],ISNUMBER(InputA1A3[[#This Row],[Omräkningsfaktor (A4), (vid behov, värde eller formel)]]))),TRUE(),FALSE()))","v":""},{"$f":"IF(InputA1A3[[#This Row],[Enhet (bränsleförbrukning per km)]] =InputA1A3[[#This Row],[*DU/FU (EF A4) för valt drivmedel (schablon)]],TRUE,IF(ISBLANK(InputA1A3[[#This Row],[Omräkningsfaktor (A4), (vid behov, värde eller formel)]]),FALSE,TRUE))","v":true},{"$f":"IF(ISBLANK(InputA1A3[[#This Row],[EPD - EF A4]]),\"\",IF(ISBLANK(InputA1A3[[#This Row],[Omräkning till FU/DU (Skriv in värde, ej formel)]]),InputA1A3[[#This Row],[EPD - EF A4]]*InputA1A3[[#This Row],[Mängd A1A3]],InputA1A3[[#This Row],[Mängd A1A3]]*InputA1A3[[#This Row],[Omräkning till FU/DU (Skriv in värde, ej formel)]]*InputA1A3[[#This Row],[EPD - EF A4]]))","v":""},{"$f":"IF(ISBLANK(KontrollTabell[[#This Row],[True/False A4 - Alt 2]]),\"\",IF(KontrollTabell[[#This Row],[True/False A4 Enhet - Alt2]]=TRUE,InputA1A3[[#This Row],[Sträcka - totalt '[km'], (tur och retur, alla transporter)]]*InputA1A3[[#This Row],[(Bränsle-) Förbrukning per km]],\"Sen då\"))","v":0},{"$f":"SUM(KontrollTabell[[#This Row],[A4 - Resultat alt 1 '[kg']]:[A4 - Alt 2 - beräkning utsläpp]])","v":0},{"$f":"IF(ISBLANK(InputA1A3[[#This Row],[EPD - EF A4]]),FALSE,TRUE)","v":false},{"$f":"IFERROR(IF(KontrollTabell[[#This Row],[True/False A5]]=FALSE(),\"Enheter\",IF(ISBLANK(InputA1A3[[#This Row],[Omräkningsfaktor (A5.2) (ange värde), (vid behov)]]),InputA1A3[[#This Row],[Mängd (A5.2)]]*InputA1A3[[#This Row],[*EF (A5.2)\n'[kg CO₂-ekv.']]],InputA1A3[[#This Row],[Mängd (A5.2)]]*InputA1A3[[#This Row],[*EF (A5.2)\n'[kg CO₂-ekv.']]]*InputA1A3[[#This Row],[Omräkningsfaktor (A5.2) (ange värde), (vid behov)]])),0)","v":0},{"$f":"IF(OR(ISBLANK(InputA1A3[[#This Row],[Enhet för mängd (A5.2)]]),ISBLANK(InputA1A3[[#This Row],[*DU/FU (EF A5.2)]])),\"\",IF(OR(InputA1A3[[#This Row],[Enhet för mängd (A5.2)]]=InputA1A3[[#This Row],[*DU/FU (EF A5.2)]],AND(InputA1A3[[#This Row],[Enhet för mängd (A5.2)]]<>InputA1A3[[#This Row],[*DU/FU (EF A5.2)]],ISNUMBER(InputA1A3[[#This Row],[Omräkningsfaktor (A5.2) (ange värde), (vid behov)]]))),TRUE,FALSE))","v":""},{"$f":"IF(InputA1A3[[#This Row],[Enhet för mängd (A5.2)]] = InputA1A3[[#This Row],[*DU/FU (EF A5.2)]], TRUE, FALSE)","v":true},{"$f":"IF(OR(ISBLANK(InputA1A3[[#This Row],[Kategori\n(egen kategorisering)]])=FALSE,ISBLANK(InputA1A3[[#This Row],[Anläggningsdel\n]]))=FALSE,TRUE,FALSE)","v":false},{"$f":"IF(ISBLANK(InputA1A3[[#This Row],[Anläggningsdel\n]]),\"\",IF(KontrollTabell[[#This Row],[TRUE/FALSE om kategori saknas.]] =FALSE,InputA1A3[[#This Row],[Kategori\n(egen kategorisering)]],\"Kategori saknas\"))","v":""}]
[null,null,null,null,null,null,null,null,null,{"$f":"IF(ISBLANK(InputA1A3[[#This Row],[Anläggningsdel\n]]),\"\",IF(KontrollTabell[[#This Row],[True/False A1A3 Enhet]]=TRUE, \"\", InputA1A3[[#This Row],[FU/DU (EF A1A3)]] & \"/\" & InputA1A3[[#This Row],[Enhet Mängd (A1A3)]]))","v":""},null,null,null,null,{"$f":"IF(ISBLANK(InputA1A3[[#This Row],[EPD - EF A4]]),\"\",InputA1A3[[#This Row],[FU/DU (EF A1A3)]])","v":""},null,null,null,{"$f":"IFERROR(INDEX(TabellEFDrivmedel[],MATCH(InputA1A3[[#This Row],[Drivmedel (A4) (endast förval ur lista)]],TabellEFDrivmedel[Drivmedel],0),4),\"\")","v":""},null,null,null,{"$f":"IF(InputA1A3[[#This Row],[*DU/FU (EF A4) för valt drivmedel (schablon)]]=\"\",\"\",IF(KontrollTabell[[#This Row],[True/False A4 Enhet - Alt2]]=TRUE,\"\",IF(ISBLANK(InputA1A3[[#This Row],[*DU/FU (EF A4) för valt drivmedel (schablon)]]),,InputA1A3[[#This Row],[Enhet (bränsleförbrukning per km)]]& \"/\" & InputA1A3[[#This Row],[*DU/FU (EF A4) för valt drivmedel (schablon)]])))","v":""},null,null,null,null,null,null,null,{"$f":"IFERROR(INDEX(TabellEFDrivmedel[],MATCH(InputA1A3[[#This Row],[Drivmedel (A5.2)]],TabellEFDrivmedel[Drivmedel],0),2),\"\")","v":""},{"$f":"IFERROR(INDEX(TabellEFDrivmedel[],MATCH(InputA1A3[[#This Row],[Drivmedel (A5.2)]],TabellEFDrivmedel[Drivmedel],0),4),\"\")","v":""},{"$f":"IF(KontrollTabell[[#This Row],[True/False A5 Enhet]]=TRUE, \"\", InputA1A3[[#This Row],[*DU/FU (EF A5.2)]] & \"/\" & InputA1A3[[#This Row],[Enhet för mängd (A5.2)]])","v":""},null,null,null,null,null,null,null,null,null,null,null,null,null,null,null,null,null,null,null,null,null,null,null,null,null,null,null,null,null,null,null,null,null,null,null,null,null,null,null,null,{"$f":"IF(ISBLANK(InputA1A3[[#This Row],[Anläggningsdel\n]]),FALSE,TRUE)","v":false},{"$f":"IF(ISBLANK(InputA1A3[[#This Row],[Anläggningsdel\n]]),\"\",IF(InputA1A3[[#This Row],[Enhet Mängd (A1A3)]] = InputA1A3[[#This Row],[FU/DU (EF A1A3)]], TRUE, FALSE))","v":""},{"$f":"IF(KontrollTabell[[#This Row],[Finns anläggningsdel-namn.]]=FALSE,\"\",IF(KontrollTabell[[#This Row],[True/False A1A3 Enhet]]=TRUE,TRUE,IF(ISBLANK(InputA1A3[[#This Row],[Omräkning till FU/DU (Skriv in värde, ej formel)]]),FALSE,TRUE)))","v":""},{"$f":"IF(KontrollTabell[[#This Row],[Finns anläggningsdel-namn.]]=FALSE,,IF(KontrollTabell[[#This Row],[True/False A1A3 Enhet]]=TRUE,InputA1A3[[#This Row],[Mängd A1A3]]*InputA1A3[[#This Row],[EF A1A3 '[kg CO₂-ekv.']]],IF(KontrollTabell[[#This Row],[True/False A1A3 om A1A3 kan beräknas]]=TRUE,InputA1A3[[#This Row],[Mängd A1A3]]*InputA1A3[[#This Row],[EF A1A3 '[kg CO₂-ekv.']]]*InputA1A3[[#This Row],[Omräkning till FU/DU (Skriv in värde, ej formel)]],\"Värde Behövs\")))","v":0},{"$f":"IF(ISBLANK(InputA1A3[[#This Row],[Anläggningsdel\n]]),\"\",IF(ISBLANK(InputA1A3[[#This Row],[EPD - EF A4]]),FALSE,TRUE))","v":""},{"$f":"IF(OR(ISBLANK(InputA1A3[[#This Row],[Enhet (bränsleförbrukning per km)]]),ISBLANK(InputA1A3[[#This Row],[*DU/FU (EF A4) för valt drivmedel (schablon)]])),\"\",IF(OR(InputA1A3[[#This Row],[Enhet (bränsleförbrukning per km)]]=InputA1A3[[#This Row],[*DU/FU (EF A4) för valt drivmedel (schablon)]],AND(InputA1A3[[#This Row],[Enhet (bränsleförbrukning per km)]]<>InputA1A3[[#This Row],[*DU/FU (EF A4) för valt drivmedel (schablon)]],ISNUMBER(InputA1A3[[#This Row],[Omräkningsfaktor (A4), (vid behov, värde eller formel)]]))),TRUE(),FALSE()))","v":""},{"$f":"IF(InputA1A3[[#This Row],[Enhet (bränsleförbrukning per km)]] =InputA1A3[[#This Row],[*DU/FU (EF A4) för valt drivmedel (schablon)]],TRUE,IF(ISBLANK(InputA1A3[[#This Row],[Omräkningsfaktor (A4), (vid behov, värde eller formel)]]),FALSE,TRUE))","v":true},{"$f":"IF(ISBLANK(InputA1A3[[#This Row],[EPD - EF A4]]),\"\",IF(ISBLANK(InputA1A3[[#This Row],[Omräkning till FU/DU (Skriv in värde, ej formel)]]),InputA1A3[[#This Row],[EPD - EF A4]]*InputA1A3[[#This Row],[Mängd A1A3]],InputA1A3[[#This Row],[Mängd A1A3]]*InputA1A3[[#This Row],[Omräkning till FU/DU (Skriv in värde, ej formel)]]*InputA1A3[[#This Row],[EPD - EF A4]]))","v":""},{"$f":"IF(ISBLANK(KontrollTabell[[#This Row],[True/False A4 - Alt 2]]),\"\",IF(KontrollTabell[[#This Row],[True/False A4 Enhet - Alt2]]=TRUE,InputA1A3[[#This Row],[Sträcka - totalt '[km'], (tur och retur, alla transporter)]]*InputA1A3[[#This Row],[(Bränsle-) Förbrukning per km]],\"Sen då\"))","v":0},{"$f":"SUM(KontrollTabell[[#This Row],[A4 - Resultat alt 1 '[kg']]:[A4 - Alt 2 - beräkning utsläpp]])","v":0},{"$f":"IF(ISBLANK(InputA1A3[[#This Row],[EPD - EF A4]]),FALSE,TRUE)","v":false},{"$f":"IFERROR(IF(KontrollTabell[[#This Row],[True/False A5]]=FALSE(),\"Enheter\",IF(ISBLANK(InputA1A3[[#This Row],[Omräkningsfaktor (A5.2) (ange värde), (vid behov)]]),InputA1A3[[#This Row],[Mängd (A5.2)]]*InputA1A3[[#This Row],[*EF (A5.2)\n'[kg CO₂-ekv.']]],InputA1A3[[#This Row],[Mängd (A5.2)]]*InputA1A3[[#This Row],[*EF (A5.2)\n'[kg CO₂-ekv.']]]*InputA1A3[[#This Row],[Omräkningsfaktor (A5.2) (ange värde), (vid behov)]])),0)","v":0},{"$f":"IF(OR(ISBLANK(InputA1A3[[#This Row],[Enhet för mängd (A5.2)]]),ISBLANK(InputA1A3[[#This Row],[*DU/FU (EF A5.2)]])),\"\",IF(OR(InputA1A3[[#This Row],[Enhet för mängd (A5.2)]]=InputA1A3[[#This Row],[*DU/FU (EF A5.2)]],AND(InputA1A3[[#This Row],[Enhet för mängd (A5.2)]]<>InputA1A3[[#This Row],[*DU/FU (EF A5.2)]],ISNUMBER(InputA1A3[[#This Row],[Omräkningsfaktor (A5.2) (ange värde), (vid behov)]]))),TRUE,FALSE))","v":""},{"$f":"IF(InputA1A3[[#This Row],[Enhet för mängd (A5.2)]] = InputA1A3[[#This Row],[*DU/FU (EF A5.2)]], TRUE, FALSE)","v":true},{"$f":"IF(OR(ISBLANK(InputA1A3[[#This Row],[Kategori\n(egen kategorisering)]])=FALSE,ISBLANK(InputA1A3[[#This Row],[Anläggningsdel\n]]))=FALSE,TRUE,FALSE)","v":false},{"$f":"IF(ISBLANK(InputA1A3[[#This Row],[Anläggningsdel\n]]),\"\",IF(KontrollTabell[[#This Row],[TRUE/FALSE om kategori saknas.]] =FALSE,InputA1A3[[#This Row],[Kategori\n(egen kategorisering)]],\"Kategori saknas\"))","v":""}]
[null,null,null,null,null,null,null,null,null,{"$f":"IF(ISBLANK(InputA1A3[[#This Row],[Anläggningsdel\n]]),\"\",IF(KontrollTabell[[#This Row],[True/False A1A3 Enhet]]=TRUE, \"\", InputA1A3[[#This Row],[FU/DU (EF A1A3)]] & \"/\" & InputA1A3[[#This Row],[Enhet Mängd (A1A3)]]))","v":""},null,null,null,null,{"$f":"IF(ISBLANK(InputA1A3[[#This Row],[EPD - EF A4]]),\"\",InputA1A3[[#This Row],[FU/DU (EF A1A3)]])","v":""},null,null,null,{"$f":"IFERROR(INDEX(TabellEFDrivmedel[],MATCH(InputA1A3[[#This Row],[Drivmedel (A4) (endast förval ur lista)]],TabellEFDrivmedel[Drivmedel],0),4),\"\")","v":""},null,null,null,{"$f":"IF(InputA1A3[[#This Row],[*DU/FU (EF A4) för valt drivmedel (schablon)]]=\"\",\"\",IF(KontrollTabell[[#This Row],[True/False A4 Enhet - Alt2]]=TRUE,\"\",IF(ISBLANK(InputA1A3[[#This Row],[*DU/FU (EF A4) för valt drivmedel (schablon)]]),,InputA1A3[[#This Row],[Enhet (bränsleförbrukning per km)]]& \"/\" & InputA1A3[[#This Row],[*DU/FU (EF A4) för valt drivmedel (schablon)]])))","v":""},null,null,null,null,null,null,null,{"$f":"IFERROR(INDEX(TabellEFDrivmedel[],MATCH(InputA1A3[[#This Row],[Drivmedel (A5.2)]],TabellEFDrivmedel[Drivmedel],0),2),\"\")","v":""},{"$f":"IFERROR(INDEX(TabellEFDrivmedel[],MATCH(InputA1A3[[#This Row],[Drivmedel (A5.2)]],TabellEFDrivmedel[Drivmedel],0),4),\"\")","v":""},{"$f":"IF(KontrollTabell[[#This Row],[True/False A5 Enhet]]=TRUE, \"\", InputA1A3[[#This Row],[*DU/FU (EF A5.2)]] & \"/\" & InputA1A3[[#This Row],[Enhet för mängd (A5.2)]])","v":""},null,null,null,null,null,null,null,null,null,null,null,null,null,null,null,null,null,null,null,null,null,null,null,null,null,null,null,null,null,null,null,null,null,null,null,null,null,null,null,null,{"$f":"IF(ISBLANK(InputA1A3[[#This Row],[Anläggningsdel\n]]),FALSE,TRUE)","v":false},{"$f":"IF(ISBLANK(InputA1A3[[#This Row],[Anläggningsdel\n]]),\"\",IF(InputA1A3[[#This Row],[Enhet Mängd (A1A3)]] = InputA1A3[[#This Row],[FU/DU (EF A1A3)]], TRUE, FALSE))","v":""},{"$f":"IF(KontrollTabell[[#This Row],[Finns anläggningsdel-namn.]]=FALSE,\"\",IF(KontrollTabell[[#This Row],[True/False A1A3 Enhet]]=TRUE,TRUE,IF(ISBLANK(InputA1A3[[#This Row],[Omräkning till FU/DU (Skriv in värde, ej formel)]]),FALSE,TRUE)))","v":""},{"$f":"IF(KontrollTabell[[#This Row],[Finns anläggningsdel-namn.]]=FALSE,,IF(KontrollTabell[[#This Row],[True/False A1A3 Enhet]]=TRUE,InputA1A3[[#This Row],[Mängd A1A3]]*InputA1A3[[#This Row],[EF A1A3 '[kg CO₂-ekv.']]],IF(KontrollTabell[[#This Row],[True/False A1A3 om A1A3 kan beräknas]]=TRUE,InputA1A3[[#This Row],[Mängd A1A3]]*InputA1A3[[#This Row],[EF A1A3 '[kg CO₂-ekv.']]]*InputA1A3[[#This Row],[Omräkning till FU/DU (Skriv in värde, ej formel)]],\"Värde Behövs\")))","v":0},{"$f":"IF(ISBLANK(InputA1A3[[#This Row],[Anläggningsdel\n]]),\"\",IF(ISBLANK(InputA1A3[[#This Row],[EPD - EF A4]]),FALSE,TRUE))","v":""},{"$f":"IF(OR(ISBLANK(InputA1A3[[#This Row],[Enhet (bränsleförbrukning per km)]]),ISBLANK(InputA1A3[[#This Row],[*DU/FU (EF A4) för valt drivmedel (schablon)]])),\"\",IF(OR(InputA1A3[[#This Row],[Enhet (bränsleförbrukning per km)]]=InputA1A3[[#This Row],[*DU/FU (EF A4) för valt drivmedel (schablon)]],AND(InputA1A3[[#This Row],[Enhet (bränsleförbrukning per km)]]<>InputA1A3[[#This Row],[*DU/FU (EF A4) för valt drivmedel (schablon)]],ISNUMBER(InputA1A3[[#This Row],[Omräkningsfaktor (A4), (vid behov, värde eller formel)]]))),TRUE(),FALSE()))","v":""},{"$f":"IF(InputA1A3[[#This Row],[Enhet (bränsleförbrukning per km)]] =InputA1A3[[#This Row],[*DU/FU (EF A4) för valt drivmedel (schablon)]],TRUE,IF(ISBLANK(InputA1A3[[#This Row],[Omräkningsfaktor (A4), (vid behov, värde eller formel)]]),FALSE,TRUE))","v":true},{"$f":"IF(ISBLANK(InputA1A3[[#This Row],[EPD - EF A4]]),\"\",IF(ISBLANK(InputA1A3[[#This Row],[Omräkning till FU/DU (Skriv in värde, ej formel)]]),InputA1A3[[#This Row],[EPD - EF A4]]*InputA1A3[[#This Row],[Mängd A1A3]],InputA1A3[[#This Row],[Mängd A1A3]]*InputA1A3[[#This Row],[Omräkning till FU/DU (Skriv in värde, ej formel)]]*InputA1A3[[#This Row],[EPD - EF A4]]))","v":""},{"$f":"IF(ISBLANK(KontrollTabell[[#This Row],[True/False A4 - Alt 2]]),\"\",IF(KontrollTabell[[#This Row],[True/False A4 Enhet - Alt2]]=TRUE,InputA1A3[[#This Row],[Sträcka - totalt '[km'], (tur och retur, alla transporter)]]*InputA1A3[[#This Row],[(Bränsle-) Förbrukning per km]],\"Sen då\"))","v":0},{"$f":"SUM(KontrollTabell[[#This Row],[A4 - Resultat alt 1 '[kg']]:[A4 - Alt 2 - beräkning utsläpp]])","v":0},{"$f":"IF(ISBLANK(InputA1A3[[#This Row],[EPD - EF A4]]),FALSE,TRUE)","v":false},{"$f":"IFERROR(IF(KontrollTabell[[#This Row],[True/False A5]]=FALSE(),\"Enheter\",IF(ISBLANK(InputA1A3[[#This Row],[Omräkningsfaktor (A5.2) (ange värde), (vid behov)]]),InputA1A3[[#This Row],[Mängd (A5.2)]]*InputA1A3[[#This Row],[*EF (A5.2)\n'[kg CO₂-ekv.']]],InputA1A3[[#This Row],[Mängd (A5.2)]]*InputA1A3[[#This Row],[*EF (A5.2)\n'[kg CO₂-ekv.']]]*InputA1A3[[#This Row],[Omräkningsfaktor (A5.2) (ange värde), (vid behov)]])),0)","v":0},{"$f":"IF(OR(ISBLANK(InputA1A3[[#This Row],[Enhet för mängd (A5.2)]]),ISBLANK(InputA1A3[[#This Row],[*DU/FU (EF A5.2)]])),\"\",IF(OR(InputA1A3[[#This Row],[Enhet för mängd (A5.2)]]=InputA1A3[[#This Row],[*DU/FU (EF A5.2)]],AND(InputA1A3[[#This Row],[Enhet för mängd (A5.2)]]<>InputA1A3[[#This Row],[*DU/FU (EF A5.2)]],ISNUMBER(InputA1A3[[#This Row],[Omräkningsfaktor (A5.2) (ange värde), (vid behov)]]))),TRUE,FALSE))","v":""},{"$f":"IF(InputA1A3[[#This Row],[Enhet för mängd (A5.2)]] = InputA1A3[[#This Row],[*DU/FU (EF A5.2)]], TRUE, FALSE)","v":true},{"$f":"IF(OR(ISBLANK(InputA1A3[[#This Row],[Kategori\n(egen kategorisering)]])=FALSE,ISBLANK(InputA1A3[[#This Row],[Anläggningsdel\n]]))=FALSE,TRUE,FALSE)","v":false},{"$f":"IF(ISBLANK(InputA1A3[[#This Row],[Anläggningsdel\n]]),\"\",IF(KontrollTabell[[#This Row],[TRUE/FALSE om kategori saknas.]] =FALSE,InputA1A3[[#This Row],[Kategori\n(egen kategorisering)]],\"Kategori saknas\"))","v":""}]
[null,null,null,null,null,null,null,null,null,{"$f":"IF(ISBLANK(InputA1A3[[#This Row],[Anläggningsdel\n]]),\"\",IF(KontrollTabell[[#This Row],[True/False A1A3 Enhet]]=TRUE, \"\", InputA1A3[[#This Row],[FU/DU (EF A1A3)]] & \"/\" & InputA1A3[[#This Row],[Enhet Mängd (A1A3)]]))","v":""},null,null,null,null,{"$f":"IF(ISBLANK(InputA1A3[[#This Row],[EPD - EF A4]]),\"\",InputA1A3[[#This Row],[FU/DU (EF A1A3)]])","v":""},null,null,null,{"$f":"IFERROR(INDEX(TabellEFDrivmedel[],MATCH(InputA1A3[[#This Row],[Drivmedel (A4) (endast förval ur lista)]],TabellEFDrivmedel[Drivmedel],0),4),\"\")","v":""},null,null,null,{"$f":"IF(InputA1A3[[#This Row],[*DU/FU (EF A4) för valt drivmedel (schablon)]]=\"\",\"\",IF(KontrollTabell[[#This Row],[True/False A4 Enhet - Alt2]]=TRUE,\"\",IF(ISBLANK(InputA1A3[[#This Row],[*DU/FU (EF A4) för valt drivmedel (schablon)]]),,InputA1A3[[#This Row],[Enhet (bränsleförbrukning per km)]]& \"/\" & InputA1A3[[#This Row],[*DU/FU (EF A4) för valt drivmedel (schablon)]])))","v":""},null,null,null,null,null,null,null,{"$f":"IFERROR(INDEX(TabellEFDrivmedel[],MATCH(InputA1A3[[#This Row],[Drivmedel (A5.2)]],TabellEFDrivmedel[Drivmedel],0),2),\"\")","v":""},{"$f":"IFERROR(INDEX(TabellEFDrivmedel[],MATCH(InputA1A3[[#This Row],[Drivmedel (A5.2)]],TabellEFDrivmedel[Drivmedel],0),4),\"\")","v":""},{"$f":"IF(KontrollTabell[[#This Row],[True/False A5 Enhet]]=TRUE, \"\", InputA1A3[[#This Row],[*DU/FU (EF A5.2)]] & \"/\" & InputA1A3[[#This Row],[Enhet för mängd (A5.2)]])","v":""},null,null,null,null,null,null,null,null,null,null,null,null,null,null,null,null,null,null,null,null,null,null,null,null,null,null,null,null,null,null,null,null,null,null,null,null,null,null,null,null,{"$f":"IF(ISBLANK(InputA1A3[[#This Row],[Anläggningsdel\n]]),FALSE,TRUE)","v":false},{"$f":"IF(ISBLANK(InputA1A3[[#This Row],[Anläggningsdel\n]]),\"\",IF(InputA1A3[[#This Row],[Enhet Mängd (A1A3)]] = InputA1A3[[#This Row],[FU/DU (EF A1A3)]], TRUE, FALSE))","v":""},{"$f":"IF(KontrollTabell[[#This Row],[Finns anläggningsdel-namn.]]=FALSE,\"\",IF(KontrollTabell[[#This Row],[True/False A1A3 Enhet]]=TRUE,TRUE,IF(ISBLANK(InputA1A3[[#This Row],[Omräkning till FU/DU (Skriv in värde, ej formel)]]),FALSE,TRUE)))","v":""},{"$f":"IF(KontrollTabell[[#This Row],[Finns anläggningsdel-namn.]]=FALSE,,IF(KontrollTabell[[#This Row],[True/False A1A3 Enhet]]=TRUE,InputA1A3[[#This Row],[Mängd A1A3]]*InputA1A3[[#This Row],[EF A1A3 '[kg CO₂-ekv.']]],IF(KontrollTabell[[#This Row],[True/False A1A3 om A1A3 kan beräknas]]=TRUE,InputA1A3[[#This Row],[Mängd A1A3]]*InputA1A3[[#This Row],[EF A1A3 '[kg CO₂-ekv.']]]*InputA1A3[[#This Row],[Omräkning till FU/DU (Skriv in värde, ej formel)]],\"Värde Behövs\")))","v":0},{"$f":"IF(ISBLANK(InputA1A3[[#This Row],[Anläggningsdel\n]]),\"\",IF(ISBLANK(InputA1A3[[#This Row],[EPD - EF A4]]),FALSE,TRUE))","v":""},{"$f":"IF(OR(ISBLANK(InputA1A3[[#This Row],[Enhet (bränsleförbrukning per km)]]),ISBLANK(InputA1A3[[#This Row],[*DU/FU (EF A4) för valt drivmedel (schablon)]])),\"\",IF(OR(InputA1A3[[#This Row],[Enhet (bränsleförbrukning per km)]]=InputA1A3[[#This Row],[*DU/FU (EF A4) för valt drivmedel (schablon)]],AND(InputA1A3[[#This Row],[Enhet (bränsleförbrukning per km)]]<>InputA1A3[[#This Row],[*DU/FU (EF A4) för valt drivmedel (schablon)]],ISNUMBER(InputA1A3[[#This Row],[Omräkningsfaktor (A4), (vid behov, värde eller formel)]]))),TRUE(),FALSE()))","v":""},{"$f":"IF(InputA1A3[[#This Row],[Enhet (bränsleförbrukning per km)]] =InputA1A3[[#This Row],[*DU/FU (EF A4) för valt drivmedel (schablon)]],TRUE,IF(ISBLANK(InputA1A3[[#This Row],[Omräkningsfaktor (A4), (vid behov, värde eller formel)]]),FALSE,TRUE))","v":true},{"$f":"IF(ISBLANK(InputA1A3[[#This Row],[EPD - EF A4]]),\"\",IF(ISBLANK(InputA1A3[[#This Row],[Omräkning till FU/DU (Skriv in värde, ej formel)]]),InputA1A3[[#This Row],[EPD - EF A4]]*InputA1A3[[#This Row],[Mängd A1A3]],InputA1A3[[#This Row],[Mängd A1A3]]*InputA1A3[[#This Row],[Omräkning till FU/DU (Skriv in värde, ej formel)]]*InputA1A3[[#This Row],[EPD - EF A4]]))","v":""},{"$f":"IF(ISBLANK(KontrollTabell[[#This Row],[True/False A4 - Alt 2]]),\"\",IF(KontrollTabell[[#This Row],[True/False A4 Enhet - Alt2]]=TRUE,InputA1A3[[#This Row],[Sträcka - totalt '[km'], (tur och retur, alla transporter)]]*InputA1A3[[#This Row],[(Bränsle-) Förbrukning per km]],\"Sen då\"))","v":0},{"$f":"SUM(KontrollTabell[[#This Row],[A4 - Resultat alt 1 '[kg']]:[A4 - Alt 2 - beräkning utsläpp]])","v":0},{"$f":"IF(ISBLANK(InputA1A3[[#This Row],[EPD - EF A4]]),FALSE,TRUE)","v":false},{"$f":"IFERROR(IF(KontrollTabell[[#This Row],[True/False A5]]=FALSE(),\"Enheter\",IF(ISBLANK(InputA1A3[[#This Row],[Omräkningsfaktor (A5.2) (ange värde), (vid behov)]]),InputA1A3[[#This Row],[Mängd (A5.2)]]*InputA1A3[[#This Row],[*EF (A5.2)\n'[kg CO₂-ekv.']]],InputA1A3[[#This Row],[Mängd (A5.2)]]*InputA1A3[[#This Row],[*EF (A5.2)\n'[kg CO₂-ekv.']]]*InputA1A3[[#This Row],[Omräkningsfaktor (A5.2) (ange värde), (vid behov)]])),0)","v":0},{"$f":"IF(OR(ISBLANK(InputA1A3[[#This Row],[Enhet för mängd (A5.2)]]),ISBLANK(InputA1A3[[#This Row],[*DU/FU (EF A5.2)]])),\"\",IF(OR(InputA1A3[[#This Row],[Enhet för mängd (A5.2)]]=InputA1A3[[#This Row],[*DU/FU (EF A5.2)]],AND(InputA1A3[[#This Row],[Enhet för mängd (A5.2)]]<>InputA1A3[[#This Row],[*DU/FU (EF A5.2)]],ISNUMBER(InputA1A3[[#This Row],[Omräkningsfaktor (A5.2) (ange värde), (vid behov)]]))),TRUE,FALSE))","v":""},{"$f":"IF(InputA1A3[[#This Row],[Enhet för mängd (A5.2)]] = InputA1A3[[#This Row],[*DU/FU (EF A5.2)]], TRUE, FALSE)","v":true},{"$f":"IF(OR(ISBLANK(InputA1A3[[#This Row],[Kategori\n(egen kategorisering)]])=FALSE,ISBLANK(InputA1A3[[#This Row],[Anläggningsdel\n]]))=FALSE,TRUE,FALSE)","v":false},{"$f":"IF(ISBLANK(InputA1A3[[#This Row],[Anläggningsdel\n]]),\"\",IF(KontrollTabell[[#This Row],[TRUE/FALSE om kategori saknas.]] =FALSE,InputA1A3[[#This Row],[Kategori\n(egen kategorisering)]],\"Kategori saknas\"))","v":""}]
[null,null,null,null,null,null,null,null,null,{"$f":"IF(ISBLANK(InputA1A3[[#This Row],[Anläggningsdel\n]]),\"\",IF(KontrollTabell[[#This Row],[True/False A1A3 Enhet]]=TRUE, \"\", InputA1A3[[#This Row],[FU/DU (EF A1A3)]] & \"/\" & InputA1A3[[#This Row],[Enhet Mängd (A1A3)]]))","v":""},null,null,null,null,{"$f":"IF(ISBLANK(InputA1A3[[#This Row],[EPD - EF A4]]),\"\",InputA1A3[[#This Row],[FU/DU (EF A1A3)]])","v":""},null,null,null,{"$f":"IFERROR(INDEX(TabellEFDrivmedel[],MATCH(InputA1A3[[#This Row],[Drivmedel (A4) (endast förval ur lista)]],TabellEFDrivmedel[Drivmedel],0),4),\"\")","v":""},null,null,null,{"$f":"IF(InputA1A3[[#This Row],[*DU/FU (EF A4) för valt drivmedel (schablon)]]=\"\",\"\",IF(KontrollTabell[[#This Row],[True/False A4 Enhet - Alt2]]=TRUE,\"\",IF(ISBLANK(InputA1A3[[#This Row],[*DU/FU (EF A4) för valt drivmedel (schablon)]]),,InputA1A3[[#This Row],[Enhet (bränsleförbrukning per km)]]& \"/\" & InputA1A3[[#This Row],[*DU/FU (EF A4) för valt drivmedel (schablon)]])))","v":""},null,null,null,null,null,null,null,{"$f":"IFERROR(INDEX(TabellEFDrivmedel[],MATCH(InputA1A3[[#This Row],[Drivmedel (A5.2)]],TabellEFDrivmedel[Drivmedel],0),2),\"\")","v":""},{"$f":"IFERROR(INDEX(TabellEFDrivmedel[],MATCH(InputA1A3[[#This Row],[Drivmedel (A5.2)]],TabellEFDrivmedel[Drivmedel],0),4),\"\")","v":""},{"$f":"IF(KontrollTabell[[#This Row],[True/False A5 Enhet]]=TRUE, \"\", InputA1A3[[#This Row],[*DU/FU (EF A5.2)]] & \"/\" & InputA1A3[[#This Row],[Enhet för mängd (A5.2)]])","v":""},null,null,null,null,null,null,null,null,null,null,null,null,null,null,null,null,null,null,null,null,null,null,null,null,null,null,null,null,null,null,null,null,null,null,null,null,null,null,null,null,{"$f":"IF(ISBLANK(InputA1A3[[#This Row],[Anläggningsdel\n]]),FALSE,TRUE)","v":false},{"$f":"IF(ISBLANK(InputA1A3[[#This Row],[Anläggningsdel\n]]),\"\",IF(InputA1A3[[#This Row],[Enhet Mängd (A1A3)]] = InputA1A3[[#This Row],[FU/DU (EF A1A3)]], TRUE, FALSE))","v":""},{"$f":"IF(KontrollTabell[[#This Row],[Finns anläggningsdel-namn.]]=FALSE,\"\",IF(KontrollTabell[[#This Row],[True/False A1A3 Enhet]]=TRUE,TRUE,IF(ISBLANK(InputA1A3[[#This Row],[Omräkning till FU/DU (Skriv in värde, ej formel)]]),FALSE,TRUE)))","v":""},{"$f":"IF(KontrollTabell[[#This Row],[Finns anläggningsdel-namn.]]=FALSE,,IF(KontrollTabell[[#This Row],[True/False A1A3 Enhet]]=TRUE,InputA1A3[[#This Row],[Mängd A1A3]]*InputA1A3[[#This Row],[EF A1A3 '[kg CO₂-ekv.']]],IF(KontrollTabell[[#This Row],[True/False A1A3 om A1A3 kan beräknas]]=TRUE,InputA1A3[[#This Row],[Mängd A1A3]]*InputA1A3[[#This Row],[EF A1A3 '[kg CO₂-ekv.']]]*InputA1A3[[#This Row],[Omräkning till FU/DU (Skriv in värde, ej formel)]],\"Värde Behövs\")))","v":0},{"$f":"IF(ISBLANK(InputA1A3[[#This Row],[Anläggningsdel\n]]),\"\",IF(ISBLANK(InputA1A3[[#This Row],[EPD - EF A4]]),FALSE,TRUE))","v":""},{"$f":"IF(OR(ISBLANK(InputA1A3[[#This Row],[Enhet (bränsleförbrukning per km)]]),ISBLANK(InputA1A3[[#This Row],[*DU/FU (EF A4) för valt drivmedel (schablon)]])),\"\",IF(OR(InputA1A3[[#This Row],[Enhet (bränsleförbrukning per km)]]=InputA1A3[[#This Row],[*DU/FU (EF A4) för valt drivmedel (schablon)]],AND(InputA1A3[[#This Row],[Enhet (bränsleförbrukning per km)]]<>InputA1A3[[#This Row],[*DU/FU (EF A4) för valt drivmedel (schablon)]],ISNUMBER(InputA1A3[[#This Row],[Omräkningsfaktor (A4), (vid behov, värde eller formel)]]))),TRUE(),FALSE()))","v":""},{"$f":"IF(InputA1A3[[#This Row],[Enhet (bränsleförbrukning per km)]] =InputA1A3[[#This Row],[*DU/FU (EF A4) för valt drivmedel (schablon)]],TRUE,IF(ISBLANK(InputA1A3[[#This Row],[Omräkningsfaktor (A4), (vid behov, värde eller formel)]]),FALSE,TRUE))","v":true},{"$f":"IF(ISBLANK(InputA1A3[[#This Row],[EPD - EF A4]]),\"\",IF(ISBLANK(InputA1A3[[#This Row],[Omräkning till FU/DU (Skriv in värde, ej formel)]]),InputA1A3[[#This Row],[EPD - EF A4]]*InputA1A3[[#This Row],[Mängd A1A3]],InputA1A3[[#This Row],[Mängd A1A3]]*InputA1A3[[#This Row],[Omräkning till FU/DU (Skriv in värde, ej formel)]]*InputA1A3[[#This Row],[EPD - EF A4]]))","v":""},{"$f":"IF(ISBLANK(KontrollTabell[[#This Row],[True/False A4 - Alt 2]]),\"\",IF(KontrollTabell[[#This Row],[True/False A4 Enhet - Alt2]]=TRUE,InputA1A3[[#This Row],[Sträcka - totalt '[km'], (tur och retur, alla transporter)]]*InputA1A3[[#This Row],[(Bränsle-) Förbrukning per km]],\"Sen då\"))","v":0},{"$f":"SUM(KontrollTabell[[#This Row],[A4 - Resultat alt 1 '[kg']]:[A4 - Alt 2 - beräkning utsläpp]])","v":0},{"$f":"IF(ISBLANK(InputA1A3[[#This Row],[EPD - EF A4]]),FALSE,TRUE)","v":false},{"$f":"IFERROR(IF(KontrollTabell[[#This Row],[True/False A5]]=FALSE(),\"Enheter\",IF(ISBLANK(InputA1A3[[#This Row],[Omräkningsfaktor (A5.2) (ange värde), (vid behov)]]),InputA1A3[[#This Row],[Mängd (A5.2)]]*InputA1A3[[#This Row],[*EF (A5.2)\n'[kg CO₂-ekv.']]],InputA1A3[[#This Row],[Mängd (A5.2)]]*InputA1A3[[#This Row],[*EF (A5.2)\n'[kg CO₂-ekv.']]]*InputA1A3[[#This Row],[Omräkningsfaktor (A5.2) (ange värde), (vid behov)]])),0)","v":0},{"$f":"IF(OR(ISBLANK(InputA1A3[[#This Row],[Enhet för mängd (A5.2)]]),ISBLANK(InputA1A3[[#This Row],[*DU/FU (EF A5.2)]])),\"\",IF(OR(InputA1A3[[#This Row],[Enhet för mängd (A5.2)]]=InputA1A3[[#This Row],[*DU/FU (EF A5.2)]],AND(InputA1A3[[#This Row],[Enhet för mängd (A5.2)]]<>InputA1A3[[#This Row],[*DU/FU (EF A5.2)]],ISNUMBER(InputA1A3[[#This Row],[Omräkningsfaktor (A5.2) (ange värde), (vid behov)]]))),TRUE,FALSE))","v":""},{"$f":"IF(InputA1A3[[#This Row],[Enhet för mängd (A5.2)]] = InputA1A3[[#This Row],[*DU/FU (EF A5.2)]], TRUE, FALSE)","v":true},{"$f":"IF(OR(ISBLANK(InputA1A3[[#This Row],[Kategori\n(egen kategorisering)]])=FALSE,ISBLANK(InputA1A3[[#This Row],[Anläggningsdel\n]]))=FALSE,TRUE,FALSE)","v":false},{"$f":"IF(ISBLANK(InputA1A3[[#This Row],[Anläggningsdel\n]]),\"\",IF(KontrollTabell[[#This Row],[TRUE/FALSE om kategori saknas.]] =FALSE,InputA1A3[[#This Row],[Kategori\n(egen kategorisering)]],\"Kategori saknas\"))","v":""}]
[null,null,null,null,null,null,null,null,null,{"$f":"IF(ISBLANK(InputA1A3[[#This Row],[Anläggningsdel\n]]),\"\",IF(KontrollTabell[[#This Row],[True/False A1A3 Enhet]]=TRUE, \"\", InputA1A3[[#This Row],[FU/DU (EF A1A3)]] & \"/\" & InputA1A3[[#This Row],[Enhet Mängd (A1A3)]]))","v":""},null,null,null,null,{"$f":"IF(ISBLANK(InputA1A3[[#This Row],[EPD - EF A4]]),\"\",InputA1A3[[#This Row],[FU/DU (EF A1A3)]])","v":""},null,null,null,{"$f":"IFERROR(INDEX(TabellEFDrivmedel[],MATCH(InputA1A3[[#This Row],[Drivmedel (A4) (endast förval ur lista)]],TabellEFDrivmedel[Drivmedel],0),4),\"\")","v":""},null,null,null,{"$f":"IF(InputA1A3[[#This Row],[*DU/FU (EF A4) för valt drivmedel (schablon)]]=\"\",\"\",IF(KontrollTabell[[#This Row],[True/False A4 Enhet - Alt2]]=TRUE,\"\",IF(ISBLANK(InputA1A3[[#This Row],[*DU/FU (EF A4) för valt drivmedel (schablon)]]),,InputA1A3[[#This Row],[Enhet (bränsleförbrukning per km)]]& \"/\" & InputA1A3[[#This Row],[*DU/FU (EF A4) för valt drivmedel (schablon)]])))","v":""},null,null,null,null,null,null,null,{"$f":"IFERROR(INDEX(TabellEFDrivmedel[],MATCH(InputA1A3[[#This Row],[Drivmedel (A5.2)]],TabellEFDrivmedel[Drivmedel],0),2),\"\")","v":""},{"$f":"IFERROR(INDEX(TabellEFDrivmedel[],MATCH(InputA1A3[[#This Row],[Drivmedel (A5.2)]],TabellEFDrivmedel[Drivmedel],0),4),\"\")","v":""},{"$f":"IF(KontrollTabell[[#This Row],[True/False A5 Enhet]]=TRUE, \"\", InputA1A3[[#This Row],[*DU/FU (EF A5.2)]] & \"/\" & InputA1A3[[#This Row],[Enhet för mängd (A5.2)]])","v":""},null,null,null,null,null,null,null,null,null,null,null,null,null,null,null,null,null,null,null,null,null,null,null,null,null,null,null,null,null,null,null,null,null,null,null,null,null,null,null,null,{"$f":"IF(ISBLANK(InputA1A3[[#This Row],[Anläggningsdel\n]]),FALSE,TRUE)","v":false},{"$f":"IF(ISBLANK(InputA1A3[[#This Row],[Anläggningsdel\n]]),\"\",IF(InputA1A3[[#This Row],[Enhet Mängd (A1A3)]] = InputA1A3[[#This Row],[FU/DU (EF A1A3)]], TRUE, FALSE))","v":""},{"$f":"IF(KontrollTabell[[#This Row],[Finns anläggningsdel-namn.]]=FALSE,\"\",IF(KontrollTabell[[#This Row],[True/False A1A3 Enhet]]=TRUE,TRUE,IF(ISBLANK(InputA1A3[[#This Row],[Omräkning till FU/DU (Skriv in värde, ej formel)]]),FALSE,TRUE)))","v":""},{"$f":"IF(KontrollTabell[[#This Row],[Finns anläggningsdel-namn.]]=FALSE,,IF(KontrollTabell[[#This Row],[True/False A1A3 Enhet]]=TRUE,InputA1A3[[#This Row],[Mängd A1A3]]*InputA1A3[[#This Row],[EF A1A3 '[kg CO₂-ekv.']]],IF(KontrollTabell[[#This Row],[True/False A1A3 om A1A3 kan beräknas]]=TRUE,InputA1A3[[#This Row],[Mängd A1A3]]*InputA1A3[[#This Row],[EF A1A3 '[kg CO₂-ekv.']]]*InputA1A3[[#This Row],[Omräkning till FU/DU (Skriv in värde, ej formel)]],\"Värde Behövs\")))","v":0},{"$f":"IF(ISBLANK(InputA1A3[[#This Row],[Anläggningsdel\n]]),\"\",IF(ISBLANK(InputA1A3[[#This Row],[EPD - EF A4]]),FALSE,TRUE))","v":""},{"$f":"IF(OR(ISBLANK(InputA1A3[[#This Row],[Enhet (bränsleförbrukning per km)]]),ISBLANK(InputA1A3[[#This Row],[*DU/FU (EF A4) för valt drivmedel (schablon)]])),\"\",IF(OR(InputA1A3[[#This Row],[Enhet (bränsleförbrukning per km)]]=InputA1A3[[#This Row],[*DU/FU (EF A4) för valt drivmedel (schablon)]],AND(InputA1A3[[#This Row],[Enhet (bränsleförbrukning per km)]]<>InputA1A3[[#This Row],[*DU/FU (EF A4) för valt drivmedel (schablon)]],ISNUMBER(InputA1A3[[#This Row],[Omräkningsfaktor (A4), (vid behov, värde eller formel)]]))),TRUE(),FALSE()))","v":""},{"$f":"IF(InputA1A3[[#This Row],[Enhet (bränsleförbrukning per km)]] =InputA1A3[[#This Row],[*DU/FU (EF A4) för valt drivmedel (schablon)]],TRUE,IF(ISBLANK(InputA1A3[[#This Row],[Omräkningsfaktor (A4), (vid behov, värde eller formel)]]),FALSE,TRUE))","v":true},{"$f":"IF(ISBLANK(InputA1A3[[#This Row],[EPD - EF A4]]),\"\",IF(ISBLANK(InputA1A3[[#This Row],[Omräkning till FU/DU (Skriv in värde, ej formel)]]),InputA1A3[[#This Row],[EPD - EF A4]]*InputA1A3[[#This Row],[Mängd A1A3]],InputA1A3[[#This Row],[Mängd A1A3]]*InputA1A3[[#This Row],[Omräkning till FU/DU (Skriv in värde, ej formel)]]*InputA1A3[[#This Row],[EPD - EF A4]]))","v":""},{"$f":"IF(ISBLANK(KontrollTabell[[#This Row],[True/False A4 - Alt 2]]),\"\",IF(KontrollTabell[[#This Row],[True/False A4 Enhet - Alt2]]=TRUE,InputA1A3[[#This Row],[Sträcka - totalt '[km'], (tur och retur, alla transporter)]]*InputA1A3[[#This Row],[(Bränsle-) Förbrukning per km]],\"Sen då\"))","v":0},{"$f":"SUM(KontrollTabell[[#This Row],[A4 - Resultat alt 1 '[kg']]:[A4 - Alt 2 - beräkning utsläpp]])","v":0},{"$f":"IF(ISBLANK(InputA1A3[[#This Row],[EPD - EF A4]]),FALSE,TRUE)","v":false},{"$f":"IFERROR(IF(KontrollTabell[[#This Row],[True/False A5]]=FALSE(),\"Enheter\",IF(ISBLANK(InputA1A3[[#This Row],[Omräkningsfaktor (A5.2) (ange värde), (vid behov)]]),InputA1A3[[#This Row],[Mängd (A5.2)]]*InputA1A3[[#This Row],[*EF (A5.2)\n'[kg CO₂-ekv.']]],InputA1A3[[#This Row],[Mängd (A5.2)]]*InputA1A3[[#This Row],[*EF (A5.2)\n'[kg CO₂-ekv.']]]*InputA1A3[[#This Row],[Omräkningsfaktor (A5.2) (ange värde), (vid behov)]])),0)","v":0},{"$f":"IF(OR(ISBLANK(InputA1A3[[#This Row],[Enhet för mängd (A5.2)]]),ISBLANK(InputA1A3[[#This Row],[*DU/FU (EF A5.2)]])),\"\",IF(OR(InputA1A3[[#This Row],[Enhet för mängd (A5.2)]]=InputA1A3[[#This Row],[*DU/FU (EF A5.2)]],AND(InputA1A3[[#This Row],[Enhet för mängd (A5.2)]]<>InputA1A3[[#This Row],[*DU/FU (EF A5.2)]],ISNUMBER(InputA1A3[[#This Row],[Omräkningsfaktor (A5.2) (ange värde), (vid behov)]]))),TRUE,FALSE))","v":""},{"$f":"IF(InputA1A3[[#This Row],[Enhet för mängd (A5.2)]] = InputA1A3[[#This Row],[*DU/FU (EF A5.2)]], TRUE, FALSE)","v":true},{"$f":"IF(OR(ISBLANK(InputA1A3[[#This Row],[Kategori\n(egen kategorisering)]])=FALSE,ISBLANK(InputA1A3[[#This Row],[Anläggningsdel\n]]))=FALSE,TRUE,FALSE)","v":false},{"$f":"IF(ISBLANK(InputA1A3[[#This Row],[Anläggningsdel\n]]),\"\",IF(KontrollTabell[[#This Row],[TRUE/FALSE om kategori saknas.]] =FALSE,InputA1A3[[#This Row],[Kategori\n(egen kategorisering)]],\"Kategori saknas\"))","v":""}]
[null,null,null,null,null,null,null,null,null,{"$f":"IF(ISBLANK(InputA1A3[[#This Row],[Anläggningsdel\n]]),\"\",IF(KontrollTabell[[#This Row],[True/False A1A3 Enhet]]=TRUE, \"\", InputA1A3[[#This Row],[FU/DU (EF A1A3)]] & \"/\" & InputA1A3[[#This Row],[Enhet Mängd (A1A3)]]))","v":""},null,null,null,null,{"$f":"IF(ISBLANK(InputA1A3[[#This Row],[EPD - EF A4]]),\"\",InputA1A3[[#This Row],[FU/DU (EF A1A3)]])","v":""},null,null,null,{"$f":"IFERROR(INDEX(TabellEFDrivmedel[],MATCH(InputA1A3[[#This Row],[Drivmedel (A4) (endast förval ur lista)]],TabellEFDrivmedel[Drivmedel],0),4),\"\")","v":""},null,null,null,{"$f":"IF(InputA1A3[[#This Row],[*DU/FU (EF A4) för valt drivmedel (schablon)]]=\"\",\"\",IF(KontrollTabell[[#This Row],[True/False A4 Enhet - Alt2]]=TRUE,\"\",IF(ISBLANK(InputA1A3[[#This Row],[*DU/FU (EF A4) för valt drivmedel (schablon)]]),,InputA1A3[[#This Row],[Enhet (bränsleförbrukning per km)]]& \"/\" & InputA1A3[[#This Row],[*DU/FU (EF A4) för valt drivmedel (schablon)]])))","v":""},null,null,null,null,null,null,null,{"$f":"IFERROR(INDEX(TabellEFDrivmedel[],MATCH(InputA1A3[[#This Row],[Drivmedel (A5.2)]],TabellEFDrivmedel[Drivmedel],0),2),\"\")","v":""},{"$f":"IFERROR(INDEX(TabellEFDrivmedel[],MATCH(InputA1A3[[#This Row],[Drivmedel (A5.2)]],TabellEFDrivmedel[Drivmedel],0),4),\"\")","v":""},{"$f":"IF(KontrollTabell[[#This Row],[True/False A5 Enhet]]=TRUE, \"\", InputA1A3[[#This Row],[*DU/FU (EF A5.2)]] & \"/\" & InputA1A3[[#This Row],[Enhet för mängd (A5.2)]])","v":""},null,null,null,null,null,null,null,null,null,null,null,null,null,null,null,null,null,null,null,null,null,null,null,null,null,null,null,null,null,null,null,null,null,null,null,null,null,null,null,null,{"$f":"IF(ISBLANK(InputA1A3[[#This Row],[Anläggningsdel\n]]),FALSE,TRUE)","v":false},{"$f":"IF(ISBLANK(InputA1A3[[#This Row],[Anläggningsdel\n]]),\"\",IF(InputA1A3[[#This Row],[Enhet Mängd (A1A3)]] = InputA1A3[[#This Row],[FU/DU (EF A1A3)]], TRUE, FALSE))","v":""},{"$f":"IF(KontrollTabell[[#This Row],[Finns anläggningsdel-namn.]]=FALSE,\"\",IF(KontrollTabell[[#This Row],[True/False A1A3 Enhet]]=TRUE,TRUE,IF(ISBLANK(InputA1A3[[#This Row],[Omräkning till FU/DU (Skriv in värde, ej formel)]]),FALSE,TRUE)))","v":""},{"$f":"IF(KontrollTabell[[#This Row],[Finns anläggningsdel-namn.]]=FALSE,,IF(KontrollTabell[[#This Row],[True/False A1A3 Enhet]]=TRUE,InputA1A3[[#This Row],[Mängd A1A3]]*InputA1A3[[#This Row],[EF A1A3 '[kg CO₂-ekv.']]],IF(KontrollTabell[[#This Row],[True/False A1A3 om A1A3 kan beräknas]]=TRUE,InputA1A3[[#This Row],[Mängd A1A3]]*InputA1A3[[#This Row],[EF A1A3 '[kg CO₂-ekv.']]]*InputA1A3[[#This Row],[Omräkning till FU/DU (Skriv in värde, ej formel)]],\"Värde Behövs\")))","v":0},{"$f":"IF(ISBLANK(InputA1A3[[#This Row],[Anläggningsdel\n]]),\"\",IF(ISBLANK(InputA1A3[[#This Row],[EPD - EF A4]]),FALSE,TRUE))","v":""},{"$f":"IF(OR(ISBLANK(InputA1A3[[#This Row],[Enhet (bränsleförbrukning per km)]]),ISBLANK(InputA1A3[[#This Row],[*DU/FU (EF A4) för valt drivmedel (schablon)]])),\"\",IF(OR(InputA1A3[[#This Row],[Enhet (bränsleförbrukning per km)]]=InputA1A3[[#This Row],[*DU/FU (EF A4) för valt drivmedel (schablon)]],AND(InputA1A3[[#This Row],[Enhet (bränsleförbrukning per km)]]<>InputA1A3[[#This Row],[*DU/FU (EF A4) för valt drivmedel (schablon)]],ISNUMBER(InputA1A3[[#This Row],[Omräkningsfaktor (A4), (vid behov, värde eller formel)]]))),TRUE(),FALSE()))","v":""},{"$f":"IF(InputA1A3[[#This Row],[Enhet (bränsleförbrukning per km)]] =InputA1A3[[#This Row],[*DU/FU (EF A4) för valt drivmedel (schablon)]],TRUE,IF(ISBLANK(InputA1A3[[#This Row],[Omräkningsfaktor (A4), (vid behov, värde eller formel)]]),FALSE,TRUE))","v":true},{"$f":"IF(ISBLANK(InputA1A3[[#This Row],[EPD - EF A4]]),\"\",IF(ISBLANK(InputA1A3[[#This Row],[Omräkning till FU/DU (Skriv in värde, ej formel)]]),InputA1A3[[#This Row],[EPD - EF A4]]*InputA1A3[[#This Row],[Mängd A1A3]],InputA1A3[[#This Row],[Mängd A1A3]]*InputA1A3[[#This Row],[Omräkning till FU/DU (Skriv in värde, ej formel)]]*InputA1A3[[#This Row],[EPD - EF A4]]))","v":""},{"$f":"IF(ISBLANK(KontrollTabell[[#This Row],[True/False A4 - Alt 2]]),\"\",IF(KontrollTabell[[#This Row],[True/False A4 Enhet - Alt2]]=TRUE,InputA1A3[[#This Row],[Sträcka - totalt '[km'], (tur och retur, alla transporter)]]*InputA1A3[[#This Row],[(Bränsle-) Förbrukning per km]],\"Sen då\"))","v":0},{"$f":"SUM(KontrollTabell[[#This Row],[A4 - Resultat alt 1 '[kg']]:[A4 - Alt 2 - beräkning utsläpp]])","v":0},{"$f":"IF(ISBLANK(InputA1A3[[#This Row],[EPD - EF A4]]),ISBLANK(#REF!),)","v":false},{"$f":"IFERROR(IF(KontrollTabell[[#This Row],[True/False A5]]=FALSE(),\"Enheter\",IF(ISBLANK(InputA1A3[[#This Row],[Omräkningsfaktor (A5.2) (ange värde), (vid behov)]]),InputA1A3[[#This Row],[Mängd (A5.2)]]*InputA1A3[[#This Row],[*EF (A5.2)\n'[kg CO₂-ekv.']]],InputA1A3[[#This Row],[Mängd (A5.2)]]*InputA1A3[[#This Row],[*EF (A5.2)\n'[kg CO₂-ekv.']]]*InputA1A3[[#This Row],[Omräkningsfaktor (A5.2) (ange värde), (vid behov)]])),0)","v":0},{"$f":"IF(OR(ISBLANK(InputA1A3[[#This Row],[Enhet för mängd (A5.2)]]),ISBLANK(InputA1A3[[#This Row],[*DU/FU (EF A5.2)]])),\"\",IF(OR(InputA1A3[[#This Row],[Enhet för mängd (A5.2)]]=InputA1A3[[#This Row],[*DU/FU (EF A5.2)]],AND(InputA1A3[[#This Row],[Enhet för mängd (A5.2)]]<>InputA1A3[[#This Row],[*DU/FU (EF A5.2)]],ISNUMBER(InputA1A3[[#This Row],[Omräkningsfaktor (A5.2) (ange värde), (vid behov)]]))),TRUE,FALSE))","v":""},{"$f":"IF(InputA1A3[[#This Row],[Enhet för mängd (A5.2)]] = InputA1A3[[#This Row],[*DU/FU (EF A5.2)]], TRUE, FALSE)","v":true},{"$f":"IF(OR(ISBLANK(InputA1A3[[#This Row],[Kategori\n(egen kategorisering)]])=FALSE,ISBLANK(InputA1A3[[#This Row],[Anläggningsdel\n]]))=FALSE,TRUE,FALSE)","v":false},{"$f":"IF(ISBLANK(InputA1A3[[#This Row],[Anläggningsdel\n]]),\"\",IF(KontrollTabell[[#This Row],[TRUE/FALSE om kategori saknas.]] =FALSE,InputA1A3[[#This Row],[Kategori\n(egen kategorisering)]],\"Kategori saknas\"))","v":""}]
[null,null,null,null,null,null,null,null,null,{"$f":"IF(ISBLANK(InputA1A3[[#This Row],[Anläggningsdel\n]]),\"\",IF(KontrollTabell[[#This Row],[True/False A1A3 Enhet]]=TRUE, \"\", InputA1A3[[#This Row],[FU/DU (EF A1A3)]] & \"/\" & InputA1A3[[#This Row],[Enhet Mängd (A1A3)]]))","v":""},null,null,null,null,{"$f":"IF(ISBLANK(InputA1A3[[#This Row],[EPD - EF A4]]),\"\",InputA1A3[[#This Row],[FU/DU (EF A1A3)]])","v":""},null,null,null,{"$f":"IFERROR(INDEX(TabellEFDrivmedel[],MATCH(InputA1A3[[#This Row],[Drivmedel (A4) (endast förval ur lista)]],TabellEFDrivmedel[Drivmedel],0),4),\"\")","v":""},null,null,null,{"$f":"IF(InputA1A3[[#This Row],[*DU/FU (EF A4) för valt drivmedel (schablon)]]=\"\",\"\",IF(KontrollTabell[[#This Row],[True/False A4 Enhet - Alt2]]=TRUE,\"\",IF(ISBLANK(InputA1A3[[#This Row],[*DU/FU (EF A4) för valt drivmedel (schablon)]]),,InputA1A3[[#This Row],[Enhet (bränsleförbrukning per km)]]& \"/\" & InputA1A3[[#This Row],[*DU/FU (EF A4) för valt drivmedel (schablon)]])))","v":""},null,null,null,null,null,null,null,{"$f":"IFERROR(INDEX(TabellEFDrivmedel[],MATCH(InputA1A3[[#This Row],[Drivmedel (A5.2)]],TabellEFDrivmedel[Drivmedel],0),2),\"\")","v":""},{"$f":"IFERROR(INDEX(TabellEFDrivmedel[],MATCH(InputA1A3[[#This Row],[Drivmedel (A5.2)]],TabellEFDrivmedel[Drivmedel],0),4),\"\")","v":""},{"$f":"IF(KontrollTabell[[#This Row],[True/False A5 Enhet]]=TRUE, \"\", InputA1A3[[#This Row],[*DU/FU (EF A5.2)]] & \"/\" & InputA1A3[[#This Row],[Enhet för mängd (A5.2)]])","v":""},null,null,null,null,null,null,null,null,null,null,null,null,null,null,null,null,null,null,null,null,null,null,null,null,null,null,null,null,null,null,null,null,null,null,null,null,null,null,null,null,{"$f":"IF(ISBLANK(InputA1A3[[#This Row],[Anläggningsdel\n]]),FALSE,TRUE)","v":false},{"$f":"IF(ISBLANK(InputA1A3[[#This Row],[Anläggningsdel\n]]),\"\",IF(InputA1A3[[#This Row],[Enhet Mängd (A1A3)]] = InputA1A3[[#This Row],[FU/DU (EF A1A3)]], TRUE, FALSE))","v":""},{"$f":"IF(KontrollTabell[[#This Row],[Finns anläggningsdel-namn.]]=FALSE,\"\",IF(KontrollTabell[[#This Row],[True/False A1A3 Enhet]]=TRUE,TRUE,IF(ISBLANK(InputA1A3[[#This Row],[Omräkning till FU/DU (Skriv in värde, ej formel)]]),FALSE,TRUE)))","v":""},{"$f":"IF(KontrollTabell[[#This Row],[Finns anläggningsdel-namn.]]=FALSE,,IF(KontrollTabell[[#This Row],[True/False A1A3 Enhet]]=TRUE,InputA1A3[[#This Row],[Mängd A1A3]]*InputA1A3[[#This Row],[EF A1A3 '[kg CO₂-ekv.']]],IF(KontrollTabell[[#This Row],[True/False A1A3 om A1A3 kan beräknas]]=TRUE,InputA1A3[[#This Row],[Mängd A1A3]]*InputA1A3[[#This Row],[EF A1A3 '[kg CO₂-ekv.']]]*InputA1A3[[#This Row],[Omräkning till FU/DU (Skriv in värde, ej formel)]],\"Värde Behövs\")))","v":0},{"$f":"IF(ISBLANK(InputA1A3[[#This Row],[Anläggningsdel\n]]),\"\",IF(ISBLANK(InputA1A3[[#This Row],[EPD - EF A4]]),FALSE,TRUE))","v":""},{"$f":"IF(OR(ISBLANK(InputA1A3[[#This Row],[Enhet (bränsleförbrukning per km)]]),ISBLANK(InputA1A3[[#This Row],[*DU/FU (EF A4) för valt drivmedel (schablon)]])),\"\",IF(OR(InputA1A3[[#This Row],[Enhet (bränsleförbrukning per km)]]=InputA1A3[[#This Row],[*DU/FU (EF A4) för valt drivmedel (schablon)]],AND(InputA1A3[[#This Row],[Enhet (bränsleförbrukning per km)]]<>InputA1A3[[#This Row],[*DU/FU (EF A4) för valt drivmedel (schablon)]],ISNUMBER(InputA1A3[[#This Row],[Omräkningsfaktor (A4), (vid behov, värde eller formel)]]))),TRUE(),FALSE()))","v":""},{"$f":"IF(InputA1A3[[#This Row],[Enhet (bränsleförbrukning per km)]] =InputA1A3[[#This Row],[*DU/FU (EF A4) för valt drivmedel (schablon)]],TRUE,IF(ISBLANK(InputA1A3[[#This Row],[Omräkningsfaktor (A4), (vid behov, värde eller formel)]]),FALSE,TRUE))","v":true},{"$f":"IF(ISBLANK(InputA1A3[[#This Row],[EPD - EF A4]]),\"\",IF(ISBLANK(InputA1A3[[#This Row],[Omräkning till FU/DU (Skriv in värde, ej formel)]]),InputA1A3[[#This Row],[EPD - EF A4]]*InputA1A3[[#This Row],[Mängd A1A3]],InputA1A3[[#This Row],[Mängd A1A3]]*InputA1A3[[#This Row],[Omräkning till FU/DU (Skriv in värde, ej formel)]]*InputA1A3[[#This Row],[EPD - EF A4]]))","v":""},{"$f":"IF(ISBLANK(KontrollTabell[[#This Row],[True/False A4 - Alt 2]]),\"\",IF(KontrollTabell[[#This Row],[True/False A4 Enhet - Alt2]]=TRUE,InputA1A3[[#This Row],[Sträcka - totalt '[km'], (tur och retur, alla transporter)]]*InputA1A3[[#This Row],[(Bränsle-) Förbrukning per km]],\"Sen då\"))","v":0},{"$f":"SUM(KontrollTabell[[#This Row],[A4 - Resultat alt 1 '[kg']]:[A4 - Alt 2 - beräkning utsläpp]])","v":0},{"$f":"IF(ISBLANK(InputA1A3[[#This Row],[EPD - EF A4]]),ISBLANK(#REF!),)","v":false},{"$f":"IFERROR(IF(KontrollTabell[[#This Row],[True/False A5]]=FALSE(),\"Enheter\",IF(ISBLANK(InputA1A3[[#This Row],[Omräkningsfaktor (A5.2) (ange värde), (vid behov)]]),InputA1A3[[#This Row],[Mängd (A5.2)]]*InputA1A3[[#This Row],[*EF (A5.2)\n'[kg CO₂-ekv.']]],InputA1A3[[#This Row],[Mängd (A5.2)]]*InputA1A3[[#This Row],[*EF (A5.2)\n'[kg CO₂-ekv.']]]*InputA1A3[[#This Row],[Omräkningsfaktor (A5.2) (ange värde), (vid behov)]])),0)","v":0},{"$f":"IF(OR(ISBLANK(InputA1A3[[#This Row],[Enhet för mängd (A5.2)]]),ISBLANK(InputA1A3[[#This Row],[*DU/FU (EF A5.2)]])),\"\",IF(OR(InputA1A3[[#This Row],[Enhet för mängd (A5.2)]]=InputA1A3[[#This Row],[*DU/FU (EF A5.2)]],AND(InputA1A3[[#This Row],[Enhet för mängd (A5.2)]]<>InputA1A3[[#This Row],[*DU/FU (EF A5.2)]],ISNUMBER(InputA1A3[[#This Row],[Omräkningsfaktor (A5.2) (ange värde), (vid behov)]]))),TRUE,FALSE))","v":""},{"$f":"IF(InputA1A3[[#This Row],[Enhet för mängd (A5.2)]] = InputA1A3[[#This Row],[*DU/FU (EF A5.2)]], TRUE, FALSE)","v":true},{"$f":"IF(OR(ISBLANK(InputA1A3[[#This Row],[Kategori\n(egen kategorisering)]])=FALSE,ISBLANK(InputA1A3[[#This Row],[Anläggningsdel\n]]))=FALSE,TRUE,FALSE)","v":false},{"$f":"IF(ISBLANK(InputA1A3[[#This Row],[Anläggningsdel\n]]),\"\",IF(KontrollTabell[[#This Row],[TRUE/FALSE om kategori saknas.]] =FALSE,InputA1A3[[#This Row],[Kategori\n(egen kategorisering)]],\"Kategori saknas\"))","v":""}]
[null,null,null,null,null,null,null,null,null,{"$f":"IF(ISBLANK(InputA1A3[[#This Row],[Anläggningsdel\n]]),\"\",IF(KontrollTabell[[#This Row],[True/False A1A3 Enhet]]=TRUE, \"\", InputA1A3[[#This Row],[FU/DU (EF A1A3)]] & \"/\" & InputA1A3[[#This Row],[Enhet Mängd (A1A3)]]))","v":""},null,null,null,null,{"$f":"IF(ISBLANK(InputA1A3[[#This Row],[EPD - EF A4]]),\"\",InputA1A3[[#This Row],[FU/DU (EF A1A3)]])","v":""},null,null,null,{"$f":"IFERROR(INDEX(TabellEFDrivmedel[],MATCH(InputA1A3[[#This Row],[Drivmedel (A4) (endast förval ur lista)]],TabellEFDrivmedel[Drivmedel],0),4),\"\")","v":""},null,null,null,{"$f":"IF(InputA1A3[[#This Row],[*DU/FU (EF A4) för valt drivmedel (schablon)]]=\"\",\"\",IF(KontrollTabell[[#This Row],[True/False A4 Enhet - Alt2]]=TRUE,\"\",IF(ISBLANK(InputA1A3[[#This Row],[*DU/FU (EF A4) för valt drivmedel (schablon)]]),,InputA1A3[[#This Row],[Enhet (bränsleförbrukning per km)]]& \"/\" & InputA1A3[[#This Row],[*DU/FU (EF A4) för valt drivmedel (schablon)]])))","v":""},null,null,null,null,null,null,null,{"$f":"IFERROR(INDEX(TabellEFDrivmedel[],MATCH(InputA1A3[[#This Row],[Drivmedel (A5.2)]],TabellEFDrivmedel[Drivmedel],0),2),\"\")","v":""},{"$f":"IFERROR(INDEX(TabellEFDrivmedel[],MATCH(InputA1A3[[#This Row],[Drivmedel (A5.2)]],TabellEFDrivmedel[Drivmedel],0),4),\"\")","v":""},{"$f":"IF(KontrollTabell[[#This Row],[True/False A5 Enhet]]=TRUE, \"\", InputA1A3[[#This Row],[*DU/FU (EF A5.2)]] & \"/\" & InputA1A3[[#This Row],[Enhet för mängd (A5.2)]])","v":""},null,null,null,null,null,null,null,null,null,null,null,null,null,null,null,null,null,null,null,null,null,null,null,null,null,null,null,null,null,null,null,null,null,null,null,null,null,null,null,null,{"$f":"IF(ISBLANK(InputA1A3[[#This Row],[Anläggningsdel\n]]),FALSE,TRUE)","v":false},{"$f":"IF(ISBLANK(InputA1A3[[#This Row],[Anläggningsdel\n]]),\"\",IF(InputA1A3[[#This Row],[Enhet Mängd (A1A3)]] = InputA1A3[[#This Row],[FU/DU (EF A1A3)]], TRUE, FALSE))","v":""},{"$f":"IF(KontrollTabell[[#This Row],[Finns anläggningsdel-namn.]]=FALSE,\"\",IF(KontrollTabell[[#This Row],[True/False A1A3 Enhet]]=TRUE,TRUE,IF(ISBLANK(InputA1A3[[#This Row],[Omräkning till FU/DU (Skriv in värde, ej formel)]]),FALSE,TRUE)))","v":""},{"$f":"IF(KontrollTabell[[#This Row],[Finns anläggningsdel-namn.]]=FALSE,,IF(KontrollTabell[[#This Row],[True/False A1A3 Enhet]]=TRUE,InputA1A3[[#This Row],[Mängd A1A3]]*InputA1A3[[#This Row],[EF A1A3 '[kg CO₂-ekv.']]],IF(KontrollTabell[[#This Row],[True/False A1A3 om A1A3 kan beräknas]]=TRUE,InputA1A3[[#This Row],[Mängd A1A3]]*InputA1A3[[#This Row],[EF A1A3 '[kg CO₂-ekv.']]]*InputA1A3[[#This Row],[Omräkning till FU/DU (Skriv in värde, ej formel)]],\"Värde Behövs\")))","v":0},{"$f":"IF(ISBLANK(InputA1A3[[#This Row],[Anläggningsdel\n]]),\"\",IF(ISBLANK(InputA1A3[[#This Row],[EPD - EF A4]]),FALSE,TRUE))","v":""},{"$f":"IF(OR(ISBLANK(InputA1A3[[#This Row],[Enhet (bränsleförbrukning per km)]]),ISBLANK(InputA1A3[[#This Row],[*DU/FU (EF A4) för valt drivmedel (schablon)]])),\"\",IF(OR(InputA1A3[[#This Row],[Enhet (bränsleförbrukning per km)]]=InputA1A3[[#This Row],[*DU/FU (EF A4) för valt drivmedel (schablon)]],AND(InputA1A3[[#This Row],[Enhet (bränsleförbrukning per km)]]<>InputA1A3[[#This Row],[*DU/FU (EF A4) för valt drivmedel (schablon)]],ISNUMBER(InputA1A3[[#This Row],[Omräkningsfaktor (A4), (vid behov, värde eller formel)]]))),TRUE(),FALSE()))","v":""},{"$f":"IF(InputA1A3[[#This Row],[Enhet (bränsleförbrukning per km)]] =InputA1A3[[#This Row],[*DU/FU (EF A4) för valt drivmedel (schablon)]],TRUE,IF(ISBLANK(InputA1A3[[#This Row],[Omräkningsfaktor (A4), (vid behov, värde eller formel)]]),FALSE,TRUE))","v":true},{"$f":"IF(ISBLANK(InputA1A3[[#This Row],[EPD - EF A4]]),\"\",IF(ISBLANK(InputA1A3[[#This Row],[Omräkning till FU/DU (Skriv in värde, ej formel)]]),InputA1A3[[#This Row],[EPD - EF A4]]*InputA1A3[[#This Row],[Mängd A1A3]],InputA1A3[[#This Row],[Mängd A1A3]]*InputA1A3[[#This Row],[Omräkning till FU/DU (Skriv in värde, ej formel)]]*InputA1A3[[#This Row],[EPD - EF A4]]))","v":""},{"$f":"IF(ISBLANK(KontrollTabell[[#This Row],[True/False A4 - Alt 2]]),\"\",IF(KontrollTabell[[#This Row],[True/False A4 Enhet - Alt2]]=TRUE,InputA1A3[[#This Row],[Sträcka - totalt '[km'], (tur och retur, alla transporter)]]*InputA1A3[[#This Row],[(Bränsle-) Förbrukning per km]],\"Sen då\"))","v":0},{"$f":"SUM(KontrollTabell[[#This Row],[A4 - Resultat alt 1 '[kg']]:[A4 - Alt 2 - beräkning utsläpp]])","v":0},{"$f":"IF(ISBLANK(InputA1A3[[#This Row],[EPD - EF A4]]),ISBLANK(#REF!),)","v":false},{"$f":"IFERROR(IF(KontrollTabell[[#This Row],[True/False A5]]=FALSE(),\"Enheter\",IF(ISBLANK(InputA1A3[[#This Row],[Omräkningsfaktor (A5.2) (ange värde), (vid behov)]]),InputA1A3[[#This Row],[Mängd (A5.2)]]*InputA1A3[[#This Row],[*EF (A5.2)\n'[kg CO₂-ekv.']]],InputA1A3[[#This Row],[Mängd (A5.2)]]*InputA1A3[[#This Row],[*EF (A5.2)\n'[kg CO₂-ekv.']]]*InputA1A3[[#This Row],[Omräkningsfaktor (A5.2) (ange värde), (vid behov)]])),0)","v":0},{"$f":"IF(OR(ISBLANK(InputA1A3[[#This Row],[Enhet för mängd (A5.2)]]),ISBLANK(InputA1A3[[#This Row],[*DU/FU (EF A5.2)]])),\"\",IF(OR(InputA1A3[[#This Row],[Enhet för mängd (A5.2)]]=InputA1A3[[#This Row],[*DU/FU (EF A5.2)]],AND(InputA1A3[[#This Row],[Enhet för mängd (A5.2)]]<>InputA1A3[[#This Row],[*DU/FU (EF A5.2)]],ISNUMBER(InputA1A3[[#This Row],[Omräkningsfaktor (A5.2) (ange värde), (vid behov)]]))),TRUE,FALSE))","v":""},{"$f":"IF(InputA1A3[[#This Row],[Enhet för mängd (A5.2)]] = InputA1A3[[#This Row],[*DU/FU (EF A5.2)]], TRUE, FALSE)","v":true},{"$f":"IF(OR(ISBLANK(InputA1A3[[#This Row],[Kategori\n(egen kategorisering)]])=FALSE,ISBLANK(InputA1A3[[#This Row],[Anläggningsdel\n]]))=FALSE,TRUE,FALSE)","v":false},{"$f":"IF(ISBLANK(InputA1A3[[#This Row],[Anläggningsdel\n]]),\"\",IF(KontrollTabell[[#This Row],[TRUE/FALSE om kategori saknas.]] =FALSE,InputA1A3[[#This Row],[Kategori\n(egen kategorisering)]],\"Kategori saknas\"))","v":""}]
[null,null,null,null,null,null,null,null,null,{"$f":"IF(ISBLANK(InputA1A3[[#This Row],[Anläggningsdel\n]]),\"\",IF(KontrollTabell[[#This Row],[True/False A1A3 Enhet]]=TRUE, \"\", InputA1A3[[#This Row],[FU/DU (EF A1A3)]] & \"/\" & InputA1A3[[#This Row],[Enhet Mängd (A1A3)]]))","v":""},null,null,null,null,{"$f":"IF(ISBLANK(InputA1A3[[#This Row],[EPD - EF A4]]),\"\",InputA1A3[[#This Row],[FU/DU (EF A1A3)]])","v":""},null,null,null,{"$f":"IFERROR(INDEX(TabellEFDrivmedel[],MATCH(InputA1A3[[#This Row],[Drivmedel (A4) (endast förval ur lista)]],TabellEFDrivmedel[Drivmedel],0),4),\"\")","v":""},null,null,null,{"$f":"IF(InputA1A3[[#This Row],[*DU/FU (EF A4) för valt drivmedel (schablon)]]=\"\",\"\",IF(KontrollTabell[[#This Row],[True/False A4 Enhet - Alt2]]=TRUE,\"\",IF(ISBLANK(InputA1A3[[#This Row],[*DU/FU (EF A4) för valt drivmedel (schablon)]]),,InputA1A3[[#This Row],[Enhet (bränsleförbrukning per km)]]& \"/\" & InputA1A3[[#This Row],[*DU/FU (EF A4) för valt drivmedel (schablon)]])))","v":""},null,null,null,null,null,null,null,{"$f":"IFERROR(INDEX(TabellEFDrivmedel[],MATCH(InputA1A3[[#This Row],[Drivmedel (A5.2)]],TabellEFDrivmedel[Drivmedel],0),2),\"\")","v":""},{"$f":"IFERROR(INDEX(TabellEFDrivmedel[],MATCH(InputA1A3[[#This Row],[Drivmedel (A5.2)]],TabellEFDrivmedel[Drivmedel],0),4),\"\")","v":""},{"$f":"IF(KontrollTabell[[#This Row],[True/False A5 Enhet]]=TRUE, \"\", InputA1A3[[#This Row],[*DU/FU (EF A5.2)]] & \"/\" & InputA1A3[[#This Row],[Enhet för mängd (A5.2)]])","v":""},null,null,null,null,null,null,null,null,null,null,null,null,null,null,null,null,null,null,null,null,null,null,null,null,null,null,null,null,null,null,null,null,null,null,null,null,null,null,null,null,{"$f":"IF(ISBLANK(InputA1A3[[#This Row],[Anläggningsdel\n]]),FALSE,TRUE)","v":false},{"$f":"IF(ISBLANK(InputA1A3[[#This Row],[Anläggningsdel\n]]),\"\",IF(InputA1A3[[#This Row],[Enhet Mängd (A1A3)]] = InputA1A3[[#This Row],[FU/DU (EF A1A3)]], TRUE, FALSE))","v":""},{"$f":"IF(KontrollTabell[[#This Row],[Finns anläggningsdel-namn.]]=FALSE,\"\",IF(KontrollTabell[[#This Row],[True/False A1A3 Enhet]]=TRUE,TRUE,IF(ISBLANK(InputA1A3[[#This Row],[Omräkning till FU/DU (Skriv in värde, ej formel)]]),FALSE,TRUE)))","v":""},{"$f":"IF(KontrollTabell[[#This Row],[Finns anläggningsdel-namn.]]=FALSE,,IF(KontrollTabell[[#This Row],[True/False A1A3 Enhet]]=TRUE,InputA1A3[[#This Row],[Mängd A1A3]]*InputA1A3[[#This Row],[EF A1A3 '[kg CO₂-ekv.']]],IF(KontrollTabell[[#This Row],[True/False A1A3 om A1A3 kan beräknas]]=TRUE,InputA1A3[[#This Row],[Mängd A1A3]]*InputA1A3[[#This Row],[EF A1A3 '[kg CO₂-ekv.']]]*InputA1A3[[#This Row],[Omräkning till FU/DU (Skriv in värde, ej formel)]],\"Värde Behövs\")))","v":0},{"$f":"IF(ISBLANK(InputA1A3[[#This Row],[Anläggningsdel\n]]),\"\",IF(ISBLANK(InputA1A3[[#This Row],[EPD - EF A4]]),FALSE,TRUE))","v":""},{"$f":"IF(OR(ISBLANK(InputA1A3[[#This Row],[Enhet (bränsleförbrukning per km)]]),ISBLANK(InputA1A3[[#This Row],[*DU/FU (EF A4) för valt drivmedel (schablon)]])),\"\",IF(OR(InputA1A3[[#This Row],[Enhet (bränsleförbrukning per km)]]=InputA1A3[[#This Row],[*DU/FU (EF A4) för valt drivmedel (schablon)]],AND(InputA1A3[[#This Row],[Enhet (bränsleförbrukning per km)]]<>InputA1A3[[#This Row],[*DU/FU (EF A4) för valt drivmedel (schablon)]],ISNUMBER(InputA1A3[[#This Row],[Omräkningsfaktor (A4), (vid behov, värde eller formel)]]))),TRUE(),FALSE()))","v":""},{"$f":"IF(InputA1A3[[#This Row],[Enhet (bränsleförbrukning per km)]] =InputA1A3[[#This Row],[*DU/FU (EF A4) för valt drivmedel (schablon)]],TRUE,IF(ISBLANK(InputA1A3[[#This Row],[Omräkningsfaktor (A4), (vid behov, värde eller formel)]]),FALSE,TRUE))","v":true},{"$f":"IF(ISBLANK(InputA1A3[[#This Row],[EPD - EF A4]]),\"\",IF(ISBLANK(InputA1A3[[#This Row],[Omräkning till FU/DU (Skriv in värde, ej formel)]]),InputA1A3[[#This Row],[EPD - EF A4]]*InputA1A3[[#This Row],[Mängd A1A3]],InputA1A3[[#This Row],[Mängd A1A3]]*InputA1A3[[#This Row],[Omräkning till FU/DU (Skriv in värde, ej formel)]]*InputA1A3[[#This Row],[EPD - EF A4]]))","v":""},{"$f":"IF(ISBLANK(KontrollTabell[[#This Row],[True/False A4 - Alt 2]]),\"\",IF(KontrollTabell[[#This Row],[True/False A4 Enhet - Alt2]]=TRUE,InputA1A3[[#This Row],[Sträcka - totalt '[km'], (tur och retur, alla transporter)]]*InputA1A3[[#This Row],[(Bränsle-) Förbrukning per km]],\"Sen då\"))","v":0},{"$f":"SUM(KontrollTabell[[#This Row],[A4 - Resultat alt 1 '[kg']]:[A4 - Alt 2 - beräkning utsläpp]])","v":0},{"$f":"IF(ISBLANK(InputA1A3[[#This Row],[EPD - EF A4]]),ISBLANK(#REF!),)","v":false},{"$f":"IFERROR(IF(KontrollTabell[[#This Row],[True/False A5]]=FALSE(),\"Enheter\",IF(ISBLANK(InputA1A3[[#This Row],[Omräkningsfaktor (A5.2) (ange värde), (vid behov)]]),InputA1A3[[#This Row],[Mängd (A5.2)]]*InputA1A3[[#This Row],[*EF (A5.2)\n'[kg CO₂-ekv.']]],InputA1A3[[#This Row],[Mängd (A5.2)]]*InputA1A3[[#This Row],[*EF (A5.2)\n'[kg CO₂-ekv.']]]*InputA1A3[[#This Row],[Omräkningsfaktor (A5.2) (ange värde), (vid behov)]])),0)","v":0},{"$f":"IF(OR(ISBLANK(InputA1A3[[#This Row],[Enhet för mängd (A5.2)]]),ISBLANK(InputA1A3[[#This Row],[*DU/FU (EF A5.2)]])),\"\",IF(OR(InputA1A3[[#This Row],[Enhet för mängd (A5.2)]]=InputA1A3[[#This Row],[*DU/FU (EF A5.2)]],AND(InputA1A3[[#This Row],[Enhet för mängd (A5.2)]]<>InputA1A3[[#This Row],[*DU/FU (EF A5.2)]],ISNUMBER(InputA1A3[[#This Row],[Omräkningsfaktor (A5.2) (ange värde), (vid behov)]]))),TRUE,FALSE))","v":""},{"$f":"IF(InputA1A3[[#This Row],[Enhet för mängd (A5.2)]] = InputA1A3[[#This Row],[*DU/FU (EF A5.2)]], TRUE, FALSE)","v":true},{"$f":"IF(OR(ISBLANK(InputA1A3[[#This Row],[Kategori\n(egen kategorisering)]])=FALSE,ISBLANK(InputA1A3[[#This Row],[Anläggningsdel\n]]))=FALSE,TRUE,FALSE)","v":false},{"$f":"IF(ISBLANK(InputA1A3[[#This Row],[Anläggningsdel\n]]),\"\",IF(KontrollTabell[[#This Row],[TRUE/FALSE om kategori saknas.]] =FALSE,InputA1A3[[#This Row],[Kategori\n(egen kategorisering)]],\"Kategori saknas\"))","v":""}]
[null,null,null,null,null,null,null,null,null,{"$f":"IF(ISBLANK(InputA1A3[[#This Row],[Anläggningsdel\n]]),\"\",IF(KontrollTabell[[#This Row],[True/False A1A3 Enhet]]=TRUE, \"\", InputA1A3[[#This Row],[FU/DU (EF A1A3)]] & \"/\" & InputA1A3[[#This Row],[Enhet Mängd (A1A3)]]))","v":""},null,null,null,null,{"$f":"IF(ISBLANK(InputA1A3[[#This Row],[EPD - EF A4]]),\"\",InputA1A3[[#This Row],[FU/DU (EF A1A3)]])","v":""},null,null,null,{"$f":"IFERROR(INDEX(TabellEFDrivmedel[],MATCH(InputA1A3[[#This Row],[Drivmedel (A4) (endast förval ur lista)]],TabellEFDrivmedel[Drivmedel],0),4),\"\")","v":""},null,null,null,{"$f":"IF(InputA1A3[[#This Row],[*DU/FU (EF A4) för valt drivmedel (schablon)]]=\"\",\"\",IF(KontrollTabell[[#This Row],[True/False A4 Enhet - Alt2]]=TRUE,\"\",IF(ISBLANK(InputA1A3[[#This Row],[*DU/FU (EF A4) för valt drivmedel (schablon)]]),,InputA1A3[[#This Row],[Enhet (bränsleförbrukning per km)]]& \"/\" & InputA1A3[[#This Row],[*DU/FU (EF A4) för valt drivmedel (schablon)]])))","v":""},null,null,null,null,null,null,null,{"$f":"IFERROR(INDEX(TabellEFDrivmedel[],MATCH(InputA1A3[[#This Row],[Drivmedel (A5.2)]],TabellEFDrivmedel[Drivmedel],0),2),\"\")","v":""},{"$f":"IFERROR(INDEX(TabellEFDrivmedel[],MATCH(InputA1A3[[#This Row],[Drivmedel (A5.2)]],TabellEFDrivmedel[Drivmedel],0),4),\"\")","v":""},{"$f":"IF(KontrollTabell[[#This Row],[True/False A5 Enhet]]=TRUE, \"\", InputA1A3[[#This Row],[*DU/FU (EF A5.2)]] & \"/\" & InputA1A3[[#This Row],[Enhet för mängd (A5.2)]])","v":""},null,null,null,null,null,null,null,null,null,null,null,null,null,null,null,null,null,null,null,null,null,null,null,null,null,null,null,null,null,null,null,null,null,null,null,null,null,null,null,null,{"$f":"IF(ISBLANK(InputA1A3[[#This Row],[Anläggningsdel\n]]),FALSE,TRUE)","v":false},{"$f":"IF(ISBLANK(InputA1A3[[#This Row],[Anläggningsdel\n]]),\"\",IF(InputA1A3[[#This Row],[Enhet Mängd (A1A3)]] = InputA1A3[[#This Row],[FU/DU (EF A1A3)]], TRUE, FALSE))","v":""},{"$f":"IF(KontrollTabell[[#This Row],[Finns anläggningsdel-namn.]]=FALSE,\"\",IF(KontrollTabell[[#This Row],[True/False A1A3 Enhet]]=TRUE,TRUE,IF(ISBLANK(InputA1A3[[#This Row],[Omräkning till FU/DU (Skriv in värde, ej formel)]]),FALSE,TRUE)))","v":""},{"$f":"IF(KontrollTabell[[#This Row],[Finns anläggningsdel-namn.]]=FALSE,,IF(KontrollTabell[[#This Row],[True/False A1A3 Enhet]]=TRUE,InputA1A3[[#This Row],[Mängd A1A3]]*InputA1A3[[#This Row],[EF A1A3 '[kg CO₂-ekv.']]],IF(KontrollTabell[[#This Row],[True/False A1A3 om A1A3 kan beräknas]]=TRUE,InputA1A3[[#This Row],[Mängd A1A3]]*InputA1A3[[#This Row],[EF A1A3 '[kg CO₂-ekv.']]]*InputA1A3[[#This Row],[Omräkning till FU/DU (Skriv in värde, ej formel)]],\"Värde Behövs\")))","v":0},{"$f":"IF(ISBLANK(InputA1A3[[#This Row],[Anläggningsdel\n]]),\"\",IF(ISBLANK(InputA1A3[[#This Row],[EPD - EF A4]]),FALSE,TRUE))","v":""},{"$f":"IF(OR(ISBLANK(InputA1A3[[#This Row],[Enhet (bränsleförbrukning per km)]]),ISBLANK(InputA1A3[[#This Row],[*DU/FU (EF A4) för valt drivmedel (schablon)]])),\"\",IF(OR(InputA1A3[[#This Row],[Enhet (bränsleförbrukning per km)]]=InputA1A3[[#This Row],[*DU/FU (EF A4) för valt drivmedel (schablon)]],AND(InputA1A3[[#This Row],[Enhet (bränsleförbrukning per km)]]<>InputA1A3[[#This Row],[*DU/FU (EF A4) för valt drivmedel (schablon)]],ISNUMBER(InputA1A3[[#This Row],[Omräkningsfaktor (A4), (vid behov, värde eller formel)]]))),TRUE(),FALSE()))","v":""},{"$f":"IF(InputA1A3[[#This Row],[Enhet (bränsleförbrukning per km)]] =InputA1A3[[#This Row],[*DU/FU (EF A4) för valt drivmedel (schablon)]],TRUE,IF(ISBLANK(InputA1A3[[#This Row],[Omräkningsfaktor (A4), (vid behov, värde eller formel)]]),FALSE,TRUE))","v":true},{"$f":"IF(ISBLANK(InputA1A3[[#This Row],[EPD - EF A4]]),\"\",IF(ISBLANK(InputA1A3[[#This Row],[Omräkning till FU/DU (Skriv in värde, ej formel)]]),InputA1A3[[#This Row],[EPD - EF A4]]*InputA1A3[[#This Row],[Mängd A1A3]],InputA1A3[[#This Row],[Mängd A1A3]]*InputA1A3[[#This Row],[Omräkning till FU/DU (Skriv in värde, ej formel)]]*InputA1A3[[#This Row],[EPD - EF A4]]))","v":""},{"$f":"IF(ISBLANK(KontrollTabell[[#This Row],[True/False A4 - Alt 2]]),\"\",IF(KontrollTabell[[#This Row],[True/False A4 Enhet - Alt2]]=TRUE,InputA1A3[[#This Row],[Sträcka - totalt '[km'], (tur och retur, alla transporter)]]*InputA1A3[[#This Row],[(Bränsle-) Förbrukning per km]],\"Sen då\"))","v":0},{"$f":"SUM(KontrollTabell[[#This Row],[A4 - Resultat alt 1 '[kg']]:[A4 - Alt 2 - beräkning utsläpp]])","v":0},{"$f":"IF(ISBLANK(InputA1A3[[#This Row],[EPD - EF A4]]),ISBLANK(#REF!),)","v":false},{"$f":"IFERROR(IF(KontrollTabell[[#This Row],[True/False A5]]=FALSE(),\"Enheter\",IF(ISBLANK(InputA1A3[[#This Row],[Omräkningsfaktor (A5.2) (ange värde), (vid behov)]]),InputA1A3[[#This Row],[Mängd (A5.2)]]*InputA1A3[[#This Row],[*EF (A5.2)\n'[kg CO₂-ekv.']]],InputA1A3[[#This Row],[Mängd (A5.2)]]*InputA1A3[[#This Row],[*EF (A5.2)\n'[kg CO₂-ekv.']]]*InputA1A3[[#This Row],[Omräkningsfaktor (A5.2) (ange värde), (vid behov)]])),0)","v":0},{"$f":"IF(OR(ISBLANK(InputA1A3[[#This Row],[Enhet för mängd (A5.2)]]),ISBLANK(InputA1A3[[#This Row],[*DU/FU (EF A5.2)]])),\"\",IF(OR(InputA1A3[[#This Row],[Enhet för mängd (A5.2)]]=InputA1A3[[#This Row],[*DU/FU (EF A5.2)]],AND(InputA1A3[[#This Row],[Enhet för mängd (A5.2)]]<>InputA1A3[[#This Row],[*DU/FU (EF A5.2)]],ISNUMBER(InputA1A3[[#This Row],[Omräkningsfaktor (A5.2) (ange värde), (vid behov)]]))),TRUE,FALSE))","v":""},{"$f":"IF(InputA1A3[[#This Row],[Enhet för mängd (A5.2)]] = InputA1A3[[#This Row],[*DU/FU (EF A5.2)]], TRUE, FALSE)","v":true},{"$f":"IF(OR(ISBLANK(InputA1A3[[#This Row],[Kategori\n(egen kategorisering)]])=FALSE,ISBLANK(InputA1A3[[#This Row],[Anläggningsdel\n]]))=FALSE,TRUE,FALSE)","v":false},{"$f":"IF(ISBLANK(InputA1A3[[#This Row],[Anläggningsdel\n]]),\"\",IF(KontrollTabell[[#This Row],[TRUE/FALSE om kategori saknas.]] =FALSE,InputA1A3[[#This Row],[Kategori\n(egen kategorisering)]],\"Kategori saknas\"))","v":""}]
[null,null,null,null,null,null,null,null,null,{"$f":"IF(ISBLANK(InputA1A3[[#This Row],[Anläggningsdel\n]]),\"\",IF(KontrollTabell[[#This Row],[True/False A1A3 Enhet]]=TRUE, \"\", InputA1A3[[#This Row],[FU/DU (EF A1A3)]] & \"/\" & InputA1A3[[#This Row],[Enhet Mängd (A1A3)]]))","v":""},null,null,null,null,{"$f":"IF(ISBLANK(InputA1A3[[#This Row],[EPD - EF A4]]),\"\",InputA1A3[[#This Row],[FU/DU (EF A1A3)]])","v":""},null,null,null,{"$f":"IFERROR(INDEX(TabellEFDrivmedel[],MATCH(InputA1A3[[#This Row],[Drivmedel (A4) (endast förval ur lista)]],TabellEFDrivmedel[Drivmedel],0),4),\"\")","v":""},null,null,null,{"$f":"IF(InputA1A3[[#This Row],[*DU/FU (EF A4) för valt drivmedel (schablon)]]=\"\",\"\",IF(KontrollTabell[[#This Row],[True/False A4 Enhet - Alt2]]=TRUE,\"\",IF(ISBLANK(InputA1A3[[#This Row],[*DU/FU (EF A4) för valt drivmedel (schablon)]]),,InputA1A3[[#This Row],[Enhet (bränsleförbrukning per km)]]& \"/\" & InputA1A3[[#This Row],[*DU/FU (EF A4) för valt drivmedel (schablon)]])))","v":""},null,null,null,null,null,null,null,{"$f":"IFERROR(INDEX(TabellEFDrivmedel[],MATCH(InputA1A3[[#This Row],[Drivmedel (A5.2)]],TabellEFDrivmedel[Drivmedel],0),2),\"\")","v":""},{"$f":"IFERROR(INDEX(TabellEFDrivmedel[],MATCH(InputA1A3[[#This Row],[Drivmedel (A5.2)]],TabellEFDrivmedel[Drivmedel],0),4),\"\")","v":""},{"$f":"IF(KontrollTabell[[#This Row],[True/False A5 Enhet]]=TRUE, \"\", InputA1A3[[#This Row],[*DU/FU (EF A5.2)]] & \"/\" & InputA1A3[[#This Row],[Enhet för mängd (A5.2)]])","v":""},null,null,null,null,null,null,null,null,null,null,null,null,null,null,null,null,null,null,null,null,null,null,null,null,null,null,null,null,null,null,null,null,null,null,null,null,null,null,null,null,{"$f":"IF(ISBLANK(InputA1A3[[#This Row],[Anläggningsdel\n]]),FALSE,TRUE)","v":false},{"$f":"IF(ISBLANK(InputA1A3[[#This Row],[Anläggningsdel\n]]),\"\",IF(InputA1A3[[#This Row],[Enhet Mängd (A1A3)]] = InputA1A3[[#This Row],[FU/DU (EF A1A3)]], TRUE, FALSE))","v":""},{"$f":"IF(KontrollTabell[[#This Row],[Finns anläggningsdel-namn.]]=FALSE,\"\",IF(KontrollTabell[[#This Row],[True/False A1A3 Enhet]]=TRUE,TRUE,IF(ISBLANK(InputA1A3[[#This Row],[Omräkning till FU/DU (Skriv in värde, ej formel)]]),FALSE,TRUE)))","v":""},{"$f":"IF(KontrollTabell[[#This Row],[Finns anläggningsdel-namn.]]=FALSE,,IF(KontrollTabell[[#This Row],[True/False A1A3 Enhet]]=TRUE,InputA1A3[[#This Row],[Mängd A1A3]]*InputA1A3[[#This Row],[EF A1A3 '[kg CO₂-ekv.']]],IF(KontrollTabell[[#This Row],[True/False A1A3 om A1A3 kan beräknas]]=TRUE,InputA1A3[[#This Row],[Mängd A1A3]]*InputA1A3[[#This Row],[EF A1A3 '[kg CO₂-ekv.']]]*InputA1A3[[#This Row],[Omräkning till FU/DU (Skriv in värde, ej formel)]],\"Värde Behövs\")))","v":0},{"$f":"IF(ISBLANK(InputA1A3[[#This Row],[Anläggningsdel\n]]),\"\",IF(ISBLANK(InputA1A3[[#This Row],[EPD - EF A4]]),FALSE,TRUE))","v":""},{"$f":"IF(OR(ISBLANK(InputA1A3[[#This Row],[Enhet (bränsleförbrukning per km)]]),ISBLANK(InputA1A3[[#This Row],[*DU/FU (EF A4) för valt drivmedel (schablon)]])),\"\",IF(OR(InputA1A3[[#This Row],[Enhet (bränsleförbrukning per km)]]=InputA1A3[[#This Row],[*DU/FU (EF A4) för valt drivmedel (schablon)]],AND(InputA1A3[[#This Row],[Enhet (bränsleförbrukning per km)]]<>InputA1A3[[#This Row],[*DU/FU (EF A4) för valt drivmedel (schablon)]],ISNUMBER(InputA1A3[[#This Row],[Omräkningsfaktor (A4), (vid behov, värde eller formel)]]))),TRUE(),FALSE()))","v":""},{"$f":"IF(InputA1A3[[#This Row],[Enhet (bränsleförbrukning per km)]] =InputA1A3[[#This Row],[*DU/FU (EF A4) för valt drivmedel (schablon)]],TRUE,IF(ISBLANK(InputA1A3[[#This Row],[Omräkningsfaktor (A4), (vid behov, värde eller formel)]]),FALSE,TRUE))","v":true},{"$f":"IF(ISBLANK(InputA1A3[[#This Row],[EPD - EF A4]]),\"\",IF(ISBLANK(InputA1A3[[#This Row],[Omräkning till FU/DU (Skriv in värde, ej formel)]]),InputA1A3[[#This Row],[EPD - EF A4]]*InputA1A3[[#This Row],[Mängd A1A3]],InputA1A3[[#This Row],[Mängd A1A3]]*InputA1A3[[#This Row],[Omräkning till FU/DU (Skriv in värde, ej formel)]]*InputA1A3[[#This Row],[EPD - EF A4]]))","v":""},{"$f":"IF(ISBLANK(KontrollTabell[[#This Row],[True/False A4 - Alt 2]]),\"\",IF(KontrollTabell[[#This Row],[True/False A4 Enhet - Alt2]]=TRUE,InputA1A3[[#This Row],[Sträcka - totalt '[km'], (tur och retur, alla transporter)]]*InputA1A3[[#This Row],[(Bränsle-) Förbrukning per km]],\"Sen då\"))","v":0},{"$f":"SUM(KontrollTabell[[#This Row],[A4 - Resultat alt 1 '[kg']]:[A4 - Alt 2 - beräkning utsläpp]])","v":0},{"$f":"IF(ISBLANK(InputA1A3[[#This Row],[EPD - EF A4]]),ISBLANK(#REF!),)","v":false},{"$f":"IFERROR(IF(KontrollTabell[[#This Row],[True/False A5]]=FALSE(),\"Enheter\",IF(ISBLANK(InputA1A3[[#This Row],[Omräkningsfaktor (A5.2) (ange värde), (vid behov)]]),InputA1A3[[#This Row],[Mängd (A5.2)]]*InputA1A3[[#This Row],[*EF (A5.2)\n'[kg CO₂-ekv.']]],InputA1A3[[#This Row],[Mängd (A5.2)]]*InputA1A3[[#This Row],[*EF (A5.2)\n'[kg CO₂-ekv.']]]*InputA1A3[[#This Row],[Omräkningsfaktor (A5.2) (ange värde), (vid behov)]])),0)","v":0},{"$f":"IF(OR(ISBLANK(InputA1A3[[#This Row],[Enhet för mängd (A5.2)]]),ISBLANK(InputA1A3[[#This Row],[*DU/FU (EF A5.2)]])),\"\",IF(OR(InputA1A3[[#This Row],[Enhet för mängd (A5.2)]]=InputA1A3[[#This Row],[*DU/FU (EF A5.2)]],AND(InputA1A3[[#This Row],[Enhet för mängd (A5.2)]]<>InputA1A3[[#This Row],[*DU/FU (EF A5.2)]],ISNUMBER(InputA1A3[[#This Row],[Omräkningsfaktor (A5.2) (ange värde), (vid behov)]]))),TRUE,FALSE))","v":""},{"$f":"IF(InputA1A3[[#This Row],[Enhet för mängd (A5.2)]] = InputA1A3[[#This Row],[*DU/FU (EF A5.2)]], TRUE, FALSE)","v":true},{"$f":"IF(OR(ISBLANK(InputA1A3[[#This Row],[Kategori\n(egen kategorisering)]])=FALSE,ISBLANK(InputA1A3[[#This Row],[Anläggningsdel\n]]))=FALSE,TRUE,FALSE)","v":false},{"$f":"IF(ISBLANK(InputA1A3[[#This Row],[Anläggningsdel\n]]),\"\",IF(KontrollTabell[[#This Row],[TRUE/FALSE om kategori saknas.]] =FALSE,InputA1A3[[#This Row],[Kategori\n(egen kategorisering)]],\"Kategori saknas\"))","v":""}]
[null,null,null,null,null,null,null,null,null,{"$f":"IF(ISBLANK(InputA1A3[[#This Row],[Anläggningsdel\n]]),\"\",IF(KontrollTabell[[#This Row],[True/False A1A3 Enhet]]=TRUE, \"\", InputA1A3[[#This Row],[FU/DU (EF A1A3)]] & \"/\" & InputA1A3[[#This Row],[Enhet Mängd (A1A3)]]))","v":""},null,null,null,null,{"$f":"IF(ISBLANK(InputA1A3[[#This Row],[EPD - EF A4]]),\"\",InputA1A3[[#This Row],[FU/DU (EF A1A3)]])","v":""},null,null,null,{"$f":"IFERROR(INDEX(TabellEFDrivmedel[],MATCH(InputA1A3[[#This Row],[Drivmedel (A4) (endast förval ur lista)]],TabellEFDrivmedel[Drivmedel],0),4),\"\")","v":""},null,null,null,{"$f":"IF(InputA1A3[[#This Row],[*DU/FU (EF A4) för valt drivmedel (schablon)]]=\"\",\"\",IF(KontrollTabell[[#This Row],[True/False A4 Enhet - Alt2]]=TRUE,\"\",IF(ISBLANK(InputA1A3[[#This Row],[*DU/FU (EF A4) för valt drivmedel (schablon)]]),,InputA1A3[[#This Row],[Enhet (bränsleförbrukning per km)]]& \"/\" & InputA1A3[[#This Row],[*DU/FU (EF A4) för valt drivmedel (schablon)]])))","v":""},null,null,null,null,null,null,null,{"$f":"IFERROR(INDEX(TabellEFDrivmedel[],MATCH(InputA1A3[[#This Row],[Drivmedel (A5.2)]],TabellEFDrivmedel[Drivmedel],0),2),\"\")","v":""},{"$f":"IFERROR(INDEX(TabellEFDrivmedel[],MATCH(InputA1A3[[#This Row],[Drivmedel (A5.2)]],TabellEFDrivmedel[Drivmedel],0),4),\"\")","v":""},{"$f":"IF(KontrollTabell[[#This Row],[True/False A5 Enhet]]=TRUE, \"\", InputA1A3[[#This Row],[*DU/FU (EF A5.2)]] & \"/\" & InputA1A3[[#This Row],[Enhet för mängd (A5.2)]])","v":""},null,null,null,null,null,null,null,null,null,null,null,null,null,null,null,null,null,null,null,null,null,null,null,null,null,null,null,null,null,null,null,null,null,null,null,null,null,null,null,null,{"$f":"IF(ISBLANK(InputA1A3[[#This Row],[Anläggningsdel\n]]),FALSE,TRUE)","v":false},{"$f":"IF(ISBLANK(InputA1A3[[#This Row],[Anläggningsdel\n]]),\"\",IF(InputA1A3[[#This Row],[Enhet Mängd (A1A3)]] = InputA1A3[[#This Row],[FU/DU (EF A1A3)]], TRUE, FALSE))","v":""},{"$f":"IF(KontrollTabell[[#This Row],[Finns anläggningsdel-namn.]]=FALSE,\"\",IF(KontrollTabell[[#This Row],[True/False A1A3 Enhet]]=TRUE,TRUE,IF(ISBLANK(InputA1A3[[#This Row],[Omräkning till FU/DU (Skriv in värde, ej formel)]]),FALSE,TRUE)))","v":""},{"$f":"IF(KontrollTabell[[#This Row],[Finns anläggningsdel-namn.]]=FALSE,,IF(KontrollTabell[[#This Row],[True/False A1A3 Enhet]]=TRUE,InputA1A3[[#This Row],[Mängd A1A3]]*InputA1A3[[#This Row],[EF A1A3 '[kg CO₂-ekv.']]],IF(KontrollTabell[[#This Row],[True/False A1A3 om A1A3 kan beräknas]]=TRUE,InputA1A3[[#This Row],[Mängd A1A3]]*InputA1A3[[#This Row],[EF A1A3 '[kg CO₂-ekv.']]]*InputA1A3[[#This Row],[Omräkning till FU/DU (Skriv in värde, ej formel)]],\"Värde Behövs\")))","v":0},{"$f":"IF(ISBLANK(InputA1A3[[#This Row],[Anläggningsdel\n]]),\"\",IF(ISBLANK(InputA1A3[[#This Row],[EPD - EF A4]]),FALSE,TRUE))","v":""},{"$f":"IF(OR(ISBLANK(InputA1A3[[#This Row],[Enhet (bränsleförbrukning per km)]]),ISBLANK(InputA1A3[[#This Row],[*DU/FU (EF A4) för valt drivmedel (schablon)]])),\"\",IF(OR(InputA1A3[[#This Row],[Enhet (bränsleförbrukning per km)]]=InputA1A3[[#This Row],[*DU/FU (EF A4) för valt drivmedel (schablon)]],AND(InputA1A3[[#This Row],[Enhet (bränsleförbrukning per km)]]<>InputA1A3[[#This Row],[*DU/FU (EF A4) för valt drivmedel (schablon)]],ISNUMBER(InputA1A3[[#This Row],[Omräkningsfaktor (A4), (vid behov, värde eller formel)]]))),TRUE(),FALSE()))","v":""},{"$f":"IF(InputA1A3[[#This Row],[Enhet (bränsleförbrukning per km)]] =InputA1A3[[#This Row],[*DU/FU (EF A4) för valt drivmedel (schablon)]],TRUE,IF(ISBLANK(InputA1A3[[#This Row],[Omräkningsfaktor (A4), (vid behov, värde eller formel)]]),FALSE,TRUE))","v":true},{"$f":"IF(ISBLANK(InputA1A3[[#This Row],[EPD - EF A4]]),\"\",IF(ISBLANK(InputA1A3[[#This Row],[Omräkning till FU/DU (Skriv in värde, ej formel)]]),InputA1A3[[#This Row],[EPD - EF A4]]*InputA1A3[[#This Row],[Mängd A1A3]],InputA1A3[[#This Row],[Mängd A1A3]]*InputA1A3[[#This Row],[Omräkning till FU/DU (Skriv in värde, ej formel)]]*InputA1A3[[#This Row],[EPD - EF A4]]))","v":""},{"$f":"IF(ISBLANK(KontrollTabell[[#This Row],[True/False A4 - Alt 2]]),\"\",IF(KontrollTabell[[#This Row],[True/False A4 Enhet - Alt2]]=TRUE,InputA1A3[[#This Row],[Sträcka - totalt '[km'], (tur och retur, alla transporter)]]*InputA1A3[[#This Row],[(Bränsle-) Förbrukning per km]],\"Sen då\"))","v":0},{"$f":"SUM(KontrollTabell[[#This Row],[A4 - Resultat alt 1 '[kg']]:[A4 - Alt 2 - beräkning utsläpp]])","v":0},{"$f":"IF(ISBLANK(InputA1A3[[#This Row],[EPD - EF A4]]),ISBLANK(#REF!),)","v":false},{"$f":"IFERROR(IF(KontrollTabell[[#This Row],[True/False A5]]=FALSE(),\"Enheter\",IF(ISBLANK(InputA1A3[[#This Row],[Omräkningsfaktor (A5.2) (ange värde), (vid behov)]]),InputA1A3[[#This Row],[Mängd (A5.2)]]*InputA1A3[[#This Row],[*EF (A5.2)\n'[kg CO₂-ekv.']]],InputA1A3[[#This Row],[Mängd (A5.2)]]*InputA1A3[[#This Row],[*EF (A5.2)\n'[kg CO₂-ekv.']]]*InputA1A3[[#This Row],[Omräkningsfaktor (A5.2) (ange värde), (vid behov)]])),0)","v":0},{"$f":"IF(OR(ISBLANK(InputA1A3[[#This Row],[Enhet för mängd (A5.2)]]),ISBLANK(InputA1A3[[#This Row],[*DU/FU (EF A5.2)]])),\"\",IF(OR(InputA1A3[[#This Row],[Enhet för mängd (A5.2)]]=InputA1A3[[#This Row],[*DU/FU (EF A5.2)]],AND(InputA1A3[[#This Row],[Enhet för mängd (A5.2)]]<>InputA1A3[[#This Row],[*DU/FU (EF A5.2)]],ISNUMBER(InputA1A3[[#This Row],[Omräkningsfaktor (A5.2) (ange värde), (vid behov)]]))),TRUE,FALSE))","v":""},{"$f":"IF(InputA1A3[[#This Row],[Enhet för mängd (A5.2)]] = InputA1A3[[#This Row],[*DU/FU (EF A5.2)]], TRUE, FALSE)","v":true},{"$f":"IF(OR(ISBLANK(InputA1A3[[#This Row],[Kategori\n(egen kategorisering)]])=FALSE,ISBLANK(InputA1A3[[#This Row],[Anläggningsdel\n]]))=FALSE,TRUE,FALSE)","v":false},{"$f":"IF(ISBLANK(InputA1A3[[#This Row],[Anläggningsdel\n]]),\"\",IF(KontrollTabell[[#This Row],[TRUE/FALSE om kategori saknas.]] =FALSE,InputA1A3[[#This Row],[Kategori\n(egen kategorisering)]],\"Kategori saknas\"))","v":""}]
[null,null,null,null,null,null,null,null,null,{"$f":"IF(ISBLANK(InputA1A3[[#This Row],[Anläggningsdel\n]]),\"\",IF(KontrollTabell[[#This Row],[True/False A1A3 Enhet]]=TRUE, \"\", InputA1A3[[#This Row],[FU/DU (EF A1A3)]] & \"/\" & InputA1A3[[#This Row],[Enhet Mängd (A1A3)]]))","v":""},null,null,null,null,{"$f":"IF(ISBLANK(InputA1A3[[#This Row],[EPD - EF A4]]),\"\",InputA1A3[[#This Row],[FU/DU (EF A1A3)]])","v":""},null,null,null,{"$f":"IFERROR(INDEX(TabellEFDrivmedel[],MATCH(InputA1A3[[#This Row],[Drivmedel (A4) (endast förval ur lista)]],TabellEFDrivmedel[Drivmedel],0),4),\"\")","v":""},null,null,null,{"$f":"IF(InputA1A3[[#This Row],[*DU/FU (EF A4) för valt drivmedel (schablon)]]=\"\",\"\",IF(KontrollTabell[[#This Row],[True/False A4 Enhet - Alt2]]=TRUE,\"\",IF(ISBLANK(InputA1A3[[#This Row],[*DU/FU (EF A4) för valt drivmedel (schablon)]]),,InputA1A3[[#This Row],[Enhet (bränsleförbrukning per km)]]& \"/\" & InputA1A3[[#This Row],[*DU/FU (EF A4) för valt drivmedel (schablon)]])))","v":""},null,null,null,null,null,null,null,{"$f":"IFERROR(INDEX(TabellEFDrivmedel[],MATCH(InputA1A3[[#This Row],[Drivmedel (A5.2)]],TabellEFDrivmedel[Drivmedel],0),2),\"\")","v":""},{"$f":"IFERROR(INDEX(TabellEFDrivmedel[],MATCH(InputA1A3[[#This Row],[Drivmedel (A5.2)]],TabellEFDrivmedel[Drivmedel],0),4),\"\")","v":""},{"$f":"IF(KontrollTabell[[#This Row],[True/False A5 Enhet]]=TRUE, \"\", InputA1A3[[#This Row],[*DU/FU (EF A5.2)]] & \"/\" & InputA1A3[[#This Row],[Enhet för mängd (A5.2)]])","v":""},null,null,null,null,null,null,null,null,null,null,null,null,null,null,null,null,null,null,null,null,null,null,null,null,null,null,null,null,null,null,null,null,null,null,null,null,null,null,null,null,{"$f":"IF(ISBLANK(InputA1A3[[#This Row],[Anläggningsdel\n]]),FALSE,TRUE)","v":false},{"$f":"IF(ISBLANK(InputA1A3[[#This Row],[Anläggningsdel\n]]),\"\",IF(InputA1A3[[#This Row],[Enhet Mängd (A1A3)]] = InputA1A3[[#This Row],[FU/DU (EF A1A3)]], TRUE, FALSE))","v":""},{"$f":"IF(KontrollTabell[[#This Row],[Finns anläggningsdel-namn.]]=FALSE,\"\",IF(KontrollTabell[[#This Row],[True/False A1A3 Enhet]]=TRUE,TRUE,IF(ISBLANK(InputA1A3[[#This Row],[Omräkning till FU/DU (Skriv in värde, ej formel)]]),FALSE,TRUE)))","v":""},{"$f":"IF(KontrollTabell[[#This Row],[Finns anläggningsdel-namn.]]=FALSE,,IF(KontrollTabell[[#This Row],[True/False A1A3 Enhet]]=TRUE,InputA1A3[[#This Row],[Mängd A1A3]]*InputA1A3[[#This Row],[EF A1A3 '[kg CO₂-ekv.']]],IF(KontrollTabell[[#This Row],[True/False A1A3 om A1A3 kan beräknas]]=TRUE,InputA1A3[[#This Row],[Mängd A1A3]]*InputA1A3[[#This Row],[EF A1A3 '[kg CO₂-ekv.']]]*InputA1A3[[#This Row],[Omräkning till FU/DU (Skriv in värde, ej formel)]],\"Värde Behövs\")))","v":0},{"$f":"IF(ISBLANK(InputA1A3[[#This Row],[Anläggningsdel\n]]),\"\",IF(ISBLANK(InputA1A3[[#This Row],[EPD - EF A4]]),FALSE,TRUE))","v":""},{"$f":"IF(OR(ISBLANK(InputA1A3[[#This Row],[Enhet (bränsleförbrukning per km)]]),ISBLANK(InputA1A3[[#This Row],[*DU/FU (EF A4) för valt drivmedel (schablon)]])),\"\",IF(OR(InputA1A3[[#This Row],[Enhet (bränsleförbrukning per km)]]=InputA1A3[[#This Row],[*DU/FU (EF A4) för valt drivmedel (schablon)]],AND(InputA1A3[[#This Row],[Enhet (bränsleförbrukning per km)]]<>InputA1A3[[#This Row],[*DU/FU (EF A4) för valt drivmedel (schablon)]],ISNUMBER(InputA1A3[[#This Row],[Omräkningsfaktor (A4), (vid behov, värde eller formel)]]))),TRUE(),FALSE()))","v":""},{"$f":"IF(InputA1A3[[#This Row],[Enhet (bränsleförbrukning per km)]] =InputA1A3[[#This Row],[*DU/FU (EF A4) för valt drivmedel (schablon)]],TRUE,IF(ISBLANK(InputA1A3[[#This Row],[Omräkningsfaktor (A4), (vid behov, värde eller formel)]]),FALSE,TRUE))","v":true},{"$f":"IF(ISBLANK(InputA1A3[[#This Row],[EPD - EF A4]]),\"\",IF(ISBLANK(InputA1A3[[#This Row],[Omräkning till FU/DU (Skriv in värde, ej formel)]]),InputA1A3[[#This Row],[EPD - EF A4]]*InputA1A3[[#This Row],[Mängd A1A3]],InputA1A3[[#This Row],[Mängd A1A3]]*InputA1A3[[#This Row],[Omräkning till FU/DU (Skriv in värde, ej formel)]]*InputA1A3[[#This Row],[EPD - EF A4]]))","v":""},{"$f":"IF(ISBLANK(KontrollTabell[[#This Row],[True/False A4 - Alt 2]]),\"\",IF(KontrollTabell[[#This Row],[True/False A4 Enhet - Alt2]]=TRUE,InputA1A3[[#This Row],[Sträcka - totalt '[km'], (tur och retur, alla transporter)]]*InputA1A3[[#This Row],[(Bränsle-) Förbrukning per km]],\"Sen då\"))","v":0},{"$f":"SUM(KontrollTabell[[#This Row],[A4 - Resultat alt 1 '[kg']]:[A4 - Alt 2 - beräkning utsläpp]])","v":0},{"$f":"IF(ISBLANK(InputA1A3[[#This Row],[EPD - EF A4]]),ISBLANK(#REF!),)","v":false},{"$f":"IFERROR(IF(KontrollTabell[[#This Row],[True/False A5]]=FALSE(),\"Enheter\",IF(ISBLANK(InputA1A3[[#This Row],[Omräkningsfaktor (A5.2) (ange värde), (vid behov)]]),InputA1A3[[#This Row],[Mängd (A5.2)]]*InputA1A3[[#This Row],[*EF (A5.2)\n'[kg CO₂-ekv.']]],InputA1A3[[#This Row],[Mängd (A5.2)]]*InputA1A3[[#This Row],[*EF (A5.2)\n'[kg CO₂-ekv.']]]*InputA1A3[[#This Row],[Omräkningsfaktor (A5.2) (ange värde), (vid behov)]])),0)","v":0},{"$f":"IF(OR(ISBLANK(InputA1A3[[#This Row],[Enhet för mängd (A5.2)]]),ISBLANK(InputA1A3[[#This Row],[*DU/FU (EF A5.2)]])),\"\",IF(OR(InputA1A3[[#This Row],[Enhet för mängd (A5.2)]]=InputA1A3[[#This Row],[*DU/FU (EF A5.2)]],AND(InputA1A3[[#This Row],[Enhet för mängd (A5.2)]]<>InputA1A3[[#This Row],[*DU/FU (EF A5.2)]],ISNUMBER(InputA1A3[[#This Row],[Omräkningsfaktor (A5.2) (ange värde), (vid behov)]]))),TRUE,FALSE))","v":""},{"$f":"IF(InputA1A3[[#This Row],[Enhet för mängd (A5.2)]] = InputA1A3[[#This Row],[*DU/FU (EF A5.2)]], TRUE, FALSE)","v":true},{"$f":"IF(OR(ISBLANK(InputA1A3[[#This Row],[Kategori\n(egen kategorisering)]])=FALSE,ISBLANK(InputA1A3[[#This Row],[Anläggningsdel\n]]))=FALSE,TRUE,FALSE)","v":false},{"$f":"IF(ISBLANK(InputA1A3[[#This Row],[Anläggningsdel\n]]),\"\",IF(KontrollTabell[[#This Row],[TRUE/FALSE om kategori saknas.]] =FALSE,InputA1A3[[#This Row],[Kategori\n(egen kategorisering)]],\"Kategori saknas\"))","v":""}]
[null,null,null,null,null,null,null,null,null,{"$f":"IF(ISBLANK(InputA1A3[[#This Row],[Anläggningsdel\n]]),\"\",IF(KontrollTabell[[#This Row],[True/False A1A3 Enhet]]=TRUE, \"\", InputA1A3[[#This Row],[FU/DU (EF A1A3)]] & \"/\" & InputA1A3[[#This Row],[Enhet Mängd (A1A3)]]))","v":""},null,null,null,null,{"$f":"IF(ISBLANK(InputA1A3[[#This Row],[EPD - EF A4]]),\"\",InputA1A3[[#This Row],[FU/DU (EF A1A3)]])","v":""},null,null,null,{"$f":"IFERROR(INDEX(TabellEFDrivmedel[],MATCH(InputA1A3[[#This Row],[Drivmedel (A4) (endast förval ur lista)]],TabellEFDrivmedel[Drivmedel],0),4),\"\")","v":""},null,null,null,{"$f":"IF(InputA1A3[[#This Row],[*DU/FU (EF A4) för valt drivmedel (schablon)]]=\"\",\"\",IF(KontrollTabell[[#This Row],[True/False A4 Enhet - Alt2]]=TRUE,\"\",IF(ISBLANK(InputA1A3[[#This Row],[*DU/FU (EF A4) för valt drivmedel (schablon)]]),,InputA1A3[[#This Row],[Enhet (bränsleförbrukning per km)]]& \"/\" & InputA1A3[[#This Row],[*DU/FU (EF A4) för valt drivmedel (schablon)]])))","v":""},null,null,null,null,null,null,null,{"$f":"IFERROR(INDEX(TabellEFDrivmedel[],MATCH(InputA1A3[[#This Row],[Drivmedel (A5.2)]],TabellEFDrivmedel[Drivmedel],0),2),\"\")","v":""},{"$f":"IFERROR(INDEX(TabellEFDrivmedel[],MATCH(InputA1A3[[#This Row],[Drivmedel (A5.2)]],TabellEFDrivmedel[Drivmedel],0),4),\"\")","v":""},{"$f":"IF(KontrollTabell[[#This Row],[True/False A5 Enhet]]=TRUE, \"\", InputA1A3[[#This Row],[*DU/FU (EF A5.2)]] & \"/\" & InputA1A3[[#This Row],[Enhet för mängd (A5.2)]])","v":""},null,null,null,null,null,null,null,null,null,null,null,null,null,null,null,null,null,null,null,null,null,null,null,null,null,null,null,null,null,null,null,null,null,null,null,null,null,null,null,null,{"$f":"IF(ISBLANK(InputA1A3[[#This Row],[Anläggningsdel\n]]),FALSE,TRUE)","v":false},{"$f":"IF(ISBLANK(InputA1A3[[#This Row],[Anläggningsdel\n]]),\"\",IF(InputA1A3[[#This Row],[Enhet Mängd (A1A3)]] = InputA1A3[[#This Row],[FU/DU (EF A1A3)]], TRUE, FALSE))","v":""},{"$f":"IF(KontrollTabell[[#This Row],[Finns anläggningsdel-namn.]]=FALSE,\"\",IF(KontrollTabell[[#This Row],[True/False A1A3 Enhet]]=TRUE,TRUE,IF(ISBLANK(InputA1A3[[#This Row],[Omräkning till FU/DU (Skriv in värde, ej formel)]]),FALSE,TRUE)))","v":""},{"$f":"IF(KontrollTabell[[#This Row],[Finns anläggningsdel-namn.]]=FALSE,,IF(KontrollTabell[[#This Row],[True/False A1A3 Enhet]]=TRUE,InputA1A3[[#This Row],[Mängd A1A3]]*InputA1A3[[#This Row],[EF A1A3 '[kg CO₂-ekv.']]],IF(KontrollTabell[[#This Row],[True/False A1A3 om A1A3 kan beräknas]]=TRUE,InputA1A3[[#This Row],[Mängd A1A3]]*InputA1A3[[#This Row],[EF A1A3 '[kg CO₂-ekv.']]]*InputA1A3[[#This Row],[Omräkning till FU/DU (Skriv in värde, ej formel)]],\"Värde Behövs\")))","v":0},{"$f":"IF(ISBLANK(InputA1A3[[#This Row],[Anläggningsdel\n]]),\"\",IF(ISBLANK(InputA1A3[[#This Row],[EPD - EF A4]]),FALSE,TRUE))","v":""},{"$f":"IF(OR(ISBLANK(InputA1A3[[#This Row],[Enhet (bränsleförbrukning per km)]]),ISBLANK(InputA1A3[[#This Row],[*DU/FU (EF A4) för valt drivmedel (schablon)]])),\"\",IF(OR(InputA1A3[[#This Row],[Enhet (bränsleförbrukning per km)]]=InputA1A3[[#This Row],[*DU/FU (EF A4) för valt drivmedel (schablon)]],AND(InputA1A3[[#This Row],[Enhet (bränsleförbrukning per km)]]<>InputA1A3[[#This Row],[*DU/FU (EF A4) för valt drivmedel (schablon)]],ISNUMBER(InputA1A3[[#This Row],[Omräkningsfaktor (A4), (vid behov, värde eller formel)]]))),TRUE(),FALSE()))","v":""},{"$f":"IF(InputA1A3[[#This Row],[Enhet (bränsleförbrukning per km)]] =InputA1A3[[#This Row],[*DU/FU (EF A4) för valt drivmedel (schablon)]],TRUE,IF(ISBLANK(InputA1A3[[#This Row],[Omräkningsfaktor (A4), (vid behov, värde eller formel)]]),FALSE,TRUE))","v":true},{"$f":"IF(ISBLANK(InputA1A3[[#This Row],[EPD - EF A4]]),\"\",IF(ISBLANK(InputA1A3[[#This Row],[Omräkning till FU/DU (Skriv in värde, ej formel)]]),InputA1A3[[#This Row],[EPD - EF A4]]*InputA1A3[[#This Row],[Mängd A1A3]],InputA1A3[[#This Row],[Mängd A1A3]]*InputA1A3[[#This Row],[Omräkning till FU/DU (Skriv in värde, ej formel)]]*InputA1A3[[#This Row],[EPD - EF A4]]))","v":""},{"$f":"IF(ISBLANK(KontrollTabell[[#This Row],[True/False A4 - Alt 2]]),\"\",IF(KontrollTabell[[#This Row],[True/False A4 Enhet - Alt2]]=TRUE,InputA1A3[[#This Row],[Sträcka - totalt '[km'], (tur och retur, alla transporter)]]*InputA1A3[[#This Row],[(Bränsle-) Förbrukning per km]],\"Sen då\"))","v":0},{"$f":"SUM(KontrollTabell[[#This Row],[A4 - Resultat alt 1 '[kg']]:[A4 - Alt 2 - beräkning utsläpp]])","v":0},{"$f":"IF(ISBLANK(InputA1A3[[#This Row],[EPD - EF A4]]),ISBLANK(#REF!),)","v":false},{"$f":"IFERROR(IF(KontrollTabell[[#This Row],[True/False A5]]=FALSE(),\"Enheter\",IF(ISBLANK(InputA1A3[[#This Row],[Omräkningsfaktor (A5.2) (ange värde), (vid behov)]]),InputA1A3[[#This Row],[Mängd (A5.2)]]*InputA1A3[[#This Row],[*EF (A5.2)\n'[kg CO₂-ekv.']]],InputA1A3[[#This Row],[Mängd (A5.2)]]*InputA1A3[[#This Row],[*EF (A5.2)\n'[kg CO₂-ekv.']]]*InputA1A3[[#This Row],[Omräkningsfaktor (A5.2) (ange värde), (vid behov)]])),0)","v":0},{"$f":"IF(OR(ISBLANK(InputA1A3[[#This Row],[Enhet för mängd (A5.2)]]),ISBLANK(InputA1A3[[#This Row],[*DU/FU (EF A5.2)]])),\"\",IF(OR(InputA1A3[[#This Row],[Enhet för mängd (A5.2)]]=InputA1A3[[#This Row],[*DU/FU (EF A5.2)]],AND(InputA1A3[[#This Row],[Enhet för mängd (A5.2)]]<>InputA1A3[[#This Row],[*DU/FU (EF A5.2)]],ISNUMBER(InputA1A3[[#This Row],[Omräkningsfaktor (A5.2) (ange värde), (vid behov)]]))),TRUE,FALSE))","v":""},{"$f":"IF(InputA1A3[[#This Row],[Enhet för mängd (A5.2)]] = InputA1A3[[#This Row],[*DU/FU (EF A5.2)]], TRUE, FALSE)","v":true},{"$f":"IF(OR(ISBLANK(InputA1A3[[#This Row],[Kategori\n(egen kategorisering)]])=FALSE,ISBLANK(InputA1A3[[#This Row],[Anläggningsdel\n]]))=FALSE,TRUE,FALSE)","v":false},{"$f":"IF(ISBLANK(InputA1A3[[#This Row],[Anläggningsdel\n]]),\"\",IF(KontrollTabell[[#This Row],[TRUE/FALSE om kategori saknas.]] =FALSE,InputA1A3[[#This Row],[Kategori\n(egen kategorisering)]],\"Kategori saknas\"))","v":""}]
[null,null,null,null,null,null,null,null,null,{"$f":"IF(ISBLANK(InputA1A3[[#This Row],[Anläggningsdel\n]]),\"\",IF(KontrollTabell[[#This Row],[True/False A1A3 Enhet]]=TRUE, \"\", InputA1A3[[#This Row],[FU/DU (EF A1A3)]] & \"/\" & InputA1A3[[#This Row],[Enhet Mängd (A1A3)]]))","v":""},null,null,null,null,{"$f":"IF(ISBLANK(InputA1A3[[#This Row],[EPD - EF A4]]),\"\",InputA1A3[[#This Row],[FU/DU (EF A1A3)]])","v":""},null,null,null,{"$f":"IFERROR(INDEX(TabellEFDrivmedel[],MATCH(InputA1A3[[#This Row],[Drivmedel (A4) (endast förval ur lista)]],TabellEFDrivmedel[Drivmedel],0),4),\"\")","v":""},null,null,null,{"$f":"IF(InputA1A3[[#This Row],[*DU/FU (EF A4) för valt drivmedel (schablon)]]=\"\",\"\",IF(KontrollTabell[[#This Row],[True/False A4 Enhet - Alt2]]=TRUE,\"\",IF(ISBLANK(InputA1A3[[#This Row],[*DU/FU (EF A4) för valt drivmedel (schablon)]]),,InputA1A3[[#This Row],[Enhet (bränsleförbrukning per km)]]& \"/\" & InputA1A3[[#This Row],[*DU/FU (EF A4) för valt drivmedel (schablon)]])))","v":""},null,null,null,null,null,null,null,{"$f":"IFERROR(INDEX(TabellEFDrivmedel[],MATCH(InputA1A3[[#This Row],[Drivmedel (A5.2)]],TabellEFDrivmedel[Drivmedel],0),2),\"\")","v":""},{"$f":"IFERROR(INDEX(TabellEFDrivmedel[],MATCH(InputA1A3[[#This Row],[Drivmedel (A5.2)]],TabellEFDrivmedel[Drivmedel],0),4),\"\")","v":""},{"$f":"IF(KontrollTabell[[#This Row],[True/False A5 Enhet]]=TRUE, \"\", InputA1A3[[#This Row],[*DU/FU (EF A5.2)]] & \"/\" & InputA1A3[[#This Row],[Enhet för mängd (A5.2)]])","v":""},null,null,null,null,null,null,null,null,null,null,null,null,null,null,null,null,null,null,null,null,null,null,null,null,null,null,null,null,null,null,null,null,null,null,null,null,null,null,null,null,{"$f":"IF(ISBLANK(InputA1A3[[#This Row],[Anläggningsdel\n]]),FALSE,TRUE)","v":false},{"$f":"IF(ISBLANK(InputA1A3[[#This Row],[Anläggningsdel\n]]),\"\",IF(InputA1A3[[#This Row],[Enhet Mängd (A1A3)]] = InputA1A3[[#This Row],[FU/DU (EF A1A3)]], TRUE, FALSE))","v":""},{"$f":"IF(KontrollTabell[[#This Row],[Finns anläggningsdel-namn.]]=FALSE,\"\",IF(KontrollTabell[[#This Row],[True/False A1A3 Enhet]]=TRUE,TRUE,IF(ISBLANK(InputA1A3[[#This Row],[Omräkning till FU/DU (Skriv in värde, ej formel)]]),FALSE,TRUE)))","v":""},{"$f":"IF(KontrollTabell[[#This Row],[Finns anläggningsdel-namn.]]=FALSE,,IF(KontrollTabell[[#This Row],[True/False A1A3 Enhet]]=TRUE,InputA1A3[[#This Row],[Mängd A1A3]]*InputA1A3[[#This Row],[EF A1A3 '[kg CO₂-ekv.']]],IF(KontrollTabell[[#This Row],[True/False A1A3 om A1A3 kan beräknas]]=TRUE,InputA1A3[[#This Row],[Mängd A1A3]]*InputA1A3[[#This Row],[EF A1A3 '[kg CO₂-ekv.']]]*InputA1A3[[#This Row],[Omräkning till FU/DU (Skriv in värde, ej formel)]],\"Värde Behövs\")))","v":0},{"$f":"IF(ISBLANK(InputA1A3[[#This Row],[Anläggningsdel\n]]),\"\",IF(ISBLANK(InputA1A3[[#This Row],[EPD - EF A4]]),FALSE,TRUE))","v":""},{"$f":"IF(OR(ISBLANK(InputA1A3[[#This Row],[Enhet (bränsleförbrukning per km)]]),ISBLANK(InputA1A3[[#This Row],[*DU/FU (EF A4) för valt drivmedel (schablon)]])),\"\",IF(OR(InputA1A3[[#This Row],[Enhet (bränsleförbrukning per km)]]=InputA1A3[[#This Row],[*DU/FU (EF A4) för valt drivmedel (schablon)]],AND(InputA1A3[[#This Row],[Enhet (bränsleförbrukning per km)]]<>InputA1A3[[#This Row],[*DU/FU (EF A4) för valt drivmedel (schablon)]],ISNUMBER(InputA1A3[[#This Row],[Omräkningsfaktor (A4), (vid behov, värde eller formel)]]))),TRUE(),FALSE()))","v":""},{"$f":"IF(InputA1A3[[#This Row],[Enhet (bränsleförbrukning per km)]] =InputA1A3[[#This Row],[*DU/FU (EF A4) för valt drivmedel (schablon)]],TRUE,IF(ISBLANK(InputA1A3[[#This Row],[Omräkningsfaktor (A4), (vid behov, värde eller formel)]]),FALSE,TRUE))","v":true},{"$f":"IF(ISBLANK(InputA1A3[[#This Row],[EPD - EF A4]]),\"\",IF(ISBLANK(InputA1A3[[#This Row],[Omräkning till FU/DU (Skriv in värde, ej formel)]]),InputA1A3[[#This Row],[EPD - EF A4]]*InputA1A3[[#This Row],[Mängd A1A3]],InputA1A3[[#This Row],[Mängd A1A3]]*InputA1A3[[#This Row],[Omräkning till FU/DU (Skriv in värde, ej formel)]]*InputA1A3[[#This Row],[EPD - EF A4]]))","v":""},{"$f":"IF(ISBLANK(KontrollTabell[[#This Row],[True/False A4 - Alt 2]]),\"\",IF(KontrollTabell[[#This Row],[True/False A4 Enhet - Alt2]]=TRUE,InputA1A3[[#This Row],[Sträcka - totalt '[km'], (tur och retur, alla transporter)]]*InputA1A3[[#This Row],[(Bränsle-) Förbrukning per km]],\"Sen då\"))","v":0},{"$f":"SUM(KontrollTabell[[#This Row],[A4 - Resultat alt 1 '[kg']]:[A4 - Alt 2 - beräkning utsläpp]])","v":0},{"$f":"IF(ISBLANK(InputA1A3[[#This Row],[EPD - EF A4]]),ISBLANK(#REF!),)","v":false},{"$f":"IFERROR(IF(KontrollTabell[[#This Row],[True/False A5]]=FALSE(),\"Enheter\",IF(ISBLANK(InputA1A3[[#This Row],[Omräkningsfaktor (A5.2) (ange värde), (vid behov)]]),InputA1A3[[#This Row],[Mängd (A5.2)]]*InputA1A3[[#This Row],[*EF (A5.2)\n'[kg CO₂-ekv.']]],InputA1A3[[#This Row],[Mängd (A5.2)]]*InputA1A3[[#This Row],[*EF (A5.2)\n'[kg CO₂-ekv.']]]*InputA1A3[[#This Row],[Omräkningsfaktor (A5.2) (ange värde), (vid behov)]])),0)","v":0},{"$f":"IF(OR(ISBLANK(InputA1A3[[#This Row],[Enhet för mängd (A5.2)]]),ISBLANK(InputA1A3[[#This Row],[*DU/FU (EF A5.2)]])),\"\",IF(OR(InputA1A3[[#This Row],[Enhet för mängd (A5.2)]]=InputA1A3[[#This Row],[*DU/FU (EF A5.2)]],AND(InputA1A3[[#This Row],[Enhet för mängd (A5.2)]]<>InputA1A3[[#This Row],[*DU/FU (EF A5.2)]],ISNUMBER(InputA1A3[[#This Row],[Omräkningsfaktor (A5.2) (ange värde), (vid behov)]]))),TRUE,FALSE))","v":""},{"$f":"IF(InputA1A3[[#This Row],[Enhet för mängd (A5.2)]] = InputA1A3[[#This Row],[*DU/FU (EF A5.2)]], TRUE, FALSE)","v":true},{"$f":"IF(OR(ISBLANK(InputA1A3[[#This Row],[Kategori\n(egen kategorisering)]])=FALSE,ISBLANK(InputA1A3[[#This Row],[Anläggningsdel\n]]))=FALSE,TRUE,FALSE)","v":false},{"$f":"IF(ISBLANK(InputA1A3[[#This Row],[Anläggningsdel\n]]),\"\",IF(KontrollTabell[[#This Row],[TRUE/FALSE om kategori saknas.]] =FALSE,InputA1A3[[#This Row],[Kategori\n(egen kategorisering)]],\"Kategori saknas\"))","v":""}]
[null,null,null,null,null,null,null,null,null,{"$f":"IF(ISBLANK(InputA1A3[[#This Row],[Anläggningsdel\n]]),\"\",IF(KontrollTabell[[#This Row],[True/False A1A3 Enhet]]=TRUE, \"\", InputA1A3[[#This Row],[FU/DU (EF A1A3)]] & \"/\" & InputA1A3[[#This Row],[Enhet Mängd (A1A3)]]))","v":""},null,null,null,null,{"$f":"IF(ISBLANK(InputA1A3[[#This Row],[EPD - EF A4]]),\"\",InputA1A3[[#This Row],[FU/DU (EF A1A3)]])","v":""},null,null,null,{"$f":"IFERROR(INDEX(TabellEFDrivmedel[],MATCH(InputA1A3[[#This Row],[Drivmedel (A4) (endast förval ur lista)]],TabellEFDrivmedel[Drivmedel],0),4),\"\")","v":""},null,null,null,{"$f":"IF(InputA1A3[[#This Row],[*DU/FU (EF A4) för valt drivmedel (schablon)]]=\"\",\"\",IF(KontrollTabell[[#This Row],[True/False A4 Enhet - Alt2]]=TRUE,\"\",IF(ISBLANK(InputA1A3[[#This Row],[*DU/FU (EF A4) för valt drivmedel (schablon)]]),,InputA1A3[[#This Row],[Enhet (bränsleförbrukning per km)]]& \"/\" & InputA1A3[[#This Row],[*DU/FU (EF A4) för valt drivmedel (schablon)]])))","v":""},null,null,null,null,null,null,null,{"$f":"IFERROR(INDEX(TabellEFDrivmedel[],MATCH(InputA1A3[[#This Row],[Drivmedel (A5.2)]],TabellEFDrivmedel[Drivmedel],0),2),\"\")","v":""},{"$f":"IFERROR(INDEX(TabellEFDrivmedel[],MATCH(InputA1A3[[#This Row],[Drivmedel (A5.2)]],TabellEFDrivmedel[Drivmedel],0),4),\"\")","v":""},{"$f":"IF(KontrollTabell[[#This Row],[True/False A5 Enhet]]=TRUE, \"\", InputA1A3[[#This Row],[*DU/FU (EF A5.2)]] & \"/\" & InputA1A3[[#This Row],[Enhet för mängd (A5.2)]])","v":""},null,null,null,null,null,null,null,null,null,null,null,null,null,null,null,null,null,null,null,null,null,null,null,null,null,null,null,null,null,null,null,null,null,null,null,null,null,null,null,null,{"$f":"IF(ISBLANK(InputA1A3[[#This Row],[Anläggningsdel\n]]),FALSE,TRUE)","v":false},{"$f":"IF(ISBLANK(InputA1A3[[#This Row],[Anläggningsdel\n]]),\"\",IF(InputA1A3[[#This Row],[Enhet Mängd (A1A3)]] = InputA1A3[[#This Row],[FU/DU (EF A1A3)]], TRUE, FALSE))","v":""},{"$f":"IF(KontrollTabell[[#This Row],[Finns anläggningsdel-namn.]]=FALSE,\"\",IF(KontrollTabell[[#This Row],[True/False A1A3 Enhet]]=TRUE,TRUE,IF(ISBLANK(InputA1A3[[#This Row],[Omräkning till FU/DU (Skriv in värde, ej formel)]]),FALSE,TRUE)))","v":""},{"$f":"IF(KontrollTabell[[#This Row],[Finns anläggningsdel-namn.]]=FALSE,,IF(KontrollTabell[[#This Row],[True/False A1A3 Enhet]]=TRUE,InputA1A3[[#This Row],[Mängd A1A3]]*InputA1A3[[#This Row],[EF A1A3 '[kg CO₂-ekv.']]],IF(KontrollTabell[[#This Row],[True/False A1A3 om A1A3 kan beräknas]]=TRUE,InputA1A3[[#This Row],[Mängd A1A3]]*InputA1A3[[#This Row],[EF A1A3 '[kg CO₂-ekv.']]]*InputA1A3[[#This Row],[Omräkning till FU/DU (Skriv in värde, ej formel)]],\"Värde Behövs\")))","v":0},{"$f":"IF(ISBLANK(InputA1A3[[#This Row],[Anläggningsdel\n]]),\"\",IF(ISBLANK(InputA1A3[[#This Row],[EPD - EF A4]]),FALSE,TRUE))","v":""},{"$f":"IF(OR(ISBLANK(InputA1A3[[#This Row],[Enhet (bränsleförbrukning per km)]]),ISBLANK(InputA1A3[[#This Row],[*DU/FU (EF A4) för valt drivmedel (schablon)]])),\"\",IF(OR(InputA1A3[[#This Row],[Enhet (bränsleförbrukning per km)]]=InputA1A3[[#This Row],[*DU/FU (EF A4) för valt drivmedel (schablon)]],AND(InputA1A3[[#This Row],[Enhet (bränsleförbrukning per km)]]<>InputA1A3[[#This Row],[*DU/FU (EF A4) för valt drivmedel (schablon)]],ISNUMBER(InputA1A3[[#This Row],[Omräkningsfaktor (A4), (vid behov, värde eller formel)]]))),TRUE(),FALSE()))","v":""},{"$f":"IF(InputA1A3[[#This Row],[Enhet (bränsleförbrukning per km)]] =InputA1A3[[#This Row],[*DU/FU (EF A4) för valt drivmedel (schablon)]],TRUE,IF(ISBLANK(InputA1A3[[#This Row],[Omräkningsfaktor (A4), (vid behov, värde eller formel)]]),FALSE,TRUE))","v":true},{"$f":"IF(ISBLANK(InputA1A3[[#This Row],[EPD - EF A4]]),\"\",IF(ISBLANK(InputA1A3[[#This Row],[Omräkning till FU/DU (Skriv in värde, ej formel)]]),InputA1A3[[#This Row],[EPD - EF A4]]*InputA1A3[[#This Row],[Mängd A1A3]],InputA1A3[[#This Row],[Mängd A1A3]]*InputA1A3[[#This Row],[Omräkning till FU/DU (Skriv in värde, ej formel)]]*InputA1A3[[#This Row],[EPD - EF A4]]))","v":""},{"$f":"IF(ISBLANK(KontrollTabell[[#This Row],[True/False A4 - Alt 2]]),\"\",IF(KontrollTabell[[#This Row],[True/False A4 Enhet - Alt2]]=TRUE,InputA1A3[[#This Row],[Sträcka - totalt '[km'], (tur och retur, alla transporter)]]*InputA1A3[[#This Row],[(Bränsle-) Förbrukning per km]],\"Sen då\"))","v":0},{"$f":"SUM(KontrollTabell[[#This Row],[A4 - Resultat alt 1 '[kg']]:[A4 - Alt 2 - beräkning utsläpp]])","v":0},{"$f":"IF(ISBLANK(InputA1A3[[#This Row],[EPD - EF A4]]),ISBLANK(#REF!),)","v":false},{"$f":"IFERROR(IF(KontrollTabell[[#This Row],[True/False A5]]=FALSE(),\"Enheter\",IF(ISBLANK(InputA1A3[[#This Row],[Omräkningsfaktor (A5.2) (ange värde), (vid behov)]]),InputA1A3[[#This Row],[Mängd (A5.2)]]*InputA1A3[[#This Row],[*EF (A5.2)\n'[kg CO₂-ekv.']]],InputA1A3[[#This Row],[Mängd (A5.2)]]*InputA1A3[[#This Row],[*EF (A5.2)\n'[kg CO₂-ekv.']]]*InputA1A3[[#This Row],[Omräkningsfaktor (A5.2) (ange värde), (vid behov)]])),0)","v":0},{"$f":"IF(OR(ISBLANK(InputA1A3[[#This Row],[Enhet för mängd (A5.2)]]),ISBLANK(InputA1A3[[#This Row],[*DU/FU (EF A5.2)]])),\"\",IF(OR(InputA1A3[[#This Row],[Enhet för mängd (A5.2)]]=InputA1A3[[#This Row],[*DU/FU (EF A5.2)]],AND(InputA1A3[[#This Row],[Enhet för mängd (A5.2)]]<>InputA1A3[[#This Row],[*DU/FU (EF A5.2)]],ISNUMBER(InputA1A3[[#This Row],[Omräkningsfaktor (A5.2) (ange värde), (vid behov)]]))),TRUE,FALSE))","v":""},{"$f":"IF(InputA1A3[[#This Row],[Enhet för mängd (A5.2)]] = InputA1A3[[#This Row],[*DU/FU (EF A5.2)]], TRUE, FALSE)","v":true},{"$f":"IF(OR(ISBLANK(InputA1A3[[#This Row],[Kategori\n(egen kategorisering)]])=FALSE,ISBLANK(InputA1A3[[#This Row],[Anläggningsdel\n]]))=FALSE,TRUE,FALSE)","v":false},{"$f":"IF(ISBLANK(InputA1A3[[#This Row],[Anläggningsdel\n]]),\"\",IF(KontrollTabell[[#This Row],[TRUE/FALSE om kategori saknas.]] =FALSE,InputA1A3[[#This Row],[Kategori\n(egen kategorisering)]],\"Kategori saknas\"))","v":""}]
[null,null,null,null,null,null,null,null,null,{"$f":"IF(ISBLANK(InputA1A3[[#This Row],[Anläggningsdel\n]]),\"\",IF(KontrollTabell[[#This Row],[True/False A1A3 Enhet]]=TRUE, \"\", InputA1A3[[#This Row],[FU/DU (EF A1A3)]] & \"/\" & InputA1A3[[#This Row],[Enhet Mängd (A1A3)]]))","v":""},null,null,null,null,{"$f":"IF(ISBLANK(InputA1A3[[#This Row],[EPD - EF A4]]),\"\",InputA1A3[[#This Row],[FU/DU (EF A1A3)]])","v":""},null,null,null,{"$f":"IFERROR(INDEX(TabellEFDrivmedel[],MATCH(InputA1A3[[#This Row],[Drivmedel (A4) (endast förval ur lista)]],TabellEFDrivmedel[Drivmedel],0),4),\"\")","v":""},null,null,null,{"$f":"IF(InputA1A3[[#This Row],[*DU/FU (EF A4) för valt drivmedel (schablon)]]=\"\",\"\",IF(KontrollTabell[[#This Row],[True/False A4 Enhet - Alt2]]=TRUE,\"\",IF(ISBLANK(InputA1A3[[#This Row],[*DU/FU (EF A4) för valt drivmedel (schablon)]]),,InputA1A3[[#This Row],[Enhet (bränsleförbrukning per km)]]& \"/\" & InputA1A3[[#This Row],[*DU/FU (EF A4) för valt drivmedel (schablon)]])))","v":""},null,null,null,null,null,null,null,{"$f":"IFERROR(INDEX(TabellEFDrivmedel[],MATCH(InputA1A3[[#This Row],[Drivmedel (A5.2)]],TabellEFDrivmedel[Drivmedel],0),2),\"\")","v":""},{"$f":"IFERROR(INDEX(TabellEFDrivmedel[],MATCH(InputA1A3[[#This Row],[Drivmedel (A5.2)]],TabellEFDrivmedel[Drivmedel],0),4),\"\")","v":""},{"$f":"IF(KontrollTabell[[#This Row],[True/False A5 Enhet]]=TRUE, \"\", InputA1A3[[#This Row],[*DU/FU (EF A5.2)]] & \"/\" & InputA1A3[[#This Row],[Enhet för mängd (A5.2)]])","v":""},null,null,null,null,null,null,null,null,null,null,null,null,null,null,null,null,null,null,null,null,null,null,null,null,null,null,null,null,null,null,null,null,null,null,null,null,null,null,null,null,{"$f":"IF(ISBLANK(InputA1A3[[#This Row],[Anläggningsdel\n]]),FALSE,TRUE)","v":false},{"$f":"IF(ISBLANK(InputA1A3[[#This Row],[Anläggningsdel\n]]),\"\",IF(InputA1A3[[#This Row],[Enhet Mängd (A1A3)]] = InputA1A3[[#This Row],[FU/DU (EF A1A3)]], TRUE, FALSE))","v":""},{"$f":"IF(KontrollTabell[[#This Row],[Finns anläggningsdel-namn.]]=FALSE,\"\",IF(KontrollTabell[[#This Row],[True/False A1A3 Enhet]]=TRUE,TRUE,IF(ISBLANK(InputA1A3[[#This Row],[Omräkning till FU/DU (Skriv in värde, ej formel)]]),FALSE,TRUE)))","v":""},{"$f":"IF(KontrollTabell[[#This Row],[Finns anläggningsdel-namn.]]=FALSE,,IF(KontrollTabell[[#This Row],[True/False A1A3 Enhet]]=TRUE,InputA1A3[[#This Row],[Mängd A1A3]]*InputA1A3[[#This Row],[EF A1A3 '[kg CO₂-ekv.']]],IF(KontrollTabell[[#This Row],[True/False A1A3 om A1A3 kan beräknas]]=TRUE,InputA1A3[[#This Row],[Mängd A1A3]]*InputA1A3[[#This Row],[EF A1A3 '[kg CO₂-ekv.']]]*InputA1A3[[#This Row],[Omräkning till FU/DU (Skriv in värde, ej formel)]],\"Värde Behövs\")))","v":0},{"$f":"IF(ISBLANK(InputA1A3[[#This Row],[Anläggningsdel\n]]),\"\",IF(ISBLANK(InputA1A3[[#This Row],[EPD - EF A4]]),FALSE,TRUE))","v":""},{"$f":"IF(OR(ISBLANK(InputA1A3[[#This Row],[Enhet (bränsleförbrukning per km)]]),ISBLANK(InputA1A3[[#This Row],[*DU/FU (EF A4) för valt drivmedel (schablon)]])),\"\",IF(OR(InputA1A3[[#This Row],[Enhet (bränsleförbrukning per km)]]=InputA1A3[[#This Row],[*DU/FU (EF A4) för valt drivmedel (schablon)]],AND(InputA1A3[[#This Row],[Enhet (bränsleförbrukning per km)]]<>InputA1A3[[#This Row],[*DU/FU (EF A4) för valt drivmedel (schablon)]],ISNUMBER(InputA1A3[[#This Row],[Omräkningsfaktor (A4), (vid behov, värde eller formel)]]))),TRUE(),FALSE()))","v":""},{"$f":"IF(InputA1A3[[#This Row],[Enhet (bränsleförbrukning per km)]] =InputA1A3[[#This Row],[*DU/FU (EF A4) för valt drivmedel (schablon)]],TRUE,IF(ISBLANK(InputA1A3[[#This Row],[Omräkningsfaktor (A4), (vid behov, värde eller formel)]]),FALSE,TRUE))","v":true},{"$f":"IF(ISBLANK(InputA1A3[[#This Row],[EPD - EF A4]]),\"\",IF(ISBLANK(InputA1A3[[#This Row],[Omräkning till FU/DU (Skriv in värde, ej formel)]]),InputA1A3[[#This Row],[EPD - EF A4]]*InputA1A3[[#This Row],[Mängd A1A3]],InputA1A3[[#This Row],[Mängd A1A3]]*InputA1A3[[#This Row],[Omräkning till FU/DU (Skriv in värde, ej formel)]]*InputA1A3[[#This Row],[EPD - EF A4]]))","v":""},{"$f":"IF(ISBLANK(KontrollTabell[[#This Row],[True/False A4 - Alt 2]]),\"\",IF(KontrollTabell[[#This Row],[True/False A4 Enhet - Alt2]]=TRUE,InputA1A3[[#This Row],[Sträcka - totalt '[km'], (tur och retur, alla transporter)]]*InputA1A3[[#This Row],[(Bränsle-) Förbrukning per km]],\"Sen då\"))","v":0},{"$f":"SUM(KontrollTabell[[#This Row],[A4 - Resultat alt 1 '[kg']]:[A4 - Alt 2 - beräkning utsläpp]])","v":0},{"$f":"IF(ISBLANK(InputA1A3[[#This Row],[EPD - EF A4]]),ISBLANK(#REF!),)","v":false},{"$f":"IFERROR(IF(KontrollTabell[[#This Row],[True/False A5]]=FALSE(),\"Enheter\",IF(ISBLANK(InputA1A3[[#This Row],[Omräkningsfaktor (A5.2) (ange värde), (vid behov)]]),InputA1A3[[#This Row],[Mängd (A5.2)]]*InputA1A3[[#This Row],[*EF (A5.2)\n'[kg CO₂-ekv.']]],InputA1A3[[#This Row],[Mängd (A5.2)]]*InputA1A3[[#This Row],[*EF (A5.2)\n'[kg CO₂-ekv.']]]*InputA1A3[[#This Row],[Omräkningsfaktor (A5.2) (ange värde), (vid behov)]])),0)","v":0},{"$f":"IF(OR(ISBLANK(InputA1A3[[#This Row],[Enhet för mängd (A5.2)]]),ISBLANK(InputA1A3[[#This Row],[*DU/FU (EF A5.2)]])),\"\",IF(OR(InputA1A3[[#This Row],[Enhet för mängd (A5.2)]]=InputA1A3[[#This Row],[*DU/FU (EF A5.2)]],AND(InputA1A3[[#This Row],[Enhet för mängd (A5.2)]]<>InputA1A3[[#This Row],[*DU/FU (EF A5.2)]],ISNUMBER(InputA1A3[[#This Row],[Omräkningsfaktor (A5.2) (ange värde), (vid behov)]]))),TRUE,FALSE))","v":""},{"$f":"IF(InputA1A3[[#This Row],[Enhet för mängd (A5.2)]] = InputA1A3[[#This Row],[*DU/FU (EF A5.2)]], TRUE, FALSE)","v":true},{"$f":"IF(OR(ISBLANK(InputA1A3[[#This Row],[Kategori\n(egen kategorisering)]])=FALSE,ISBLANK(InputA1A3[[#This Row],[Anläggningsdel\n]]))=FALSE,TRUE,FALSE)","v":false},{"$f":"IF(ISBLANK(InputA1A3[[#This Row],[Anläggningsdel\n]]),\"\",IF(KontrollTabell[[#This Row],[TRUE/FALSE om kategori saknas.]] =FALSE,InputA1A3[[#This Row],[Kategori\n(egen kategorisering)]],\"Kategori saknas\"))","v":""}]
[null,null,null,null,null,null,null,null,null,{"$f":"IF(ISBLANK(InputA1A3[[#This Row],[Anläggningsdel\n]]),\"\",IF(KontrollTabell[[#This Row],[True/False A1A3 Enhet]]=TRUE, \"\", InputA1A3[[#This Row],[FU/DU (EF A1A3)]] & \"/\" & InputA1A3[[#This Row],[Enhet Mängd (A1A3)]]))","v":""},null,null,null,null,{"$f":"IF(ISBLANK(InputA1A3[[#This Row],[EPD - EF A4]]),\"\",InputA1A3[[#This Row],[FU/DU (EF A1A3)]])","v":""},null,null,null,{"$f":"IFERROR(INDEX(TabellEFDrivmedel[],MATCH(InputA1A3[[#This Row],[Drivmedel (A4) (endast förval ur lista)]],TabellEFDrivmedel[Drivmedel],0),4),\"\")","v":""},null,null,null,{"$f":"IF(InputA1A3[[#This Row],[*DU/FU (EF A4) för valt drivmedel (schablon)]]=\"\",\"\",IF(KontrollTabell[[#This Row],[True/False A4 Enhet - Alt2]]=TRUE,\"\",IF(ISBLANK(InputA1A3[[#This Row],[*DU/FU (EF A4) för valt drivmedel (schablon)]]),,InputA1A3[[#This Row],[Enhet (bränsleförbrukning per km)]]& \"/\" & InputA1A3[[#This Row],[*DU/FU (EF A4) för valt drivmedel (schablon)]])))","v":""},null,null,null,null,null,null,null,{"$f":"IFERROR(INDEX(TabellEFDrivmedel[],MATCH(InputA1A3[[#This Row],[Drivmedel (A5.2)]],TabellEFDrivmedel[Drivmedel],0),2),\"\")","v":""},{"$f":"IFERROR(INDEX(TabellEFDrivmedel[],MATCH(InputA1A3[[#This Row],[Drivmedel (A5.2)]],TabellEFDrivmedel[Drivmedel],0),4),\"\")","v":""},{"$f":"IF(KontrollTabell[[#This Row],[True/False A5 Enhet]]=TRUE, \"\", InputA1A3[[#This Row],[*DU/FU (EF A5.2)]] & \"/\" & InputA1A3[[#This Row],[Enhet för mängd (A5.2)]])","v":""},null,null,null,null,null,null,null,null,null,null,null,null,null,null,null,null,null,null,null,null,null,null,null,null,null,null,null,null,null,null,null,null,null,null,null,null,null,null,null,null,{"$f":"IF(ISBLANK(InputA1A3[[#This Row],[Anläggningsdel\n]]),FALSE,TRUE)","v":false},{"$f":"IF(ISBLANK(InputA1A3[[#This Row],[Anläggningsdel\n]]),\"\",IF(InputA1A3[[#This Row],[Enhet Mängd (A1A3)]] = InputA1A3[[#This Row],[FU/DU (EF A1A3)]], TRUE, FALSE))","v":""},{"$f":"IF(KontrollTabell[[#This Row],[Finns anläggningsdel-namn.]]=FALSE,\"\",IF(KontrollTabell[[#This Row],[True/False A1A3 Enhet]]=TRUE,TRUE,IF(ISBLANK(InputA1A3[[#This Row],[Omräkning till FU/DU (Skriv in värde, ej formel)]]),FALSE,TRUE)))","v":""},{"$f":"IF(KontrollTabell[[#This Row],[Finns anläggningsdel-namn.]]=FALSE,,IF(KontrollTabell[[#This Row],[True/False A1A3 Enhet]]=TRUE,InputA1A3[[#This Row],[Mängd A1A3]]*InputA1A3[[#This Row],[EF A1A3 '[kg CO₂-ekv.']]],IF(KontrollTabell[[#This Row],[True/False A1A3 om A1A3 kan beräknas]]=TRUE,InputA1A3[[#This Row],[Mängd A1A3]]*InputA1A3[[#This Row],[EF A1A3 '[kg CO₂-ekv.']]]*InputA1A3[[#This Row],[Omräkning till FU/DU (Skriv in värde, ej formel)]],\"Värde Behövs\")))","v":0},{"$f":"IF(ISBLANK(InputA1A3[[#This Row],[Anläggningsdel\n]]),\"\",IF(ISBLANK(InputA1A3[[#This Row],[EPD - EF A4]]),FALSE,TRUE))","v":""},{"$f":"IF(OR(ISBLANK(InputA1A3[[#This Row],[Enhet (bränsleförbrukning per km)]]),ISBLANK(InputA1A3[[#This Row],[*DU/FU (EF A4) för valt drivmedel (schablon)]])),\"\",IF(OR(InputA1A3[[#This Row],[Enhet (bränsleförbrukning per km)]]=InputA1A3[[#This Row],[*DU/FU (EF A4) för valt drivmedel (schablon)]],AND(InputA1A3[[#This Row],[Enhet (bränsleförbrukning per km)]]<>InputA1A3[[#This Row],[*DU/FU (EF A4) för valt drivmedel (schablon)]],ISNUMBER(InputA1A3[[#This Row],[Omräkningsfaktor (A4), (vid behov, värde eller formel)]]))),TRUE(),FALSE()))","v":""},{"$f":"IF(InputA1A3[[#This Row],[Enhet (bränsleförbrukning per km)]] =InputA1A3[[#This Row],[*DU/FU (EF A4) för valt drivmedel (schablon)]],TRUE,IF(ISBLANK(InputA1A3[[#This Row],[Omräkningsfaktor (A4), (vid behov, värde eller formel)]]),FALSE,TRUE))","v":true},{"$f":"IF(ISBLANK(InputA1A3[[#This Row],[EPD - EF A4]]),\"\",IF(ISBLANK(InputA1A3[[#This Row],[Omräkning till FU/DU (Skriv in värde, ej formel)]]),InputA1A3[[#This Row],[EPD - EF A4]]*InputA1A3[[#This Row],[Mängd A1A3]],InputA1A3[[#This Row],[Mängd A1A3]]*InputA1A3[[#This Row],[Omräkning till FU/DU (Skriv in värde, ej formel)]]*InputA1A3[[#This Row],[EPD - EF A4]]))","v":""},{"$f":"IF(ISBLANK(KontrollTabell[[#This Row],[True/False A4 - Alt 2]]),\"\",IF(KontrollTabell[[#This Row],[True/False A4 Enhet - Alt2]]=TRUE,InputA1A3[[#This Row],[Sträcka - totalt '[km'], (tur och retur, alla transporter)]]*InputA1A3[[#This Row],[(Bränsle-) Förbrukning per km]],\"Sen då\"))","v":0},{"$f":"SUM(KontrollTabell[[#This Row],[A4 - Resultat alt 1 '[kg']]:[A4 - Alt 2 - beräkning utsläpp]])","v":0},{"$f":"IF(ISBLANK(InputA1A3[[#This Row],[EPD - EF A4]]),ISBLANK(#REF!),)","v":false},{"$f":"IFERROR(IF(KontrollTabell[[#This Row],[True/False A5]]=FALSE(),\"Enheter\",IF(ISBLANK(InputA1A3[[#This Row],[Omräkningsfaktor (A5.2) (ange värde), (vid behov)]]),InputA1A3[[#This Row],[Mängd (A5.2)]]*InputA1A3[[#This Row],[*EF (A5.2)\n'[kg CO₂-ekv.']]],InputA1A3[[#This Row],[Mängd (A5.2)]]*InputA1A3[[#This Row],[*EF (A5.2)\n'[kg CO₂-ekv.']]]*InputA1A3[[#This Row],[Omräkningsfaktor (A5.2) (ange värde), (vid behov)]])),0)","v":0},{"$f":"IF(OR(ISBLANK(InputA1A3[[#This Row],[Enhet för mängd (A5.2)]]),ISBLANK(InputA1A3[[#This Row],[*DU/FU (EF A5.2)]])),\"\",IF(OR(InputA1A3[[#This Row],[Enhet för mängd (A5.2)]]=InputA1A3[[#This Row],[*DU/FU (EF A5.2)]],AND(InputA1A3[[#This Row],[Enhet för mängd (A5.2)]]<>InputA1A3[[#This Row],[*DU/FU (EF A5.2)]],ISNUMBER(InputA1A3[[#This Row],[Omräkningsfaktor (A5.2) (ange värde), (vid behov)]]))),TRUE,FALSE))","v":""},{"$f":"IF(InputA1A3[[#This Row],[Enhet för mängd (A5.2)]] = InputA1A3[[#This Row],[*DU/FU (EF A5.2)]], TRUE, FALSE)","v":true},{"$f":"IF(OR(ISBLANK(InputA1A3[[#This Row],[Kategori\n(egen kategorisering)]])=FALSE,ISBLANK(InputA1A3[[#This Row],[Anläggningsdel\n]]))=FALSE,TRUE,FALSE)","v":false},{"$f":"IF(ISBLANK(InputA1A3[[#This Row],[Anläggningsdel\n]]),\"\",IF(KontrollTabell[[#This Row],[TRUE/FALSE om kategori saknas.]] =FALSE,InputA1A3[[#This Row],[Kategori\n(egen kategorisering)]],\"Kategori saknas\"))","v":""}]
[null,null,null,null,null,null,null,null,null,{"$f":"IF(ISBLANK(InputA1A3[[#This Row],[Anläggningsdel\n]]),\"\",IF(KontrollTabell[[#This Row],[True/False A1A3 Enhet]]=TRUE, \"\", InputA1A3[[#This Row],[FU/DU (EF A1A3)]] & \"/\" & InputA1A3[[#This Row],[Enhet Mängd (A1A3)]]))","v":""},null,null,null,null,{"$f":"IF(ISBLANK(InputA1A3[[#This Row],[EPD - EF A4]]),\"\",InputA1A3[[#This Row],[FU/DU (EF A1A3)]])","v":""},null,null,null,{"$f":"IFERROR(INDEX(TabellEFDrivmedel[],MATCH(InputA1A3[[#This Row],[Drivmedel (A4) (endast förval ur lista)]],TabellEFDrivmedel[Drivmedel],0),4),\"\")","v":""},null,null,null,{"$f":"IF(InputA1A3[[#This Row],[*DU/FU (EF A4) för valt drivmedel (schablon)]]=\"\",\"\",IF(KontrollTabell[[#This Row],[True/False A4 Enhet - Alt2]]=TRUE,\"\",IF(ISBLANK(InputA1A3[[#This Row],[*DU/FU (EF A4) för valt drivmedel (schablon)]]),,InputA1A3[[#This Row],[Enhet (bränsleförbrukning per km)]]& \"/\" & InputA1A3[[#This Row],[*DU/FU (EF A4) för valt drivmedel (schablon)]])))","v":""},null,null,null,null,null,null,null,{"$f":"IFERROR(INDEX(TabellEFDrivmedel[],MATCH(InputA1A3[[#This Row],[Drivmedel (A5.2)]],TabellEFDrivmedel[Drivmedel],0),2),\"\")","v":""},{"$f":"IFERROR(INDEX(TabellEFDrivmedel[],MATCH(InputA1A3[[#This Row],[Drivmedel (A5.2)]],TabellEFDrivmedel[Drivmedel],0),4),\"\")","v":""},{"$f":"IF(KontrollTabell[[#This Row],[True/False A5 Enhet]]=TRUE, \"\", InputA1A3[[#This Row],[*DU/FU (EF A5.2)]] & \"/\" & InputA1A3[[#This Row],[Enhet för mängd (A5.2)]])","v":""},null,null,null,null,null,null,null,null,null,null,null,null,null,null,null,null,null,null,null,null,null,null,null,null,null,null,null,null,null,null,null,null,null,null,null,null,null,null,null,null,{"$f":"IF(ISBLANK(InputA1A3[[#This Row],[Anläggningsdel\n]]),FALSE,TRUE)","v":false},{"$f":"IF(ISBLANK(InputA1A3[[#This Row],[Anläggningsdel\n]]),\"\",IF(InputA1A3[[#This Row],[Enhet Mängd (A1A3)]] = InputA1A3[[#This Row],[FU/DU (EF A1A3)]], TRUE, FALSE))","v":""},{"$f":"IF(KontrollTabell[[#This Row],[Finns anläggningsdel-namn.]]=FALSE,\"\",IF(KontrollTabell[[#This Row],[True/False A1A3 Enhet]]=TRUE,TRUE,IF(ISBLANK(InputA1A3[[#This Row],[Omräkning till FU/DU (Skriv in värde, ej formel)]]),FALSE,TRUE)))","v":""},{"$f":"IF(KontrollTabell[[#This Row],[Finns anläggningsdel-namn.]]=FALSE,,IF(KontrollTabell[[#This Row],[True/False A1A3 Enhet]]=TRUE,InputA1A3[[#This Row],[Mängd A1A3]]*InputA1A3[[#This Row],[EF A1A3 '[kg CO₂-ekv.']]],IF(KontrollTabell[[#This Row],[True/False A1A3 om A1A3 kan beräknas]]=TRUE,InputA1A3[[#This Row],[Mängd A1A3]]*InputA1A3[[#This Row],[EF A1A3 '[kg CO₂-ekv.']]]*InputA1A3[[#This Row],[Omräkning till FU/DU (Skriv in värde, ej formel)]],\"Värde Behövs\")))","v":0},{"$f":"IF(ISBLANK(InputA1A3[[#This Row],[Anläggningsdel\n]]),\"\",IF(ISBLANK(InputA1A3[[#This Row],[EPD - EF A4]]),FALSE,TRUE))","v":""},{"$f":"IF(OR(ISBLANK(InputA1A3[[#This Row],[Enhet (bränsleförbrukning per km)]]),ISBLANK(InputA1A3[[#This Row],[*DU/FU (EF A4) för valt drivmedel (schablon)]])),\"\",IF(OR(InputA1A3[[#This Row],[Enhet (bränsleförbrukning per km)]]=InputA1A3[[#This Row],[*DU/FU (EF A4) för valt drivmedel (schablon)]],AND(InputA1A3[[#This Row],[Enhet (bränsleförbrukning per km)]]<>InputA1A3[[#This Row],[*DU/FU (EF A4) för valt drivmedel (schablon)]],ISNUMBER(InputA1A3[[#This Row],[Omräkningsfaktor (A4), (vid behov, värde eller formel)]]))),TRUE(),FALSE()))","v":""},{"$f":"IF(InputA1A3[[#This Row],[Enhet (bränsleförbrukning per km)]] =InputA1A3[[#This Row],[*DU/FU (EF A4) för valt drivmedel (schablon)]],TRUE,IF(ISBLANK(InputA1A3[[#This Row],[Omräkningsfaktor (A4), (vid behov, värde eller formel)]]),FALSE,TRUE))","v":true},{"$f":"IF(ISBLANK(InputA1A3[[#This Row],[EPD - EF A4]]),\"\",IF(ISBLANK(InputA1A3[[#This Row],[Omräkning till FU/DU (Skriv in värde, ej formel)]]),InputA1A3[[#This Row],[EPD - EF A4]]*InputA1A3[[#This Row],[Mängd A1A3]],InputA1A3[[#This Row],[Mängd A1A3]]*InputA1A3[[#This Row],[Omräkning till FU/DU (Skriv in värde, ej formel)]]*InputA1A3[[#This Row],[EPD - EF A4]]))","v":""},{"$f":"IF(ISBLANK(KontrollTabell[[#This Row],[True/False A4 - Alt 2]]),\"\",IF(KontrollTabell[[#This Row],[True/False A4 Enhet - Alt2]]=TRUE,InputA1A3[[#This Row],[Sträcka - totalt '[km'], (tur och retur, alla transporter)]]*InputA1A3[[#This Row],[(Bränsle-) Förbrukning per km]],\"Sen då\"))","v":0},{"$f":"SUM(KontrollTabell[[#This Row],[A4 - Resultat alt 1 '[kg']]:[A4 - Alt 2 - beräkning utsläpp]])","v":0},{"$f":"IF(ISBLANK(InputA1A3[[#This Row],[EPD - EF A4]]),ISBLANK(#REF!),)","v":false},{"$f":"IFERROR(IF(KontrollTabell[[#This Row],[True/False A5]]=FALSE(),\"Enheter\",IF(ISBLANK(InputA1A3[[#This Row],[Omräkningsfaktor (A5.2) (ange värde), (vid behov)]]),InputA1A3[[#This Row],[Mängd (A5.2)]]*InputA1A3[[#This Row],[*EF (A5.2)\n'[kg CO₂-ekv.']]],InputA1A3[[#This Row],[Mängd (A5.2)]]*InputA1A3[[#This Row],[*EF (A5.2)\n'[kg CO₂-ekv.']]]*InputA1A3[[#This Row],[Omräkningsfaktor (A5.2) (ange värde), (vid behov)]])),0)","v":0},{"$f":"IF(OR(ISBLANK(InputA1A3[[#This Row],[Enhet för mängd (A5.2)]]),ISBLANK(InputA1A3[[#This Row],[*DU/FU (EF A5.2)]])),\"\",IF(OR(InputA1A3[[#This Row],[Enhet för mängd (A5.2)]]=InputA1A3[[#This Row],[*DU/FU (EF A5.2)]],AND(InputA1A3[[#This Row],[Enhet för mängd (A5.2)]]<>InputA1A3[[#This Row],[*DU/FU (EF A5.2)]],ISNUMBER(InputA1A3[[#This Row],[Omräkningsfaktor (A5.2) (ange värde), (vid behov)]]))),TRUE,FALSE))","v":""},{"$f":"IF(InputA1A3[[#This Row],[Enhet för mängd (A5.2)]] = InputA1A3[[#This Row],[*DU/FU (EF A5.2)]], TRUE, FALSE)","v":true},{"$f":"IF(OR(ISBLANK(InputA1A3[[#This Row],[Kategori\n(egen kategorisering)]])=FALSE,ISBLANK(InputA1A3[[#This Row],[Anläggningsdel\n]]))=FALSE,TRUE,FALSE)","v":false},{"$f":"IF(ISBLANK(InputA1A3[[#This Row],[Anläggningsdel\n]]),\"\",IF(KontrollTabell[[#This Row],[TRUE/FALSE om kategori saknas.]] =FALSE,InputA1A3[[#This Row],[Kategori\n(egen kategorisering)]],\"Kategori saknas\"))","v":""}]
[null,null,null,null,null,null,null,null,null,{"$f":"IF(ISBLANK(InputA1A3[[#This Row],[Anläggningsdel\n]]),\"\",IF(KontrollTabell[[#This Row],[True/False A1A3 Enhet]]=TRUE, \"\", InputA1A3[[#This Row],[FU/DU (EF A1A3)]] & \"/\" & InputA1A3[[#This Row],[Enhet Mängd (A1A3)]]))","v":""},null,null,null,null,{"$f":"IF(ISBLANK(InputA1A3[[#This Row],[EPD - EF A4]]),\"\",InputA1A3[[#This Row],[FU/DU (EF A1A3)]])","v":""},null,null,null,{"$f":"IFERROR(INDEX(TabellEFDrivmedel[],MATCH(InputA1A3[[#This Row],[Drivmedel (A4) (endast förval ur lista)]],TabellEFDrivmedel[Drivmedel],0),4),\"\")","v":""},null,null,null,{"$f":"IF(InputA1A3[[#This Row],[*DU/FU (EF A4) för valt drivmedel (schablon)]]=\"\",\"\",IF(KontrollTabell[[#This Row],[True/False A4 Enhet - Alt2]]=TRUE,\"\",IF(ISBLANK(InputA1A3[[#This Row],[*DU/FU (EF A4) för valt drivmedel (schablon)]]),,InputA1A3[[#This Row],[Enhet (bränsleförbrukning per km)]]& \"/\" & InputA1A3[[#This Row],[*DU/FU (EF A4) för valt drivmedel (schablon)]])))","v":""},null,null,null,null,null,null,null,{"$f":"IFERROR(INDEX(TabellEFDrivmedel[],MATCH(InputA1A3[[#This Row],[Drivmedel (A5.2)]],TabellEFDrivmedel[Drivmedel],0),2),\"\")","v":""},{"$f":"IFERROR(INDEX(TabellEFDrivmedel[],MATCH(InputA1A3[[#This Row],[Drivmedel (A5.2)]],TabellEFDrivmedel[Drivmedel],0),4),\"\")","v":""},{"$f":"IF(KontrollTabell[[#This Row],[True/False A5 Enhet]]=TRUE, \"\", InputA1A3[[#This Row],[*DU/FU (EF A5.2)]] & \"/\" & InputA1A3[[#This Row],[Enhet för mängd (A5.2)]])","v":""},null,null,null,null,null,null,null,null,null,null,null,null,null,null,null,null,null,null,null,null,null,null,null,null,null,null,null,null,null,null,null,null,null,null,null,null,null,null,null,null,{"$f":"IF(ISBLANK(InputA1A3[[#This Row],[Anläggningsdel\n]]),FALSE,TRUE)","v":false},{"$f":"IF(ISBLANK(InputA1A3[[#This Row],[Anläggningsdel\n]]),\"\",IF(InputA1A3[[#This Row],[Enhet Mängd (A1A3)]] = InputA1A3[[#This Row],[FU/DU (EF A1A3)]], TRUE, FALSE))","v":""},{"$f":"IF(KontrollTabell[[#This Row],[Finns anläggningsdel-namn.]]=FALSE,\"\",IF(KontrollTabell[[#This Row],[True/False A1A3 Enhet]]=TRUE,TRUE,IF(ISBLANK(InputA1A3[[#This Row],[Omräkning till FU/DU (Skriv in värde, ej formel)]]),FALSE,TRUE)))","v":""},{"$f":"IF(KontrollTabell[[#This Row],[Finns anläggningsdel-namn.]]=FALSE,,IF(KontrollTabell[[#This Row],[True/False A1A3 Enhet]]=TRUE,InputA1A3[[#This Row],[Mängd A1A3]]*InputA1A3[[#This Row],[EF A1A3 '[kg CO₂-ekv.']]],IF(KontrollTabell[[#This Row],[True/False A1A3 om A1A3 kan beräknas]]=TRUE,InputA1A3[[#This Row],[Mängd A1A3]]*InputA1A3[[#This Row],[EF A1A3 '[kg CO₂-ekv.']]]*InputA1A3[[#This Row],[Omräkning till FU/DU (Skriv in värde, ej formel)]],\"Värde Behövs\")))","v":0},{"$f":"IF(ISBLANK(InputA1A3[[#This Row],[Anläggningsdel\n]]),\"\",IF(ISBLANK(InputA1A3[[#This Row],[EPD - EF A4]]),FALSE,TRUE))","v":""},{"$f":"IF(OR(ISBLANK(InputA1A3[[#This Row],[Enhet (bränsleförbrukning per km)]]),ISBLANK(InputA1A3[[#This Row],[*DU/FU (EF A4) för valt drivmedel (schablon)]])),\"\",IF(OR(InputA1A3[[#This Row],[Enhet (bränsleförbrukning per km)]]=InputA1A3[[#This Row],[*DU/FU (EF A4) för valt drivmedel (schablon)]],AND(InputA1A3[[#This Row],[Enhet (bränsleförbrukning per km)]]<>InputA1A3[[#This Row],[*DU/FU (EF A4) för valt drivmedel (schablon)]],ISNUMBER(InputA1A3[[#This Row],[Omräkningsfaktor (A4), (vid behov, värde eller formel)]]))),TRUE(),FALSE()))","v":""},{"$f":"IF(InputA1A3[[#This Row],[Enhet (bränsleförbrukning per km)]] =InputA1A3[[#This Row],[*DU/FU (EF A4) för valt drivmedel (schablon)]],TRUE,IF(ISBLANK(InputA1A3[[#This Row],[Omräkningsfaktor (A4), (vid behov, värde eller formel)]]),FALSE,TRUE))","v":true},{"$f":"IF(ISBLANK(InputA1A3[[#This Row],[EPD - EF A4]]),\"\",IF(ISBLANK(InputA1A3[[#This Row],[Omräkning till FU/DU (Skriv in värde, ej formel)]]),InputA1A3[[#This Row],[EPD - EF A4]]*InputA1A3[[#This Row],[Mängd A1A3]],InputA1A3[[#This Row],[Mängd A1A3]]*InputA1A3[[#This Row],[Omräkning till FU/DU (Skriv in värde, ej formel)]]*InputA1A3[[#This Row],[EPD - EF A4]]))","v":""},{"$f":"IF(ISBLANK(KontrollTabell[[#This Row],[True/False A4 - Alt 2]]),\"\",IF(KontrollTabell[[#This Row],[True/False A4 Enhet - Alt2]]=TRUE,InputA1A3[[#This Row],[Sträcka - totalt '[km'], (tur och retur, alla transporter)]]*InputA1A3[[#This Row],[(Bränsle-) Förbrukning per km]],\"Sen då\"))","v":0},{"$f":"SUM(KontrollTabell[[#This Row],[A4 - Resultat alt 1 '[kg']]:[A4 - Alt 2 - beräkning utsläpp]])","v":0},{"$f":"IF(ISBLANK(InputA1A3[[#This Row],[EPD - EF A4]]),ISBLANK(#REF!),)","v":false},{"$f":"IFERROR(IF(KontrollTabell[[#This Row],[True/False A5]]=FALSE(),\"Enheter\",IF(ISBLANK(InputA1A3[[#This Row],[Omräkningsfaktor (A5.2) (ange värde), (vid behov)]]),InputA1A3[[#This Row],[Mängd (A5.2)]]*InputA1A3[[#This Row],[*EF (A5.2)\n'[kg CO₂-ekv.']]],InputA1A3[[#This Row],[Mängd (A5.2)]]*InputA1A3[[#This Row],[*EF (A5.2)\n'[kg CO₂-ekv.']]]*InputA1A3[[#This Row],[Omräkningsfaktor (A5.2) (ange värde), (vid behov)]])),0)","v":0},{"$f":"IF(OR(ISBLANK(InputA1A3[[#This Row],[Enhet för mängd (A5.2)]]),ISBLANK(InputA1A3[[#This Row],[*DU/FU (EF A5.2)]])),\"\",IF(OR(InputA1A3[[#This Row],[Enhet för mängd (A5.2)]]=InputA1A3[[#This Row],[*DU/FU (EF A5.2)]],AND(InputA1A3[[#This Row],[Enhet för mängd (A5.2)]]<>InputA1A3[[#This Row],[*DU/FU (EF A5.2)]],ISNUMBER(InputA1A3[[#This Row],[Omräkningsfaktor (A5.2) (ange värde), (vid behov)]]))),TRUE,FALSE))","v":""},{"$f":"IF(InputA1A3[[#This Row],[Enhet för mängd (A5.2)]] = InputA1A3[[#This Row],[*DU/FU (EF A5.2)]], TRUE, FALSE)","v":true},{"$f":"IF(OR(ISBLANK(InputA1A3[[#This Row],[Kategori\n(egen kategorisering)]])=FALSE,ISBLANK(InputA1A3[[#This Row],[Anläggningsdel\n]]))=FALSE,TRUE,FALSE)","v":false},{"$f":"IF(ISBLANK(InputA1A3[[#This Row],[Anläggningsdel\n]]),\"\",IF(KontrollTabell[[#This Row],[TRUE/FALSE om kategori saknas.]] =FALSE,InputA1A3[[#This Row],[Kategori\n(egen kategorisering)]],\"Kategori saknas\"))","v":""}]
[null,null,null,null,null,null,null,null,null,{"$f":"IF(ISBLANK(InputA1A3[[#This Row],[Anläggningsdel\n]]),\"\",IF(KontrollTabell[[#This Row],[True/False A1A3 Enhet]]=TRUE, \"\", InputA1A3[[#This Row],[FU/DU (EF A1A3)]] & \"/\" & InputA1A3[[#This Row],[Enhet Mängd (A1A3)]]))","v":""},null,null,null,null,{"$f":"IF(ISBLANK(InputA1A3[[#This Row],[EPD - EF A4]]),\"\",InputA1A3[[#This Row],[FU/DU (EF A1A3)]])","v":""},null,null,null,{"$f":"IFERROR(INDEX(TabellEFDrivmedel[],MATCH(InputA1A3[[#This Row],[Drivmedel (A4) (endast förval ur lista)]],TabellEFDrivmedel[Drivmedel],0),4),\"\")","v":""},null,null,null,{"$f":"IF(InputA1A3[[#This Row],[*DU/FU (EF A4) för valt drivmedel (schablon)]]=\"\",\"\",IF(KontrollTabell[[#This Row],[True/False A4 Enhet - Alt2]]=TRUE,\"\",IF(ISBLANK(InputA1A3[[#This Row],[*DU/FU (EF A4) för valt drivmedel (schablon)]]),,InputA1A3[[#This Row],[Enhet (bränsleförbrukning per km)]]& \"/\" & InputA1A3[[#This Row],[*DU/FU (EF A4) för valt drivmedel (schablon)]])))","v":""},null,null,null,null,null,null,null,{"$f":"IFERROR(INDEX(TabellEFDrivmedel[],MATCH(InputA1A3[[#This Row],[Drivmedel (A5.2)]],TabellEFDrivmedel[Drivmedel],0),2),\"\")","v":""},{"$f":"IFERROR(INDEX(TabellEFDrivmedel[],MATCH(InputA1A3[[#This Row],[Drivmedel (A5.2)]],TabellEFDrivmedel[Drivmedel],0),4),\"\")","v":""},{"$f":"IF(KontrollTabell[[#This Row],[True/False A5 Enhet]]=TRUE, \"\", InputA1A3[[#This Row],[*DU/FU (EF A5.2)]] & \"/\" & InputA1A3[[#This Row],[Enhet för mängd (A5.2)]])","v":""},null,null,null,null,null,null,null,null,null,null,null,null,null,null,null,null,null,null,null,null,null,null,null,null,null,null,null,null,null,null,null,null,null,null,null,null,null,null,null,null,{"$f":"IF(ISBLANK(InputA1A3[[#This Row],[Anläggningsdel\n]]),FALSE,TRUE)","v":false},{"$f":"IF(ISBLANK(InputA1A3[[#This Row],[Anläggningsdel\n]]),\"\",IF(InputA1A3[[#This Row],[Enhet Mängd (A1A3)]] = InputA1A3[[#This Row],[FU/DU (EF A1A3)]], TRUE, FALSE))","v":""},{"$f":"IF(KontrollTabell[[#This Row],[Finns anläggningsdel-namn.]]=FALSE,\"\",IF(KontrollTabell[[#This Row],[True/False A1A3 Enhet]]=TRUE,TRUE,IF(ISBLANK(InputA1A3[[#This Row],[Omräkning till FU/DU (Skriv in värde, ej formel)]]),FALSE,TRUE)))","v":""},{"$f":"IF(KontrollTabell[[#This Row],[Finns anläggningsdel-namn.]]=FALSE,,IF(KontrollTabell[[#This Row],[True/False A1A3 Enhet]]=TRUE,InputA1A3[[#This Row],[Mängd A1A3]]*InputA1A3[[#This Row],[EF A1A3 '[kg CO₂-ekv.']]],IF(KontrollTabell[[#This Row],[True/False A1A3 om A1A3 kan beräknas]]=TRUE,InputA1A3[[#This Row],[Mängd A1A3]]*InputA1A3[[#This Row],[EF A1A3 '[kg CO₂-ekv.']]]*InputA1A3[[#This Row],[Omräkning till FU/DU (Skriv in värde, ej formel)]],\"Värde Behövs\")))","v":0},{"$f":"IF(ISBLANK(InputA1A3[[#This Row],[Anläggningsdel\n]]),\"\",IF(ISBLANK(InputA1A3[[#This Row],[EPD - EF A4]]),FALSE,TRUE))","v":""},{"$f":"IF(OR(ISBLANK(InputA1A3[[#This Row],[Enhet (bränsleförbrukning per km)]]),ISBLANK(InputA1A3[[#This Row],[*DU/FU (EF A4) för valt drivmedel (schablon)]])),\"\",IF(OR(InputA1A3[[#This Row],[Enhet (bränsleförbrukning per km)]]=InputA1A3[[#This Row],[*DU/FU (EF A4) för valt drivmedel (schablon)]],AND(InputA1A3[[#This Row],[Enhet (bränsleförbrukning per km)]]<>InputA1A3[[#This Row],[*DU/FU (EF A4) för valt drivmedel (schablon)]],ISNUMBER(InputA1A3[[#This Row],[Omräkningsfaktor (A4), (vid behov, värde eller formel)]]))),TRUE(),FALSE()))","v":""},{"$f":"IF(InputA1A3[[#This Row],[Enhet (bränsleförbrukning per km)]] =InputA1A3[[#This Row],[*DU/FU (EF A4) för valt drivmedel (schablon)]],TRUE,IF(ISBLANK(InputA1A3[[#This Row],[Omräkningsfaktor (A4), (vid behov, värde eller formel)]]),FALSE,TRUE))","v":true},{"$f":"IF(ISBLANK(InputA1A3[[#This Row],[EPD - EF A4]]),\"\",IF(ISBLANK(InputA1A3[[#This Row],[Omräkning till FU/DU (Skriv in värde, ej formel)]]),InputA1A3[[#This Row],[EPD - EF A4]]*InputA1A3[[#This Row],[Mängd A1A3]],InputA1A3[[#This Row],[Mängd A1A3]]*InputA1A3[[#This Row],[Omräkning till FU/DU (Skriv in värde, ej formel)]]*InputA1A3[[#This Row],[EPD - EF A4]]))","v":""},{"$f":"IF(ISBLANK(KontrollTabell[[#This Row],[True/False A4 - Alt 2]]),\"\",IF(KontrollTabell[[#This Row],[True/False A4 Enhet - Alt2]]=TRUE,InputA1A3[[#This Row],[Sträcka - totalt '[km'], (tur och retur, alla transporter)]]*InputA1A3[[#This Row],[(Bränsle-) Förbrukning per km]],\"Sen då\"))","v":0},{"$f":"SUM(KontrollTabell[[#This Row],[A4 - Resultat alt 1 '[kg']]:[A4 - Alt 2 - beräkning utsläpp]])","v":0},{"$f":"IF(ISBLANK(InputA1A3[[#This Row],[EPD - EF A4]]),ISBLANK(#REF!),)","v":false},{"$f":"IFERROR(IF(KontrollTabell[[#This Row],[True/False A5]]=FALSE(),\"Enheter\",IF(ISBLANK(InputA1A3[[#This Row],[Omräkningsfaktor (A5.2) (ange värde), (vid behov)]]),InputA1A3[[#This Row],[Mängd (A5.2)]]*InputA1A3[[#This Row],[*EF (A5.2)\n'[kg CO₂-ekv.']]],InputA1A3[[#This Row],[Mängd (A5.2)]]*InputA1A3[[#This Row],[*EF (A5.2)\n'[kg CO₂-ekv.']]]*InputA1A3[[#This Row],[Omräkningsfaktor (A5.2) (ange värde), (vid behov)]])),0)","v":0},{"$f":"IF(OR(ISBLANK(InputA1A3[[#This Row],[Enhet för mängd (A5.2)]]),ISBLANK(InputA1A3[[#This Row],[*DU/FU (EF A5.2)]])),\"\",IF(OR(InputA1A3[[#This Row],[Enhet för mängd (A5.2)]]=InputA1A3[[#This Row],[*DU/FU (EF A5.2)]],AND(InputA1A3[[#This Row],[Enhet för mängd (A5.2)]]<>InputA1A3[[#This Row],[*DU/FU (EF A5.2)]],ISNUMBER(InputA1A3[[#This Row],[Omräkningsfaktor (A5.2) (ange värde), (vid behov)]]))),TRUE,FALSE))","v":""},{"$f":"IF(InputA1A3[[#This Row],[Enhet för mängd (A5.2)]] = InputA1A3[[#This Row],[*DU/FU (EF A5.2)]], TRUE, FALSE)","v":true},{"$f":"IF(OR(ISBLANK(InputA1A3[[#This Row],[Kategori\n(egen kategorisering)]])=FALSE,ISBLANK(InputA1A3[[#This Row],[Anläggningsdel\n]]))=FALSE,TRUE,FALSE)","v":false},{"$f":"IF(ISBLANK(InputA1A3[[#This Row],[Anläggningsdel\n]]),\"\",IF(KontrollTabell[[#This Row],[TRUE/FALSE om kategori saknas.]] =FALSE,InputA1A3[[#This Row],[Kategori\n(egen kategorisering)]],\"Kategori saknas\"))","v":""}]
[null,null,null,null,null,null,null,null,null,{"$f":"IF(ISBLANK(InputA1A3[[#This Row],[Anläggningsdel\n]]),\"\",IF(KontrollTabell[[#This Row],[True/False A1A3 Enhet]]=TRUE, \"\", InputA1A3[[#This Row],[FU/DU (EF A1A3)]] & \"/\" & InputA1A3[[#This Row],[Enhet Mängd (A1A3)]]))","v":""},null,null,null,null,{"$f":"IF(ISBLANK(InputA1A3[[#This Row],[EPD - EF A4]]),\"\",InputA1A3[[#This Row],[FU/DU (EF A1A3)]])","v":""},null,null,null,{"$f":"IFERROR(INDEX(TabellEFDrivmedel[],MATCH(InputA1A3[[#This Row],[Drivmedel (A4) (endast förval ur lista)]],TabellEFDrivmedel[Drivmedel],0),4),\"\")","v":""},null,null,null,{"$f":"IF(InputA1A3[[#This Row],[*DU/FU (EF A4) för valt drivmedel (schablon)]]=\"\",\"\",IF(KontrollTabell[[#This Row],[True/False A4 Enhet - Alt2]]=TRUE,\"\",IF(ISBLANK(InputA1A3[[#This Row],[*DU/FU (EF A4) för valt drivmedel (schablon)]]),,InputA1A3[[#This Row],[Enhet (bränsleförbrukning per km)]]& \"/\" & InputA1A3[[#This Row],[*DU/FU (EF A4) för valt drivmedel (schablon)]])))","v":""},null,null,null,null,null,null,null,{"$f":"IFERROR(INDEX(TabellEFDrivmedel[],MATCH(InputA1A3[[#This Row],[Drivmedel (A5.2)]],TabellEFDrivmedel[Drivmedel],0),2),\"\")","v":""},{"$f":"IFERROR(INDEX(TabellEFDrivmedel[],MATCH(InputA1A3[[#This Row],[Drivmedel (A5.2)]],TabellEFDrivmedel[Drivmedel],0),4),\"\")","v":""},{"$f":"IF(KontrollTabell[[#This Row],[True/False A5 Enhet]]=TRUE, \"\", InputA1A3[[#This Row],[*DU/FU (EF A5.2)]] & \"/\" & InputA1A3[[#This Row],[Enhet för mängd (A5.2)]])","v":""},null,null,null,null,null,null,null,null,null,null,null,null,null,null,null,null,null,null,null,null,null,null,null,null,null,null,null,null,null,null,null,null,null,null,null,null,null,null,null,null,{"$f":"IF(ISBLANK(InputA1A3[[#This Row],[Anläggningsdel\n]]),FALSE,TRUE)","v":false},{"$f":"IF(ISBLANK(InputA1A3[[#This Row],[Anläggningsdel\n]]),\"\",IF(InputA1A3[[#This Row],[Enhet Mängd (A1A3)]] = InputA1A3[[#This Row],[FU/DU (EF A1A3)]], TRUE, FALSE))","v":""},{"$f":"IF(KontrollTabell[[#This Row],[Finns anläggningsdel-namn.]]=FALSE,\"\",IF(KontrollTabell[[#This Row],[True/False A1A3 Enhet]]=TRUE,TRUE,IF(ISBLANK(InputA1A3[[#This Row],[Omräkning till FU/DU (Skriv in värde, ej formel)]]),FALSE,TRUE)))","v":""},{"$f":"IF(KontrollTabell[[#This Row],[Finns anläggningsdel-namn.]]=FALSE,,IF(KontrollTabell[[#This Row],[True/False A1A3 Enhet]]=TRUE,InputA1A3[[#This Row],[Mängd A1A3]]*InputA1A3[[#This Row],[EF A1A3 '[kg CO₂-ekv.']]],IF(KontrollTabell[[#This Row],[True/False A1A3 om A1A3 kan beräknas]]=TRUE,InputA1A3[[#This Row],[Mängd A1A3]]*InputA1A3[[#This Row],[EF A1A3 '[kg CO₂-ekv.']]]*InputA1A3[[#This Row],[Omräkning till FU/DU (Skriv in värde, ej formel)]],\"Värde Behövs\")))","v":0},{"$f":"IF(ISBLANK(InputA1A3[[#This Row],[Anläggningsdel\n]]),\"\",IF(ISBLANK(InputA1A3[[#This Row],[EPD - EF A4]]),FALSE,TRUE))","v":""},{"$f":"IF(OR(ISBLANK(InputA1A3[[#This Row],[Enhet (bränsleförbrukning per km)]]),ISBLANK(InputA1A3[[#This Row],[*DU/FU (EF A4) för valt drivmedel (schablon)]])),\"\",IF(OR(InputA1A3[[#This Row],[Enhet (bränsleförbrukning per km)]]=InputA1A3[[#This Row],[*DU/FU (EF A4) för valt drivmedel (schablon)]],AND(InputA1A3[[#This Row],[Enhet (bränsleförbrukning per km)]]<>InputA1A3[[#This Row],[*DU/FU (EF A4) för valt drivmedel (schablon)]],ISNUMBER(InputA1A3[[#This Row],[Omräkningsfaktor (A4), (vid behov, värde eller formel)]]))),TRUE(),FALSE()))","v":""},{"$f":"IF(InputA1A3[[#This Row],[Enhet (bränsleförbrukning per km)]] =InputA1A3[[#This Row],[*DU/FU (EF A4) för valt drivmedel (schablon)]],TRUE,IF(ISBLANK(InputA1A3[[#This Row],[Omräkningsfaktor (A4), (vid behov, värde eller formel)]]),FALSE,TRUE))","v":true},{"$f":"IF(ISBLANK(InputA1A3[[#This Row],[EPD - EF A4]]),\"\",IF(ISBLANK(InputA1A3[[#This Row],[Omräkning till FU/DU (Skriv in värde, ej formel)]]),InputA1A3[[#This Row],[EPD - EF A4]]*InputA1A3[[#This Row],[Mängd A1A3]],InputA1A3[[#This Row],[Mängd A1A3]]*InputA1A3[[#This Row],[Omräkning till FU/DU (Skriv in värde, ej formel)]]*InputA1A3[[#This Row],[EPD - EF A4]]))","v":""},{"$f":"IF(ISBLANK(KontrollTabell[[#This Row],[True/False A4 - Alt 2]]),\"\",IF(KontrollTabell[[#This Row],[True/False A4 Enhet - Alt2]]=TRUE,InputA1A3[[#This Row],[Sträcka - totalt '[km'], (tur och retur, alla transporter)]]*InputA1A3[[#This Row],[(Bränsle-) Förbrukning per km]],\"Sen då\"))","v":0},{"$f":"SUM(KontrollTabell[[#This Row],[A4 - Resultat alt 1 '[kg']]:[A4 - Alt 2 - beräkning utsläpp]])","v":0},{"$f":"IF(ISBLANK(InputA1A3[[#This Row],[EPD - EF A4]]),ISBLANK(#REF!),)","v":false},{"$f":"IFERROR(IF(KontrollTabell[[#This Row],[True/False A5]]=FALSE(),\"Enheter\",IF(ISBLANK(InputA1A3[[#This Row],[Omräkningsfaktor (A5.2) (ange värde), (vid behov)]]),InputA1A3[[#This Row],[Mängd (A5.2)]]*InputA1A3[[#This Row],[*EF (A5.2)\n'[kg CO₂-ekv.']]],InputA1A3[[#This Row],[Mängd (A5.2)]]*InputA1A3[[#This Row],[*EF (A5.2)\n'[kg CO₂-ekv.']]]*InputA1A3[[#This Row],[Omräkningsfaktor (A5.2) (ange värde), (vid behov)]])),0)","v":0},{"$f":"IF(OR(ISBLANK(InputA1A3[[#This Row],[Enhet för mängd (A5.2)]]),ISBLANK(InputA1A3[[#This Row],[*DU/FU (EF A5.2)]])),\"\",IF(OR(InputA1A3[[#This Row],[Enhet för mängd (A5.2)]]=InputA1A3[[#This Row],[*DU/FU (EF A5.2)]],AND(InputA1A3[[#This Row],[Enhet för mängd (A5.2)]]<>InputA1A3[[#This Row],[*DU/FU (EF A5.2)]],ISNUMBER(InputA1A3[[#This Row],[Omräkningsfaktor (A5.2) (ange värde), (vid behov)]]))),TRUE,FALSE))","v":""},{"$f":"IF(InputA1A3[[#This Row],[Enhet för mängd (A5.2)]] = InputA1A3[[#This Row],[*DU/FU (EF A5.2)]], TRUE, FALSE)","v":true},{"$f":"IF(OR(ISBLANK(InputA1A3[[#This Row],[Kategori\n(egen kategorisering)]])=FALSE,ISBLANK(InputA1A3[[#This Row],[Anläggningsdel\n]]))=FALSE,TRUE,FALSE)","v":false},{"$f":"IF(ISBLANK(InputA1A3[[#This Row],[Anläggningsdel\n]]),\"\",IF(KontrollTabell[[#This Row],[TRUE/FALSE om kategori saknas.]] =FALSE,InputA1A3[[#This Row],[Kategori\n(egen kategorisering)]],\"Kategori saknas\"))","v":""}]
[null,null,null,null,null,null,null,null,null,{"$f":"IF(ISBLANK(InputA1A3[[#This Row],[Anläggningsdel\n]]),\"\",IF(KontrollTabell[[#This Row],[True/False A1A3 Enhet]]=TRUE, \"\", InputA1A3[[#This Row],[FU/DU (EF A1A3)]] & \"/\" & InputA1A3[[#This Row],[Enhet Mängd (A1A3)]]))","v":""},null,null,null,null,{"$f":"IF(ISBLANK(InputA1A3[[#This Row],[EPD - EF A4]]),\"\",InputA1A3[[#This Row],[FU/DU (EF A1A3)]])","v":""},null,null,null,{"$f":"IFERROR(INDEX(TabellEFDrivmedel[],MATCH(InputA1A3[[#This Row],[Drivmedel (A4) (endast förval ur lista)]],TabellEFDrivmedel[Drivmedel],0),4),\"\")","v":""},null,null,null,{"$f":"IF(InputA1A3[[#This Row],[*DU/FU (EF A4) för valt drivmedel (schablon)]]=\"\",\"\",IF(KontrollTabell[[#This Row],[True/False A4 Enhet - Alt2]]=TRUE,\"\",IF(ISBLANK(InputA1A3[[#This Row],[*DU/FU (EF A4) för valt drivmedel (schablon)]]),,InputA1A3[[#This Row],[Enhet (bränsleförbrukning per km)]]& \"/\" & InputA1A3[[#This Row],[*DU/FU (EF A4) för valt drivmedel (schablon)]])))","v":""},null,null,null,null,null,null,null,{"$f":"IFERROR(INDEX(TabellEFDrivmedel[],MATCH(InputA1A3[[#This Row],[Drivmedel (A5.2)]],TabellEFDrivmedel[Drivmedel],0),2),\"\")","v":""},{"$f":"IFERROR(INDEX(TabellEFDrivmedel[],MATCH(InputA1A3[[#This Row],[Drivmedel (A5.2)]],TabellEFDrivmedel[Drivmedel],0),4),\"\")","v":""},{"$f":"IF(KontrollTabell[[#This Row],[True/False A5 Enhet]]=TRUE, \"\", InputA1A3[[#This Row],[*DU/FU (EF A5.2)]] & \"/\" & InputA1A3[[#This Row],[Enhet för mängd (A5.2)]])","v":""},null,null,null,null,null,null,null,null,null,null,null,null,null,null,null,null,null,null,null,null,null,null,null,null,null,null,null,null,null,null,null,null,null,null,null,null,null,null,null,null,{"$f":"IF(ISBLANK(InputA1A3[[#This Row],[Anläggningsdel\n]]),FALSE,TRUE)","v":false},{"$f":"IF(ISBLANK(InputA1A3[[#This Row],[Anläggningsdel\n]]),\"\",IF(InputA1A3[[#This Row],[Enhet Mängd (A1A3)]] = InputA1A3[[#This Row],[FU/DU (EF A1A3)]], TRUE, FALSE))","v":""},{"$f":"IF(KontrollTabell[[#This Row],[Finns anläggningsdel-namn.]]=FALSE,\"\",IF(KontrollTabell[[#This Row],[True/False A1A3 Enhet]]=TRUE,TRUE,IF(ISBLANK(InputA1A3[[#This Row],[Omräkning till FU/DU (Skriv in värde, ej formel)]]),FALSE,TRUE)))","v":""},{"$f":"IF(KontrollTabell[[#This Row],[Finns anläggningsdel-namn.]]=FALSE,,IF(KontrollTabell[[#This Row],[True/False A1A3 Enhet]]=TRUE,InputA1A3[[#This Row],[Mängd A1A3]]*InputA1A3[[#This Row],[EF A1A3 '[kg CO₂-ekv.']]],IF(KontrollTabell[[#This Row],[True/False A1A3 om A1A3 kan beräknas]]=TRUE,InputA1A3[[#This Row],[Mängd A1A3]]*InputA1A3[[#This Row],[EF A1A3 '[kg CO₂-ekv.']]]*InputA1A3[[#This Row],[Omräkning till FU/DU (Skriv in värde, ej formel)]],\"Värde Behövs\")))","v":0},{"$f":"IF(ISBLANK(InputA1A3[[#This Row],[Anläggningsdel\n]]),\"\",IF(ISBLANK(InputA1A3[[#This Row],[EPD - EF A4]]),FALSE,TRUE))","v":""},{"$f":"IF(OR(ISBLANK(InputA1A3[[#This Row],[Enhet (bränsleförbrukning per km)]]),ISBLANK(InputA1A3[[#This Row],[*DU/FU (EF A4) för valt drivmedel (schablon)]])),\"\",IF(OR(InputA1A3[[#This Row],[Enhet (bränsleförbrukning per km)]]=InputA1A3[[#This Row],[*DU/FU (EF A4) för valt drivmedel (schablon)]],AND(InputA1A3[[#This Row],[Enhet (bränsleförbrukning per km)]]<>InputA1A3[[#This Row],[*DU/FU (EF A4) för valt drivmedel (schablon)]],ISNUMBER(InputA1A3[[#This Row],[Omräkningsfaktor (A4), (vid behov, värde eller formel)]]))),TRUE(),FALSE()))","v":""},{"$f":"IF(InputA1A3[[#This Row],[Enhet (bränsleförbrukning per km)]] =InputA1A3[[#This Row],[*DU/FU (EF A4) för valt drivmedel (schablon)]],TRUE,IF(ISBLANK(InputA1A3[[#This Row],[Omräkningsfaktor (A4), (vid behov, värde eller formel)]]),FALSE,TRUE))","v":true},{"$f":"IF(ISBLANK(InputA1A3[[#This Row],[EPD - EF A4]]),\"\",IF(ISBLANK(InputA1A3[[#This Row],[Omräkning till FU/DU (Skriv in värde, ej formel)]]),InputA1A3[[#This Row],[EPD - EF A4]]*InputA1A3[[#This Row],[Mängd A1A3]],InputA1A3[[#This Row],[Mängd A1A3]]*InputA1A3[[#This Row],[Omräkning till FU/DU (Skriv in värde, ej formel)]]*InputA1A3[[#This Row],[EPD - EF A4]]))","v":""},{"$f":"IF(ISBLANK(KontrollTabell[[#This Row],[True/False A4 - Alt 2]]),\"\",IF(KontrollTabell[[#This Row],[True/False A4 Enhet - Alt2]]=TRUE,InputA1A3[[#This Row],[Sträcka - totalt '[km'], (tur och retur, alla transporter)]]*InputA1A3[[#This Row],[(Bränsle-) Förbrukning per km]],\"Sen då\"))","v":0},{"$f":"SUM(KontrollTabell[[#This Row],[A4 - Resultat alt 1 '[kg']]:[A4 - Alt 2 - beräkning utsläpp]])","v":0},{"$f":"IF(ISBLANK(InputA1A3[[#This Row],[EPD - EF A4]]),ISBLANK(#REF!),)","v":false},{"$f":"IFERROR(IF(KontrollTabell[[#This Row],[True/False A5]]=FALSE(),\"Enheter\",IF(ISBLANK(InputA1A3[[#This Row],[Omräkningsfaktor (A5.2) (ange värde), (vid behov)]]),InputA1A3[[#This Row],[Mängd (A5.2)]]*InputA1A3[[#This Row],[*EF (A5.2)\n'[kg CO₂-ekv.']]],InputA1A3[[#This Row],[Mängd (A5.2)]]*InputA1A3[[#This Row],[*EF (A5.2)\n'[kg CO₂-ekv.']]]*InputA1A3[[#This Row],[Omräkningsfaktor (A5.2) (ange värde), (vid behov)]])),0)","v":0},{"$f":"IF(OR(ISBLANK(InputA1A3[[#This Row],[Enhet för mängd (A5.2)]]),ISBLANK(InputA1A3[[#This Row],[*DU/FU (EF A5.2)]])),\"\",IF(OR(InputA1A3[[#This Row],[Enhet för mängd (A5.2)]]=InputA1A3[[#This Row],[*DU/FU (EF A5.2)]],AND(InputA1A3[[#This Row],[Enhet för mängd (A5.2)]]<>InputA1A3[[#This Row],[*DU/FU (EF A5.2)]],ISNUMBER(InputA1A3[[#This Row],[Omräkningsfaktor (A5.2) (ange värde), (vid behov)]]))),TRUE,FALSE))","v":""},{"$f":"IF(InputA1A3[[#This Row],[Enhet för mängd (A5.2)]] = InputA1A3[[#This Row],[*DU/FU (EF A5.2)]], TRUE, FALSE)","v":true},{"$f":"IF(OR(ISBLANK(InputA1A3[[#This Row],[Kategori\n(egen kategorisering)]])=FALSE,ISBLANK(InputA1A3[[#This Row],[Anläggningsdel\n]]))=FALSE,TRUE,FALSE)","v":false},{"$f":"IF(ISBLANK(InputA1A3[[#This Row],[Anläggningsdel\n]]),\"\",IF(KontrollTabell[[#This Row],[TRUE/FALSE om kategori saknas.]] =FALSE,InputA1A3[[#This Row],[Kategori\n(egen kategorisering)]],\"Kategori saknas\"))","v":""}]
[null,null,null,null,null,null,null,null,null,{"$f":"IF(ISBLANK(InputA1A3[[#This Row],[Anläggningsdel\n]]),\"\",IF(KontrollTabell[[#This Row],[True/False A1A3 Enhet]]=TRUE, \"\", InputA1A3[[#This Row],[FU/DU (EF A1A3)]] & \"/\" & InputA1A3[[#This Row],[Enhet Mängd (A1A3)]]))","v":""},null,null,null,null,{"$f":"IF(ISBLANK(InputA1A3[[#This Row],[EPD - EF A4]]),\"\",InputA1A3[[#This Row],[FU/DU (EF A1A3)]])","v":""},null,null,null,{"$f":"IFERROR(INDEX(TabellEFDrivmedel[],MATCH(InputA1A3[[#This Row],[Drivmedel (A4) (endast förval ur lista)]],TabellEFDrivmedel[Drivmedel],0),4),\"\")","v":""},null,null,null,{"$f":"IF(InputA1A3[[#This Row],[*DU/FU (EF A4) för valt drivmedel (schablon)]]=\"\",\"\",IF(KontrollTabell[[#This Row],[True/False A4 Enhet - Alt2]]=TRUE,\"\",IF(ISBLANK(InputA1A3[[#This Row],[*DU/FU (EF A4) för valt drivmedel (schablon)]]),,InputA1A3[[#This Row],[Enhet (bränsleförbrukning per km)]]& \"/\" & InputA1A3[[#This Row],[*DU/FU (EF A4) för valt drivmedel (schablon)]])))","v":""},null,null,null,null,null,null,null,{"$f":"IFERROR(INDEX(TabellEFDrivmedel[],MATCH(InputA1A3[[#This Row],[Drivmedel (A5.2)]],TabellEFDrivmedel[Drivmedel],0),2),\"\")","v":""},{"$f":"IFERROR(INDEX(TabellEFDrivmedel[],MATCH(InputA1A3[[#This Row],[Drivmedel (A5.2)]],TabellEFDrivmedel[Drivmedel],0),4),\"\")","v":""},{"$f":"IF(KontrollTabell[[#This Row],[True/False A5 Enhet]]=TRUE, \"\", InputA1A3[[#This Row],[*DU/FU (EF A5.2)]] & \"/\" & InputA1A3[[#This Row],[Enhet för mängd (A5.2)]])","v":""},null,null,null,null,null,null,null,null,null,null,null,null,null,null,null,null,null,null,null,null,null,null,null,null,null,null,null,null,null,null,null,null,null,null,null,null,null,null,null,null,{"$f":"IF(ISBLANK(InputA1A3[[#This Row],[Anläggningsdel\n]]),FALSE,TRUE)","v":false},{"$f":"IF(ISBLANK(InputA1A3[[#This Row],[Anläggningsdel\n]]),\"\",IF(InputA1A3[[#This Row],[Enhet Mängd (A1A3)]] = InputA1A3[[#This Row],[FU/DU (EF A1A3)]], TRUE, FALSE))","v":""},{"$f":"IF(KontrollTabell[[#This Row],[Finns anläggningsdel-namn.]]=FALSE,\"\",IF(KontrollTabell[[#This Row],[True/False A1A3 Enhet]]=TRUE,TRUE,IF(ISBLANK(InputA1A3[[#This Row],[Omräkning till FU/DU (Skriv in värde, ej formel)]]),FALSE,TRUE)))","v":""},{"$f":"IF(KontrollTabell[[#This Row],[Finns anläggningsdel-namn.]]=FALSE,,IF(KontrollTabell[[#This Row],[True/False A1A3 Enhet]]=TRUE,InputA1A3[[#This Row],[Mängd A1A3]]*InputA1A3[[#This Row],[EF A1A3 '[kg CO₂-ekv.']]],IF(KontrollTabell[[#This Row],[True/False A1A3 om A1A3 kan beräknas]]=TRUE,InputA1A3[[#This Row],[Mängd A1A3]]*InputA1A3[[#This Row],[EF A1A3 '[kg CO₂-ekv.']]]*InputA1A3[[#This Row],[Omräkning till FU/DU (Skriv in värde, ej formel)]],\"Värde Behövs\")))","v":0},{"$f":"IF(ISBLANK(InputA1A3[[#This Row],[Anläggningsdel\n]]),\"\",IF(ISBLANK(InputA1A3[[#This Row],[EPD - EF A4]]),FALSE,TRUE))","v":""},{"$f":"IF(OR(ISBLANK(InputA1A3[[#This Row],[Enhet (bränsleförbrukning per km)]]),ISBLANK(InputA1A3[[#This Row],[*DU/FU (EF A4) för valt drivmedel (schablon)]])),\"\",IF(OR(InputA1A3[[#This Row],[Enhet (bränsleförbrukning per km)]]=InputA1A3[[#This Row],[*DU/FU (EF A4) för valt drivmedel (schablon)]],AND(InputA1A3[[#This Row],[Enhet (bränsleförbrukning per km)]]<>InputA1A3[[#This Row],[*DU/FU (EF A4) för valt drivmedel (schablon)]],ISNUMBER(InputA1A3[[#This Row],[Omräkningsfaktor (A4), (vid behov, värde eller formel)]]))),TRUE(),FALSE()))","v":""},{"$f":"IF(InputA1A3[[#This Row],[Enhet (bränsleförbrukning per km)]] =InputA1A3[[#This Row],[*DU/FU (EF A4) för valt drivmedel (schablon)]],TRUE,IF(ISBLANK(InputA1A3[[#This Row],[Omräkningsfaktor (A4), (vid behov, värde eller formel)]]),FALSE,TRUE))","v":true},{"$f":"IF(ISBLANK(InputA1A3[[#This Row],[EPD - EF A4]]),\"\",IF(ISBLANK(InputA1A3[[#This Row],[Omräkning till FU/DU (Skriv in värde, ej formel)]]),InputA1A3[[#This Row],[EPD - EF A4]]*InputA1A3[[#This Row],[Mängd A1A3]],InputA1A3[[#This Row],[Mängd A1A3]]*InputA1A3[[#This Row],[Omräkning till FU/DU (Skriv in värde, ej formel)]]*InputA1A3[[#This Row],[EPD - EF A4]]))","v":""},{"$f":"IF(ISBLANK(KontrollTabell[[#This Row],[True/False A4 - Alt 2]]),\"\",IF(KontrollTabell[[#This Row],[True/False A4 Enhet - Alt2]]=TRUE,InputA1A3[[#This Row],[Sträcka - totalt '[km'], (tur och retur, alla transporter)]]*InputA1A3[[#This Row],[(Bränsle-) Förbrukning per km]],\"Sen då\"))","v":0},{"$f":"SUM(KontrollTabell[[#This Row],[A4 - Resultat alt 1 '[kg']]:[A4 - Alt 2 - beräkning utsläpp]])","v":0},{"$f":"IF(ISBLANK(InputA1A3[[#This Row],[EPD - EF A4]]),ISBLANK(#REF!),)","v":false},{"$f":"IFERROR(IF(KontrollTabell[[#This Row],[True/False A5]]=FALSE(),\"Enheter\",IF(ISBLANK(InputA1A3[[#This Row],[Omräkningsfaktor (A5.2) (ange värde), (vid behov)]]),InputA1A3[[#This Row],[Mängd (A5.2)]]*InputA1A3[[#This Row],[*EF (A5.2)\n'[kg CO₂-ekv.']]],InputA1A3[[#This Row],[Mängd (A5.2)]]*InputA1A3[[#This Row],[*EF (A5.2)\n'[kg CO₂-ekv.']]]*InputA1A3[[#This Row],[Omräkningsfaktor (A5.2) (ange värde), (vid behov)]])),0)","v":0},{"$f":"IF(OR(ISBLANK(InputA1A3[[#This Row],[Enhet för mängd (A5.2)]]),ISBLANK(InputA1A3[[#This Row],[*DU/FU (EF A5.2)]])),\"\",IF(OR(InputA1A3[[#This Row],[Enhet för mängd (A5.2)]]=InputA1A3[[#This Row],[*DU/FU (EF A5.2)]],AND(InputA1A3[[#This Row],[Enhet för mängd (A5.2)]]<>InputA1A3[[#This Row],[*DU/FU (EF A5.2)]],ISNUMBER(InputA1A3[[#This Row],[Omräkningsfaktor (A5.2) (ange värde), (vid behov)]]))),TRUE,FALSE))","v":""},{"$f":"IF(InputA1A3[[#This Row],[Enhet för mängd (A5.2)]] = InputA1A3[[#This Row],[*DU/FU (EF A5.2)]], TRUE, FALSE)","v":true},{"$f":"IF(OR(ISBLANK(InputA1A3[[#This Row],[Kategori\n(egen kategorisering)]])=FALSE,ISBLANK(InputA1A3[[#This Row],[Anläggningsdel\n]]))=FALSE,TRUE,FALSE)","v":false},{"$f":"IF(ISBLANK(InputA1A3[[#This Row],[Anläggningsdel\n]]),\"\",IF(KontrollTabell[[#This Row],[TRUE/FALSE om kategori saknas.]] =FALSE,InputA1A3[[#This Row],[Kategori\n(egen kategorisering)]],\"Kategori saknas\"))","v":""}]
[null,null,null,null,null,null,null,null,null,{"$f":"IF(ISBLANK(InputA1A3[[#This Row],[Anläggningsdel\n]]),\"\",IF(KontrollTabell[[#This Row],[True/False A1A3 Enhet]]=TRUE, \"\", InputA1A3[[#This Row],[FU/DU (EF A1A3)]] & \"/\" & InputA1A3[[#This Row],[Enhet Mängd (A1A3)]]))","v":""},null,null,null,null,{"$f":"IF(ISBLANK(InputA1A3[[#This Row],[EPD - EF A4]]),\"\",InputA1A3[[#This Row],[FU/DU (EF A1A3)]])","v":""},null,null,null,{"$f":"IFERROR(INDEX(TabellEFDrivmedel[],MATCH(InputA1A3[[#This Row],[Drivmedel (A4) (endast förval ur lista)]],TabellEFDrivmedel[Drivmedel],0),4),\"\")","v":""},null,null,null,{"$f":"IF(InputA1A3[[#This Row],[*DU/FU (EF A4) för valt drivmedel (schablon)]]=\"\",\"\",IF(KontrollTabell[[#This Row],[True/False A4 Enhet - Alt2]]=TRUE,\"\",IF(ISBLANK(InputA1A3[[#This Row],[*DU/FU (EF A4) för valt drivmedel (schablon)]]),,InputA1A3[[#This Row],[Enhet (bränsleförbrukning per km)]]& \"/\" & InputA1A3[[#This Row],[*DU/FU (EF A4) för valt drivmedel (schablon)]])))","v":""},null,null,null,null,null,null,null,{"$f":"IFERROR(INDEX(TabellEFDrivmedel[],MATCH(InputA1A3[[#This Row],[Drivmedel (A5.2)]],TabellEFDrivmedel[Drivmedel],0),2),\"\")","v":""},{"$f":"IFERROR(INDEX(TabellEFDrivmedel[],MATCH(InputA1A3[[#This Row],[Drivmedel (A5.2)]],TabellEFDrivmedel[Drivmedel],0),4),\"\")","v":""},{"$f":"IF(KontrollTabell[[#This Row],[True/False A5 Enhet]]=TRUE, \"\", InputA1A3[[#This Row],[*DU/FU (EF A5.2)]] & \"/\" & InputA1A3[[#This Row],[Enhet för mängd (A5.2)]])","v":""},null,null,null,null,null,null,null,null,null,null,null,null,null,null,null,null,null,null,null,null,null,null,null,null,null,null,null,null,null,null,null,null,null,null,null,null,null,null,null,null,{"$f":"IF(ISBLANK(InputA1A3[[#This Row],[Anläggningsdel\n]]),FALSE,TRUE)","v":false},{"$f":"IF(ISBLANK(InputA1A3[[#This Row],[Anläggningsdel\n]]),\"\",IF(InputA1A3[[#This Row],[Enhet Mängd (A1A3)]] = InputA1A3[[#This Row],[FU/DU (EF A1A3)]], TRUE, FALSE))","v":""},{"$f":"IF(KontrollTabell[[#This Row],[Finns anläggningsdel-namn.]]=FALSE,\"\",IF(KontrollTabell[[#This Row],[True/False A1A3 Enhet]]=TRUE,TRUE,IF(ISBLANK(InputA1A3[[#This Row],[Omräkning till FU/DU (Skriv in värde, ej formel)]]),FALSE,TRUE)))","v":""},{"$f":"IF(KontrollTabell[[#This Row],[Finns anläggningsdel-namn.]]=FALSE,,IF(KontrollTabell[[#This Row],[True/False A1A3 Enhet]]=TRUE,InputA1A3[[#This Row],[Mängd A1A3]]*InputA1A3[[#This Row],[EF A1A3 '[kg CO₂-ekv.']]],IF(KontrollTabell[[#This Row],[True/False A1A3 om A1A3 kan beräknas]]=TRUE,InputA1A3[[#This Row],[Mängd A1A3]]*InputA1A3[[#This Row],[EF A1A3 '[kg CO₂-ekv.']]]*InputA1A3[[#This Row],[Omräkning till FU/DU (Skriv in värde, ej formel)]],\"Värde Behövs\")))","v":0},{"$f":"IF(ISBLANK(InputA1A3[[#This Row],[Anläggningsdel\n]]),\"\",IF(ISBLANK(InputA1A3[[#This Row],[EPD - EF A4]]),FALSE,TRUE))","v":""},{"$f":"IF(OR(ISBLANK(InputA1A3[[#This Row],[Enhet (bränsleförbrukning per km)]]),ISBLANK(InputA1A3[[#This Row],[*DU/FU (EF A4) för valt drivmedel (schablon)]])),\"\",IF(OR(InputA1A3[[#This Row],[Enhet (bränsleförbrukning per km)]]=InputA1A3[[#This Row],[*DU/FU (EF A4) för valt drivmedel (schablon)]],AND(InputA1A3[[#This Row],[Enhet (bränsleförbrukning per km)]]<>InputA1A3[[#This Row],[*DU/FU (EF A4) för valt drivmedel (schablon)]],ISNUMBER(InputA1A3[[#This Row],[Omräkningsfaktor (A4), (vid behov, värde eller formel)]]))),TRUE(),FALSE()))","v":""},{"$f":"IF(InputA1A3[[#This Row],[Enhet (bränsleförbrukning per km)]] =InputA1A3[[#This Row],[*DU/FU (EF A4) för valt drivmedel (schablon)]],TRUE,IF(ISBLANK(InputA1A3[[#This Row],[Omräkningsfaktor (A4), (vid behov, värde eller formel)]]),FALSE,TRUE))","v":true},{"$f":"IF(ISBLANK(InputA1A3[[#This Row],[EPD - EF A4]]),\"\",IF(ISBLANK(InputA1A3[[#This Row],[Omräkning till FU/DU (Skriv in värde, ej formel)]]),InputA1A3[[#This Row],[EPD - EF A4]]*InputA1A3[[#This Row],[Mängd A1A3]],InputA1A3[[#This Row],[Mängd A1A3]]*InputA1A3[[#This Row],[Omräkning till FU/DU (Skriv in värde, ej formel)]]*InputA1A3[[#This Row],[EPD - EF A4]]))","v":""},{"$f":"IF(ISBLANK(KontrollTabell[[#This Row],[True/False A4 - Alt 2]]),\"\",IF(KontrollTabell[[#This Row],[True/False A4 Enhet - Alt2]]=TRUE,InputA1A3[[#This Row],[Sträcka - totalt '[km'], (tur och retur, alla transporter)]]*InputA1A3[[#This Row],[(Bränsle-) Förbrukning per km]],\"Sen då\"))","v":0},{"$f":"SUM(KontrollTabell[[#This Row],[A4 - Resultat alt 1 '[kg']]:[A4 - Alt 2 - beräkning utsläpp]])","v":0},{"$f":"IF(ISBLANK(InputA1A3[[#This Row],[EPD - EF A4]]),ISBLANK(#REF!),)","v":false},{"$f":"IFERROR(IF(KontrollTabell[[#This Row],[True/False A5]]=FALSE(),\"Enheter\",IF(ISBLANK(InputA1A3[[#This Row],[Omräkningsfaktor (A5.2) (ange värde), (vid behov)]]),InputA1A3[[#This Row],[Mängd (A5.2)]]*InputA1A3[[#This Row],[*EF (A5.2)\n'[kg CO₂-ekv.']]],InputA1A3[[#This Row],[Mängd (A5.2)]]*InputA1A3[[#This Row],[*EF (A5.2)\n'[kg CO₂-ekv.']]]*InputA1A3[[#This Row],[Omräkningsfaktor (A5.2) (ange värde), (vid behov)]])),0)","v":0},{"$f":"IF(OR(ISBLANK(InputA1A3[[#This Row],[Enhet för mängd (A5.2)]]),ISBLANK(InputA1A3[[#This Row],[*DU/FU (EF A5.2)]])),\"\",IF(OR(InputA1A3[[#This Row],[Enhet för mängd (A5.2)]]=InputA1A3[[#This Row],[*DU/FU (EF A5.2)]],AND(InputA1A3[[#This Row],[Enhet för mängd (A5.2)]]<>InputA1A3[[#This Row],[*DU/FU (EF A5.2)]],ISNUMBER(InputA1A3[[#This Row],[Omräkningsfaktor (A5.2) (ange värde), (vid behov)]]))),TRUE,FALSE))","v":""},{"$f":"IF(InputA1A3[[#This Row],[Enhet för mängd (A5.2)]] = InputA1A3[[#This Row],[*DU/FU (EF A5.2)]], TRUE, FALSE)","v":true},{"$f":"IF(OR(ISBLANK(InputA1A3[[#This Row],[Kategori\n(egen kategorisering)]])=FALSE,ISBLANK(InputA1A3[[#This Row],[Anläggningsdel\n]]))=FALSE,TRUE,FALSE)","v":false},{"$f":"IF(ISBLANK(InputA1A3[[#This Row],[Anläggningsdel\n]]),\"\",IF(KontrollTabell[[#This Row],[TRUE/FALSE om kategori saknas.]] =FALSE,InputA1A3[[#This Row],[Kategori\n(egen kategorisering)]],\"Kategori saknas\"))","v":""}]
[null,null,null,null,null,null,null,null,null,{"$f":"IF(ISBLANK(InputA1A3[[#This Row],[Anläggningsdel\n]]),\"\",IF(KontrollTabell[[#This Row],[True/False A1A3 Enhet]]=TRUE, \"\", InputA1A3[[#This Row],[FU/DU (EF A1A3)]] & \"/\" & InputA1A3[[#This Row],[Enhet Mängd (A1A3)]]))","v":""},null,null,null,null,{"$f":"IF(ISBLANK(InputA1A3[[#This Row],[EPD - EF A4]]),\"\",InputA1A3[[#This Row],[FU/DU (EF A1A3)]])","v":""},null,null,null,{"$f":"IFERROR(INDEX(TabellEFDrivmedel[],MATCH(InputA1A3[[#This Row],[Drivmedel (A4) (endast förval ur lista)]],TabellEFDrivmedel[Drivmedel],0),4),\"\")","v":""},null,null,null,{"$f":"IF(InputA1A3[[#This Row],[*DU/FU (EF A4) för valt drivmedel (schablon)]]=\"\",\"\",IF(KontrollTabell[[#This Row],[True/False A4 Enhet - Alt2]]=TRUE,\"\",IF(ISBLANK(InputA1A3[[#This Row],[*DU/FU (EF A4) för valt drivmedel (schablon)]]),,InputA1A3[[#This Row],[Enhet (bränsleförbrukning per km)]]& \"/\" & InputA1A3[[#This Row],[*DU/FU (EF A4) för valt drivmedel (schablon)]])))","v":""},null,null,null,null,null,null,null,{"$f":"IFERROR(INDEX(TabellEFDrivmedel[],MATCH(InputA1A3[[#This Row],[Drivmedel (A5.2)]],TabellEFDrivmedel[Drivmedel],0),2),\"\")","v":""},{"$f":"IFERROR(INDEX(TabellEFDrivmedel[],MATCH(InputA1A3[[#This Row],[Drivmedel (A5.2)]],TabellEFDrivmedel[Drivmedel],0),4),\"\")","v":""},{"$f":"IF(KontrollTabell[[#This Row],[True/False A5 Enhet]]=TRUE, \"\", InputA1A3[[#This Row],[*DU/FU (EF A5.2)]] & \"/\" & InputA1A3[[#This Row],[Enhet för mängd (A5.2)]])","v":""},null,null,null,null,null,null,null,null,null,null,null,null,null,null,null,null,null,null,null,null,null,null,null,null,null,null,null,null,null,null,null,null,null,null,null,null,null,null,null,null,{"$f":"IF(ISBLANK(InputA1A3[[#This Row],[Anläggningsdel\n]]),FALSE,TRUE)","v":false},{"$f":"IF(ISBLANK(InputA1A3[[#This Row],[Anläggningsdel\n]]),\"\",IF(InputA1A3[[#This Row],[Enhet Mängd (A1A3)]] = InputA1A3[[#This Row],[FU/DU (EF A1A3)]], TRUE, FALSE))","v":""},{"$f":"IF(KontrollTabell[[#This Row],[Finns anläggningsdel-namn.]]=FALSE,\"\",IF(KontrollTabell[[#This Row],[True/False A1A3 Enhet]]=TRUE,TRUE,IF(ISBLANK(InputA1A3[[#This Row],[Omräkning till FU/DU (Skriv in värde, ej formel)]]),FALSE,TRUE)))","v":""},{"$f":"IF(KontrollTabell[[#This Row],[Finns anläggningsdel-namn.]]=FALSE,,IF(KontrollTabell[[#This Row],[True/False A1A3 Enhet]]=TRUE,InputA1A3[[#This Row],[Mängd A1A3]]*InputA1A3[[#This Row],[EF A1A3 '[kg CO₂-ekv.']]],IF(KontrollTabell[[#This Row],[True/False A1A3 om A1A3 kan beräknas]]=TRUE,InputA1A3[[#This Row],[Mängd A1A3]]*InputA1A3[[#This Row],[EF A1A3 '[kg CO₂-ekv.']]]*InputA1A3[[#This Row],[Omräkning till FU/DU (Skriv in värde, ej formel)]],\"Värde Behövs\")))","v":0},{"$f":"IF(ISBLANK(InputA1A3[[#This Row],[Anläggningsdel\n]]),\"\",IF(ISBLANK(InputA1A3[[#This Row],[EPD - EF A4]]),FALSE,TRUE))","v":""},{"$f":"IF(OR(ISBLANK(InputA1A3[[#This Row],[Enhet (bränsleförbrukning per km)]]),ISBLANK(InputA1A3[[#This Row],[*DU/FU (EF A4) för valt drivmedel (schablon)]])),\"\",IF(OR(InputA1A3[[#This Row],[Enhet (bränsleförbrukning per km)]]=InputA1A3[[#This Row],[*DU/FU (EF A4) för valt drivmedel (schablon)]],AND(InputA1A3[[#This Row],[Enhet (bränsleförbrukning per km)]]<>InputA1A3[[#This Row],[*DU/FU (EF A4) för valt drivmedel (schablon)]],ISNUMBER(InputA1A3[[#This Row],[Omräkningsfaktor (A4), (vid behov, värde eller formel)]]))),TRUE(),FALSE()))","v":""},{"$f":"IF(InputA1A3[[#This Row],[Enhet (bränsleförbrukning per km)]] =InputA1A3[[#This Row],[*DU/FU (EF A4) för valt drivmedel (schablon)]],TRUE,IF(ISBLANK(InputA1A3[[#This Row],[Omräkningsfaktor (A4), (vid behov, värde eller formel)]]),FALSE,TRUE))","v":true},{"$f":"IF(ISBLANK(InputA1A3[[#This Row],[EPD - EF A4]]),\"\",IF(ISBLANK(InputA1A3[[#This Row],[Omräkning till FU/DU (Skriv in värde, ej formel)]]),InputA1A3[[#This Row],[EPD - EF A4]]*InputA1A3[[#This Row],[Mängd A1A3]],InputA1A3[[#This Row],[Mängd A1A3]]*InputA1A3[[#This Row],[Omräkning till FU/DU (Skriv in värde, ej formel)]]*InputA1A3[[#This Row],[EPD - EF A4]]))","v":""},{"$f":"IF(ISBLANK(KontrollTabell[[#This Row],[True/False A4 - Alt 2]]),\"\",IF(KontrollTabell[[#This Row],[True/False A4 Enhet - Alt2]]=TRUE,InputA1A3[[#This Row],[Sträcka - totalt '[km'], (tur och retur, alla transporter)]]*InputA1A3[[#This Row],[(Bränsle-) Förbrukning per km]],\"Sen då\"))","v":0},{"$f":"SUM(KontrollTabell[[#This Row],[A4 - Resultat alt 1 '[kg']]:[A4 - Alt 2 - beräkning utsläpp]])","v":0},{"$f":"IF(ISBLANK(InputA1A3[[#This Row],[EPD - EF A4]]),ISBLANK(#REF!),)","v":false},{"$f":"IFERROR(IF(KontrollTabell[[#This Row],[True/False A5]]=FALSE(),\"Enheter\",IF(ISBLANK(InputA1A3[[#This Row],[Omräkningsfaktor (A5.2) (ange värde), (vid behov)]]),InputA1A3[[#This Row],[Mängd (A5.2)]]*InputA1A3[[#This Row],[*EF (A5.2)\n'[kg CO₂-ekv.']]],InputA1A3[[#This Row],[Mängd (A5.2)]]*InputA1A3[[#This Row],[*EF (A5.2)\n'[kg CO₂-ekv.']]]*InputA1A3[[#This Row],[Omräkningsfaktor (A5.2) (ange värde), (vid behov)]])),0)","v":0},{"$f":"IF(OR(ISBLANK(InputA1A3[[#This Row],[Enhet för mängd (A5.2)]]),ISBLANK(InputA1A3[[#This Row],[*DU/FU (EF A5.2)]])),\"\",IF(OR(InputA1A3[[#This Row],[Enhet för mängd (A5.2)]]=InputA1A3[[#This Row],[*DU/FU (EF A5.2)]],AND(InputA1A3[[#This Row],[Enhet för mängd (A5.2)]]<>InputA1A3[[#This Row],[*DU/FU (EF A5.2)]],ISNUMBER(InputA1A3[[#This Row],[Omräkningsfaktor (A5.2) (ange värde), (vid behov)]]))),TRUE,FALSE))","v":""},{"$f":"IF(InputA1A3[[#This Row],[Enhet för mängd (A5.2)]] = InputA1A3[[#This Row],[*DU/FU (EF A5.2)]], TRUE, FALSE)","v":true},{"$f":"IF(OR(ISBLANK(InputA1A3[[#This Row],[Kategori\n(egen kategorisering)]])=FALSE,ISBLANK(InputA1A3[[#This Row],[Anläggningsdel\n]]))=FALSE,TRUE,FALSE)","v":false},{"$f":"IF(ISBLANK(InputA1A3[[#This Row],[Anläggningsdel\n]]),\"\",IF(KontrollTabell[[#This Row],[TRUE/FALSE om kategori saknas.]] =FALSE,InputA1A3[[#This Row],[Kategori\n(egen kategorisering)]],\"Kategori saknas\"))","v":""}]
[null,null,null,null,null,null,null,null,null,{"$f":"IF(ISBLANK(InputA1A3[[#This Row],[Anläggningsdel\n]]),\"\",IF(KontrollTabell[[#This Row],[True/False A1A3 Enhet]]=TRUE, \"\", InputA1A3[[#This Row],[FU/DU (EF A1A3)]] & \"/\" & InputA1A3[[#This Row],[Enhet Mängd (A1A3)]]))","v":""},null,null,null,null,{"$f":"IF(ISBLANK(InputA1A3[[#This Row],[EPD - EF A4]]),\"\",InputA1A3[[#This Row],[FU/DU (EF A1A3)]])","v":""},null,null,null,{"$f":"IFERROR(INDEX(TabellEFDrivmedel[],MATCH(InputA1A3[[#This Row],[Drivmedel (A4) (endast förval ur lista)]],TabellEFDrivmedel[Drivmedel],0),4),\"\")","v":""},null,null,null,{"$f":"IF(InputA1A3[[#This Row],[*DU/FU (EF A4) för valt drivmedel (schablon)]]=\"\",\"\",IF(KontrollTabell[[#This Row],[True/False A4 Enhet - Alt2]]=TRUE,\"\",IF(ISBLANK(InputA1A3[[#This Row],[*DU/FU (EF A4) för valt drivmedel (schablon)]]),,InputA1A3[[#This Row],[Enhet (bränsleförbrukning per km)]]& \"/\" & InputA1A3[[#This Row],[*DU/FU (EF A4) för valt drivmedel (schablon)]])))","v":""},null,null,null,null,null,null,null,{"$f":"IFERROR(INDEX(TabellEFDrivmedel[],MATCH(InputA1A3[[#This Row],[Drivmedel (A5.2)]],TabellEFDrivmedel[Drivmedel],0),2),\"\")","v":""},{"$f":"IFERROR(INDEX(TabellEFDrivmedel[],MATCH(InputA1A3[[#This Row],[Drivmedel (A5.2)]],TabellEFDrivmedel[Drivmedel],0),4),\"\")","v":""},{"$f":"IF(KontrollTabell[[#This Row],[True/False A5 Enhet]]=TRUE, \"\", InputA1A3[[#This Row],[*DU/FU (EF A5.2)]] & \"/\" & InputA1A3[[#This Row],[Enhet för mängd (A5.2)]])","v":""},null,null,null,null,null,null,null,null,null,null,null,null,null,null,null,null,null,null,null,null,null,null,null,null,null,null,null,null,null,null,null,null,null,null,null,null,null,null,null,null,{"$f":"IF(ISBLANK(InputA1A3[[#This Row],[Anläggningsdel\n]]),FALSE,TRUE)","v":false},{"$f":"IF(ISBLANK(InputA1A3[[#This Row],[Anläggningsdel\n]]),\"\",IF(InputA1A3[[#This Row],[Enhet Mängd (A1A3)]] = InputA1A3[[#This Row],[FU/DU (EF A1A3)]], TRUE, FALSE))","v":""},{"$f":"IF(KontrollTabell[[#This Row],[Finns anläggningsdel-namn.]]=FALSE,\"\",IF(KontrollTabell[[#This Row],[True/False A1A3 Enhet]]=TRUE,TRUE,IF(ISBLANK(InputA1A3[[#This Row],[Omräkning till FU/DU (Skriv in värde, ej formel)]]),FALSE,TRUE)))","v":""},{"$f":"IF(KontrollTabell[[#This Row],[Finns anläggningsdel-namn.]]=FALSE,,IF(KontrollTabell[[#This Row],[True/False A1A3 Enhet]]=TRUE,InputA1A3[[#This Row],[Mängd A1A3]]*InputA1A3[[#This Row],[EF A1A3 '[kg CO₂-ekv.']]],IF(KontrollTabell[[#This Row],[True/False A1A3 om A1A3 kan beräknas]]=TRUE,InputA1A3[[#This Row],[Mängd A1A3]]*InputA1A3[[#This Row],[EF A1A3 '[kg CO₂-ekv.']]]*InputA1A3[[#This Row],[Omräkning till FU/DU (Skriv in värde, ej formel)]],\"Värde Behövs\")))","v":0},{"$f":"IF(ISBLANK(InputA1A3[[#This Row],[Anläggningsdel\n]]),\"\",IF(ISBLANK(InputA1A3[[#This Row],[EPD - EF A4]]),FALSE,TRUE))","v":""},{"$f":"IF(OR(ISBLANK(InputA1A3[[#This Row],[Enhet (bränsleförbrukning per km)]]),ISBLANK(InputA1A3[[#This Row],[*DU/FU (EF A4) för valt drivmedel (schablon)]])),\"\",IF(OR(InputA1A3[[#This Row],[Enhet (bränsleförbrukning per km)]]=InputA1A3[[#This Row],[*DU/FU (EF A4) för valt drivmedel (schablon)]],AND(InputA1A3[[#This Row],[Enhet (bränsleförbrukning per km)]]<>InputA1A3[[#This Row],[*DU/FU (EF A4) för valt drivmedel (schablon)]],ISNUMBER(InputA1A3[[#This Row],[Omräkningsfaktor (A4), (vid behov, värde eller formel)]]))),TRUE(),FALSE()))","v":""},{"$f":"IF(InputA1A3[[#This Row],[Enhet (bränsleförbrukning per km)]] =InputA1A3[[#This Row],[*DU/FU (EF A4) för valt drivmedel (schablon)]],TRUE,IF(ISBLANK(InputA1A3[[#This Row],[Omräkningsfaktor (A4), (vid behov, värde eller formel)]]),FALSE,TRUE))","v":true},{"$f":"IF(ISBLANK(InputA1A3[[#This Row],[EPD - EF A4]]),\"\",IF(ISBLANK(InputA1A3[[#This Row],[Omräkning till FU/DU (Skriv in värde, ej formel)]]),InputA1A3[[#This Row],[EPD - EF A4]]*InputA1A3[[#This Row],[Mängd A1A3]],InputA1A3[[#This Row],[Mängd A1A3]]*InputA1A3[[#This Row],[Omräkning till FU/DU (Skriv in värde, ej formel)]]*InputA1A3[[#This Row],[EPD - EF A4]]))","v":""},{"$f":"IF(ISBLANK(KontrollTabell[[#This Row],[True/False A4 - Alt 2]]),\"\",IF(KontrollTabell[[#This Row],[True/False A4 Enhet - Alt2]]=TRUE,InputA1A3[[#This Row],[Sträcka - totalt '[km'], (tur och retur, alla transporter)]]*InputA1A3[[#This Row],[(Bränsle-) Förbrukning per km]],\"Sen då\"))","v":0},{"$f":"SUM(KontrollTabell[[#This Row],[A4 - Resultat alt 1 '[kg']]:[A4 - Alt 2 - beräkning utsläpp]])","v":0},{"$f":"IF(ISBLANK(InputA1A3[[#This Row],[EPD - EF A4]]),ISBLANK(#REF!),)","v":false},{"$f":"IFERROR(IF(KontrollTabell[[#This Row],[True/False A5]]=FALSE(),\"Enheter\",IF(ISBLANK(InputA1A3[[#This Row],[Omräkningsfaktor (A5.2) (ange värde), (vid behov)]]),InputA1A3[[#This Row],[Mängd (A5.2)]]*InputA1A3[[#This Row],[*EF (A5.2)\n'[kg CO₂-ekv.']]],InputA1A3[[#This Row],[Mängd (A5.2)]]*InputA1A3[[#This Row],[*EF (A5.2)\n'[kg CO₂-ekv.']]]*InputA1A3[[#This Row],[Omräkningsfaktor (A5.2) (ange värde), (vid behov)]])),0)","v":0},{"$f":"IF(OR(ISBLANK(InputA1A3[[#This Row],[Enhet för mängd (A5.2)]]),ISBLANK(InputA1A3[[#This Row],[*DU/FU (EF A5.2)]])),\"\",IF(OR(InputA1A3[[#This Row],[Enhet för mängd (A5.2)]]=InputA1A3[[#This Row],[*DU/FU (EF A5.2)]],AND(InputA1A3[[#This Row],[Enhet för mängd (A5.2)]]<>InputA1A3[[#This Row],[*DU/FU (EF A5.2)]],ISNUMBER(InputA1A3[[#This Row],[Omräkningsfaktor (A5.2) (ange värde), (vid behov)]]))),TRUE,FALSE))","v":""},{"$f":"IF(InputA1A3[[#This Row],[Enhet för mängd (A5.2)]] = InputA1A3[[#This Row],[*DU/FU (EF A5.2)]], TRUE, FALSE)","v":true},{"$f":"IF(OR(ISBLANK(InputA1A3[[#This Row],[Kategori\n(egen kategorisering)]])=FALSE,ISBLANK(InputA1A3[[#This Row],[Anläggningsdel\n]]))=FALSE,TRUE,FALSE)","v":false},{"$f":"IF(ISBLANK(InputA1A3[[#This Row],[Anläggningsdel\n]]),\"\",IF(KontrollTabell[[#This Row],[TRUE/FALSE om kategori saknas.]] =FALSE,InputA1A3[[#This Row],[Kategori\n(egen kategorisering)]],\"Kategori saknas\"))","v":""}]
[null,null,null,null,null,null,null,null,null,{"$f":"IF(ISBLANK(InputA1A3[[#This Row],[Anläggningsdel\n]]),\"\",IF(KontrollTabell[[#This Row],[True/False A1A3 Enhet]]=TRUE, \"\", InputA1A3[[#This Row],[FU/DU (EF A1A3)]] & \"/\" & InputA1A3[[#This Row],[Enhet Mängd (A1A3)]]))","v":""},null,null,null,null,{"$f":"IF(ISBLANK(InputA1A3[[#This Row],[EPD - EF A4]]),\"\",InputA1A3[[#This Row],[FU/DU (EF A1A3)]])","v":""},null,null,null,{"$f":"IFERROR(INDEX(TabellEFDrivmedel[],MATCH(InputA1A3[[#This Row],[Drivmedel (A4) (endast förval ur lista)]],TabellEFDrivmedel[Drivmedel],0),4),\"\")","v":""},null,null,null,{"$f":"IF(InputA1A3[[#This Row],[*DU/FU (EF A4) för valt drivmedel (schablon)]]=\"\",\"\",IF(KontrollTabell[[#This Row],[True/False A4 Enhet - Alt2]]=TRUE,\"\",IF(ISBLANK(InputA1A3[[#This Row],[*DU/FU (EF A4) för valt drivmedel (schablon)]]),,InputA1A3[[#This Row],[Enhet (bränsleförbrukning per km)]]& \"/\" & InputA1A3[[#This Row],[*DU/FU (EF A4) för valt drivmedel (schablon)]])))","v":""},null,null,null,null,null,null,null,{"$f":"IFERROR(INDEX(TabellEFDrivmedel[],MATCH(InputA1A3[[#This Row],[Drivmedel (A5.2)]],TabellEFDrivmedel[Drivmedel],0),2),\"\")","v":""},{"$f":"IFERROR(INDEX(TabellEFDrivmedel[],MATCH(InputA1A3[[#This Row],[Drivmedel (A5.2)]],TabellEFDrivmedel[Drivmedel],0),4),\"\")","v":""},{"$f":"IF(KontrollTabell[[#This Row],[True/False A5 Enhet]]=TRUE, \"\", InputA1A3[[#This Row],[*DU/FU (EF A5.2)]] & \"/\" & InputA1A3[[#This Row],[Enhet för mängd (A5.2)]])","v":""},null,null,null,null,null,null,null,null,null,null,null,null,null,null,null,null,null,null,null,null,null,null,null,null,null,null,null,null,null,null,null,null,null,null,null,null,null,null,null,null,{"$f":"IF(ISBLANK(InputA1A3[[#This Row],[Anläggningsdel\n]]),FALSE,TRUE)","v":false},{"$f":"IF(ISBLANK(InputA1A3[[#This Row],[Anläggningsdel\n]]),\"\",IF(InputA1A3[[#This Row],[Enhet Mängd (A1A3)]] = InputA1A3[[#This Row],[FU/DU (EF A1A3)]], TRUE, FALSE))","v":""},{"$f":"IF(KontrollTabell[[#This Row],[Finns anläggningsdel-namn.]]=FALSE,\"\",IF(KontrollTabell[[#This Row],[True/False A1A3 Enhet]]=TRUE,TRUE,IF(ISBLANK(InputA1A3[[#This Row],[Omräkning till FU/DU (Skriv in värde, ej formel)]]),FALSE,TRUE)))","v":""},{"$f":"IF(KontrollTabell[[#This Row],[Finns anläggningsdel-namn.]]=FALSE,,IF(KontrollTabell[[#This Row],[True/False A1A3 Enhet]]=TRUE,InputA1A3[[#This Row],[Mängd A1A3]]*InputA1A3[[#This Row],[EF A1A3 '[kg CO₂-ekv.']]],IF(KontrollTabell[[#This Row],[True/False A1A3 om A1A3 kan beräknas]]=TRUE,InputA1A3[[#This Row],[Mängd A1A3]]*InputA1A3[[#This Row],[EF A1A3 '[kg CO₂-ekv.']]]*InputA1A3[[#This Row],[Omräkning till FU/DU (Skriv in värde, ej formel)]],\"Värde Behövs\")))","v":0},{"$f":"IF(ISBLANK(InputA1A3[[#This Row],[Anläggningsdel\n]]),\"\",IF(ISBLANK(InputA1A3[[#This Row],[EPD - EF A4]]),FALSE,TRUE))","v":""},{"$f":"IF(OR(ISBLANK(InputA1A3[[#This Row],[Enhet (bränsleförbrukning per km)]]),ISBLANK(InputA1A3[[#This Row],[*DU/FU (EF A4) för valt drivmedel (schablon)]])),\"\",IF(OR(InputA1A3[[#This Row],[Enhet (bränsleförbrukning per km)]]=InputA1A3[[#This Row],[*DU/FU (EF A4) för valt drivmedel (schablon)]],AND(InputA1A3[[#This Row],[Enhet (bränsleförbrukning per km)]]<>InputA1A3[[#This Row],[*DU/FU (EF A4) för valt drivmedel (schablon)]],ISNUMBER(InputA1A3[[#This Row],[Omräkningsfaktor (A4), (vid behov, värde eller formel)]]))),TRUE(),FALSE()))","v":""},{"$f":"IF(InputA1A3[[#This Row],[Enhet (bränsleförbrukning per km)]] =InputA1A3[[#This Row],[*DU/FU (EF A4) för valt drivmedel (schablon)]],TRUE,IF(ISBLANK(InputA1A3[[#This Row],[Omräkningsfaktor (A4), (vid behov, värde eller formel)]]),FALSE,TRUE))","v":true},{"$f":"IF(ISBLANK(InputA1A3[[#This Row],[EPD - EF A4]]),\"\",IF(ISBLANK(InputA1A3[[#This Row],[Omräkning till FU/DU (Skriv in värde, ej formel)]]),InputA1A3[[#This Row],[EPD - EF A4]]*InputA1A3[[#This Row],[Mängd A1A3]],InputA1A3[[#This Row],[Mängd A1A3]]*InputA1A3[[#This Row],[Omräkning till FU/DU (Skriv in värde, ej formel)]]*InputA1A3[[#This Row],[EPD - EF A4]]))","v":""},{"$f":"IF(ISBLANK(KontrollTabell[[#This Row],[True/False A4 - Alt 2]]),\"\",IF(KontrollTabell[[#This Row],[True/False A4 Enhet - Alt2]]=TRUE,InputA1A3[[#This Row],[Sträcka - totalt '[km'], (tur och retur, alla transporter)]]*InputA1A3[[#This Row],[(Bränsle-) Förbrukning per km]],\"Sen då\"))","v":0},{"$f":"SUM(KontrollTabell[[#This Row],[A4 - Resultat alt 1 '[kg']]:[A4 - Alt 2 - beräkning utsläpp]])","v":0},{"$f":"IF(ISBLANK(InputA1A3[[#This Row],[EPD - EF A4]]),ISBLANK(#REF!),)","v":false},{"$f":"IFERROR(IF(KontrollTabell[[#This Row],[True/False A5]]=FALSE(),\"Enheter\",IF(ISBLANK(InputA1A3[[#This Row],[Omräkningsfaktor (A5.2) (ange värde), (vid behov)]]),InputA1A3[[#This Row],[Mängd (A5.2)]]*InputA1A3[[#This Row],[*EF (A5.2)\n'[kg CO₂-ekv.']]],InputA1A3[[#This Row],[Mängd (A5.2)]]*InputA1A3[[#This Row],[*EF (A5.2)\n'[kg CO₂-ekv.']]]*InputA1A3[[#This Row],[Omräkningsfaktor (A5.2) (ange värde), (vid behov)]])),0)","v":0},{"$f":"IF(OR(ISBLANK(InputA1A3[[#This Row],[Enhet för mängd (A5.2)]]),ISBLANK(InputA1A3[[#This Row],[*DU/FU (EF A5.2)]])),\"\",IF(OR(InputA1A3[[#This Row],[Enhet för mängd (A5.2)]]=InputA1A3[[#This Row],[*DU/FU (EF A5.2)]],AND(InputA1A3[[#This Row],[Enhet för mängd (A5.2)]]<>InputA1A3[[#This Row],[*DU/FU (EF A5.2)]],ISNUMBER(InputA1A3[[#This Row],[Omräkningsfaktor (A5.2) (ange värde), (vid behov)]]))),TRUE,FALSE))","v":""},{"$f":"IF(InputA1A3[[#This Row],[Enhet för mängd (A5.2)]] = InputA1A3[[#This Row],[*DU/FU (EF A5.2)]], TRUE, FALSE)","v":true},{"$f":"IF(OR(ISBLANK(InputA1A3[[#This Row],[Kategori\n(egen kategorisering)]])=FALSE,ISBLANK(InputA1A3[[#This Row],[Anläggningsdel\n]]))=FALSE,TRUE,FALSE)","v":false},{"$f":"IF(ISBLANK(InputA1A3[[#This Row],[Anläggningsdel\n]]),\"\",IF(KontrollTabell[[#This Row],[TRUE/FALSE om kategori saknas.]] =FALSE,InputA1A3[[#This Row],[Kategori\n(egen kategorisering)]],\"Kategori saknas\"))","v":""}]
[null,null,null,null,null,null,null,null,null,{"$f":"IF(ISBLANK(InputA1A3[[#This Row],[Anläggningsdel\n]]),\"\",IF(KontrollTabell[[#This Row],[True/False A1A3 Enhet]]=TRUE, \"\", InputA1A3[[#This Row],[FU/DU (EF A1A3)]] & \"/\" & InputA1A3[[#This Row],[Enhet Mängd (A1A3)]]))","v":""},null,null,null,null,{"$f":"IF(ISBLANK(InputA1A3[[#This Row],[EPD - EF A4]]),\"\",InputA1A3[[#This Row],[FU/DU (EF A1A3)]])","v":""},null,null,null,{"$f":"IFERROR(INDEX(TabellEFDrivmedel[],MATCH(InputA1A3[[#This Row],[Drivmedel (A4) (endast förval ur lista)]],TabellEFDrivmedel[Drivmedel],0),4),\"\")","v":""},null,null,null,{"$f":"IF(InputA1A3[[#This Row],[*DU/FU (EF A4) för valt drivmedel (schablon)]]=\"\",\"\",IF(KontrollTabell[[#This Row],[True/False A4 Enhet - Alt2]]=TRUE,\"\",IF(ISBLANK(InputA1A3[[#This Row],[*DU/FU (EF A4) för valt drivmedel (schablon)]]),,InputA1A3[[#This Row],[Enhet (bränsleförbrukning per km)]]& \"/\" & InputA1A3[[#This Row],[*DU/FU (EF A4) för valt drivmedel (schablon)]])))","v":""},null,null,null,null,null,null,null,{"$f":"IFERROR(INDEX(TabellEFDrivmedel[],MATCH(InputA1A3[[#This Row],[Drivmedel (A5.2)]],TabellEFDrivmedel[Drivmedel],0),2),\"\")","v":""},{"$f":"IFERROR(INDEX(TabellEFDrivmedel[],MATCH(InputA1A3[[#This Row],[Drivmedel (A5.2)]],TabellEFDrivmedel[Drivmedel],0),4),\"\")","v":""},{"$f":"IF(KontrollTabell[[#This Row],[True/False A5 Enhet]]=TRUE, \"\", InputA1A3[[#This Row],[*DU/FU (EF A5.2)]] & \"/\" & InputA1A3[[#This Row],[Enhet för mängd (A5.2)]])","v":""},null,null,null,null,null,null,null,null,null,null,null,null,null,null,null,null,null,null,null,null,null,null,null,null,null,null,null,null,null,null,null,null,null,null,null,null,null,null,null,null,{"$f":"IF(ISBLANK(InputA1A3[[#This Row],[Anläggningsdel\n]]),FALSE,TRUE)","v":false},{"$f":"IF(ISBLANK(InputA1A3[[#This Row],[Anläggningsdel\n]]),\"\",IF(InputA1A3[[#This Row],[Enhet Mängd (A1A3)]] = InputA1A3[[#This Row],[FU/DU (EF A1A3)]], TRUE, FALSE))","v":""},{"$f":"IF(KontrollTabell[[#This Row],[Finns anläggningsdel-namn.]]=FALSE,\"\",IF(KontrollTabell[[#This Row],[True/False A1A3 Enhet]]=TRUE,TRUE,IF(ISBLANK(InputA1A3[[#This Row],[Omräkning till FU/DU (Skriv in värde, ej formel)]]),FALSE,TRUE)))","v":""},{"$f":"IF(KontrollTabell[[#This Row],[Finns anläggningsdel-namn.]]=FALSE,,IF(KontrollTabell[[#This Row],[True/False A1A3 Enhet]]=TRUE,InputA1A3[[#This Row],[Mängd A1A3]]*InputA1A3[[#This Row],[EF A1A3 '[kg CO₂-ekv.']]],IF(KontrollTabell[[#This Row],[True/False A1A3 om A1A3 kan beräknas]]=TRUE,InputA1A3[[#This Row],[Mängd A1A3]]*InputA1A3[[#This Row],[EF A1A3 '[kg CO₂-ekv.']]]*InputA1A3[[#This Row],[Omräkning till FU/DU (Skriv in värde, ej formel)]],\"Värde Behövs\")))","v":0},{"$f":"IF(ISBLANK(InputA1A3[[#This Row],[Anläggningsdel\n]]),\"\",IF(ISBLANK(InputA1A3[[#This Row],[EPD - EF A4]]),FALSE,TRUE))","v":""},{"$f":"IF(OR(ISBLANK(InputA1A3[[#This Row],[Enhet (bränsleförbrukning per km)]]),ISBLANK(InputA1A3[[#This Row],[*DU/FU (EF A4) för valt drivmedel (schablon)]])),\"\",IF(OR(InputA1A3[[#This Row],[Enhet (bränsleförbrukning per km)]]=InputA1A3[[#This Row],[*DU/FU (EF A4) för valt drivmedel (schablon)]],AND(InputA1A3[[#This Row],[Enhet (bränsleförbrukning per km)]]<>InputA1A3[[#This Row],[*DU/FU (EF A4) för valt drivmedel (schablon)]],ISNUMBER(InputA1A3[[#This Row],[Omräkningsfaktor (A4), (vid behov, värde eller formel)]]))),TRUE(),FALSE()))","v":""},{"$f":"IF(InputA1A3[[#This Row],[Enhet (bränsleförbrukning per km)]] =InputA1A3[[#This Row],[*DU/FU (EF A4) för valt drivmedel (schablon)]],TRUE,IF(ISBLANK(InputA1A3[[#This Row],[Omräkningsfaktor (A4), (vid behov, värde eller formel)]]),FALSE,TRUE))","v":true},{"$f":"IF(ISBLANK(InputA1A3[[#This Row],[EPD - EF A4]]),\"\",IF(ISBLANK(InputA1A3[[#This Row],[Omräkning till FU/DU (Skriv in värde, ej formel)]]),InputA1A3[[#This Row],[EPD - EF A4]]*InputA1A3[[#This Row],[Mängd A1A3]],InputA1A3[[#This Row],[Mängd A1A3]]*InputA1A3[[#This Row],[Omräkning till FU/DU (Skriv in värde, ej formel)]]*InputA1A3[[#This Row],[EPD - EF A4]]))","v":""},{"$f":"IF(ISBLANK(KontrollTabell[[#This Row],[True/False A4 - Alt 2]]),\"\",IF(KontrollTabell[[#This Row],[True/False A4 Enhet - Alt2]]=TRUE,InputA1A3[[#This Row],[Sträcka - totalt '[km'], (tur och retur, alla transporter)]]*InputA1A3[[#This Row],[(Bränsle-) Förbrukning per km]],\"Sen då\"))","v":0},{"$f":"SUM(KontrollTabell[[#This Row],[A4 - Resultat alt 1 '[kg']]:[A4 - Alt 2 - beräkning utsläpp]])","v":0},{"$f":"IF(ISBLANK(InputA1A3[[#This Row],[EPD - EF A4]]),ISBLANK(#REF!),)","v":false},{"$f":"IFERROR(IF(KontrollTabell[[#This Row],[True/False A5]]=FALSE(),\"Enheter\",IF(ISBLANK(InputA1A3[[#This Row],[Omräkningsfaktor (A5.2) (ange värde), (vid behov)]]),InputA1A3[[#This Row],[Mängd (A5.2)]]*InputA1A3[[#This Row],[*EF (A5.2)\n'[kg CO₂-ekv.']]],InputA1A3[[#This Row],[Mängd (A5.2)]]*InputA1A3[[#This Row],[*EF (A5.2)\n'[kg CO₂-ekv.']]]*InputA1A3[[#This Row],[Omräkningsfaktor (A5.2) (ange värde), (vid behov)]])),0)","v":0},{"$f":"IF(OR(ISBLANK(InputA1A3[[#This Row],[Enhet för mängd (A5.2)]]),ISBLANK(InputA1A3[[#This Row],[*DU/FU (EF A5.2)]])),\"\",IF(OR(InputA1A3[[#This Row],[Enhet för mängd (A5.2)]]=InputA1A3[[#This Row],[*DU/FU (EF A5.2)]],AND(InputA1A3[[#This Row],[Enhet för mängd (A5.2)]]<>InputA1A3[[#This Row],[*DU/FU (EF A5.2)]],ISNUMBER(InputA1A3[[#This Row],[Omräkningsfaktor (A5.2) (ange värde), (vid behov)]]))),TRUE,FALSE))","v":""},{"$f":"IF(InputA1A3[[#This Row],[Enhet för mängd (A5.2)]] = InputA1A3[[#This Row],[*DU/FU (EF A5.2)]], TRUE, FALSE)","v":true},{"$f":"IF(OR(ISBLANK(InputA1A3[[#This Row],[Kategori\n(egen kategorisering)]])=FALSE,ISBLANK(InputA1A3[[#This Row],[Anläggningsdel\n]]))=FALSE,TRUE,FALSE)","v":false},{"$f":"IF(ISBLANK(InputA1A3[[#This Row],[Anläggningsdel\n]]),\"\",IF(KontrollTabell[[#This Row],[TRUE/FALSE om kategori saknas.]] =FALSE,InputA1A3[[#This Row],[Kategori\n(egen kategorisering)]],\"Kategori saknas\"))","v":""}]
[null,null,null,null,null,null,null,null,null,{"$f":"IF(ISBLANK(InputA1A3[[#This Row],[Anläggningsdel\n]]),\"\",IF(KontrollTabell[[#This Row],[True/False A1A3 Enhet]]=TRUE, \"\", InputA1A3[[#This Row],[FU/DU (EF A1A3)]] & \"/\" & InputA1A3[[#This Row],[Enhet Mängd (A1A3)]]))","v":""},null,null,null,null,{"$f":"IF(ISBLANK(InputA1A3[[#This Row],[EPD - EF A4]]),\"\",InputA1A3[[#This Row],[FU/DU (EF A1A3)]])","v":""},null,null,null,{"$f":"IFERROR(INDEX(TabellEFDrivmedel[],MATCH(InputA1A3[[#This Row],[Drivmedel (A4) (endast förval ur lista)]],TabellEFDrivmedel[Drivmedel],0),4),\"\")","v":""},null,null,null,{"$f":"IF(InputA1A3[[#This Row],[*DU/FU (EF A4) för valt drivmedel (schablon)]]=\"\",\"\",IF(KontrollTabell[[#This Row],[True/False A4 Enhet - Alt2]]=TRUE,\"\",IF(ISBLANK(InputA1A3[[#This Row],[*DU/FU (EF A4) för valt drivmedel (schablon)]]),,InputA1A3[[#This Row],[Enhet (bränsleförbrukning per km)]]& \"/\" & InputA1A3[[#This Row],[*DU/FU (EF A4) för valt drivmedel (schablon)]])))","v":""},null,null,null,null,null,null,null,{"$f":"IFERROR(INDEX(TabellEFDrivmedel[],MATCH(InputA1A3[[#This Row],[Drivmedel (A5.2)]],TabellEFDrivmedel[Drivmedel],0),2),\"\")","v":""},{"$f":"IFERROR(INDEX(TabellEFDrivmedel[],MATCH(InputA1A3[[#This Row],[Drivmedel (A5.2)]],TabellEFDrivmedel[Drivmedel],0),4),\"\")","v":""},{"$f":"IF(KontrollTabell[[#This Row],[True/False A5 Enhet]]=TRUE, \"\", InputA1A3[[#This Row],[*DU/FU (EF A5.2)]] & \"/\" & InputA1A3[[#This Row],[Enhet för mängd (A5.2)]])","v":""},null,null,null,null,null,null,null,null,null,null,null,null,null,null,null,null,null,null,null,null,null,null,null,null,null,null,null,null,null,null,null,null,null,null,null,null,null,null,null,null,{"$f":"IF(ISBLANK(InputA1A3[[#This Row],[Anläggningsdel\n]]),FALSE,TRUE)","v":false},{"$f":"IF(ISBLANK(InputA1A3[[#This Row],[Anläggningsdel\n]]),\"\",IF(InputA1A3[[#This Row],[Enhet Mängd (A1A3)]] = InputA1A3[[#This Row],[FU/DU (EF A1A3)]], TRUE, FALSE))","v":""},{"$f":"IF(KontrollTabell[[#This Row],[Finns anläggningsdel-namn.]]=FALSE,\"\",IF(KontrollTabell[[#This Row],[True/False A1A3 Enhet]]=TRUE,TRUE,IF(ISBLANK(InputA1A3[[#This Row],[Omräkning till FU/DU (Skriv in värde, ej formel)]]),FALSE,TRUE)))","v":""},{"$f":"IF(KontrollTabell[[#This Row],[Finns anläggningsdel-namn.]]=FALSE,,IF(KontrollTabell[[#This Row],[True/False A1A3 Enhet]]=TRUE,InputA1A3[[#This Row],[Mängd A1A3]]*InputA1A3[[#This Row],[EF A1A3 '[kg CO₂-ekv.']]],IF(KontrollTabell[[#This Row],[True/False A1A3 om A1A3 kan beräknas]]=TRUE,InputA1A3[[#This Row],[Mängd A1A3]]*InputA1A3[[#This Row],[EF A1A3 '[kg CO₂-ekv.']]]*InputA1A3[[#This Row],[Omräkning till FU/DU (Skriv in värde, ej formel)]],\"Värde Behövs\")))","v":0},{"$f":"IF(ISBLANK(InputA1A3[[#This Row],[Anläggningsdel\n]]),\"\",IF(ISBLANK(InputA1A3[[#This Row],[EPD - EF A4]]),FALSE,TRUE))","v":""},{"$f":"IF(OR(ISBLANK(InputA1A3[[#This Row],[Enhet (bränsleförbrukning per km)]]),ISBLANK(InputA1A3[[#This Row],[*DU/FU (EF A4) för valt drivmedel (schablon)]])),\"\",IF(OR(InputA1A3[[#This Row],[Enhet (bränsleförbrukning per km)]]=InputA1A3[[#This Row],[*DU/FU (EF A4) för valt drivmedel (schablon)]],AND(InputA1A3[[#This Row],[Enhet (bränsleförbrukning per km)]]<>InputA1A3[[#This Row],[*DU/FU (EF A4) för valt drivmedel (schablon)]],ISNUMBER(InputA1A3[[#This Row],[Omräkningsfaktor (A4), (vid behov, värde eller formel)]]))),TRUE(),FALSE()))","v":""},{"$f":"IF(InputA1A3[[#This Row],[Enhet (bränsleförbrukning per km)]] =InputA1A3[[#This Row],[*DU/FU (EF A4) för valt drivmedel (schablon)]],TRUE,IF(ISBLANK(InputA1A3[[#This Row],[Omräkningsfaktor (A4), (vid behov, värde eller formel)]]),FALSE,TRUE))","v":true},{"$f":"IF(ISBLANK(InputA1A3[[#This Row],[EPD - EF A4]]),\"\",IF(ISBLANK(InputA1A3[[#This Row],[Omräkning till FU/DU (Skriv in värde, ej formel)]]),InputA1A3[[#This Row],[EPD - EF A4]]*InputA1A3[[#This Row],[Mängd A1A3]],InputA1A3[[#This Row],[Mängd A1A3]]*InputA1A3[[#This Row],[Omräkning till FU/DU (Skriv in värde, ej formel)]]*InputA1A3[[#This Row],[EPD - EF A4]]))","v":""},{"$f":"IF(ISBLANK(KontrollTabell[[#This Row],[True/False A4 - Alt 2]]),\"\",IF(KontrollTabell[[#This Row],[True/False A4 Enhet - Alt2]]=TRUE,InputA1A3[[#This Row],[Sträcka - totalt '[km'], (tur och retur, alla transporter)]]*InputA1A3[[#This Row],[(Bränsle-) Förbrukning per km]],\"Sen då\"))","v":0},{"$f":"SUM(KontrollTabell[[#This Row],[A4 - Resultat alt 1 '[kg']]:[A4 - Alt 2 - beräkning utsläpp]])","v":0},{"$f":"IF(ISBLANK(InputA1A3[[#This Row],[EPD - EF A4]]),ISBLANK(#REF!),)","v":false},{"$f":"IFERROR(IF(KontrollTabell[[#This Row],[True/False A5]]=FALSE(),\"Enheter\",IF(ISBLANK(InputA1A3[[#This Row],[Omräkningsfaktor (A5.2) (ange värde), (vid behov)]]),InputA1A3[[#This Row],[Mängd (A5.2)]]*InputA1A3[[#This Row],[*EF (A5.2)\n'[kg CO₂-ekv.']]],InputA1A3[[#This Row],[Mängd (A5.2)]]*InputA1A3[[#This Row],[*EF (A5.2)\n'[kg CO₂-ekv.']]]*InputA1A3[[#This Row],[Omräkningsfaktor (A5.2) (ange värde), (vid behov)]])),0)","v":0},{"$f":"IF(OR(ISBLANK(InputA1A3[[#This Row],[Enhet för mängd (A5.2)]]),ISBLANK(InputA1A3[[#This Row],[*DU/FU (EF A5.2)]])),\"\",IF(OR(InputA1A3[[#This Row],[Enhet för mängd (A5.2)]]=InputA1A3[[#This Row],[*DU/FU (EF A5.2)]],AND(InputA1A3[[#This Row],[Enhet för mängd (A5.2)]]<>InputA1A3[[#This Row],[*DU/FU (EF A5.2)]],ISNUMBER(InputA1A3[[#This Row],[Omräkningsfaktor (A5.2) (ange värde), (vid behov)]]))),TRUE,FALSE))","v":""},{"$f":"IF(InputA1A3[[#This Row],[Enhet för mängd (A5.2)]] = InputA1A3[[#This Row],[*DU/FU (EF A5.2)]], TRUE, FALSE)","v":true},{"$f":"IF(OR(ISBLANK(InputA1A3[[#This Row],[Kategori\n(egen kategorisering)]])=FALSE,ISBLANK(InputA1A3[[#This Row],[Anläggningsdel\n]]))=FALSE,TRUE,FALSE)","v":false},{"$f":"IF(ISBLANK(InputA1A3[[#This Row],[Anläggningsdel\n]]),\"\",IF(KontrollTabell[[#This Row],[TRUE/FALSE om kategori saknas.]] =FALSE,InputA1A3[[#This Row],[Kategori\n(egen kategorisering)]],\"Kategori saknas\"))","v":""}]
[null,null,null,null,null,null,null,null,null,null,null,null,null,null,null,null,null,null,null,null,null,null,null,null,null,null,null,null,null,null,{"$f":"IFERROR(INDEX(TabellEFDrivmedel[],MATCH(InputA1A3[[#This Row],[Drivmedel (A5.2)]],TabellEFDrivmedel[Drivmedel],0),2),\"\")","v":""},{"$f":"IFERROR(INDEX(TabellEFDrivmedel[],MATCH(InputA1A3[[#This Row],[Drivmedel (A5.2)]],TabellEFDrivmedel[Drivmedel],0),4),\"\")","v":""}]
[null,"Fyll ej i sista raden i tabellen, lägg till rader först!"]
[]
[]
[]
[]
[null,null,null,null,null,null,null,null,null,null,null,null,null,null,null,null,null,{"$f":"IFERROR(INDEX(TabellEFDrivmedel[],MATCH(InputA1A3[[#This Row],[Drivmedel (A4) (endast förval ur lista)]],TabellEFDrivmedel[Drivmedel],0),2),\"\")","v":""}]
[null,null,null,null,null,null,null,null,null,null,null,null,null,null,null,null,null,{"$f":"IFERROR(INDEX(TabellEFDrivmedel[],MATCH(InputA1A3[[#This Row],[Drivmedel (A4) (endast förval ur lista)]],TabellEFDrivmedel[Drivmedel],0),2),\"\")","v":""}]
[null,null,null,null,null,null,null,null,null,null,null,null,null,null,null,null,null,{"$f":"IFERROR(INDEX(TabellEFDrivmedel[],MATCH(InputA1A3[[#This Row],[Drivmedel (A4) (endast förval ur lista)]],TabellEFDrivmedel[Drivmedel],0),2),\"\")","v":""}]

{"sheet":"Kommentarer","index":2,"n_rows":47,"n_cols":6,"rows_kept":47,"cut":false,"hidden":false,"merged":[[2,1,2,3]]}
[]
[]
[null,"Här kan ange mer utförliggare kommentarer till anläggningsdelarna"]
[]
[null,"Färgförklaringar:","Text med denna färg autofylls från input-fliken - ändra den inte."]
[]
[null,"Anläggningsdel","Kommentar","Uförlig kommentar","Kommentar ang omräkningsfaktorerna","Kommentar ang emissionsfaktorer som används, t ex källa, m.m."]
[null,{"$f":"IF(INDEX(InputA1A3[Anläggningsdel\n],ROW()-ROW(TblKommentar[#Headers]))=\"\",\"\",INDEX(InputA1A3[Anläggningsdel\n], ROW()-ROW(TblKommentar[#Headers])))","v":"tewwst"},{"$f":"IF(INDEX(InputA1A3[Kommentar],ROW()-ROW(TblKommentar[#Headers]))=\"\",\"\",INDEX(InputA1A3[Kommentar], ROW()-ROW(TblKommentar[#Headers])))","v":"test"}]
[null,{"$f":"IF(INDEX(InputA1A3[Anläggningsdel\n],ROW()-ROW(TblKommentar[#Headers]))=\"\",\"\",INDEX(InputA1A3[Anläggningsdel\n], ROW()-ROW(TblKommentar[#Headers])))","v":"agrae"},{"$f":"IF(INDEX(InputA1A3[Kommentar],ROW()-ROW(TblKommentar[#Headers]))=\"\",\"\",INDEX(InputA1A3[Kommentar], ROW()-ROW(TblKommentar[#Headers])))","v":"test"}]
[null,{"$f":"IF(INDEX(InputA1A3[Anläggningsdel\n],ROW()-ROW(TblKommentar[#Headers]))=\"\",\"\",INDEX(InputA1A3[Anläggningsdel\n], ROW()-ROW(TblKommentar[#Headers])))","v":"agreg"},{"$f":"IF(INDEX(InputA1A3[Kommentar],ROW()-ROW(TblKommentar[#Headers]))=\"\",\"\",INDEX(InputA1A3[Kommentar], ROW()-ROW(TblKommentar[#Headers])))","v":"test"}]
[null,{"$f":"IF(INDEX(InputA1A3[Anläggningsdel\n],ROW()-ROW(TblKommentar[#Headers]))=\"\",\"\",INDEX(InputA1A3[Anläggningsdel\n], ROW()-ROW(TblKommentar[#Headers])))","v":"f"},{"$f":"IF(INDEX(InputA1A3[Kommentar],ROW()-ROW(TblKommentar[#Headers]))=\"\",\"\",INDEX(InputA1A3[Kommentar], ROW()-ROW(TblKommentar[#Headers])))","v":""}]
[null,{"$f":"IF(INDEX(InputA1A3[Anläggningsdel\n],ROW()-ROW(TblKommentar[#Headers]))=\"\",\"\",INDEX(InputA1A3[Anläggningsdel\n], ROW()-ROW(TblKommentar[#Headers])))","v":"fg"},{"$f":"IF(INDEX(InputA1A3[Kommentar],ROW()-ROW(TblKommentar[#Headers]))=\"\",\"\",INDEX(InputA1A3[Kommentar], ROW()-ROW(TblKommentar[#Headers])))","v":""}]
[null,{"$f":"IF(INDEX(InputA1A3[Anläggningsdel\n],ROW()-ROW(TblKommentar[#Headers]))=\"\",\"\",INDEX(InputA1A3[Anläggningsdel\n], ROW()-ROW(TblKommentar[#Headers])))","v":"agh"},{"$f":"IF(INDEX(InputA1A3[Kommentar],ROW()-ROW(TblKommentar[#Headers]))=\"\",\"\",INDEX(InputA1A3[Kommentar], ROW()-ROW(TblKommentar[#Headers])))","v":""}]
[null,{"$f":"IF(INDEX(InputA1A3[Anläggningsdel\n],ROW()-ROW(TblKommentar[#Headers]))=\"\",\"\",INDEX(InputA1A3[Anläggningsdel\n], ROW()-ROW(TblKommentar[#Headers])))","v":"ggq"},{"$f":"IF(INDEX(InputA1A3[Kommentar],ROW()-ROW(TblKommentar[#Headers]))=\"\",\"\",INDEX(InputA1A3[Kommentar], ROW()-ROW(TblKommentar[#Headers])))","v":""}]
[null,{"$f":"IF(INDEX(InputA1A3[Anläggningsdel\n],ROW()-ROW(TblKommentar[#Headers]))=\"\",\"\",INDEX(InputA1A3[Anläggningsdel\n], ROW()-ROW(TblKommentar[#Headers])))","v":"Test A4_1"},{"$f":"IF(INDEX(InputA1A3[Kommentar],ROW()-ROW(TblKommentar[#Headers]))=\"\",\"\",INDEX(InputA1A3[Kommentar], ROW()-ROW(TblKommentar[#Headers])))","v":""}]
[null,{"$f":"IF(INDEX(InputA1A3[Anläggningsdel\n],ROW()-ROW(TblKommentar[#Headers]))=\"\",\"\",INDEX(InputA1A3[Anläggningsdel\n], ROW()-ROW(TblKommentar[#Headers])))","v":""},{"$f":"IF(INDEX(InputA1A3[Kommentar],ROW()-ROW(TblKommentar[#Headers]))=\"\",\"\",INDEX(InputA1A3[Kommentar], ROW()-ROW(TblKommentar[#Headers])))","v":""}]
[null,{"$f":"IF(INDEX(InputA1A3[Anläggningsdel\n],ROW()-ROW(TblKommentar[#Headers]))=\"\",\"\",INDEX(InputA1A3[Anläggningsdel\n], ROW()-ROW(TblKommentar[#Headers])))","v":""},{"$f":"IF(INDEX(InputA1A3[Kommentar],ROW()-ROW(TblKommentar[#Headers]))=\"\",\"\",INDEX(InputA1A3[Kommentar], ROW()-ROW(TblKommentar[#Headers])))","v":""}]
[null,{"$f":"IF(INDEX(InputA1A3[Anläggningsdel\n],ROW()-ROW(TblKommentar[#Headers]))=\"\",\"\",INDEX(InputA1A3[Anläggningsdel\n], ROW()-ROW(TblKommentar[#Headers])))","v":""},{"$f":"IF(INDEX(InputA1A3[Kommentar],ROW()-ROW(TblKommentar[#Headers]))=\"\",\"\",INDEX(InputA1A3[Kommentar], ROW()-ROW(TblKommentar[#Headers])))","v":""}]
[null,{"$f":"IF(INDEX(InputA1A3[Anläggningsdel\n],ROW()-ROW(TblKommentar[#Headers]))=\"\",\"\",INDEX(InputA1A3[Anläggningsdel\n], ROW()-ROW(TblKommentar[#Headers])))","v":""},{"$f":"IF(INDEX(InputA1A3[Kommentar],ROW()-ROW(TblKommentar[#Headers]))=\"\",\"\",INDEX(InputA1A3[Kommentar], ROW()-ROW(TblKommentar[#Headers])))","v":""}]
[null,{"$f":"IF(INDEX(InputA1A3[Anläggningsdel\n],ROW()-ROW(TblKommentar[#Headers]))=\"\",\"\",INDEX(InputA1A3[Anläggningsdel\n], ROW()-ROW(TblKommentar[#Headers])))","v":""},{"$f":"IF(INDEX(InputA1A3[Kommentar],ROW()-ROW(TblKommentar[#Headers]))=\"\",\"\",INDEX(InputA1A3[Kommentar], ROW()-ROW(TblKommentar[#Headers])))","v":""}]
[null,{"$f":"IF(INDEX(InputA1A3[Anläggningsdel\n],ROW()-ROW(TblKommentar[#Headers]))=\"\",\"\",INDEX(InputA1A3[Anläggningsdel\n], ROW()-ROW(TblKommentar[#Headers])))","v":""},{"$f":"IF(INDEX(InputA1A3[Kommentar],ROW()-ROW(TblKommentar[#Headers]))=\"\",\"\",INDEX(InputA1A3[Kommentar], ROW()-ROW(TblKommentar[#Headers])))","v":""}]
[null,{"$f":"IF(INDEX(InputA1A3[Anläggningsdel\n],ROW()-ROW(TblKommentar[#Headers]))=\"\",\"\",INDEX(InputA1A3[Anläggningsdel\n], ROW()-ROW(TblKommentar[#Headers])))","v":""},{"$f":"IF(INDEX(InputA1A3[Kommentar],ROW()-ROW(TblKommentar[#Headers]))=\"\",\"\",INDEX(InputA1A3[Kommentar], ROW()-ROW(TblKommentar[#Headers])))","v":""}]
[null,{"$f":"IF(INDEX(InputA1A3[Anläggningsdel\n],ROW()-ROW(TblKommentar[#Headers]))=\"\",\"\",INDEX(InputA1A3[Anläggningsdel\n], ROW()-ROW(TblKommentar[#Headers])))","v":""},{"$f":"IF(INDEX(InputA1A3[Kommentar],ROW()-ROW(TblKommentar[#Headers]))=\"\",\"\",INDEX(InputA1A3[Kommentar], ROW()-ROW(TblKommentar[#Headers])))","v":""}]
[null,{"$f":"IF(INDEX(InputA1A3[Anläggningsdel\n],ROW()-ROW(TblKommentar[#Headers]))=\"\",\"\",INDEX(InputA1A3[Anläggningsdel\n], ROW()-ROW(TblKommentar[#Headers])))","v":""},{"$f":"IF(INDEX(InputA1A3[Kommentar],ROW()-ROW(TblKommentar[#Headers]))=\"\",\"\",INDEX(InputA1A3[Kommentar], ROW()-ROW(TblKommentar[#Headers])))","v":""}]
[null,{"$f":"IF(INDEX(InputA1A3[Anläggningsdel\n],ROW()-ROW(TblKommentar[#Headers]))=\"\",\"\",INDEX(InputA1A3[Anläggningsdel\n], ROW()-ROW(TblKommentar[#Headers])))","v":""},{"$f":"IF(INDEX(InputA1A3[Kommentar],ROW()-ROW(TblKommentar[#Headers]))=\"\",\"\",INDEX(InputA1A3[Kommentar], ROW()-ROW(TblKommentar[#Headers])))","v":""}]
[null,{"$f":"IF(INDEX(InputA1A3[Anläggningsdel\n],ROW()-ROW(TblKommentar[#Headers]))=\"\",\"\",INDEX(InputA1A3[Anläggningsdel\n], ROW()-ROW(TblKommentar[#Headers])))","v":""},{"$f":"IF(INDEX(InputA1A3[Kommentar],ROW()-ROW(TblKommentar[#Headers]))=\"\",\"\",INDEX(InputA1A3[Kommentar], ROW()-ROW(TblKommentar[#Headers])))","v":""}]
[null,{"$f":"IF(INDEX(InputA1A3[Anläggningsdel\n],ROW()-ROW(TblKommentar[#Headers]))=\"\",\"\",INDEX(InputA1A3[Anläggningsdel\n], ROW()-ROW(TblKommentar[#Headers])))","v":""},{"$f":"IF(INDEX(InputA1A3[Kommentar],ROW()-ROW(TblKommentar[#Headers]))=\"\",\"\",INDEX(InputA1A3[Kommentar], ROW()-ROW(TblKommentar[#Headers])))","v":""}]
[null,{"$f":"IF(INDEX(InputA1A3[Anläggningsdel\n],ROW()-ROW(TblKommentar[#Headers]))=\"\",\"\",INDEX(InputA1A3[Anläggningsdel\n], ROW()-ROW(TblKommentar[#Headers])))","v":""},{"$f":"IF(INDEX(InputA1A3[Kommentar],ROW()-ROW(TblKommentar[#Headers]))=\"\",\"\",INDEX(InputA1A3[Kommentar], ROW()-ROW(TblKommentar[#Headers])))","v":""}]
[null,{"$f":"IF(INDEX(InputA1A3[Anläggningsdel\n],ROW()-ROW(TblKommentar[#Headers]))=\"\",\"\",INDEX(InputA1A3[Anläggningsdel\n], ROW()-ROW(TblKommentar[#Headers])))","v":""},{"$f":"IF(INDEX(InputA1A3[Kommentar],ROW()-ROW(TblKommentar[#Headers]))=\"\",\"\",INDEX(InputA1A3[Kommentar], ROW()-ROW(TblKommentar[#Headers])))","v":""}]
[null,{"$f":"IF(INDEX(InputA1A3[Anläggningsdel\n],ROW()-ROW(TblKommentar[#Headers]))=\"\",\"\",INDEX(InputA1A3[Anläggningsdel\n], ROW()-ROW(TblKommentar[#Headers])))","v":""},{"$f":"IF(INDEX(InputA1A3[Kommentar],ROW()-ROW(TblKommentar[#Headers]))=\"\",\"\",INDEX(InputA1A3[Kommentar], ROW()-ROW(TblKommentar[#Headers])))","v":""}]
[null,{"$f":"IF(INDEX(InputA1A3[Anläggningsdel\n],ROW()-ROW(TblKommentar[#Headers]))=\"\",\"\",INDEX(InputA1A3[Anläggningsdel\n], ROW()-ROW(TblKommentar[#Headers])))","v":""},{"$f":"IF(INDEX(InputA1A3[Kommentar],ROW()-ROW(TblKommentar[#Headers]))=\"\",\"\",INDEX(InputA1A3[Kommentar], ROW()-ROW(TblKommentar[#Headers])))","v":""}]
[null,{"$f":"IF(INDEX(InputA1A3[Anläggningsdel\n],ROW()-ROW(TblKommentar[#Headers]))=\"\",\"\",INDEX(InputA1A3[Anläggningsdel\n], ROW()-ROW(TblKommentar[#Headers])))","v":""},{"$f":"IF(INDEX(InputA1A3[Kommentar],ROW()-ROW(TblKommentar[#Headers]))=\"\",\"\",INDEX(InputA1A3[Kommentar], ROW()-ROW(TblKommentar[#Headers])))","v":""}]
[null,{"$f":"IF(INDEX(InputA1A3[Anläggningsdel\n],ROW()-ROW(TblKommentar[#Headers]))=\"\",\"\",INDEX(InputA1A3[Anläggningsdel\n], ROW()-ROW(TblKommentar[#Headers])))","v":""},{"$f":"IF(INDEX(InputA1A3[Kommentar],ROW()-ROW(TblKommentar[#Headers]))=\"\",\"\",INDEX(InputA1A3[Kommentar], ROW()-ROW(TblKommentar[#Headers])))","v":""}]
[null,{"$f":"IF(INDEX(InputA1A3[Anläggningsdel\n],ROW()-ROW(TblKommentar[#Headers]))=\"\",\"\",INDEX(InputA1A3[Anläggningsdel\n], ROW()-ROW(TblKommentar[#Headers])))","v":""},{"$f":"IF(INDEX(InputA1A3[Kommentar],ROW()-ROW(TblKommentar[#Headers]))=\"\",\"\",INDEX(InputA1A3[Kommentar], ROW()-ROW(TblKommentar[#Headers])))","v":""}]
[null,{"$f":"IF(INDEX(InputA1A3[Anläggningsdel\n],ROW()-ROW(TblKommentar[#Headers]))=\"\",\"\",INDEX(InputA1A3[Anläggningsdel\n], ROW()-ROW(TblKommentar[#Headers])))","v":""},{"$f":"IF(INDEX(InputA1A3[Kommentar],ROW()-ROW(TblKommentar[#Headers]))=\"\",\"\",INDEX(InputA1A3[Kommentar], ROW()-ROW(TblKommentar[#Headers])))","v":""}]
[null,{"$f":"IF(INDEX(InputA1A3[Anläggningsdel\n],ROW()-ROW(TblKommentar[#Headers]))=\"\",\"\",INDEX(InputA1A3[Anläggningsdel\n], ROW()-ROW(TblKommentar[#Headers])))","v":""},{"$f":"IF(INDEX(InputA1A3[Kommentar],ROW()-ROW(TblKommentar[#Headers]))=\"\",\"\",INDEX(InputA1A3[Kommentar], ROW()-ROW(TblKommentar[#Headers])))","v":""}]
[null,{"$f":"IF(INDEX(InputA1A3[Anläggningsdel\n],ROW()-ROW(TblKommentar[#Headers]))=\"\",\"\",INDEX(InputA1A3[Anläggningsdel\n], ROW()-ROW(TblKommentar[#Headers])))","v":""},{"$f":"IF(INDEX(InputA1A3[Kommentar],ROW()-ROW(TblKommentar[#Headers]))=\"\",\"\",INDEX(InputA1A3[Kommentar], ROW()-ROW(TblKommentar[#Headers])))","v":""}]
[null,{"$f":"IF(INDEX(InputA1A3[Anläggningsdel\n],ROW()-ROW(TblKommentar[#Headers]))=\"\",\"\",INDEX(InputA1A3[Anläggningsdel\n], ROW()-ROW(TblKommentar[#Headers])))","v":""},{"$f":"IF(INDEX(InputA1A3[Kommentar],ROW()-ROW(TblKommentar[#Headers]))=\"\",\"\",INDEX(InputA1A3[Kommentar], ROW()-ROW(TblKommentar[#Headers])))","v":""}]
[null,{"$f":"IF(INDEX(InputA1A3[Anläggningsdel\n],ROW()-ROW(TblKommentar[#Headers]))=\"\",\"\",INDEX(InputA1A3[Anläggningsdel\n], ROW()-ROW(TblKommentar[#Headers])))","v":""},{"$f":"IF(INDEX(InputA1A3[Kommentar],ROW()-ROW(TblKommentar[#Headers]))=\"\",\"\",INDEX(InputA1A3[Kommentar], ROW()-ROW(TblKommentar[#Headers])))","v":""}]
[null,{"$f":"IF(INDEX(InputA1A3[Anläggningsdel\n],ROW()-ROW(TblKommentar[#Headers]))=\"\",\"\",INDEX(InputA1A3[Anläggningsdel\n], ROW()-ROW(TblKommentar[#Headers])))","v":""},{"$f":"IF(INDEX(InputA1A3[Kommentar],ROW()-ROW(TblKommentar[#Headers]))=\"\",\"\",INDEX(InputA1A3[Kommentar], ROW()-ROW(TblKommentar[#Headers])))","v":""}]
[null,{"$f":"IF(INDEX(InputA1A3[Anläggningsdel\n],ROW()-ROW(TblKommentar[#Headers]))=\"\",\"\",INDEX(InputA1A3[Anläggningsdel\n], ROW()-ROW(TblKommentar[#Headers])))","v":""},{"$f":"IF(INDEX(InputA1A3[Kommentar],ROW()-ROW(TblKommentar[#Headers]))=\"\",\"\",INDEX(InputA1A3[Kommentar], ROW()-ROW(TblKommentar[#Headers])))","v":""}]
[null,{"$f":"IF(INDEX(InputA1A3[Anläggningsdel\n],ROW()-ROW(TblKommentar[#Headers]))=\"\",\"\",INDEX(InputA1A3[Anläggningsdel\n], ROW()-ROW(TblKommentar[#Headers])))","v":""},{"$f":"IF(INDEX(InputA1A3[Kommentar],ROW()-ROW(TblKommentar[#Headers]))=\"\",\"\",INDEX(InputA1A3[Kommentar], ROW()-ROW(TblKommentar[#Headers])))","v":""}]
[null,{"$f":"IF(INDEX(InputA1A3[Anläggningsdel\n],ROW()-ROW(TblKommentar[#Headers]))=\"\",\"\",INDEX(InputA1A3[Anläggningsdel\n], ROW()-ROW(TblKommentar[#Headers])))","v":""},{"$f":"IF(INDEX(InputA1A3[Kommentar],ROW()-ROW(TblKommentar[#Headers]))=\"\",\"\",INDEX(InputA1A3[Kommentar], ROW()-ROW(TblKommentar[#Headers])))","v":""}]
[null,{"$f":"IF(INDEX(InputA1A3[Anläggningsdel\n],ROW()-ROW(TblKommentar[#Headers]))=\"\",\"\",INDEX(InputA1A3[Anläggningsdel\n], ROW()-ROW(TblKommentar[#Headers])))","v":""},{"$f":"IF(INDEX(InputA1A3[Kommentar],ROW()-ROW(TblKommentar[#Headers]))=\"\",\"\",INDEX(InputA1A3[Kommentar], ROW()-ROW(TblKommentar[#Headers])))","v":""}]
[null,{"$f":"IF(INDEX(InputA1A3[Anläggningsdel\n],ROW()-ROW(TblKommentar[#Headers]))=\"\",\"\",INDEX(InputA1A3[Anläggningsdel\n], ROW()-ROW(TblKommentar[#Headers])))","v":""},{"$f":"IF(INDEX(InputA1A3[Kommentar],ROW()-ROW(TblKommentar[#Headers]))=\"\",\"\",INDEX(InputA1A3[Kommentar], ROW()-ROW(TblKommentar[#Headers])))","v":""}]
[null,{"$f":"IF(INDEX(InputA1A3[Anläggningsdel\n],ROW()-ROW(TblKommentar[#Headers]))=\"\",\"\",INDEX(InputA1A3[Anläggningsdel\n], ROW()-ROW(TblKommentar[#Headers])))","v":""},{"$f":"IF(INDEX(InputA1A3[Kommentar],ROW()-ROW(TblKommentar[#Headers]))=\"\",\"\",INDEX(InputA1A3[Kommentar], ROW()-ROW(TblKommentar[#Headers])))","v":""}]
[null,{"$f":"IF(INDEX(InputA1A3[Anläggningsdel\n],ROW()-ROW(TblKommentar[#Headers]))=\"\",\"\",INDEX(InputA1A3[Anläggningsdel\n], ROW()-ROW(TblKommentar[#Headers])))","v":""},{"$f":"IF(INDEX(InputA1A3[Kommentar],ROW()-ROW(TblKommentar[#Headers]))=\"\",\"\",INDEX(InputA1A3[Kommentar], ROW()-ROW(TblKommentar[#Headers])))","v":""}]

{"sheet":"Resultat - enskilt scenario","index":3,"n_rows":48,"n_cols":9,"rows_kept":48,"cut":false,"hidden":false,"merged":[[5,4,5,7],[1,1,1,8]]}
[]
[null,"Här presenteras resultatet, utsläppen av växthusgaser per anläggningsdel, i tabellen nedan."]
[]
[null,{"$f":"IF(ISBLANK(ScenarioNamn),\"Du har inte angett ett namn för scenariot\",\"Resultat av scenario \"&ScenarioNamn)","v":"Resultat av scenario 0"}]
[null,{"$f":"'Instruktion och Projektinfo'!O5","v":0},{"$f":"'Instruktion och Projektinfo'!N3:O3","v":"Organisation:"},0]
[null,{"$f":"'Instruktion och Projektinfo'!M5","v":"202X-XX-XX"},{"$f":"'Instruktion och Projektinfo'!P3:Q3","v":"Kontaktperson:"},0,"Utsläpp [ton CO₂-ekv.]"]
[null,"Anläggningsdel","Kategorisering","Kommentar","A1-A3","A4","A5","Totalt","Procentandel av totala utsläppen"]
[null,{"$f":"IF(INDEX(InputA1A3[Anläggningsdel\n],ROW()-ROW(OutputScenario[#Headers]))=\"\",\"\",INDEX(InputA1A3[Anläggningsdel\n], ROW()-ROW(OutputScenario[#Headers])))","v":"tewwst"},{"$f":"IF(INDEX(KontrollTabell[Kategorier],ROW()-ROW(OutputScenario[#Headers]))=\"\",\"\",INDEX(KontrollTabell[Kategorier], ROW()-ROW(OutputScenario[#Headers])))","v":"Kat1"},{"$f":"IF(INDEX(InputA1A3[Kommentar],ROW()-ROW(OutputScenario[#Headers]))=\"\",\"\",INDEX(InputA1A3[Kommentar], ROW()-ROW(OutputScenario[#Headers])))","v":"test"},{"$f":"KontrollTabell[[#This Row],[Utsläpp A1A3 '[kg']]]/1000","v":520},{"$f":"KontrollTabell[[#This Row],[Utsläpp A2 '[kg'] (alt1 och alt2)]]/1000","v":3648},{"$f":"KontrollTabell[[#This Row],[Utsläpp A5'[kg']]]/1000","v":0},{"$f":"SUM(OutputScenario[[#This Row],[A1-A3]:[A5]])","v":4168},{"$f":"OutputScenario[[#This Row],[Totalt]]/OutputScenario[[#Totals],[Totalt]]","v":4.0437646299999061E-2}]
[null,{"$f":"IF(INDEX(InputA1A3[Anläggningsdel\n],ROW()-ROW(OutputScenario[#Headers]))=\"\",\"\",INDEX(InputA1A3[Anläggningsdel\n], ROW()-ROW(OutputScenario[#Headers])))","v":"agrae"},{"$f":"IF(INDEX(KontrollTabell[Kategorier],ROW()-ROW(OutputScenario[#Headers]))=\"\",\"\",INDEX(KontrollTabell[Kategorier], ROW()-ROW(OutputScenario[#Headers])))","v":"kat2"},{"$f":"IF(INDEX(InputA1A3[Kommentar],ROW()-ROW(OutputScenario[#Headers]))=\"\",\"\",INDEX(InputA1A3[Kommentar], ROW()-ROW(OutputScenario[#Headers])))","v":"test"},{"$f":"KontrollTabell[[#This Row],[Utsläpp A1A3 '[kg']]]/1000","v":56941.631999999998},{"$f":"KontrollTabell[[#This Row],[Utsläpp A2 '[kg'] (alt1 och alt2)]]/1000","v":0},{"$f":"KontrollTabell[[#This Row],[Utsläpp A5'[kg']]]/1000","v":8.7614600000000001E-2},{"$f":"SUM(OutputScenario[[#This Row],[A1-A3]:[A5]])","v":56941.719614599999},{"$f":"OutputScenario[[#This Row],[Totalt]]/OutputScenario[[#Totals],[Totalt]]","v":0.5524446059234438}]
[null,{"$f":"IF(INDEX(InputA1A3[Anläggningsdel\n],ROW()-ROW(OutputScenario[#Headers]))=\"\",\"\",INDEX(InputA1A3[Anläggningsdel\n], ROW()-ROW(OutputScenario[#Headers])))","v":"agreg"},{"$f":"IF(INDEX(KontrollTabell[Kategorier],ROW()-ROW(OutputScenario[#Headers]))=\"\",\"\",INDEX(KontrollTabell[Kategorier], ROW()-ROW(OutputScenario[#Headers])))","v":"kat1"},{"$f":"IF(INDEX(InputA1A3[Kommentar],ROW()-ROW(OutputScenario[#Headers]))=\"\",\"\",INDEX(InputA1A3[Kommentar], ROW()-ROW(OutputScenario[#Headers])))","v":"test"},{"$f":"KontrollTabell[[#This Row],[Utsläpp A1A3 '[kg']]]/1000","v":1320.9},{"$f":"KontrollTabell[[#This Row],[Utsläpp A2 '[kg'] (alt1 och alt2)]]/1000","v":14.76},{"$f":"KontrollTabell[[#This Row],[Utsläpp A5'[kg']]]/1000","v":1.7471382},{"$f":"SUM(OutputScenario[[#This Row],[A1-A3]:[A5]])","v":1337.4071382000002},{"$f":"OutputScenario[[#This Row],[Totalt]]/OutputScenario[[#Totals],[Totalt]]","v":1.2975431097318994E-2}]
[null,{"$f":"IF(INDEX(InputA1A3[Anläggningsdel\n],ROW()-ROW(OutputScenario[#Headers]))=\"\",\"\",INDEX(InputA1A3[Anläggningsdel\n], ROW()-ROW(OutputScenario[#Headers])))","v":"f"},{"$f":"IF(INDEX(KontrollTabell[Kategorier],ROW()-ROW(OutputScenario[#Headers]))=\"\",\"\",INDEX(KontrollTabell[Kategorier], ROW()-ROW(OutputScenario[#Headers])))","v":"kat3"},{"$f":"IF(INDEX(InputA1A3[Kommentar],ROW()-ROW(OutputScenario[#Headers]))=\"\",\"\",INDEX(InputA1A3[Kommentar], ROW()-ROW(OutputScenario[#Headers])))","v":""},{"$f":"KontrollTabell[[#This Row],[Utsläpp A1A3 '[kg']]]/1000","v":24198.072},{"$f":"KontrollTabell[[#This Row],[Utsläpp A2 '[kg'] (alt1 och alt2)]]/1000","v":31.866},{"$f":"KontrollTabell[[#This Row],[Utsläpp A5'[kg']]]/1000","v":6770.5470599999999},{"$f":"SUM(OutputScenario[[#This Row],[A1-A3]:[A5]])","v":31000.485060000003},{"$f":"OutputScenario[[#This Row],[Totalt]]/OutputScenario[[#Totals],[Totalt]]","v":0.30076455133989571}]
[null,{"$f":"IF(INDEX(InputA1A3[Anläggningsdel\n],ROW()-ROW(OutputScenario[#Headers]))=\"\",\"\",INDEX(InputA1A3[Anläggningsdel\n], ROW()-ROW(OutputScenario[#Headers])))","v":"fg"},{"$f":"IF(INDEX(KontrollTabell[Kategorier],ROW()-ROW(OutputScenario[#Headers]))=\"\",\"\",INDEX(KontrollTabell[Kategorier], ROW()-ROW(OutputScenario[#Headers])))","v":"kat2"},{"$f":"IF(INDEX(InputA1A3[Kommentar],ROW()-ROW(OutputScenario[#Headers]))=\"\",\"\",INDEX(InputA1A3[Kommentar], ROW()-ROW(OutputScenario[#Headers])))","v":""},{"$f":"KontrollTabell[[#This Row],[Utsläpp A1A3 '[kg']]]/1000","v":2328},{"$f":"KontrollTabell[[#This Row],[Utsläpp A2 '[kg'] (alt1 och alt2)]]/1000","v":0.188},{"$f":"KontrollTabell[[#This Row],[Utsläpp A5'[kg']]]/1000","v":2.4659999999999998E-4},{"$f":"SUM(OutputScenario[[#This Row],[A1-A3]:[A5]])","v":2328.1882466000002},{"$f":"OutputScenario[[#This Row],[Totalt]]/OutputScenario[[#Totals],[Totalt]]","v":2.2587920546023463E-2}]
[null,{"$f":"IF(INDEX(InputA1A3[Anläggningsdel\n],ROW()-ROW(OutputScenario[#Headers]))=\"\",\"\",INDEX(InputA1A3[Anläggningsdel\n], ROW()-ROW(OutputScenario[#Headers])))","v":"agh"},{"$f":"IF(INDEX(KontrollTabell[Kategorier],ROW()-ROW(OutputScenario[#Headers]))=\"\",\"\",INDEX(KontrollTabell[Kategorier], ROW()-ROW(OutputScenario[#Headers])))","v":"övrigt"},{"$f":"IF(INDEX(InputA1A3[Kommentar],ROW()-ROW(OutputScenario[#Headers]))=\"\",\"\",INDEX(InputA1A3[Kommentar], ROW()-ROW(OutputScenario[#Headers])))","v":""},{"$f":"KontrollTabell[[#This Row],[Utsläpp A1A3 '[kg']]]/1000","v":6941.9350000000004},{"$f":"KontrollTabell[[#This Row],[Utsläpp A2 '[kg'] (alt1 och alt2)]]/1000","v":72},{"$f":"KontrollTabell[[#This Row],[Utsläpp A5'[kg']]]/1000","v":0},{"$f":"SUM(OutputScenario[[#This Row],[A1-A3]:[A5]])","v":7013.9350000000004},{"$f":"OutputScenario[[#This Row],[Totalt]]/OutputScenario[[#Totals],[Totalt]]","v":6.8048709861128584E-2}]
[null,{"$f":"IF(INDEX(InputA1A3[Anläggningsdel\n],ROW()-ROW(OutputScenario[#Headers]))=\"\",\"\",INDEX(InputA1A3[Anläggningsdel\n], ROW()-ROW(OutputScenario[#Headers])))","v":"ggq"},{"$f":"IF(INDEX(KontrollTabell[Kategorier],ROW()-ROW(OutputScenario[#Headers]))=\"\",\"\",INDEX(KontrollTabell[Kategorier], ROW()-ROW(OutputScenario[#Headers])))","v":"Kategori saknas"},{"$f":"IF(INDEX(InputA1A3[Kommentar],ROW()-ROW(OutputScenario[#Headers]))=\"\",\"\",INDEX(InputA1A3[Kommentar], ROW()-ROW(OutputScenario[#Headers])))","v":""},{"$f":"KontrollTabell[[#This Row],[Utsläpp A1A3 '[kg']]]/1000","v":35.1},{"$f":"KontrollTabell[[#This Row],[Utsläpp A2 '[kg'] (alt1 och alt2)]]/1000","v":246.285},{"$f":"KontrollTabell[[#This Row],[Utsläpp A5'[kg']]]/1000","v":0},{"$f":"SUM(OutputScenario[[#This Row],[A1-A3]:[A5]])","v":281.38499999999999},{"$f":"OutputScenario[[#This Row],[Totalt]]/OutputScenario[[#Totals],[Totalt]]","v":2.7299777121221774E-3}]
[null,{"$f":"IF(INDEX(InputA1A3[Anläggningsdel\n],ROW()-ROW(OutputScenario[#Headers]))=\"\",\"\",INDEX(InputA1A3[Anläggningsdel\n], ROW()-ROW(OutputScenario[#Headers])))","v":"Test A4_1"},{"$f":"IF(INDEX(KontrollTabell[Kategorier],ROW()-ROW(OutputScenario[#Headers]))=\"\",\"\",INDEX(KontrollTabell[Kategorier], ROW()-ROW(OutputScenario[#Headers])))","v":"kat 3"},{"$f":"IF(INDEX(InputA1A3[Kommentar],ROW()-ROW(OutputScenario[#Headers]))=\"\",\"\",INDEX(InputA1A3[Kommentar], ROW()-ROW(OutputScenario[#Headers])))","v":""},{"$f":"KontrollTabell[[#This Row],[Utsläpp A1A3 '[kg']]]/1000","v":0.65},{"$f":"KontrollTabell[[#This Row],[Utsläpp A2 '[kg'] (alt1 och alt2)]]/1000","v":0.5},{"$f":"KontrollTabell[[#This Row],[Utsläpp A5'[kg']]]/1000","v":0},{"$f":"SUM(OutputScenario[[#This Row],[A1-A3]:[A5]])","v":1.1499999999999999},{"$f":"OutputScenario[[#This Row],[Totalt]]/OutputScenario[[#Totals],[Totalt]]","v":1.115722006837786E-5}]
[null,{"$f":"IF(INDEX(InputA1A3[Anläggningsdel\n],ROW()-ROW(OutputScenario[#Headers]))=\"\",\"\",INDEX(InputA1A3[Anläggningsdel\n], ROW()-ROW(OutputScenario[#Headers])))","v":""},{"$f":"IF(INDEX(KontrollTabell[Kategorier],ROW()-ROW(OutputScenario[#Headers]))=\"\",\"\",INDEX(KontrollTabell[Kategorier], ROW()-ROW(OutputScenario[#Headers])))","v":""},{"$f":"IF(INDEX(InputA1A3[Kommentar],ROW()-ROW(OutputScenario[#Headers]))=\"\",\"\",INDEX(InputA1A3[Kommentar], ROW()-ROW(OutputScenario[#Headers])))","v":""},{"$f":"KontrollTabell[[#This Row],[Utsläpp A1A3 '[kg']]]/1000","v":0},{"$f":"KontrollTabell[[#This Row],[Utsläpp A2 '[kg'] (alt1 och alt2)]]/1000","v":0},{"$f":"KontrollTabell[[#This Row],[Utsläpp A5'[kg']]]/1000","v":0},{"$f":"SUM(OutputScenario[[#This Row],[A1-A3]:[A5]])","v":0},{"$f":"OutputScenario[[#This Row],[Totalt]]/OutputScenario[[#Totals],[Totalt]]","v":0}]
[null,{"$f":"IF(INDEX(InputA1A3[Anläggningsdel\n],ROW()-ROW(OutputScenario[#Headers]))=\"\",\"\",INDEX(InputA1A3[Anläggningsdel\n], ROW()-ROW(OutputScenario[#Headers])))","v":""},{"$f":"IF(INDEX(KontrollTabell[Kategorier],ROW()-ROW(OutputScenario[#Headers]))=\"\",\"\",INDEX(KontrollTabell[Kategorier], ROW()-ROW(OutputScenario[#Headers])))","v":""},{"$f":"IF(INDEX(InputA1A3[Kommentar],ROW()-ROW(OutputScenario[#Headers]))=\"\",\"\",INDEX(InputA1A3[Kommentar], ROW()-ROW(OutputScenario[#Headers])))","v":""},{"$f":"KontrollTabell[[#This Row],[Utsläpp A1A3 '[kg']]]/1000","v":0},{"$f":"KontrollTabell[[#This Row],[Utsläpp A2 '[kg'] (alt1 och alt2)]]/1000","v":0},{"$f":"KontrollTabell[[#This Row],[Utsläpp A5'[kg']]]/1000","v":0},{"$f":"SUM(OutputScenario[[#This Row],[A1-A3]:[A5]])","v":0},{"$f":"OutputScenario[[#This Row],[Totalt]]/OutputScenario[[#Totals],[Totalt]]","v":0}]
[null,{"$f":"IF(INDEX(InputA1A3[Anläggningsdel\n],ROW()-ROW(OutputScenario[#Headers]))=\"\",\"\",INDEX(InputA1A3[Anläggningsdel\n], ROW()-ROW(OutputScenario[#Headers])))","v":""},{"$f":"IF(INDEX(KontrollTabell[Kategorier],ROW()-ROW(OutputScenario[#Headers]))=\"\",\"\",INDEX(KontrollTabell[Kategorier], ROW()-ROW(OutputScenario[#Headers])))","v":""},{"$f":"IF(INDEX(InputA1A3[Kommentar],ROW()-ROW(OutputScenario[#Headers]))=\"\",\"\",INDEX(InputA1A3[Kommentar], ROW()-ROW(OutputScenario[#Headers])))","v":""},{"$f":"KontrollTabell[[#This Row],[Utsläpp A1A3 '[kg']]]/1000","v":0},{"$f":"KontrollTabell[[#This Row],[Utsläpp A2 '[kg'] (alt1 och alt2)]]/1000","v":0},{"$f":"KontrollTabell[[#This Row],[Utsläpp A5'[kg']]]/1000","v":0},{"$f":"SUM(OutputScenario[[#This Row],[A1-A3]:[A5]])","v":0},{"$f":"OutputScenario[[#This Row],[Totalt]]/OutputScenario[[#Totals],[Totalt]]","v":0}]
[null,{"$f":"IF(INDEX(InputA1A3[Anläggningsdel\n],ROW()-ROW(OutputScenario[#Headers]))=\"\",\"\",INDEX(InputA1A3[Anläggningsdel\n], ROW()-ROW(OutputScenario[#Headers])))","v":""},{"$f":"IF(INDEX(KontrollTabell[Kategorier],ROW()-ROW(OutputScenario[#Headers]))=\"\",\"\",INDEX(KontrollTabell[Kategorier], ROW()-ROW(OutputScenario[#Headers])))","v":""},{"$f":"IF(INDEX(InputA1A3[Kommentar],ROW()-ROW(OutputScenario[#Headers]))=\"\",\"\",INDEX(InputA1A3[Kommentar], ROW()-ROW(OutputScenario[#Headers])))","v":""},{"$f":"KontrollTabell[[#This Row],[Utsläpp A1A3 '[kg']]]/1000","v":0},{"$f":"KontrollTabell[[#This Row],[Utsläpp A2 '[kg'] (alt1 och alt2)]]/1000","v":0},{"$f":"KontrollTabell[[#This Row],[Utsläpp A5'[kg']]]/1000","v":0},{"$f":"SUM(OutputScenario[[#This Row],[A1-A3]:[A5]])","v":0},{"$f":"OutputScenario[[#This Row],[Totalt]]/OutputScenario[[#Totals],[Totalt]]","v":0}]
[null,{"$f":"IF(INDEX(InputA1A3[Anläggningsdel\n],ROW()-ROW(OutputScenario[#Headers]))=\"\",\"\",INDEX(InputA1A3[Anläggningsdel\n], ROW()-ROW(OutputScenario[#Headers])))","v":""},{"$f":"IF(INDEX(KontrollTabell[Kategorier],ROW()-ROW(OutputScenario[#Headers]))=\"\",\"\",INDEX(KontrollTabell[Kategorier], ROW()-ROW(OutputScenario[#Headers])))","v":""},{"$f":"IF(INDEX(InputA1A3[Kommentar],ROW()-ROW(OutputScenario[#Headers]))=\"\",\"\",INDEX(InputA1A3[Kommentar], ROW()-ROW(OutputScenario[#Headers])))","v":""},{"$f":"KontrollTabell[[#This Row],[Utsläpp A1A3 '[kg']]]/1000","v":0},{"$f":"KontrollTabell[[#This Row],[Utsläpp A2 '[kg'] (alt1 och alt2)]]/1000","v":0},{"$f":"KontrollTabell[[#This Row],[Utsläpp A5'[kg']]]/1000","v":0},{"$f":"SUM(OutputScenario[[#This Row],[A1-A3]:[A5]])","v":0},{"$f":"OutputScenario[[#This Row],[Totalt]]/OutputScenario[[#Totals],[Totalt]]","v":0}]
[null,{"$f":"IF(INDEX(InputA1A3[Anläggningsdel\n],ROW()-ROW(OutputScenario[#Headers]))=\"\",\"\",INDEX(InputA1A3[Anläggningsdel\n], ROW()-ROW(OutputScenario[#Headers])))","v":""},{"$f":"IF(INDEX(KontrollTabell[Kategorier],ROW()-ROW(OutputScenario[#Headers]))=\"\",\"\",INDEX(KontrollTabell[Kategorier], ROW()-ROW(OutputScenario[#Headers])))","v":""},{"$f":"IF(INDEX(InputA1A3[Kommentar],ROW()-ROW(OutputScenario[#Headers]))=\"\",\"\",INDEX(InputA1A3[Kommentar], ROW()-ROW(OutputScenario[#Headers])))","v":""},{"$f":"KontrollTabell[[#This Row],[Utsläpp A1A3 '[kg']]]/1000","v":0},{"$f":"KontrollTabell[[#This Row],[Utsläpp A2 '[kg'] (alt1 och alt2)]]/1000","v":0},{"$f":"KontrollTabell[[#This Row],[Utsläpp A5'[kg']]]/1000","v":0},{"$f":"SUM(OutputScenario[[#This Row],[A1-A3]:[A5]])","v":0},{"$f":"OutputScenario[[#This Row],[Totalt]]/OutputScenario[[#Totals],[Totalt]]","v":0}]
[null,{"$f":"IF(INDEX(InputA1A3[Anläggningsdel\n],ROW()-ROW(OutputScenario[#Headers]))=\"\",\"\",INDEX(InputA1A3[Anläggningsdel\n], ROW()-ROW(OutputScenario[#Headers])))","v":""},{"$f":"IF(INDEX(KontrollTabell[Kategorier],ROW()-ROW(OutputScenario[#Headers]))=\"\",\"\",INDEX(KontrollTabell[Kategorier], ROW()-ROW(OutputScenario[#Headers])))","v":""},{"$f":"IF(INDEX(InputA1A3[Kommentar],ROW()-ROW(OutputScenario[#Headers]))=\"\",\"\",INDEX(InputA1A3[Kommentar], ROW()-ROW(OutputScenario[#Headers])))","v":""},{"$f":"KontrollTabell[[#This Row],[Utsläpp A1A3 '[kg']]]/1000","v":0},{"$f":"KontrollTabell[[#This Row],[Utsläpp A2 '[kg'] (alt1 och alt2)]]/1000","v":0},{"$f":"KontrollTabell[[#This Row],[Utsläpp A5'[kg']]]/1000","v":0},{"$f":"SUM(OutputScenario[[#This Row],[A1-A3]:[A5]])","v":0},{"$f":"OutputScenario[[#This Row],[Totalt]]/OutputScenario[[#Totals],[Totalt]]","v":0}]
[null,{"$f":"IF(INDEX(InputA1A3[Anläggningsdel\n],ROW()-ROW(OutputScenario[#Headers]))=\"\",\"\",INDEX(InputA1A3[Anläggningsdel\n], ROW()-ROW(OutputScenario[#Headers])))","v":""},{"$f":"IF(INDEX(KontrollTabell[Kategorier],ROW()-ROW(OutputScenario[#Headers]))=\"\",\"\",INDEX(KontrollTabell[Kategorier], ROW()-ROW(OutputScenario[#Headers])))","v":""},{"$f":"IF(INDEX(InputA1A3[Kommentar],ROW()-ROW(OutputScenario[#Headers]))=\"\",\"\",INDEX(InputA1A3[Kommentar], ROW()-ROW(OutputScenario[#Headers])))","v":""},{"$f":"KontrollTabell[[#This Row],[Utsläpp A1A3 '[kg']]]/1000","v":0},{"$f":"KontrollTabell[[#This Row],[Utsläpp A2 '[kg'] (alt1 och alt2)]]/1000","v":0},{"$f":"KontrollTabell[[#This Row],[Utsläpp A5'[kg']]]/1000","v":0},{"$f":"SUM(OutputScenario[[#This Row],[A1-A3]:[A5]])","v":0},{"$f":"OutputScenario[[#This Row],[Totalt]]/OutputScenario[[#Totals],[Totalt]]","v":0}]
[null,{"$f":"IF(INDEX(InputA1A3[Anläggningsdel\n],ROW()-ROW(OutputScenario[#Headers]))=\"\",\"\",INDEX(InputA1A3[Anläggningsdel\n], ROW()-ROW(OutputScenario[#Headers])))","v":""},{"$f":"IF(INDEX(KontrollTabell[Kategorier],ROW()-ROW(OutputScenario[#Headers]))=\"\",\"\",INDEX(KontrollTabell[Kategorier], ROW()-ROW(OutputScenario[#Headers])))","v":""},{"$f":"IF(INDEX(InputA1A3[Kommentar],ROW()-ROW(OutputScenario[#Headers]))=\"\",\"\",INDEX(InputA1A3[Kommentar], ROW()-ROW(OutputScenario[#Headers])))","v":""},{"$f":"KontrollTabell[[#This Row],[Utsläpp A1A3 '[kg']]]/1000","v":0},{"$f":"KontrollTabell[[#This Row],[Utsläpp A2 '[kg'] (alt1 och alt2)]]/1000","v":0},{"$f":"KontrollTabell[[#This Row],[Utsläpp A5'[kg']]]/1000","v":0},{"$f":"SUM(OutputScenario[[#This Row],[A1-A3]:[A5]])","v":0},{"$f":"OutputScenario[[#This Row],[Totalt]]/OutputScenario[[#Totals],[Totalt]]","v":0}]
[null,{"$f":"IF(INDEX(InputA1A3[Anläggningsdel\n],ROW()-ROW(OutputScenario[#Headers]))=\"\",\"\",INDEX(InputA1A3[Anläggningsdel\n], ROW()-ROW(OutputScenario[#Headers])))","v":""},{"$f":"IF(INDEX(KontrollTabell[Kategorier],ROW()-ROW(OutputScenario[#Headers]))=\"\",\"\",INDEX(KontrollTabell[Kategorier], ROW()-ROW(OutputScenario[#Headers])))","v":""},{"$f":"IF(INDEX(InputA1A3[Kommentar],ROW()-ROW(OutputScenario[#Headers]))=\"\",\"\",INDEX(InputA1A3[Kommentar], ROW()-ROW(OutputScenario[#Headers])))","v":""},{"$f":"KontrollTabell[[#This Row],[Utsläpp A1A3 '[kg']]]/1000","v":0},{"$f":"KontrollTabell[[#This Row],[Utsläpp A2 '[kg'] (alt1 och alt2)]]/1000","v":0},{"$f":"KontrollTabell[[#This Row],[Utsläpp A5'[kg']]]/1000","v":0},{"$f":"SUM(OutputScenario[[#This Row],[A1-A3]:[A5]])","v":0},{"$f":"OutputScenario[[#This Row],[Totalt]]/OutputScenario[[#Totals],[Totalt]]","v":0}]
[null,{"$f":"IF(INDEX(InputA1A3[Anläggningsdel\n],ROW()-ROW(OutputScenario[#Headers]))=\"\",\"\",INDEX(InputA1A3[Anläggningsdel\n], ROW()-ROW(OutputScenario[#Headers])))","v":""},{"$f":"IF(INDEX(KontrollTabell[Kategorier],ROW()-ROW(OutputScenario[#Headers]))=\"\",\"\",INDEX(KontrollTabell[Kategorier], ROW()-ROW(OutputScenario[#Headers])))","v":""},{"$f":"IF(INDEX(InputA1A3[Kommentar],ROW()-ROW(OutputScenario[#Headers]))=\"\",\"\",INDEX(InputA1A3[Kommentar], ROW()-ROW(OutputScenario[#Headers])))","v":""},{"$f":"KontrollTabell[[#This Row],[Utsläpp A1A3 '[kg']]]/1000","v":0},{"$f":"KontrollTabell[[#This Row],[Utsläpp A2 '[kg'] (alt1 och alt2)]]/1000","v":0},{"$f":"KontrollTabell[[#This Row],[Utsläpp A5'[kg']]]/1000","v":0},{"$f":"SUM(OutputScenario[[#This Row],[A1-A3]:[A5]])","v":0},{"$f":"OutputScenario[[#This Row],[Totalt]]/OutputScenario[[#Totals],[Totalt]]","v":0}]
[null,{"$f":"IF(INDEX(InputA1A3[Anläggningsdel\n],ROW()-ROW(OutputScenario[#Headers]))=\"\",\"\",INDEX(InputA1A3[Anläggningsdel\n], ROW()-ROW(OutputScenario[#Headers])))","v":""},{"$f":"IF(INDEX(KontrollTabell[Kategorier],ROW()-ROW(OutputScenario[#Headers]))=\"\",\"\",INDEX(KontrollTabell[Kategorier], ROW()-ROW(OutputScenario[#Headers])))","v":""},{"$f":"IF(INDEX(InputA1A3[Kommentar],ROW()-ROW(OutputScenario[#Headers]))=\"\",\"\",INDEX(InputA1A3[Kommentar], ROW()-ROW(OutputScenario[#Headers])))","v":""},{"$f":"KontrollTabell[[#This Row],[Utsläpp A1A3 '[kg']]]/1000","v":0},{"$f":"KontrollTabell[[#This Row],[Utsläpp A2 '[kg'] (alt1 och alt2)]]/1000","v":0},{"$f":"KontrollTabell[[#This Row],[Utsläpp A5'[kg']]]/1000","v":0},{"$f":"SUM(OutputScenario[[#This Row],[A1-A3]:[A5]])","v":0},{"$f":"OutputScenario[[#This Row],[Totalt]]/OutputScenario[[#Totals],[Totalt]]","v":0}]
[null,{"$f":"IF(INDEX(InputA1A3[Anläggningsdel\n],ROW()-ROW(OutputScenario[#Headers]))=\"\",\"\",INDEX(InputA1A3[Anläggningsdel\n], ROW()-ROW(OutputScenario[#Headers])))","v":""},{"$f":"IF(INDEX(KontrollTabell[Kategorier],ROW()-ROW(OutputScenario[#Headers]))=\"\",\"\",INDEX(KontrollTabell[Kategorier], ROW()-ROW(OutputScenario[#Headers])))","v":""},{"$f":"IF(INDEX(InputA1A3[Kommentar],ROW()-ROW(OutputScenario[#Headers]))=\"\",\"\",INDEX(InputA1A3[Kommentar], ROW()-ROW(OutputScenario[#Headers])))","v":""},{"$f":"KontrollTabell[[#This Row],[Utsläpp A1A3 '[kg']]]/1000","v":0},{"$f":"KontrollTabell[[#This Row],[Utsläpp A2 '[kg'] (alt1 och alt2)]]/1000","v":0},{"$f":"KontrollTabell[[#This Row],[Utsläpp A5'[kg']]]/1000","v":0},{"$f":"SUM(OutputScenario[[#This Row],[A1-A3]:[A5]])","v":0},{"$f":"OutputScenario[[#This Row],[Totalt]]/OutputScenario[[#Totals],[Totalt]]","v":0}]
[null,{"$f":"IF(INDEX(InputA1A3[Anläggningsdel\n],ROW()-ROW(OutputScenario[#Headers]))=\"\",\"\",INDEX(InputA1A3[Anläggningsdel\n], ROW()-ROW(OutputScenario[#Headers])))","v":""},{"$f":"IF(INDEX(KontrollTabell[Kategorier],ROW()-ROW(OutputScenario[#Headers]))=\"\",\"\",INDEX(KontrollTabell[Kategorier], ROW()-ROW(OutputScenario[#Headers])))","v":""},{"$f":"IF(INDEX(InputA1A3[Kommentar],ROW()-ROW(OutputScenario[#Headers]))=\"\",\"\",INDEX(InputA1A3[Kommentar], ROW()-ROW(OutputScenario[#Headers])))","v":""},{"$f":"KontrollTabell[[#This Row],[Utsläpp A1A3 '[kg']]]/1000","v":0},{"$f":"KontrollTabell[[#This Row],[Utsläpp A2 '[kg'] (alt1 och alt2)]]/1000","v":0},{"$f":"KontrollTabell[[#This Row],[Utsläpp A5'[kg']]]/1000","v":0},{"$f":"SUM(OutputScenario[[#This Row],[A1-A3]:[A5]])","v":0},{"$f":"OutputScenario[[#This Row],[Totalt]]/OutputScenario[[#Totals],[Totalt]]","v":0}]
[null,{"$f":"IF(INDEX(InputA1A3[Anläggningsdel\n],ROW()-ROW(OutputScenario[#Headers]))=\"\",\"\",INDEX(InputA1A3[Anläggningsdel\n], ROW()-ROW(OutputScenario[#Headers])))","v":""},{"$f":"IF(INDEX(KontrollTabell[Kategorier],ROW()-ROW(OutputScenario[#Headers]))=\"\",\"\",INDEX(KontrollTabell[Kategorier], ROW()-ROW(OutputScenario[#Headers])))","v":""},{"$f":"IF(INDEX(InputA1A3[Kommentar],ROW()-ROW(OutputScenario[#Headers]))=\"\",\"\",INDEX(InputA1A3[Kommentar], ROW()-ROW(OutputScenario[#Headers])))","v":""},{"$f":"KontrollTabell[[#This Row],[Utsläpp A1A3 '[kg']]]/1000","v":0},{"$f":"KontrollTabell[[#This Row],[Utsläpp A2 '[kg'] (alt1 och alt2)]]/1000","v":0},{"$f":"KontrollTabell[[#This Row],[Utsläpp A5'[kg']]]/1000","v":0},{"$f":"SUM(OutputScenario[[#This Row],[A1-A3]:[A5]])","v":0},{"$f":"OutputScenario[[#This Row],[Totalt]]/OutputScenario[[#Totals],[Totalt]]","v":0}]
[null,{"$f":"IF(INDEX(InputA1A3[Anläggningsdel\n],ROW()-ROW(OutputScenario[#Headers]))=\"\",\"\",INDEX(InputA1A3[Anläggningsdel\n], ROW()-ROW(OutputScenario[#Headers])))","v":""},{"$f":"IF(INDEX(KontrollTabell[Kategorier],ROW()-ROW(OutputScenario[#Headers]))=\"\",\"\",INDEX(KontrollTabell[Kategorier], ROW()-ROW(OutputScenario[#Headers])))","v":""},{"$f":"IF(INDEX(InputA1A3[Kommentar],ROW()-ROW(OutputScenario[#Headers]))=\"\",\"\",INDEX(InputA1A3[Kommentar], ROW()-ROW(OutputScenario[#Headers])))","v":""},{"$f":"KontrollTabell[[#This Row],[Utsläpp A1A3 '[kg']]]/1000","v":0},{"$f":"KontrollTabell[[#This Row],[Utsläpp A2 '[kg'] (alt1 och alt2)]]/1000","v":0},{"$f":"KontrollTabell[[#This Row],[Utsläpp A5'[kg']]]/1000","v":0},{"$f":"SUM(OutputScenario[[#This Row],[A1-A3]:[A5]])","v":0},{"$f":"OutputScenario[[#This Row],[Totalt]]/OutputScenario[[#Totals],[Totalt]]","v":0}]
[null,{"$f":"IF(INDEX(InputA1A3[Anläggningsdel\n],ROW()-ROW(OutputScenario[#Headers]))=\"\",\"\",INDEX(InputA1A3[Anläggningsdel\n], ROW()-ROW(OutputScenario[#Headers])))","v":""},{"$f":"IF(INDEX(KontrollTabell[Kategorier],ROW()-ROW(OutputScenario[#Headers]))=\"\",\"\",INDEX(KontrollTabell[Kategorier], ROW()-ROW(OutputScenario[#Headers])))","v":""},{"$f":"IF(INDEX(InputA1A3[Kommentar],ROW()-ROW(OutputScenario[#Headers]))=\"\",\"\",INDEX(InputA1A3[Kommentar], ROW()-ROW(OutputScenario[#Headers])))","v":""},{"$f":"KontrollTabell[[#This Row],[Utsläpp A1A3 '[kg']]]/1000","v":0},{"$f":"KontrollTabell[[#This Row],[Utsläpp A2 '[kg'] (alt1 och alt2)]]/1000","v":0},{"$f":"KontrollTabell[[#This Row],[Utsläpp A5'[kg']]]/1000","v":0},{"$f":"SUM(OutputScenario[[#This Row],[A1-A3]:[A5]])","v":0},{"$f":"OutputScenario[[#This Row],[Totalt]]/OutputScenario[[#Totals],[Totalt]]","v":0}]
[null,{"$f":"IF(INDEX(InputA1A3[Anläggningsdel\n],ROW()-ROW(OutputScenario[#Headers]))=\"\",\"\",INDEX(InputA1A3[Anläggningsdel\n], ROW()-ROW(OutputScenario[#Headers])))","v":""},{"$f":"IF(INDEX(KontrollTabell[Kategorier],ROW()-ROW(OutputScenario[#Headers]))=\"\",\"\",INDEX(KontrollTabell[Kategorier], ROW()-ROW(OutputScenario[#Headers])))","v":""},{"$f":"IF(INDEX(InputA1A3[Kommentar],ROW()-ROW(OutputScenario[#Headers]))=\"\",\"\",INDEX(InputA1A3[Kommentar], ROW()-ROW(OutputScenario[#Headers])))","v":""},{"$f":"KontrollTabell[[#This Row],[Utsläpp A1A3 '[kg']]]/1000","v":0},{"$f":"KontrollTabell[[#This Row],[Utsläpp A2 '[kg'] (alt1 och alt2)]]/1000","v":0},{"$f":"KontrollTabell[[#This Row],[Utsläpp A5'[kg']]]/1000","v":0},{"$f":"SUM(OutputScenario[[#This Row],[A1-A3]:[A5]])","v":0},{"$f":"OutputScenario[[#This Row],[Totalt]]/OutputScenario[[#Totals],[Totalt]]","v":0}]
[null,{"$f":"IF(INDEX(InputA1A3[Anläggningsdel\n],ROW()-ROW(OutputScenario[#Headers]))=\"\",\"\",INDEX(InputA1A3[Anläggningsdel\n], ROW()-ROW(OutputScenario[#Headers])))","v":""},{"$f":"IF(INDEX(KontrollTabell[Kategorier],ROW()-ROW(OutputScenario[#Headers]))=\"\",\"\",INDEX(KontrollTabell[Kategorier], ROW()-ROW(OutputScenario[#Headers])))","v":""},{"$f":"IF(INDEX(InputA1A3[Kommentar],ROW()-ROW(OutputScenario[#Headers]))=\"\",\"\",INDEX(InputA1A3[Kommentar], ROW()-ROW(OutputScenario[#Headers])))","v":""},{"$f":"KontrollTabell[[#This Row],[Utsläpp A1A3 '[kg']]]/1000","v":0},{"$f":"KontrollTabell[[#This Row],[Utsläpp A2 '[kg'] (alt1 och alt2)]]/1000","v":0},{"$f":"KontrollTabell[[#This Row],[Utsläpp A5'[kg']]]/1000","v":0},{"$f":"SUM(OutputScenario[[#This Row],[A1-A3]:[A5]])","v":0},{"$f":"OutputScenario[[#This Row],[Totalt]]/OutputScenario[[#Totals],[Totalt]]","v":0}]
[null,{"$f":"IF(INDEX(InputA1A3[Anläggningsdel\n],ROW()-ROW(OutputScenario[#Headers]))=\"\",\"\",INDEX(InputA1A3[Anläggningsdel\n], ROW()-ROW(OutputScenario[#Headers])))","v":""},{"$f":"IF(INDEX(KontrollTabell[Kategorier],ROW()-ROW(OutputScenario[#Headers]))=\"\",\"\",INDEX(KontrollTabell[Kategorier], ROW()-ROW(OutputScenario[#Headers])))","v":""},{"$f":"IF(INDEX(InputA1A3[Kommentar],ROW()-ROW(OutputScenario[#Headers]))=\"\",\"\",INDEX(InputA1A3[Kommentar], ROW()-ROW(OutputScenario[#Headers])))","v":""},{"$f":"KontrollTabell[[#This Row],[Utsläpp A1A3 '[kg']]]/1000","v":0},{"$f":"KontrollTabell[[#This Row],[Utsläpp A2 '[kg'] (alt1 och alt2)]]/1000","v":0},{"$f":"KontrollTabell[[#This Row],[Utsläpp A5'[kg']]]/1000","v":0},{"$f":"SUM(OutputScenario[[#This Row],[A1-A3]:[A5]])","v":0},{"$f":"OutputScenario[[#This Row],[Totalt]]/OutputScenario[[#Totals],[Totalt]]","v":0}]
[null,{"$f":"IF(INDEX(InputA1A3[Anläggningsdel\n],ROW()-ROW(OutputScenario[#Headers]))=\"\",\"\",INDEX(InputA1A3[Anläggningsdel\n], ROW()-ROW(OutputScenario[#Headers])))","v":""},{"$f":"IF(INDEX(KontrollTabell[Kategorier],ROW()-ROW(OutputScenario[#Headers]))=\"\",\"\",INDEX(KontrollTabell[Kategorier], ROW()-ROW(OutputScenario[#Headers])))","v":""},{"$f":"IF(INDEX(InputA1A3[Kommentar],ROW()-ROW(OutputScenario[#Headers]))=\"\",\"\",INDEX(InputA1A3[Kommentar], ROW()-ROW(OutputScenario[#Headers])))","v":""},{"$f":"KontrollTabell[[#This Row],[Utsläpp A1A3 '[kg']]]/1000","v":0},{"$f":"KontrollTabell[[#This Row],[Utsläpp A2 '[kg'] (alt1 och alt2)]]/1000","v":0},{"$f":"KontrollTabell[[#This Row],[Utsläpp A5'[kg']]]/1000","v":0},{"$f":"SUM(OutputScenario[[#This Row],[A1-A3]:[A5]])","v":0},{"$f":"OutputScenario[[#This Row],[Totalt]]/OutputScenario[[#Totals],[Totalt]]","v":0}]
[null,{"$f":"IF(INDEX(InputA1A3[Anläggningsdel\n],ROW()-ROW(OutputScenario[#Headers]))=\"\",\"\",INDEX(InputA1A3[Anläggningsdel\n], ROW()-ROW(OutputScenario[#Headers])))","v":""},{"$f":"IF(INDEX(KontrollTabell[Kategorier],ROW()-ROW(OutputScenario[#Headers]))=\"\",\"\",INDEX(KontrollTabell[Kategorier], ROW()-ROW(OutputScenario[#Headers])))","v":""},{"$f":"IF(INDEX(InputA1A3[Kommentar],ROW()-ROW(OutputScenario[#Headers]))=\"\",\"\",INDEX(InputA1A3[Kommentar], ROW()-ROW(OutputScenario[#Headers])))","v":""},{"$f":"KontrollTabell[[#This Row],[Utsläpp A1A3 '[kg']]]/1000","v":0},{"$f":"KontrollTabell[[#This Row],[Utsläpp A2 '[kg'] (alt1 och alt2)]]/1000","v":0},{"$f":"KontrollTabell[[#This Row],[Utsläpp A5'[kg']]]/1000","v":0},{"$f":"SUM(OutputScenario[[#This Row],[A1-A3]:[A5]])","v":0},{"$f":"OutputScenario[[#This Row],[Totalt]]/OutputScenario[[#Totals],[Totalt]]","v":0}]
[null,{"$f":"IF(INDEX(InputA1A3[Anläggningsdel\n],ROW()-ROW(OutputScenario[#Headers]))=\"\",\"\",INDEX(InputA1A3[Anläggningsdel\n], ROW()-ROW(OutputScenario[#Headers])))","v":""},{"$f":"IF(INDEX(KontrollTabell[Kategorier],ROW()-ROW(OutputScenario[#Headers]))=\"\",\"\",INDEX(KontrollTabell[Kategorier], ROW()-ROW(OutputScenario[#Headers])))","v":""},{"$f":"IF(INDEX(InputA1A3[Kommentar],ROW()-ROW(OutputScenario[#Headers]))=\"\",\"\",INDEX(InputA1A3[Kommentar], ROW()-ROW(OutputScenario[#Headers])))","v":""},{"$f":"KontrollTabell[[#This Row],[Utsläpp A1A3 '[kg']]]/1000","v":0},{"$f":"KontrollTabell[[#This Row],[Utsläpp A2 '[kg'] (alt1 och alt2)]]/1000","v":0},{"$f":"KontrollTabell[[#This Row],[Utsläpp A5'[kg']]]/1000","v":0},{"$f":"SUM(OutputScenario[[#This Row],[A1-A3]:[A5]])","v":0},{"$f":"OutputScenario[[#This Row],[Totalt]]/OutputScenario[[#Totals],[Totalt]]","v":0}]
[null,{"$f":"IF(INDEX(InputA1A3[Anläggningsdel\n],ROW()-ROW(OutputScenario[#Headers]))=\"\",\"\",INDEX(InputA1A3[Anläggningsdel\n], ROW()-ROW(OutputScenario[#Headers])))","v":""},{"$f":"IF(INDEX(KontrollTabell[Kategorier],ROW()-ROW(OutputScenario[#Headers]))=\"\",\"\",INDEX(KontrollTabell[Kategorier], ROW()-ROW(OutputScenario[#Headers])))","v":""},{"$f":"IF(INDEX(InputA1A3[Kommentar],ROW()-ROW(OutputScenario[#Headers]))=\"\",\"\",INDEX(InputA1A3[Kommentar], ROW()-ROW(OutputScenario[#Headers])))","v":""},{"$f":"KontrollTabell[[#This Row],[Utsläpp A1A3 '[kg']]]/1000","v":0},{"$f":"KontrollTabell[[#This Row],[Utsläpp A2 '[kg'] (alt1 och alt2)]]/1000","v":0},{"$f":"KontrollTabell[[#This Row],[Utsläpp A5'[kg']]]/1000","v":0},{"$f":"SUM(OutputScenario[[#This Row],[A1-A3]:[A5]])","v":0},{"$f":"OutputScenario[[#This Row],[Totalt]]/OutputScenario[[#Totals],[Totalt]]","v":0}]
[null,{"$f":"IF(INDEX(InputA1A3[Anläggningsdel\n],ROW()-ROW(OutputScenario[#Headers]))=\"\",\"\",INDEX(InputA1A3[Anläggningsdel\n], ROW()-ROW(OutputScenario[#Headers])))","v":""},{"$f":"IF(INDEX(KontrollTabell[Kategorier],ROW()-ROW(OutputScenario[#Headers]))=\"\",\"\",INDEX(KontrollTabell[Kategorier], ROW()-ROW(OutputScenario[#Headers])))","v":""},{"$f":"IF(INDEX(InputA1A3[Kommentar],ROW()-ROW(OutputScenario[#Headers]))=\"\",\"\",INDEX(InputA1A3[Kommentar], ROW()-ROW(OutputScenario[#Headers])))","v":""},{"$f":"KontrollTabell[[#This Row],[Utsläpp A1A3 '[kg']]]/1000","v":0},{"$f":"KontrollTabell[[#This Row],[Utsläpp A2 '[kg'] (alt1 och alt2)]]/1000","v":0},{"$f":"KontrollTabell[[#This Row],[Utsläpp A5'[kg']]]/1000","v":0},{"$f":"SUM(OutputScenario[[#This Row],[A1-A3]:[A5]])","v":0},{"$f":"OutputScenario[[#This Row],[Totalt]]/OutputScenario[[#Totals],[Totalt]]","v":0}]
[null,{"$f":"IF(INDEX(InputA1A3[Anläggningsdel\n],ROW()-ROW(OutputScenario[#Headers]))=\"\",\"\",INDEX(InputA1A3[Anläggningsdel\n], ROW()-ROW(OutputScenario[#Headers])))","v":""},{"$f":"IF(INDEX(KontrollTabell[Kategorier],ROW()-ROW(OutputScenario[#Headers]))=\"\",\"\",INDEX(KontrollTabell[Kategorier], ROW()-ROW(OutputScenario[#Headers])))","v":""},{"$f":"IF(INDEX(InputA1A3[Kommentar],ROW()-ROW(OutputScenario[#Headers]))=\"\",\"\",INDEX(InputA1A3[Kommentar], ROW()-ROW(OutputScenario[#Headers])))","v":""},{"$f":"KontrollTabell[[#This Row],[Utsläpp A1A3 '[kg']]]/1000","v":0},{"$f":"KontrollTabell[[#This Row],[Utsläpp A2 '[kg'] (alt1 och alt2)]]/1000","v":0},{"$f":"KontrollTabell[[#This Row],[Utsläpp A5'[kg']]]/1000","v":0},{"$f":"SUM(OutputScenario[[#This Row],[A1-A3]:[A5]])","v":0},{"$f":"OutputScenario[[#This Row],[Totalt]]/OutputScenario[[#Totals],[Totalt]]","v":0}]
[null,{"$f":"IF(INDEX(InputA1A3[Anläggningsdel\n],ROW()-ROW(OutputScenario[#Headers]))=\"\",\"\",INDEX(InputA1A3[Anläggningsdel\n], ROW()-ROW(OutputScenario[#Headers])))","v":""},{"$f":"IF(INDEX(KontrollTabell[Kategorier],ROW()-ROW(OutputScenario[#Headers]))=\"\",\"\",INDEX(KontrollTabell[Kategorier], ROW()-ROW(OutputScenario[#Headers])))","v":""},{"$f":"IF(INDEX(InputA1A3[Kommentar],ROW()-ROW(OutputScenario[#Headers]))=\"\",\"\",INDEX(InputA1A3[Kommentar], ROW()-ROW(OutputScenario[#Headers])))","v":""},{"$f":"KontrollTabell[[#This Row],[Utsläpp A1A3 '[kg']]]/1000","v":0},{"$f":"KontrollTabell[[#This Row],[Utsläpp A2 '[kg'] (alt1 och alt2)]]/1000","v":0},{"$f":"KontrollTabell[[#This Row],[Utsläpp A5'[kg']]]/1000","v":0},{"$f":"SUM(OutputScenario[[#This Row],[A1-A3]:[A5]])","v":0},{"$f":"OutputScenario[[#This Row],[Totalt]]/OutputScenario[[#Totals],[Totalt]]","v":0}]
[null,{"$f":"IF(INDEX(InputA1A3[Anläggningsdel\n],ROW()-ROW(OutputScenario[#Headers]))=\"\",\"\",INDEX(InputA1A3[Anläggningsdel\n], ROW()-ROW(OutputScenario[#Headers])))","v":""},{"$f":"IF(INDEX(KontrollTabell[Kategorier],ROW()-ROW(OutputScenario[#Headers]))=\"\",\"\",INDEX(KontrollTabell[Kategorier], ROW()-ROW(OutputScenario[#Headers])))","v":""},{"$f":"IF(INDEX(InputA1A3[Kommentar],ROW()-ROW(OutputScenario[#Headers]))=\"\",\"\",INDEX(InputA1A3[Kommentar], ROW()-ROW(OutputScenario[#Headers])))","v":""},{"$f":"KontrollTabell[[#This Row],[Utsläpp A1A3 '[kg']]]/1000","v":0},{"$f":"KontrollTabell[[#This Row],[Utsläpp A2 '[kg'] (alt1 och alt2)]]/1000","v":0},{"$f":"KontrollTabell[[#This Row],[Utsläpp A5'[kg']]]/1000","v":0},{"$f":"SUM(OutputScenario[[#This Row],[A1-A3]:[A5]])","v":0},{"$f":"OutputScenario[[#This Row],[Totalt]]/OutputScenario[[#Totals],[Totalt]]","v":0}]
[null,{"$f":"IF(INDEX(InputA1A3[Anläggningsdel\n],ROW()-ROW(OutputScenario[#Headers]))=\"\",\"\",INDEX(InputA1A3[Anläggningsdel\n], ROW()-ROW(OutputScenario[#Headers])))","v":""},{"$f":"IF(INDEX(KontrollTabell[Kategorier],ROW()-ROW(OutputScenario[#Headers]))=\"\",\"\",INDEX(KontrollTabell[Kategorier], ROW()-ROW(OutputScenario[#Headers])))","v":""},{"$f":"IF(INDEX(InputA1A3[Kommentar],ROW()-ROW(OutputScenario[#Headers]))=\"\",\"\",INDEX(InputA1A3[Kommentar], ROW()-ROW(OutputScenario[#Headers])))","v":""},{"$f":"KontrollTabell[[#This Row],[Utsläpp A1A3 '[kg']]]/1000","v":0},{"$f":"KontrollTabell[[#This Row],[Utsläpp A2 '[kg'] (alt1 och alt2)]]/1000","v":0},{"$f":"KontrollTabell[[#This Row],[Utsläpp A5'[kg']]]/1000","v":0},{"$f":"SUM(OutputScenario[[#This Row],[A1-A3]:[A5]])","v":0},{"$f":"OutputScenario[[#This Row],[Totalt]]/OutputScenario[[#Totals],[Totalt]]","v":0}]
[null,{"$f":"IF(INDEX(InputA1A3[Anläggningsdel\n],ROW()-ROW(OutputScenario[#Headers]))=\"\",\"\",INDEX(InputA1A3[Anläggningsdel\n], ROW()-ROW(OutputScenario[#Headers])))","v":""},{"$f":"IF(INDEX(KontrollTabell[Kategorier],ROW()-ROW(OutputScenario[#Headers]))=\"\",\"\",INDEX(KontrollTabell[Kategorier], ROW()-ROW(OutputScenario[#Headers])))","v":""},{"$f":"IF(INDEX(InputA1A3[Kommentar],ROW()-ROW(OutputScenario[#Headers]))=\"\",\"\",INDEX(InputA1A3[Kommentar], ROW()-ROW(OutputScenario[#Headers])))","v":""},{"$f":"KontrollTabell[[#This Row],[Utsläpp A1A3 '[kg']]]/1000","v":0},{"$f":"KontrollTabell[[#This Row],[Utsläpp A2 '[kg'] (alt1 och alt2)]]/1000","v":0},{"$f":"KontrollTabell[[#This Row],[Utsläpp A5'[kg']]]/1000","v":0},{"$f":"SUM(OutputScenario[[#This Row],[A1-A3]:[A5]])","v":0},{"$f":"OutputScenario[[#This Row],[Totalt]]/OutputScenario[[#Totals],[Totalt]]","v":0}]
[null,{"$f":"IF(INDEX(InputA1A3[Anläggningsdel\n],ROW()-ROW(OutputScenario[#Headers]))=\"\",\"\",INDEX(InputA1A3[Anläggningsdel\n], ROW()-ROW(OutputScenario[#Headers])))","v":""},{"$f":"IF(INDEX(KontrollTabell[Kategorier],ROW()-ROW(OutputScenario[#Headers]))=\"\",\"\",INDEX(KontrollTabell[Kategorier], ROW()-ROW(OutputScenario[#Headers])))","v":""},{"$f":"IF(INDEX(InputA1A3[Kommentar],ROW()-ROW(OutputScenario[#Headers]))=\"\",\"\",INDEX(InputA1A3[Kommentar], ROW()-ROW(OutputScenario[#Headers])))","v":""},{"$f":"KontrollTabell[[#This Row],[Utsläpp A1A3 '[kg']]]/1000","v":0},{"$f":"KontrollTabell[[#This Row],[Utsläpp A2 '[kg'] (alt1 och alt2)]]/1000","v":0},{"$f":"KontrollTabell[[#This Row],[Utsläpp A5'[kg']]]/1000","v":0},{"$f":"SUM(OutputScenario[[#This Row],[A1-A3]:[A5]])","v":0},{"$f":"OutputScenario[[#This Row],[Totalt]]/OutputScenario[[#Totals],[Totalt]]","v":0}]
[null,{"$f":"IF(INDEX(InputA1A3[Anläggningsdel\n],ROW()-ROW(OutputScenario[#Headers]))=\"\",\"\",INDEX(InputA1A3[Anläggningsdel\n], ROW()-ROW(OutputScenario[#Headers])))","v":""},{"$f":"IF(INDEX(KontrollTabell[Kategorier],ROW()-ROW(OutputScenario[#Headers]))=\"\",\"\",INDEX(KontrollTabell[Kategorier], ROW()-ROW(OutputScenario[#Headers])))","v":""},{"$f":"IF(INDEX(InputA1A3[Kommentar],ROW()-ROW(OutputScenario[#Headers]))=\"\",\"\",INDEX(InputA1A3[Kommentar], ROW()-ROW(OutputScenario[#Headers])))","v":""},{"$f":"KontrollTabell[[#This Row],[Utsläpp A1A3 '[kg']]]/1000","v":0},{"$f":"KontrollTabell[[#This Row],[Utsläpp A2 '[kg'] (alt1 och alt2)]]/1000","v":0},{"$f":"KontrollTabell[[#This Row],[Utsläpp A5'[kg']]]/1000","v":0},{"$f":"SUM(OutputScenario[[#This Row],[A1-A3]:[A5]])","v":0},{"$f":"OutputScenario[[#This Row],[Totalt]]/OutputScenario[[#Totals],[Totalt]]","v":0}]
[null,"Total",null,null,{"$f":"SUBTOTAL(109,OutputScenario[A1-A3])","v":92286.28899999999},{"$f":"SUBTOTAL(109,OutputScenario[A4])","v":4013.5990000000002},{"$f":"SUBTOTAL(109,OutputScenario[A5])","v":6772.3820593999999},{"$f":"SUBTOTAL(109,OutputScenario[Totalt])","v":103072.27005939999}]

{"sheet":"Stödtabeller","index":4,"n_rows":16,"n_cols":15,"rows_kept":16,"cut":false,"hidden":true,"merged":[]}
["Rör, justera eller ändra inget i denna flik, även lägg inte till rader eller kolumner."]
[null,null,null,null,null,null,null,null,null,null,"Rött - beräknade från flik \"Emissionsfaktorer - rör ej cellerna"]
[null,null,null,null,null,null,null,null,"Här behöver scenarionamn sparas för de scenarion som sparas, och tas bort när de raderas - även från Excel NameManager!!!"]
[]
["Enheter","Enhet för omräkningsfaktor",null,"FU/DU","Bränsleförbrukning","Scenarier","Fordon","Fordon/Arbetsmaskiner",null,null,"Drivmedel","Emissionsfaktor","Emissionsfaktor - Enhet","DU/FU","Källa"]
["kg","[kg/m³]",null,"[kg]","[Liter (l)]","Referensscenario",null,"Hjullastare",null,null,"Bensin MK1",{"$f":"Emissionsfaktorer!F10*Emissionsfaktorer!G10","v":2.8496999999999999},"[kg CO₂-ekv./liter]","[Liter (l)]","Boverkets klimatdatabas"]
["Liter (l)","[kg/Liter (l)]",null,"[ton]","[MJ]",null,null,"Grävlastare",null,null,"Diesel MK1",{"$f":"Emissionsfaktorer!F8*Emissionsfaktorer!G8","v":2.5768999999999997},"[kg CO₂-ekv./liter]","[Liter (l)]","Boverkets klimatdatabas"]
["m","[kg/m]",null,"[m]","[kWh]",null,null,"Bandgrävningsmaskin",null,null,"E85 Etanol",{"$f":"INDEX(TabellBoverketsKDB[],MATCH(TabellEFDrivmedel[[#This Row],[Drivmedel]],TabellBoverketsKDB[Produktnamn],0),6)*INDEX(TabellBoverketsKDB[],MATCH(TabellEFDrivmedel[[#This Row],[Drivmedel]],TabellBoverketsKDB[Produktnamn],0),7)","v":1.3408199999999999},"[kg CO₂-ekv./liter]","[Liter (l)]","Boverkets klimatdatabas"]
["m²","[kg/m²]",null,"[m²]","[m³]",null,null,"Dumper",null,null,"ED95",{"$f":"INDEX(TabellBoverketsKDB[],MATCH(TabellEFDrivmedel[[#This Row],[Drivmedel]],TabellBoverketsKDB[Produktnamn],0),6)*INDEX(TabellBoverketsKDB[],MATCH(TabellEFDrivmedel[[#This Row],[Drivmedel]],TabellBoverketsKDB[Produktnamn],0),7)","v":0.50224999999999997},"[kg CO₂-ekv./liter]","[Liter (l)]","Boverkets klimatdatabas"]
["m³","[kg/m³]",null,"[m³]",null,null,null,"Hjulgrävsmaskin",null,null,"El - nordisk mix",{"$f":"93.2/1000","v":9.3200000000000005E-2},"[kg CO₂-ekv./kWh]","[kWh]","SMED Rapport nr 4, 2021"]
["st","[kg/st]",null,"[MJ]",null,null,null,"Kompaktlastare",null,null,"El - nordisk residualmix",{"$f":"468/1000","v":0.46800000000000003},"kg CO₂/kWh]","[kWh]","Miljövärdering 2023, Energiföretagen - OBS, ej ekvivalenter"]
["ton","[kg/ton]",null,"[kWh]",null,null,null,"Gruvtruck/Tipptruck",null,null,"El - svensk elmix",{"$f":"INDEX(TabellBoverketsKDB[],MATCH(TabellEFDrivmedel[[#This Row],[Drivmedel]],TabellBoverketsKDB[Produktnamn],0),6)*INDEX(TabellBoverketsKDB[],MATCH(TabellEFDrivmedel[[#This Row],[Drivmedel]],TabellBoverketsKDB[Produktnamn],0),7)","v":3.6999999999999998E-2},"[kg CO₂-ekv./kWh]","[kWh]","Boverkets klimatdatabas"]
["MJ","[kg/MJ]",null,"[Liter (l)]",null,null,null,"Mobilkran",null,null,"FAME100",{"$f":"INDEX(TabellBoverketsKDB[],MATCH(TabellEFDrivmedel[[#This Row],[Drivmedel]],TabellBoverketsKDB[Produktnamn],0),6)*INDEX(TabellBoverketsKDB[],MATCH(TabellEFDrivmedel[[#This Row],[Drivmedel]],TabellBoverketsKDB[Produktnamn],0),7)","v":0.99358000000000002},"[kg CO₂-ekv./MJ]","[MJ]","Boverkets klimatdatabas"]
["kWh","[kg/kWh]",null,"[st]",null,null,null,"Truck",null,null,"Fordonsgas",{"$f":"57/1000*38","v":2.1659999999999999},"[kg CO₂-ekv./km]","[km]","Energimyndigheten ER2020:26, värde 2019"]
[null,null,null,"[km]",null,null,null,null,null,null,"HVO100",{"$f":"INDEX(TabellBoverketsKDB[],MATCH(TabellEFDrivmedel[[#This Row],[Drivmedel]],TabellBoverketsKDB[Produktnamn],0),6)*INDEX(TabellBoverketsKDB[],MATCH(TabellEFDrivmedel[[#This Row],[Drivmedel]],TabellBoverketsKDB[Produktnamn],0),7)","v":0.5202},"[kg CO₂-ekv./liter]","[Liter (l)]","Boverkets klimatdatabas"]
[null,null,null,null,null,null,null,null,null,null,"El - grön el",1.1999999999999999E-3,"[kg CO₂-ekv./kWh]","[kWh]","Trafikverkets Klimakalkyl v.8"]

{"sheet":"Emissionsfaktorer","index":5,"n_rows":16,"n_cols":12,"rows_kept":16,"cut":false,"hidden":true,"merged":[]}
["Rör, justera eller ändra inget i denna flik, även lägg inte till rader eller kolumner."]
[]
[]
["Emissionsfaktorer - Drivmedel",null,"Källa:","Boverkets klimatdatabas v. 02.05.00"]
[]
["ResursId","Produktnamn","Kategori","Uppdaterad","Enhet för klimatpåverkan","Energislagets klimatpåverkan GWP-GHG, typiskt värde","Omräkningsfaktor","Enhet för omräkningsfaktor","Produktstandard","Komponentkod enligt BK04","Komponentnamn enligt BK04","Produktens användningsområde"]
[6000000008,"El - svensk elmix","Energi och bränsle","2022-12-21T10:26:52.513","kg CO₂e/kWh",3.6999999999999998E-2,1,"kWh","EN 15804 A1","195","Elektricitet","El köps från elnätet för flera olika ändamål."]
[6000000010,"Diesel, reduktionsplikt (2021)","Energi och bränsle","2022-12-21T13:44:46.991","kg CO₂e/MJ",7.2999999999999995E-2,35.299999999999997,"MJ/Liter","EN 15804 A1","19201","Bränsle","Diesel köps och förbränns i olika maskiner och fordon, dvs omfattar WtW (Well to Wheel)"]
[6000000011,"Diesel, fossil","Energi och bränsle","2022-12-21T13:45:09.253","kg CO₂e/MJ",9.5100000000000004E-2,35.200000000000003,"MJ/Liter","EN 15804 A1","19201","Bränsle","Diesel köps och förbränns i olika maskiner och fordon, dvs omfattar WtW (Well to Wheel)."]
[6000000012,"Bensin, reduktionsplikt (2021)","Energi och bränsle","2022-12-21T13:40:28.168","kg CO₂e/MJ",8.8499999999999995E-2,32.200000000000003,"MJ/Liter","EN 15804 A1","19201","Bränsle","Diesel köps och förbränns i olika maskiner och fordon, dvs omfattar WtW (Well to Wheel)."]
[6000000013,"Bensin, fossil","Energi och bränsle","2022-12-21T13:46:17.190","kg CO₂e/MJ",9.3299999999999994E-2,34.9,"MJ/Liter","EN 15804 A1","19201","Bränsle","Bensin köps och förbränns i olika maskiner och fordon, dvs omfattar WtW (Well to Wheel)"]
[6000000017,"HVO100","Energi och bränsle","2023-01-16T13:46:19.968","kg CO₂e/MJ",1.5299999999999999E-2,34,"MJ/Liter","EN 15804 A1","19201","Bränsle","HVO100 köps och förbränns i olika maskiner och fordon, dvs omfattar WtW (Well to Wheel)."]
[6100000002,"E85 etanol","Energi och bränsle","2022-12-21T14:54:24.560","kg CO₂e/MJ",5.7299999999999997E-2,23.4,"MJ/Liter","EN15804","19201  ","Bränsle","E85 etanol köps och förbränns i olika maskiner och fordon, dvs omfattar WtW (Well to Wheel)."]
[6100000003,"Fordonsgas","Energi och bränsle","2022-12-22T12:24:35.634","kg CO₂e/MJ",0.01,null,"MJ/Liter","EN15804","19201  ","Bränsle","Fordonsgas köps och förbränns i olika maskiner och fordon."]
[6100000006,"FAME100","Energi och bränsle","2022-12-22T12:25:41.841","kg CO₂e/MJ",3.0200000000000001E-2,32.9,"MJ/Liter","EN15804","19201  ","Bränsle","FAME100 köps och förbränns i olika maskiner och fordon, dvs omfattar WtW (Well to Wheel)."]
[6100000007,"ED95","Energi och bränsle","2022-12-21T14:58:58.072","kg CO₂e/MJ",2.0500000000000001E-2,24.5,"MJ/Liter","EN15804","19201  ","Bränsle","Klimatdata är representativt för ED95 som köps i Sverige."]

{"sheet":"Hjalpflik","index":6,"n_rows":16,"n_cols":42,"rows_kept":16,"cut":false,"hidden":true,"merged":[]}
["Rör, justera eller ändra inget i denna flik, även lägg inte till rader eller kolumner."]
[]
[]
[null,null,null,null,null,null,null,null,null,null,null,null,null,null,null,null,null,null,"Tabell för stacked kolumn-diagram anläggningsdel/MODUL",null,null,null,null,null,null,"Tabell för stacked-kolumn-diagram för kategror/MODUL",null,null,null,null,null,"Tabell för paj-diagram per anläggningsdel",null,null,null,null,"Tabell för paj-diagram - kategori",null,null,null,"Tabell för pajdiagram - MODUL"]
["Huvudtabell - skapar nödvändiga tabeller för diagrammen utifrån denna"]
[]
["Anläggningsdel","Kategorisering","A1-A3","A4","A5","Totalt",null,null,null,"Anläggningsdel","A1-A3","A4","A5","Totalt",null,null,null,null,"Anläggningsdel","A1-A3","A4","A5","Totalt",null,null,"Kategorisering","A1-A3","A4","A5","Totalt",null,"Anläggningsdel","Totalt",null,null,"Kategorisering","Totalt",null,null,null,"Modul","Totalt"]
["tewwst","Kat1",520,3648,0,4168,null,null,null,"Övriga anläggningsdelar",3684.65,261.733,1.7473848000000001,3948.1303848000002,null,null,null,null,"tewwst",520,3648,0,4168,null,null,"Kat1",1840.9,3662.76,1.7471382,5505.4071382000002,null,"Övriga anläggningsdelar",3948.1303848000002,null,null,"Kat1",5505.4071382000002,null,null,null,"A4","92 286"]
["agrae","kat2",56941.631999999998,0,8.7614600000000001E-2,56941.719614599999,null,null,null,"tewwst",520,3648,0,4168,null,null,null,null,"agrae",56941.631999999998,0,8.7614600000000001E-2,56941.719614599999,null,null,"kat2",59269.631999999998,0.188,8.78612E-2,59269.907861200001,null,"tewwst",4168,null,null,"kat2",59269.907861200001,null,null,null,"A4","4 014"]
["agreg","kat1",1320.9,14.76,1.7471382,1337.4071382000002,null,null,null,"agh",6941.9350000000004,72,0,7013.9350000000004,null,null,null,null,"agreg",1320.9,14.76,1.7471382,1337.4071382000002,null,null,"kat3",24198.072,31.866,6770.5470599999999,31000.485060000003,null,"agh",7013.9350000000004,null,null,"kat3",31000.485060000003,null,null,null,"A5","6 772"]
["f","kat3",24198.072,31.866,6770.5470599999999,31000.485060000003,null,null,null,"f",24198.072,31.866,6770.5470599999999,31000.485060000003,null,null,null,null,"f",24198.072,31.866,6770.5470599999999,31000.485060000003,null,null,"övrigt",6941.9350000000004,72,0,7013.9350000000004,null,"f",31000.485060000003,null,null,"övrigt",7013.9350000000004]
["fg","kat2",2328,0.188,2.4659999999999998E-4,2328.1882466000002,null,null,null,"agrae",56941.631999999998,0,8.7614600000000001E-2,56941.719614599999,null,null,null,null,"fg",2328,0.188,2.4659999999999998E-4,2328.1882466000002,null,null,"Kategori saknas",35.1,246.285,0,281.38499999999999,null,"agrae",56941.719614599999,null,null,"Kategori saknas",281.38499999999999]
["agh","övrigt",6941.9350000000004,72,0,7013.9350000000004,null,null,null,"Total",{"$f":"SUBTOTAL(109,OutputScenario18[A1-A3])","v":92286.28899999999},{"$f":"SUBTOTAL(109,OutputScenario18[A4])","v":4013.5990000000002},{"$f":"SUBTOTAL(109,OutputScenario18[A5])","v":6772.3820593999999},{"$f":"SUBTOTAL(109,OutputScenario18[Totalt])","v":103072.27005940001},null,null,null,null,"agh",6941.9350000000004,72,0,7013.9350000000004,null,null,"kat 3",0.65,0.5,0,1.1499999999999999,null,"Total",{"$f":"SUBTOTAL(109,TblChartPie[Totalt])","v":103072.27005940001},null,null,"kat 3",1.1499999999999999]
["ggq","Kategori saknas",35.1,246.285,0,281.38499999999999,null,null,null,null,null,null,null,null,null,null,null,null,"ggq",35.1,246.285,0,281.38499999999999,null,null,null,"92 286","4 014","6 772","103 072",null,null,null,null,null,null,{"$f":"SUBTOTAL(109,TblChartPieKat[Totalt])","v":103072.27005939999},null,null,null,{"$f":"SUBTOTAL(109,TblChartPieMODUL[Modul])","v":0},{"$f":"SUBTOTAL(109,TblChartPieMODUL[Totalt])","v":0}]
["Test A4_1","kat 3",0.65,0.5,0,1.1499999999999999,null,null,null,null,null,null,null,null,null,null,null,null,"Test A4_1",0.65,0.5,0,1.1499999999999999]
["Total",null,{"$f":"SUBTOTAL(109,TblChartHuvud[A1-A3])","v":92286.28899999999},{"$f":"SUBTOTAL(109,TblChartHuvud[A4])","v":4013.5990000000002},{"$f":"SUBTOTAL(109,TblChartHuvud[A5])","v":6772.3820593999999},{"$f":"SUBTOTAL(109,TblChartHuvud[Totalt])","v":103072.27005939999},null,null,null,null,null,null,null,null,null,null,null,null,"Total",{"$f":"SUBTOTAL(109,TblChartKolumn[A1-A3])","v":92286.28899999999},{"$f":"SUBTOTAL(109,TblChartKolumn[A4])","v":4013.5990000000002},{"$f":"SUBTOTAL(109,TblChartKolumn[A5])","v":6772.3820593999999},{"$f":"SUBTOTAL(109,TblChartKolumn[Totalt])","v":103072.27005939999}]